Workbook

Sheet PFE
A1: Date | B1: Open | C1: High | D1: Low | E1: Close | F1: Volume | G1: Adj Close | H1: Returns | L1: DATA IN ROWS 2-121
A2: 2015-12-01 | B2: 33 | C2: 33.830002 | D2: 31.84 | E2: 32.279999 | F2: 34308500 | G2: 32.279999 | H2: =(G2/G3)-1 -> -0.01495273116 | L2: ON EACH DOW STOCK; HOW TO CONSOLIDATE THE DATA?
A3: 2015-11-02 | B3: 34.169998 | C3: 35.25 | D3: 30.99 | E3: 32.77 | F3: 44402800 | G3: 32.77 | H3: =(G3/G4)-1 -> -0.02322576576 | K3: WHICH COLUMN
A4: 2015-10-01 | B4: 31.299999 | C4: 36.07 | D4: 31.1 | E4: 33.82 | F4: 33421300 | G4: 33.549206 | H4: 0.07672711116 | K4: H
A5: 2015-09-01 | B5: 31.459999 | C5: 33.959999 | D5: 30.639999 | E5: 31.41 | F5: 29177200 | G5: 31.158504 | H5: -0.0251396822
A6: 2015-08-03 | B6: 36.290001 | C6: 36.299999 | D6: 28.469999 | E6: 32.220001 | F6: 27520700 | G6: 31.962019 | H6: -0.09950670397 | L6: =FIND("]",L8,1) -> 29 | M6: =FIND("]",M8,1) -> 29 | N6: 29 | O6: 29 | P6: 29 | Q6: 29 | R6: 29 | S6: 29 | T6: 29 | U6: 29 | V6: 29 | W6: 29 | X6: 29 | Y6: 29 | Z6: 29 | AA6: 29 | AB6: 29 | AC6: 29 | AD6: 29 | AE6: 29 | AF6: 29 | AG6: 29 | AH6: 29 | AI6: 29 | AJ6: 29 | AK6: 29 | AL6: 29 | AM6: 29 | AN6: 29 | AO6: 29
A7: 2015-07-01 | B7: 33.560001 | C7: 36.459999 | D7: 33.080002 | E7: 36.060001 | F7: 23919600 | G7: 35.4939 | H7: 0.07545488349 | L7: 1 | M7: 2 | N7: 3 | O7: 4 | P7: 5 | Q7: 6 | R7: 7 | S7: 8 | T7: 9 | U7: 10 | V7: 11 | W7: 12 | X7: 13 | Y7: 14 | Z7: 15 | AA7: 16 | AB7: 17 | AC7: 18 | AD7: 19 | AE7: 20 | AF7: 21 | AG7: 22 | AH7: 23 | AI7: 24 | AJ7: 25 | AK7: 26 | AL7: 27 | AM7: 28 | AN7: 29 | AO7: 30
A8: 2015-06-01 | B8: 34.77 | C8: 34.919998 | D8: 33.330002 | E8: 33.529999 | F8: 24667000 | G8: 33.003616 | H8: -0.03510793211 | L8: =worksheet -> [10 Year Historical DOW.xlsx]PFE | M8: [10 Year Historical DOW.xlsx]MMM | N8: [10 Year Historical DOW.xlsx]AXP | O8: [10 Year Historical DOW.xlsx]AAPL | P8: [10 Year Historical DOW.xlsx]BA | Q8: [10 Year Historical DOW.xlsx]CAT | R8: [10 Year Historical DOW.xlsx]CVX | S8: [10 Year Historical DOW.xlsx]CSCO | T8: [10 Year Historical DOW.xlsx]KO | U8: [10 Year Historical DOW.xlsx]DD | V8: [10 Year Historical DOW.xlsx]XOM | W8: [10 Year Historical DOW.xlsx]GE | X8: [10 Year Historical DOW.xlsx]GS | Y8: [10 Year Historical DOW.xlsx]HD | Z8: [10 Year Historical DOW.xlsx]INTC | AA8: [10 Year Historical DOW.xlsx]IBM | AB8: [10 Year Historical DOW.xlsx]JNJ | AC8: [10 Year Historical DOW.xlsx]JPM | AD8: [10 Year Historical DOW.xlsx]MCD | AE8: [10 Year Historical DOW.xlsx]MRK | AF8: [10 Year Historical DOW.xlsx]MSFT | AG8: [10 Year Historical DOW.xlsx]NKE | AH8: [10 Year Historical DOW.xlsx]PG | AI8: [10 Year Historical DOW.xlsx]TRV | AJ8: [10 Year Historical DOW.xlsx]UNH | AK8: [10 Year Historical DOW.xlsx]UTX | AL8: [10 Year Historical DOW.xlsx]VZ | AM8: [10 Year Historical DOW.xlsx]V | AN8: [10 Year Historical DOW.xlsx]WMT | AO8: [10 Year Historical DOW.xlsx]DIS
A9: 2015-05-01 | B9: 33.860001 | C9: 34.990002 | D9: 33.209999 | E9: 34.75 | F9: 24398200 | G9: 34.204464 | H9: 0.03264158597 | I9: ROWS | J9: Dates | L9: =RIGHT(L8,LEN(L8)-L6) -> PFE | M9: =RIGHT(M8,LEN(M8)-M6) -> MMM | N9: AXP | O9: AAPL | P9: BA | Q9: CAT | R9: CVX | S9: CSCO | T9: KO | U9: DD | V9: XOM | W9: GE | X9: GS | Y9: HD | Z9: INTC | AA9: IBM | AB9: JNJ | AC9: JPM | AD9: MCD | AE9: MRK | AF9: MSFT | AG9: NKE | AH9: PG | AI9: TRV | AJ9: UNH | AK9: UTX | AL9: VZ | AM9: V | AN9: WMT | AO9: DIS
A10: 2015-04-01 | B10: 34.84 | C10: 35.529999 | D10: 33.709999 | E10: 33.93 | F10: 27814200 | G10: 33.123268 | H10: -0.02471979507 | I10: 2 | K10: =$K$4&I10 -> H2 | L10: =INDIRECT(L$9&"!"&$K10) -> -0.01495273116 | M10: =INDIRECT(M$9&"!"&$K10) -> -0.0379358981 | N10: -0.0291735679 | O10: -0.110228239 | P10: -0.005912691769 | Q10: -0.06455613036 | R10: -0.01489269601 | S10: 0.00243902439 | T10: 0.007977475551 | U10: -0.01098898194 | V10: -0.04543236368 | W10: 0.04819608986 | X10: -0.05152093355 | Y10: -0.007802602819 | Z10: -0.009203307449 | AA10: -0.01291065145 | AB10: 0.0146187577 | AC10: -0.009748161082 | AD10: 0.03486330466 | AE10: 0.005026578976 | AF10: 0.02079120592 | AG10: -0.05274407386 | AH10: 0.06106371251 | AI10: -0.009606744292 | AJ10: 0.0482487874 | AK10: 0.0002081936426 | AL10: 0.0169417591 | AM10: -0.01847866046 | AN10: 0.05053453357 | AO10: -0.07394023906
A11: 2015-03-02 | B11: 34.32 | C11: 35.450001 | D11: 33.630001 | E11: 34.790001 | F11: 30966500 | G11: 33.962822 | H11: 0.01369472547 | I11: 3 | K11: =$K$4&I11 -> H3 | L11: =INDIRECT(L$9&"!"&$K11) -> -0.02322576576 | M11: 0.002536523657 | N11: -0.02211308039 | O11: -0.005804312611 | P11: -0.01162087208 | Q11: -0.004658117678 | R11: 0.01711389921 | S11: -0.02958579882 | T11: 0.01409337611 | U11: 0.06822447455 | V11: -0.004449182949 | W11: 0.03526965895 | X11: 0.0169103268 | Y11: 0.08282120162 | Z11: 0.03410893982 | AA11: 0.004624421313 | AB11: 0.009465665204 | AC11: 0.03782106887 | AD11: 0.02498978153 | AE11: -0.03018663987 | AF11: 0.03944408348 | AG11: 0.00953982176 | AH11: -0.02016236005 | AI11: 0.01488171575 | AJ11: -0.04304634655 | AK11: -0.01767295782 | AL11: -0.03050341864 | AM11: 0.0202629037 | AN11: 0.02795245158 | AO11: -0.002373808728
A12: 2015-02-02 | B12: 31.440001 | C12: 34.970001 | D12: 31.02 | E12: 34.32 | F12: 33126200 | G12: 33.503994 | H12: 0.1079282858 | I12: 4 | K12: H4 | L12: 0.07672711116 | M12: 0.1089089221 | N12: -0.007995507711 | O12: 0.08340891083 | P12: 0.1307370748 | Q12: 0.1292182817 | R12: 0.1521298067 | S12: 0.00316580926 | T12: 0.05558324636 | U12: 0.3153527109 | V12: 0.1128446188 | W12: 0.1467090548 | X12: 0.07907461111 | Y12: 0.07056886883 | Z12: 0.1234241084 | AA12: -0.03373112374 | AB12: 0.08227097522 | AC12: 0.06140060015 | AD12: 0.1392468839 | AE12: 0.1067017124 | AF12: 0.1893357445 | AG12: 0.06554440057 | AH12: 0.07126041984 | AI12: 0.1342308811 | AJ12: 0.01525725524 | AK12: 0.1058546582 | AL12: 0.09144961764 | AM12: 0.1136950907 | AN12: -0.1172114622 | AO12: 0.1129158644
A13: 2015-01-02 | B13: 31.27 | C13: 33.5 | D13: 31.01 | E13: 31.25 | F13: 32068700 | G13: 30.240219 | H13: 0.003210282831 | I13: 5 | K13: H5 | L13: -0.0251396822 | M13: -0.002603068493 | N13: -0.03375924917 | O13: -0.02181625714 | P13: 0.002066116912 | Q13: -0.1449502923 | R13: -0.02605259832 | S13: 0.01977397015 | T13: 0.02918590995 | U13: -0.06407766687 | V13: -0.01182872823 | W13: 0.02520967483 | X13: -0.07868509818 | Y13: -0.003279542961 | Z13: 0.05606159667 | AA13: -0.01974443605 | AB13: -0.006703545462 | AC13: -0.04882994485 | AD13: 0.03693963294 | AE13: -0.0749264555 | AF13: 0.017003617 | AG13: 0.1031930382 | AH13: 0.01797100531 | AI13: 0.006076755881 | AJ13: 0.007016663778 | AK13: -0.02859955436 | AL13: -0.05433606553 | AM13: -0.02300136223 | AN13: 0.00169922191 | AO13: 0.00314095023
A14: 2014-12-01 | B14: 30.879999 | C14: 33.119999 | D14: 30.58 | E14: 31.15 | F14: 24917000 | G14: 30.14345 | H14: 0 | I14: 6 | K14: H6 | L14: -0.09950670397 | M14: -0.05425400983 | N14: 0.008677490696 | O14: -0.06619616603 | P14: -0.0877870838 | Q14: -0.0278519413 | R14: -0.07311843427 | S14: -0.02479334908 | T14: -0.04284330398 | U14: -0.06977803937 | V14: -0.04123239682 | W14: -0.04904215502 | X14: -0.07714372323 | Y14: -0.004870553919 | Z14: -0.005972576208 | AA14: -0.07946357875 | AB14: -0.054995127 | AC14: -0.06464323699 | AD14: -0.04008473861 | AE14: -0.08666892448 | AF14: -0.06194886524 | AG14: -0.0301162727 | AH14: -0.07861801349 | AI14: -0.06191103551 | AJ14: -0.04695226177 | AK14: -0.0807650865 | AL14: -0.01667025322 | AM14: -0.05207300169 | AN14: -0.09458188143 | AO14: -0.151000025
A15: 2014-11-03 | B15: 29.9 | C15: 31.639999 | D15: 29.76 | E15: 31.15 | F15: 22471300 | G15: 30.14345 | H15: 0.04907464735 | I15: 7 | K15: H7 | L15: 0.07545488349 | M15: -0.01918346648 | N15: -0.02135877153 | O15: -0.03292672342 | P15: 0.03928777053 | Q15: -0.06441821273 | R15: -0.08282368035 | S15: -0.02306805075 | T15: 0.04715784149 | U15: -0.08185640966 | V15: -0.04795667356 | W15: -0.01768909705 | X15: -0.01781685319 | Y15: 0.05309102534 | Z15: -0.04832347831 | AA15: -0.004119028801 | AB15: 0.02821672231 | AC15: 0.01797389335 | AD15: 0.05038391043 | AE15: 0.03565777899 | AF15: 0.05775758099 | AG15: 0.06665431035 | AH15: -0.01165568941 | AI15: 0.09786881809 | AJ15: -0.004918053605 | AK15: -0.09573603525 | AL15: 0.01568466273 | AM15: 0.1219657396 | AN15: 0.01480333798 | AO15: 0.0574550302
A16: 2014-10-01 | B16: 29.370001 | C16: 30.200001 | D16: 27.51 | E16: 29.950001 | F16: 30533700 | G16: 28.73337 | H16: 0.01285091141 | I16: 8 | K16: H8 | L16: -0.03510793211 | M16: -0.03004773718 | N16: -0.02144026968 | O16: -0.03722754207 | P16: -0.01280960065 | Q16: -0.005860315924 | R16: -0.06339803298 | S16: -0.01065047506 | T16: -0.03433480915 | U16: -0.09942263948 | V16: -0.02347422301 | W16: -0.01738170556 | X16: 0.01260967594 | Y16: 0.002694867358 | Z16: -0.1172373605 | AA16: -0.04120247227 | AB16: -0.02676253191 | AC16: 0.03010039563 | AD16: -0.00896484576 | AE16: -0.05792354753 | AF16: -0.05783183197 | AG16: 0.06245695139 | AH16: -0.00191356906 | AI16: -0.03819825113 | AJ16: 0.01918919749 | AK16: -0.05325597054 | AL16: -0.05724105285 | AM16: -0.02227724186 | AN16: -0.04497097797 | AO16: 0.03415781809
A17: 2014-09-02 | B17: 29.209999 | C17: 30.84 | D17: 29.01 | E17: 29.57 | F17: 23797300 | G17: 28.368805 | H17: 0.006124531261 | I17: 9 | K17: H9 | L17: 0.03264158597 | M17: 0.02363280772 | N17: 0.02930925349 | O17: 0.04533911744 | P17: -0.01339105267 | Q17: -0.01795577051 | R17: -0.06333189735 | S17: -0.00454369557 | T17: 0.009861857241 | U17: -0.02352553528 | V17: -0.01677132944 | W17: 0.007016281061 | X17: 0.05301435044 | Y17: 0.04150300589 | Z17: 0.06633436053 | AA17: -0.002078941316 | AB17: 0.01683713673 | AC17: 0.0398355857 | AD17: 0.002212948117 | AE17: 0.02233037824 | AF17: -0.03033420967 | AG17: 0.03144046149 | AH17: -0.01408624324 | AI17: 9.892712695e-05 | AJ17: 0.07908434351 | AK17: 0.03571406185 | AL17: -0.01982558607 | AM17: 0.04163798958 | AN17: -0.04242502742 | AO17: 0.01517665537
A18: 2014-08-01 | B18: 28.700001 | C18: 29.67 | D18: 27.870001 | E18: 29.389999 | F18: 22757200 | G18: 28.196117 | H18: 0.02404178346 | I18: 10 | K18: H10 | L18: -0.02471979507 | M18: -0.05189454214 | N18: -0.008576537325 | O18: 0.005786444389 | P18: -0.04490942327 | Q18: 0.09459028149 | R18: 0.05791576233 | S18: -0.02003706939 | T18: 0.0002467064487 | U18: 0.02420580977 | V18: 0.02788239401 | W18: 0.09149537267 | X18: 0.04495394761 | Y18: -0.05835749702 | Z18: 0.04093378927 | AA18: 0.06722735378 | AB18: -0.01391654492 | AC18: 0.05117965303 | AD18: -0.00913381213 | AE18: 0.03618652547 | AF18: 0.19626161 | AG18: -0.01485104699 | AH18: -0.02185088971 | AI18: -0.0649218275 | AJ18: =INDIRECT(AJ$9&"!"&$K18) -> -0.0582466769 | AK18: -0.02943684917 | AL18: 0.04892899258 | AM18: 0.009784488487 | AN18: -0.05106387482 | AO18: 0.03651444905
A19: 2014-07-01 | B19: 29.610001 | C19: 31.309999 | D19: 28.700001 | E19: 28.700001 | F19: 25878900 | G19: 27.534147 | H19: -0.02448765947 | I19: 11 | K19: H11 | L19: 0.01369472547 | M19: -0.02193891103 | N19: -0.03932951965 | O19: -0.03137171013 | P19: -0.005104375932 | Q19: -0.03462007852 | R19: -0.01593553204 | S19: -0.01343991404 | T19: -0.05573963168 | U19: -0.08195245198 | V19: -0.03998195432 | W19: -0.0454020871 | X19: -0.009589482309 | Y19: -0.004840070648 | Z19: -0.0595489067 | AA19: -0.008892216865 | AB19: =INDIRECT(AB$9&"!"&$K19) -> -0.018632379 | AC19: -0.01142293117 | AD19: -0.01476242073 | AE19: -0.01016172253 | AF19: -0.07274795496 | AG19: 0.0330518802 | AH19: -0.0374720361 | AI19: 0.01159291931 | AJ19: 0.04449315453 | AK19: -0.03863510056 | AL19: -0.01658237564 | AM19: -0.03564187266 | AN19: -0.01413045985 | AO19: 0.007782443238
A20: 2014-06-02 | B20: 29.59 | C20: 29.92 | D20: 29.15 | E20: 29.68 | F20: 24022400 | G20: 28.225319 | H20: 0.001687500526 | I20: 12 | K20: H12 | L20: 0.1079282858 | M20: 0.04558827259 | N20: 0.01115375896 | O20: 0.1007765247 | P20: 0.04411504705 | Q20: 0.03663870849 | R20: 0.05069832766 | S20: -0.008642444041 | T20: 0.05173662509 | U20: 0.1000500387 | V20: 0.02043519205 | W20: 0.0979036893 | X20: 0.104261963 | Y20: 0.0989274107 | Z20: 0.01357428637 | AA20: 0.06370095717 | AB20: 0.03083260716 | AC20: 0.1268848763 | AD20: 0.07918079898 | AE20: -0.02886522701 | AF20: 0.09312031935 | AG20: 0.05584484048 | AH20: 0.009965523753 | AI20: 0.04493286013 | AJ20: 0.06945882683 | AK20: 0.06784262069 | AL20: 0.08182018051 | AM20: 0.06627104577 | AN20: -0.01235589692 | AO20: 0.1442392331
A21: 2014-05-01 | B21: 31.08 | C21: 31.58 | D21: 28.77 | E21: 29.629999 | F21: 33961400 | G21: 28.177769 | H21: -0.04430628712 | I21: 13 | K21: H13 | L21: 0.003210282831 | M21: -0.01229312241 | N21: -0.1301869352 | O21: 0.06142421394 | P21: 0.1184028679 | Q21: -0.1191333224 | R21: -0.08602250115 | S21: 0.01684371054 | T21: -0.02486973586 | U21: -0.0369218604 | V21: -0.05440778529 | W21: -0.05461030576 | X21: -0.1105091872 | Y21: -0.005239646517 | Z21: -0.08955634572 | AA21: -0.0444403499 | AB21: -0.04236401585 | AC21: -0.1254422287 | AD21: -0.0134471778 | AE21: 0.0614544206 | AF21: -0.1302476228 | AG21: -0.04056162361 | AH21: -0.06806992997 | AI21: -0.02862539504 | AJ21: 0.05104363048 | AK21: -0.001913065493 | AL21: -0.01131317987 | AM21: -0.02780320211 | AN21: -0.01047970374 | AO21: -0.03429242941
A22: 2014-04-01 | B22: 31.93 | C22: 32.689999 | D22: 29.58 | E22: 31.280001 | F22: 33733800 | G22: 29.4841 | H22: -0.02615188181 | I22: 14 | K22: H14 | L22: 0 | M22: 0.02642266741 | N22: 0.006708537367 | O22: -0.07189101474 | P22: -0.03259896184 | Q22: -0.09015907687 | R22: 0.03040319481 | S22: -0.002556619483 | T22: -0.05821992828 | U22: 0.0355743767 | V22: 0.02109560582 | W22: -0.03707401111 | X22: 0.02876701418 | Y22: 0.06107978241 | Z22: -0.02577176873 | AA22: -0.01066781726 | AB22: -0.03399538724 | AC22: 0.04022604487 | AD22: -0.03212479677 | AE22: -0.05266076727 | AF22: -0.02844590943 | AG22: -0.02884022014 | AH22: 0.007298352209 | AI22: 0.01872966828 | AJ22: 0.02880636388 | AK22: 0.04469473489 | AL22: -0.07531132396 | AM22: 0.01553115385 | AN22: -0.01348218621 | AO22: 0.03110107889
A23: 2014-03-03 | B23: 31.52 | C23: 32.959999 | D23: 30.83 | E23: 32.119999 | F23: 28084400 | G23: 30.275871 | H23: 0.0003113678986 | I23: 15 | K23: H15 | L23: 0.04907464735 | M23: 0.04668833447 | N23: 0.027459653 | O23: 0.1059787572 | P23: 0.08193070852 | Q23: -0.007987384076 | R23: -0.08395473982 | S23: -0.0007299505255 | T23: 0.07783840853 | U23: 0.03943707293 | V23: -0.05703973536 | W23: 0.02634637502 | X23: -0.005149828999 | Y23: 0.01927819384 | Z23: 0.102447739 | AA23: -0.006813125329 | AB23: 0.01090200963 | AC23: -0.005290986928 | AD23: 0.04199110561 | AE23: 0.04245773518 | AF23: 0.02474019276 | AG23: 0.06797892521 | AH23: 0.03620960183 | AI23: 0.0362103095 | AJ23: 0.03810121073 | AK23: 0.03442251805 | AL23: 0.006766159169 | AM23: 0.07147920784 | AN23: 0.147764613 | AO23: 0.0123659685
A24: 2014-02-03 | B24: 31.030001 | C24: 32.41 | D24: 30.57 | E24: 32.110001 | F24: 29503900 | G24: 30.266447 | H24: 0.06505775388 | I24: 16 | K24: H16 | L24: 0.01285091141 | M24: 0.08533317336 | N24: 0.03059116356 | O24: 0.0719602873 | P24: -0.01939071396 | Q24: 0.03183399217 | R24: 0.005279911997 | S24: 0.01896617008 | T24: -0.01828413224 | U24: -0.03637120936 | V24: 0.02828275625 | W24: 0.007416040664 | X24: 0.03497301299 | Y24: 0.06300414217 | Z24: -0.02326253322 | AA24: -0.1339620106 | AB24: 0.01116429378 | AC24: 0.01074824326 | AD24: -0.011391122 | AE24: -0.02260459142 | AF24: 0.01272644911 | AG24: 0.04226466089 | AH24: 0.05014731656 | AI24: 0.07302527442 | AJ24: 0.101565208 | AK24: 0.01325757037 | AL24: 0.01645404907 | AM24: 0.131508676 | AN24: -0.002615454972 | AO24: 0.02639561755
A25: 2014-01-02 | B25: 30.469999 | C25: 31.42 | D25: 29.66 | E25: 30.4 | F25: 28032400 | G25: 28.417658 | H25: -0.00750897751 | I25: 17 | K25: H17 | L25: 0.006124531261 | M25: -0.01611120255 | N25: -0.02244558043 | O25: -0.01707320612 | P25: 0.004574071176 | Q25: -0.09205099689 | R25: -0.07825410716 | S25: 0.009384384214 | T25: 0.02998064673 | U25: 0.08546356133 | V25: -0.05439371297 | W25: -0.005528504073 | X25: 0.02490089231 | Y25: -0.01386664003 | Z25: -0.002863699603 | AA25: -0.01284446969 | AB25: 0.02757151928 | AC25: 0.01328853341 | AD25: 0.01163039406 | AE25: -0.006614335333 | AF25: 0.02047102025 | AG25: 0.1355823293 | AH25: 0.007580213455 | AI25: -0.002305445685 | AJ25: -0.0007294149306 | AK25: -0.02204115752 | AL25: 0.003412284517 | AM25: 0.003999553269 | AN25: 0.01284767973 | AO25: -0.009457068312
A26: 2013-12-02 | B26: 31.610001 | C26: 31.93 | D26: 29.950001 | E26: 30.629999 | F26: 25872000 | G26: 28.63266 | H26: -0.03466752274 | I26: 18 | K26: H18 | L26: 0.02404178346 | M26: 0.0281681741 | N26: 0.01761371382 | O26: 0.07750881473 | P26: 0.05883057082 | Q26: 0.08258063898 | R26: 0.01013810221 | S26: 0.01408450056 | T26: 0.06184779283 | U26: 0.03542028531 | V26: 0.01225853551 | W26: 0.03300198331 | X26: 0.03930964482 | Y26: 0.1564626948 | Z26: 0.03724648424 | AA26: 0.009220379879 | AB26: 0.04337722276 | AC26: 0.03086531954 | AD26: -0.0003281648994 | AE26: 0.05939369469 | AF26: 0.05916940652 | AG26: 0.02148580908 | AH26: 0.07488369985 | AI26: 0.05750332483 | AJ26: 0.06946320965 | AK26: 0.03272181547 | AL26: -0.01190001964 | AM26: 0.009075467037 | AN26: 0.03285398696 | AO26: 0.04657658502
A27: 2013-11-01 | B27: 30.700001 | C27: 32.5 | D27: 30.690001 | E27: 31.73 | F27: 23704600 | G27: 29.660931 | H27: 0.04189154214 | I27: 19 | K27: H19 | L27: -0.02448765947 | M27: -0.01640604383 | N27: -0.06985768671 | O27: 0.02873130649 | P27: -0.05305353878 | Q27: -0.0670186297 | R27: -0.01003444043 | S27: -0.01684129471 | T27: -0.07247397664 | U27: -0.01726780292 | V27: -0.01728246385 | W27: -0.04299853853 | X27: 0.03242952678 | Y27: -0.001358735278 | Z27: 0.09676373763 | AA27: 0.05737292139 | AB27: -0.04329959359 | AC27: 0.007864295088 | AD27: -0.06134608928 | AE27: -0.01918747954 | AF27: 0.03501192454 | AG27: -0.005416013022 | AH27: -0.008300472993 | AI27: -0.0479429787 | AJ27: -0.008562622838 | AK27: -0.08921602748 | AL27: 0.04154758336 | AM27: 0.001423671277 | AN27: -0.01984808299 | AO27: 0.001632848729
A28: 2013-10-01 | B28: 28.58 | C28: 31.35 | D28: 28.02 | E28: 30.690001 | F28: 28383700 | G28: 28.468348 | H28: 0.06822147501 | I28: 20 | K28: H20 | L28: 0.001687500526 | M28: 0.004840433252 | N28: 0.03683061837 | O28: 0.02766191855 | P28: -0.05929752082 | Q28: 0.06299514363 | R28: 0.06319736026 | S28: -0.01908959735 | T28: 0.04323082942 | U28: -0.05583592829 | V28: 0.001492097798 | W28: -0.01094503393 | X28: 0.04774418357 | Y28: 0.0149999114 | Z28: 0.1310395558 | AA28: -0.01676065651 | AB28: 0.0311453369 | AC28: 0.03689044028 | AD28: -0.006802674706 | AE28: 0.007363910514 | AF28: 0.01856381481 | AG28: 0.008321463983 | AH28: -0.02723114638 | AI28: 0.0124981928 | AJ28: 0.03144783561 | AK28: -0.006625448705 | AL28: -0.02061647948 | AM28: -0.01917792821 | AN28: -0.02214407856 | AO28: 0.02059279049
A29: 2013-09-03 | B29: 28.379999 | C29: 29.27 | D29: 27.860001 | E29: 28.73 | F29: 26732400 | G29: 26.65023 | H29: 0.01843317567 | I29: 21 | K29: H21 | L29: -0.04430628712 | M29: 0.03116309543 | N29: 0.04655152225 | O29: 0.07870927306 | P29: 0.05416909709 | Q29: -0.03007587758 | R29: -0.01339907722 | S29: 0.01452511949 | T29: 0.00294187113 | U29: 0.03639962036 | V29: -0.01169296259 | W29: -0.003718792961 | X29: 0.003348642081 | Y29: 0.009055577387 | Z29: 0.0323998727 | AA29: -0.05617456957 | AB29: 0.008659402382 | AC29: -0.007324091459 | AD29: 0.008557622503 | AE29: -0.01195352838 | AF29: 0.02051520045 | AG29: 0.05761186132 | AH29: -0.02132044285 | AI29: 0.03168468051 | AJ29: 0.06116724366 | AK29: -0.01292688296 | AL29: 0.06912039043 | AM29: 0.06231678252 | AN29: -0.03092094939 | AO29: 0.05886059467
A30: 2013-08-01 | B30: 29.43 | C30: 29.450001 | D30: 27.76 | E30: 28.209999 | F30: 24663800 | G30: 26.167873 | H30: -0.03489572578 | I30: 22 | K30: H22 | L30: -0.02615188181 | M30: 0.02528380409 | N30: -0.02642315961 | O30: 0.09939634748 | P30: 0.02812977607 | Q30: 0.06692779239 | R30: 0.05558825307 | S30: 0.01359005341 | T30: 0.05509575376 | U30: 0.003278743051 | V30: 0.04842346099 | W30: 0.03862492582 | X30: -0.02459566894 | Y30: 0.004802191753 | Z30: 0.03409531314 | AA30: 0.02067643179 | AB30: 0.03115128101 | AC30: -0.07209953209 | AD30: 0.03417319121 | AE30: 0.03153074726 | AF30: -0.01439376713 | AG30: -0.01232073006 | AH30: 0.03237644631 | AI30: 0.06439488575 | AJ30: -0.08476634588 | AK30: 0.01275257503 | AL30: -0.006717949519 | AM30: -0.06138240393 | AN30: 0.04291512595 | AO30: -0.009116985005
A31: 2013-07-01 | B31: 27.969999 | C31: 30.43 | D31: 27.33 | E31: 29.23 | F31: 36234400 | G31: 27.114037 | H31: 0.05206602219 | I31: 23 | K31: H23 | L31: 0.0003113678986 | M31: 0.006902719874 | N31: -0.01369413214 | O31: 0.01995285299 | P31: -0.02660565987 | Q31: 0.02474994237 | R31: 0.03104135511 | S31: 0.01261470041 | T31: 0.0200603083 | U31: 0.007204886871 | V31: 0.01464631008 | W31: 0.01648998969 | X31: -0.01562021622 | Y31: -0.02980419158 | Z31: 0.04240710029 | AA31: 0.039531257 | AB31: 0.06632655185 | AC31: 0.06846181842 | AD31: 0.03026798892 | AE31: 0.003915064415 | AF31: 0.06995570682 | AG31: -0.05670493407 | AH31: 0.02466301121 | AI31: 0.02107980234 | AJ31: 0.0649180211 | AK31: -0.0015382303 | AL31: -0.0002102355205 | AM31: -0.04461356444 | AN31: 0.02976035125 | AO31: -0.009157265625
A32: 2013-06-03 | B32: 27.299999 | C32: 29.809999 | D32: 27.120001 | E32: 28.01 | F32: 116729700 | G32: 25.772182 | H32: 0.02864487532 | I32: 24 | K32: H24 | L32: 0.06505775388 | M32: 0.05792376559 | N32: 0.07362977928 | O32: 0.05751094342 | P32: 0.03502403078 | Q32: 0.03258430325 | R32: 0.04232225539 | S32: -0.02278675735 | T32: 0.01004766732 | U32: 0.09964929248 | V32: 0.05199480958 | W32: 0.02238505708 | X32: 0.01762050393 | Y32: 0.06740404444 | Z32: 0.01858629113 | AA32: 0.0537985291 | AB32: 0.04874966387 | AC32: 0.02637279423 | AD32: 0.01901458992 | AE32: 0.07589199257 | AF32: 0.02001252645 | AG32: 0.07811085649 | AH32: 0.02662495744 | AI32: 0.03149609159 | AJ32: 0.06903711345 | AK32: 0.03169986361 | AL32: -0.009162861298 | AM32: 0.05067642535 | AN32: 0.0002677893297 | AO32: 0.1129320543
A33: 2013-05-01 | B33: 28.83 | C33: 30.040001 | D33: 27.23 | E33: 27.23 | F33: 45158200 | G33: 25.054499 | H33: -0.05548690897 | I33: 25 | K33: H25 | L33: -0.00750897751 | M33: -0.08598923912 | N33: -0.0605159842 | O33: -0.1076966919 | P33: -0.08227705086 | Q33: 0.0408956327 | R33: -0.106316639 | S33: 0.00149649418 | T33: -0.08448326908 | U33: -0.0609512482 | V33: -0.08932802324 | W33: -0.1034606066 | X33: -0.07412832206 | Y33: -0.06667472567 | Z33: -0.0546994561 | AA33: -0.05805833588 | AB33: -0.03406480488 | AC33: -0.04716002732 | AD33: -0.02947547739 | AE33: 0.05834168477 | AF33: 0.01149427914 | AG33: -0.07362674808 | AH33: -0.05171826701 | AI33: -0.1022753087 | AJ33: -0.04010629135 | AK33: 0.001933166684 | AL33: -0.01217230612 | AM33: -0.03255786581 | AN33: -0.0509595615 | AO33: -0.04960733706
A34: 2013-04-01 | B34: 28.75 | C34: 31.15 | D34: 28.639999 | E34: 29.07 | F34: 38511200 | G34: 26.526365 | H34: 0.007276433542 | I34: 26 | K34: H26 | L34: -0.03466752274 | M34: 0.05048314369 | N34: 0.05745927404 | O34: 0.008901711788 | P34: 0.01668525774 | Q34: 0.07340424288 | R34: 0.02017320067 | S34: =INDIRECT(S$9&"!"&$K34) -> -0.01546962913 | T34: 0.02786771492 | U34: 0.05848808333 | V34: 0.08258441202 | W34: 0.05989476385 | X34: 0.04924813608 | Y34: 0.02571635817 | Z34: 0.08892610583 | AA34: 0.04391147013 | AB34: -0.03243190957 | AC34: 0.02202026453 | AD34: -0.003491804517 | AE34: 0.01352535466 | AF34: -0.01888285222 | AG34: -0.003204539491 | AH34: -0.03336496966 | AI34: 0.003502894889 | AJ34: 0.01486377494 | AK34: 0.02651990926 | AL34: -0.009673534581 | AM34: 0.09446562449 | AN34: -0.02298399524 | AO34: 0.09644464274
A35: 2013-03-01 | B35: 27.18 | C35: 28.9 | D35: 27.15 | E35: 28.860001 | F35: 30681800 | G35: 26.334742 | H35: 0.05443918441 | I35: 27 | K35: H27 | L35: =INDIRECT(L$9&"!"&$K35) -> 0.04189154214 | M35: 0.0660714243 | N35: 0.04889977775 | O35: 0.0700527201 | P35: 0.03248466902 | Q35: 0.01487519694 | R35: 0.02924414596 | S35: -0.01236812916 | T35: 0.02278350461 | U35: 0.01026788344 | V35: 0.05016802067 | W35: 0.01989287859 | X35: 0.0536788025 | Y35: 0.03569138107 | Z35: -0.01662546776 | AA35: 0.008006863348 | AB35: 0.02927154597 | AC35: 0.1102056666 | AD35: 0.01719683264 | AE35: 0.1051230907 | AF35: 0.08498099128 | AG35: 0.04461453889 | AH35: 0.04297222601 | AI35: 0.05144830601 | AJ35: 0.09112222104 | AK35: 0.04914902248 | AL35: -0.01762025931 | AM35: 0.03661619227 | AN35: 0.05550497607 | AO35: 0.02842988869
A36: 2013-02-01 | B36: 27.58 | C36: 27.799999 | D36: 26.790001 | E36: 27.370001 | F36: 30559900 | G36: 24.975117 | H36: 0.003299121295 | I36: 28 | K36: H28 | L36: 0.06822147501 | M36: 0.05393183745 | N36: 0.08644779881 | O36: 0.09638172697 | P36: 0.1106382767 | Q36: 0.006520638351 | R36: -0.01267490496 | S36: 0.0003639127497 | T36: 0.04461446681 | U36: 0.04508196612 | V36: 0.0416086053 | W36: 0.09418169068 | X36: 0.01674979244 | Y36: 0.02689515052 | Z36: 0.06762648588 | AA36: -0.03223884544 | AB36: 0.06828933471 | AC36: 0.004443955472 | AD36: 0.003222143098 | AE36: -0.05293005244 | AF36: 0.06400246898 | AG36: 0.04295156267 | AH36: 0.0766151192 | AI36: 0.01804891927 | AJ36: -0.04678116248 | AK36: -0.01456126929 | AL36: 0.09454693899 | AM36: 0.02914696342 | AN36: 0.03772307218 | AO36: 0.06357571953
A37: 2013-01-02 | B37: 25.530001 | C37: 27.84 | D37: 25.33 | E37: 27.280001 | F37: 38862300 | G37: 24.892992 | H37: 0.09722598719 | I37: 29 | K37: H29 | L37: 0.01843317567 | M37: 0.05132945689 | N37: 0.05020154779 | O37: -0.02148937347 | P37: 0.1306774517 | Q37: 0.01041927458 | R37: 0.008884857832 | S37: 0.01966600832 | T37: -0.0006418516633 | U37: 0.03426353364 | V37: -0.01284996308 | W37: 0.04036268448 | X37: 0.03996584329 | Y37: 0.02361677595 | Z37: 0.04276614918 | AA37: 0.01596530812 | AB37: 0.003240296062 | AC37: 0.02295660795 | AD37: 0.01960566861 | AE37: 0.01584054627 | AF37: -0.003592868056 | AG37: 0.1563196439 | AH37: -0.02952881789 | AI37: 0.06756890297 | AJ37: 0.001947114981 | AK37: 0.07712284069 | AL37: -0.01498529285 | AM37: 0.0956313305 | AN37: 0.01342823288 | AO37: 0.06016765895
A38: 2012-12-03 | B38: 25.040001 | C38: 25.790001 | D38: 24.629999 | E38: 25.08 | F38: 31546100 | G38: 22.687206 | H38: 0.00239805441 | I38: 30 | K38: H30 | L38: -0.03489572578 | M38: -0.02743478502 | N38: -0.02521343148 | O38: 0.08376689073 | P38: -0.00672677394 | Q38: -0.004462784899 | R38: -0.03546845681 | S38: -0.0178571304 | T38: -0.04740531499 | U38: -0.01111592091 | V38: -0.06386747094 | W38: -0.05047186485 | X38: -0.06951137385 | Y38: -0.05744653366 | Z38: -0.04905443024 | AA38: -0.06080206214 | AB38: -0.06886594066 | AC38: -0.09330703815 | AD38: -0.03015579017 | AE38: -0.01826861482 | AF38: 0.05638679909 | AG38: 0.001730346759 | AH38: -0.03001248075 | AI38: -0.04368645715 | AJ38: -0.0152368891 | AK38: -0.04704018712 | AL38: -0.04244135087 | AM38: -0.01281431248 | AN38: -0.05795272824 | AO38: -0.05908742319
A39: 2012-11-01 | B39: 24.82 | C39: 25.08 | D39: 23.549999 | E39: 25.02 | F39: 34383500 | G39: 22.632931 | H39: 0.01506874664 | I39: 31 | K39: H31 | L39: 0.05206602219 | M39: 0.07389122964 | N39: -0.01023282717 | O39: 0.1412250361 | P39: 0.02596632515 | Q39: 0.01209820999 | R39: 0.06379924733 | S39: -0.004715239475 | T39: -0.0007478232627 | U39: 0.09885710289 | V39: 0.03763142001 | W39: 0.05088396369 | X39: 0.08449585206 | Y39: 0.02013671601 | Z39: -0.03673133063 | AA39: 0.02056404226 | AB39: 0.0889820643 | AC39: 0.06339079407 | AD39: -0.009292840754 | AE39: 0.03702901325 | AF39: -0.07817020694 | AG39: -0.01193472516 | AH39: 0.05080523139 | AI39: 0.0454205168 | AJ39: 0.1125533961 | AK39: 0.1358941231 | AL39: -0.007116343563 | AM39: -0.03140909522 | AN39: 0.04631506892 | AO39: 0.02375295283
A40: 2012-10-01 | B40: 24.799999 | C40: 26.09 | D40: 24.799999 | E40: 24.870001 | F40: 27708400 | G40: 22.296944 | H40: 0.0008049280105 | I40: 32 | K40: H32 | L40: 0.02864487532 | M40: -0.008343183149 | N40: -0.01254788456 | O40: -0.1182932536 | P40: 0.03453860638 | Q40: -0.03857822188 | R40: -0.03592674352 | S40: 0.01174309072 | T40: 0.009933355959 | U40: -0.05897112627 | V40: -0.001326413497 | W40: 0.002367444974 | X40: -0.06681884878 | Y40: -0.01024718064 | Z40: -0.002059357922 | AA40: -0.08129032135 | AB40: 0.01995731156 | AC40: -0.03297307681 | AD40: 0.02516307779 | AE40: 0.003781643788 | AF40: -0.01031530778 | AG40: 0.03276032997 | AH40: 0.00299632055 | AI40: -0.03955016292 | AJ40: 0.05011187716 | AK40: -0.02065334498 | AL40: =INDIRECT(AL$9&"!"&$K40) -> 0.03836637505 | AM40: 0.02587852541 | AN40: -0.004676634726 | AO40: 0.001109755755
A41: 2012-09-04 | B41: 23.790001 | C41: 25.15 | D41: 23.629999 | E41: 24.85 | F41: 29945400 | G41: 22.279011 | H41: 0.0414919745 | I41: 33 | K41: H33 | L41: -0.05548690897 | M41: 0.05910318991 | N41: 0.1067095418 | O41: 0.02241931876 | P41: 0.08882216557 | Q41: 0.01334606519 | R41: 0.01417856846 | S41: -0.002562197418 | T41: -0.05528002154 | U41: 0.03185441052 | V41: 0.02366392422 | W41: 0.0462090162 | X41: 0.1131113767 | Y41: 0.07239273863 | Z41: 0.0233286309 | AA41: 0.03187049083 | AB41: -0.004895235632 | AC41: 0.1138543683 | AD41: -0.04712548131 | AE41: -0.006382935975 | AF41: 0.06177434843 | AG41: -0.02725706981 | AH41: -0.000130194133 | AI41: =INDIRECT(AI$9&"!"&$K41) -> -0.01978692629 | AJ41: 0.04505259936 | AK41: 0.04537441481 | AL41: -0.100723425 | AM41: 0.05940041705 | AN41: -0.03128054004 | AO41: 0.003819253946
A42: 2012-08-01 | B42: 23.92 | C42: 24.370001 | D42: 23.59 | E42: 23.860001 | F42: 26691300 | G42: 21.391438 | H42: 0.00167928039 | I42: 34 | K42: H34 | L42: 0.007276433542 | M42: -0.01505028572 | N42: 0.01708980367 | O42: 0.0002710287534 | P42: 0.06476420912 | Q42: -0.02019219356 | R42: 0.02684735777 | S42: 0.00293684121 | T42: 0.04673602947 | U42: 0.1088282731 | V42: -0.01242922851 | W42: -0.03589965404 | X42: -0.007339337238 | Y42: 0.05116070947 | Z42: 0.09661175558 | AA42: -0.0504454323 | AB42: 0.04538213094 | AC42: 0.03911586998 | AD42: 0.02457616905 | AE42: 0.06334839512 | AF42: 0.1569380678 | AG42: 0.07778346125 | AH42: 0.003556022628 | AI42: 0.01449107621 | AJ42: 0.04754411275 | AK42: -0.0229048384 | AL42: 0.1083638348 | AM42: -0.008125145095 | AN42: 0.03862083609 | AO42: 0.1063380444
A43: 2012-07-02 | B43: 22.85 | C43: 24.49 | D43: 22 | E43: 24.040001 | F43: 43919700 | G43: 21.355576 | H43: 0.04521751856 | I43: 35 | K43: H35 | L43: 0.05443918441 | M43: 0.02221148558 | N43: 0.08543836385 | O43: 0.002854546398 | P43: 0.1163848177 | Q43: -0.05846051167 | R43: 0.01425522126 | S43: -0.001100145422 | T43: 0.05198186167 | U43: 0.02630484324 | V43: 0.006253434504 | W43: -0.004306516062 | X43: -0.01742786798 | Y43: 0.02428723763 | Z43: 0.04597707409 | AA43: 0.06209229483 | AB43: 0.07121268902 | AC43: -0.02984467061 | AD43: 0.03952037549 | AE43: 0.04437271571 | AF43: 0.02913679606 | AG43: 0.0835474768 | AH43: 0.01155149999 | AI43: 0.05282413478 | AJ43: 0.07450060582 | AK43: 0.03180555803 | AL43: 0.05630783092 | AM43: 0.07060005975 | AN43: 0.06404043343 | AO43: 0.04048359343
A44: 2012-06-01 | B44: 21.76 | C44: 23 | D44: 21.4 | E44: 23 | F44: 28814700 | G44: 20.431705 | H44: 0.05166881487 | I44: 36 | K44: H36 | L44: 0.003299121295 | M44: 0.04069868425 | N44: 0.05679307757 | O44: -0.02528600587 | P44: 0.04770495667 | Q44: -0.06118502833 | R44: 0.02528927964 | S44: -0.005832997035 | T44: 0.03974220642 | U44: 0.01861244964 | V44: 0.001690613102 | W44: 0.0507179694 | X44: 0.01629149443 | Y44: 0.02361028696 | Z44: 0.003061162048 | AA44: -0.006867946836 | AB44: 0.03786258641 | AC44: 0.03974495527 | AD44: 0.01452019105 | AE44: -0.01202313958 | AF44: 0.02113524735 | AG44: 0.01149459955 | AH44: 0.01357103506 | AI44: 0.02498088155 | AJ44: -0.03187820706 | AK44: 0.04021482102 | AL44: 0.06695707739 | AM44: 0.006741615176 | AN44: 0.01186559623 | AO44: 0.01317741688
A45: 2012-05-01 | B45: 22.629999 | C45: 22.99 | D45: 21.85 | E45: 21.870001 | F45: 40211900 | G45: 19.427889 | H45: -0.03551392265 | I45: 37 | K45: H37 | L45: 0.09722598719 | M45: 0.08292958379 | N45: 0.02671100342 | O45: -0.1440892768 | P45: -0.01977174083 | Q45: 0.09798011009 | R45: 0.06482341672 | S45: -0.005077964263 | T45: 0.02731034272 | U45: 0.05491332169 | V45: 0.03951471223 | W45: 0.0614579361 | X45: 0.159140894 | Y45: 0.08197250652 | Z45: 0.02036862811 | AA45: 0.06014093519 | AB45: 0.05449356388 | AC45: 0.07739854076 | AD45: 0.08026299656 | AE45: 0.05642415606 | AF45: 0.02770502295 | AG45: 0.04748059013 | AH45: 0.1160608607 | AI45: 0.09245333925 | AJ45: 0.01788342498 | AK45: 0.06779655093 | AL45: 0.01960747204 | AM45: 0.04176009714 | AN45: 0.0252087938 | AO45: 0.08214496207
A46: 2012-04-02 | B46: 22.540001 | C46: 23.299999 | D46: 21.77 | E46: 22.9 | F46: 45957300 | G46: 20.143255 | H46: 0.01103750067 | I46: 38 | K46: H38 | L46: 0.00239805441 | M46: 0.02089059352 | N46: 0.02826464427 | O46: -0.09074290669 | P46: 0.01453961111 | Q46: 0.05732283662 | R46: 0.02318098995 | S46: 0.007307211326 | T46: -0.0440399738 | U46: 0.04265189207 | V46: -0.01803945164 | W46: 0.002439717202 | X46: 0.08294418394 | Y46: -0.04948517973 | Z46: 0.05365355222 | AA46: 0.007786595692 | AB46: 0.005306165356 | AC46: 0.07035059674 | AD46: 0.01344210481 | AE46: -0.06698227865 | AF46: 0.003380878184 | AG46: 0.06325038324 | AH46: -0.02778179703 | AI46: 0.02046375925 | AJ46: 0.001217168626 | AK46: 0.02371741929 | AL46: -0.01926566192 | AM46: 0.01249083168 | AN46: -0.04736697724 | AO46: 0.01801422525
A47: 2012-03-01 | B47: 21.07 | C47: 22.799999 | D47: 21.049999 | E47: 22.65 | F47: 36590700 | G47: 19.923351 | H47: 0.07193571835 | I47: 39 | K47: H39 | L47: 0.01506874664 | M47: 0.04512621745 | N47: -0.001250656006 | O47: -0.01237455721 | P47: 0.0609964607 | Q47: 0.00507018369 | R47: -0.03300711983 | S47: 0.009218288455 | T47: 0.02690093712 | U47: -0.02123905288 | V47: -0.027181652 | W47: 0.003323798467 | X47: -0.03350364037 | Y47: 0.06489265192 | Z47: -0.08591490951 | AA47: -0.01865082455 | AB47: -0.006684034059 | AC47: -0.01439537741 | AD47: 0.0117694135 | AE47: -0.02914749999 | AF47: -0.05960963199 | AG47: 0.06675426504 | AH47: 0.00852116732 | AI47: -0.001691576102 | AJ47: -0.02875000797 | AK47: 0.03212005252 | AL47: -0.01164869304 | AM47: 0.0814185903 | AN47: -0.03998934891 | AO47: 0.01099356498
A48: 2012-02-01 | B48: 21.25 | C48: 21.530001 | D48: 20.75 | E48: 21.129999 | F48: 35337000 | G48: 18.58633 | H48: -0.002360776352 | I48: 40 | K48: H40 | L48: 0.0008049280105 | M48: -0.05215320227 | N48: -0.01219741864 | O48: -0.1076000371 | P48: 0.01206896768 | Q48: -0.008343242377 | R48: -0.05422100395 | S48: 0.01156292189 | T48: -0.01977320436 | U48: -0.1143823819 | V48: -0.003061797804 | W48: -0.07265515332 | X48: 0.07661854834 | Y48: 0.0167301776 | Z48: -0.04545459697 | AA48: -0.06228005702 | AB48: 0.02771719671 | AC48: 0.03724875214 | AD48: -0.05395092389 | AE48: 0.01175166018 | AF48: -0.04099461338 | AG48: -0.0371931231 | AH48: 0.006467420517 | AI48: 0.03926158855 | AJ48: 0.01064791289 | AK48: -0.00166047762 | AL48: -0.009615858052 | AM48: 0.03336309537 | AN48: 0.01653116458 | AO48: -0.06044379174
A49: 2012-01-03 | B49: 21.860001 | C49: 22.17 | D49: 21.219999 | E49: 21.4 | F49: 50192000 | G49: 18.630312 | H49: -0.0110905164 | I49: 41 | K49: H41 | L49: 0.0414919745 | M49: -0.001943852927 | N49: -0.02469976416 | O49: 0.002795998304 | P49: -0.02521011153 | Q49: 0.00832062755 | R49: 0.03922961577 | S49: 0.0007464960224 | T49: 0.02106465555 | U49: 0.0104522098 | V49: 0.04753724345 | W49: 0.1049462234 | X49: 0.07529326646 | Y49: 0.06378853324 | Z49: -0.08739424002 | AA49: 0.06466509827 | AB49: 0.02194874356 | AC49: 0.0899300129 | AD49: 0.02525423317 | AE49: 0.05759411025 | AF49: -0.03439324507 | AG49: -0.02516430718 | AH49: 0.0322964807 | AI49: 0.06194142622 | AJ49: 0.02457526814 | AK49: -0.01953659878 | AL49: 0.06124829543 | AM49: 0.04701748464 | AN49: 0.01652892488 | AO49: 0.05680204746
A50: 2011-12-01 | B50: 20.030001 | C50: 21.9 | D50: 19.73 | E50: 21.639999 | F50: 44507100 | G50: 18.839249 | H50: 0.07822619684 | I50: 42 | K50: H42 | L50: 0.00167928039 | M50: 0.02148275638 | N50: 0.0102235057 | O50: 0.0938768578 | P50: -0.02816692627 | Q50: 0.01330011133 | R50: 0.03173869148 | S50: 0.02212901863 | T50: -0.07425742289 | U50: 0.00950428185 | V50: 0.01171366356 | W50: -0.001927703114 | X50: 0.05237515608 | Y50: 0.09317553139 | Z50: -0.0253887334 | AA50: =INDIRECT(AA$9&"!"&$K50) -> -0.001520836357 | AB50: -0.01700772415 | AC50: 0.03166665048 | AD50: 0.009335773694 | AE50: -0.0253565205 | AF50: 0.05273753831 | AG50: 0.04677503222 | AH50: 0.04105982341 | AI50: 0.03335988216 | AJ50: 0.06283025358 | AK50: 0.08010531511 | AL50: -0.04873735759 | AM50: -0.00466734396 | AN50: -0.01931166119 | AO50: 0.006715545609
A51: 2011-11-01 | B51: 19.15 | C51: 20.15 | D51: 18.15 | E51: 20.07 | F51: 53813800 | G51: 17.472446 | H51: 0.05254475053 | I51: 43 | K51: H43 | L51: =INDIRECT(L$9&"!"&$K51) -> 0.04521751856 | M51: 0.01819198878 | N51: -0.005220329077 | O51: 0.04582180298 | P51: -0.005248968362 | Q51: -0.001907809581 | R51: 0.03867297145 | S51: -0.05821059338 | T51: 0.03338020154 | U51: -0.01720390131 | V51: 0.01495857796 | W51: -0.004318708238 | X51: 0.05257667944 | Y51: -0.01528592022 | Z51: -0.03564727884 | AA51: 0.002045106258 | AB51: 0.02457079654 | AC51: 0.01595773353 | AD51: 0.009375379045 | AE51: 0.05796397072 | AF51: -0.03661324524 | AG51: 0.06345404876 | AH51: 0.06285468439 | AI51: -0.01864032031 | AJ51: -0.1266666439 | AK51: -0.01443133805 | AL51: 0.02719283895 | AM51: 0.04400238278 | AN51: 0.0675559441 | AO51: 0.01319586888
A52: 2011-10-03 | B52: 17.690001 | C52: 19.950001 | D52: 17.049999 | E52: 19.26 | F52: 44775100 | G52: 16.600193 | H52: 0.08936645021 | I52: 44 | K52: H44 | L52: 0.05166881487 | M52: 0.06148552761 | N52: 0.04262934703 | O52: 0.010852852 | P52: 0.0673754982 | Q52: -0.03092896774 | R52: 0.07313607095 | S52: 0.0003594652195 | T52: 0.05344436262 | U52: 0.0478657413 | V52: 0.08826140998 | W52: 0.1040621486 | X52: 0.001671882253 | Y52: 0.07397654425 | Z52: 0.03134670694 | AA52: 0.01389324599 | AB52: 0.0821720356 | AC52: 0.07782795686 | AD52: -0.00906646719 | AE52: 0.1231049537 | AF52: 0.04796163314 | AG52: -0.1885745573 | AH52: -0.01669616001 | AI52: 0.02939161815 | AJ52: 0.05282814397 | AK52: 0.0191606592 | AL52: 0.06724301418 | AM52: 0.07317703977 | AN52: 0.0592524939 | AO52: 0.06103696017
A53: 2011-09-01 | B53: 18.91 | C53: 19.15 | D53: 17.299999 | E53: 17.68 | F53: 49899900 | G53: 15.238392 | H53: -0.06849315068 | I53: 45 | K53: H45 | L53: -0.03551392265 | M53: -0.04885182515 | N53: -0.07274532148 | O53: -0.0107023162 | P53: -0.08829955687 | Q53: -0.1474165032 | R53: -0.06911805301 | S53: -0.005718374513 | T53: -0.02083324427 | U53: -0.08974468552 | V53: -0.08302422855 | W53: -0.02502550079 | X53: -0.16493772 | Y53: -0.04168527229 | Z53: -0.08354528608 | AA53: -0.06457350535 | AB53: -0.03167801874 | AC53: -0.2287109622 | AD53: -0.07604466234 | AE53: -0.04230366851 | AF53: -0.08240061407 | AG53: -0.02976881969 | AH53: -0.02121302284 | AI53: -0.02845149859 | AJ53: -0.006767591479 | AK53: -0.0864774908 | AL53: 0.03120353775 | AM53: -0.06149177225 | AN53: 0.124879285 | AO53: 0.06031082189
A54: 2011-08-01 | B54: 19.440001 | C54: 19.459999 | D54: 16.629999 | E54: 18.98 | F54: 67274100 | G54: 16.358862 | H54: -0.003034010241 | I54: 46 | K54: H46 | L54: 0.01103750067 | M54: 0.001681463922 | N54: 0.04421537553 | O54: -0.02596951968 | P54: 0.03267438558 | Q54: -0.03112369222 | R54: -0.006062881352 | S54: -0.007097246192 | T54: 0.03121188545 | U54: 0.01058594691 | V54: -0.004496749914 | W54: -0.02441451532 | X54: -0.07413364172 | Y54: 0.02941766869 | Z54: 0.009957242361 | AA54: -0.007524575388 | AB54: -0.01303816144 | AC54: -0.05912697171 | AD54: -0.006625844529 | AE54: 0.02187488235 | AF54: -0.00743943375 | AG54: 0.03163041156 | AH54: -0.04510741574 | AI54: 0.08648648429 | AJ54: -0.04733622346 | AK54: -0.01567392344 | AL54: 0.07017682838 | AM54: 0.04220345788 | AN54: -0.03741831799 | AO54: -0.01530375935
A55: 2011-07-01 | B55: 20.5 | C55: 20.950001 | D55: 19.049999 | E55: 19.25 | F55: 46151000 | G55: 16.408646 | H55: -0.06553402247 | I55: 47 | K55: H47 | L55: 0.07193571835 | M55: 0.01837896887 | N55: 0.09396872513 | O55: 0.1052834283 | P55: -0.007738332318 | Q55: -0.06733208262 | R55: -0.0175036532 | S55: -0.009490356119 | T55: 0.06716303008 | U55: 0.0403147446 | V55: 0.0026589706 | W55: 0.0535433664 | X55: 0.0801633272 | Y55: 0.06411111807 | Z55: 0.04613105915 | AA55: 0.06059066521 | AB55: 0.01352177557 | AC55: 0.1717634209 | AD55: -0.01188556685 | AE55: 0.01723943334 | AF55: 0.01638302232 | AG55: 0.008181479002 | AH55: -0.006063365713 | AI55: 0.0286179854 | AJ55: 0.06031980186 | AK55: -0.01108863718 | AL55: 0.003148769058 | AM55: 0.01400697393 | AN55: 0.04281707642 | AO55: 0.04262919898
A56: 2011-06-01 | B56: 21.34 | C56: 21.450001 | D56: 20.030001 | E56: 20.6 | F56: 46040800 | G56: 17.559383 | H56: -0.03962700559 | I56: 48 | K56: H48 | L56: -0.002360776352 | M56: 0.01708399515 | N56: 0.05484636594 | O56: 0.1883106926 | P56: 0.01632669603 | Q56: 0.04664584713 | R56: 0.06629519081 | S56: 0.000703504905 | T56: 0.03450324787 | U56: 0.00728796227 | V56: 0.03861300905 | W56: 0.02717765681 | X56: 0.03604344568 | Y56: 0.07163770818 | Z56: 0.02554097677 | AA56: 0.02542088504 | AB56: -0.003871092407 | AC56: 0.05201085899 | AD56: 0.009362089931 | AE56: -0.002613054125 | AF56: 0.08191513315 | AG56: 0.03779209764 | AH56: 0.07265230771 | AI56: -0.00566035709 | AJ56: 0.07646257942 | AK56: 0.07655831268 | AL56: 0.0119490567 | AM56: 0.1585114506 | AN56: -0.03715769187 | AO56: 0.07943440026
A57: 2011-05-02 | B57: 21.139999 | C57: 21.450001 | D57: 20.07 | E57: 21.450001 | F57: 47818900 | G57: 18.28392 | H57: 0.03279202458 | I57: 49 | K57: H49 | L57: -0.0110905164 | M57: 0.0609322568 | N57: 0.0669325535 | O57: 0.1271110557 | P57: 0.01131558181 | Q57: 0.2097987044 | R57: -0.03082703856 | S57: -0.001404962218 | T57: -0.03487215816 | U57: 0.1116208121 | V57: -0.012034045 | W57: 0.04466784022 | X57: 0.2326661514 | Y57: 0.05589913223 | Z57: 0.08948444955 | AA57: 0.0474223118 | AB57: 0.005032064832 | AC57: 0.1298795992 | AD57: -0.01275785538 | AE57: 0.01511939536 | AF57: 0.1375193616 | AG57: 0.07907023753 | AH57: -0.0474669051 | AI57: -0.0147033785 | AJ57: 0.02190214816 | AK57: 0.07196609921 | AL57: -0.04910624723 | AM57: -0.008765907155 | AN57: 0.02677375383 | AO57: 0.03733339729
A58: 2011-04-01 | B58: 20.35 | C58: 21.059999 | D58: 19.1 | E58: 20.969999 | F58: 48380100 | G58: 17.70339 | H58: 0.03249629277 | I58: 50 | K58: H50 | L58: 0.07822619684 | M58: 0.0085144092 | N58: -0.01811002788 | O58: 0.05965469556 | P58: 0.06784097341 | Q58: -0.0743767833 | R58: 0.03481811929 | S58: -0.004893445789 | T58: 0.0407555578 | U58: -0.04065386087 | V58: 0.05370456704 | W58: 0.1366301029 | X58: -0.05664513865 | Y58: 0.07190203933 | Z58: -0.02649536956 | AA58: -0.0219148987 | AB58: 0.01328799211 | AC58: 0.07361968111 | AD58: 0.05035599255 | AE58: 0.0672036187 | AF58: 0.01485526843 | AG58: 0.00573994325 | AH58: 0.03314226955 | AI58: 0.05976118237 | AJ58: 0.04268740283 | AK58: -0.04582246272 | AL58: 0.06334477567 | AM58: 0.04702482077 | AN58: 0.02094056114 | AO58: 0.06359066891
A59: 2011-03-01 | B59: 19.35 | C59: 20.57 | D59: 18.969999 | E59: 20.309999 | F59: 54771000 | G59: 17.146202 | H59: 0.05561328341 | I59: 51 | K59: H51 | L59: 0.05254475053 | M59: 0.03280953877 | N59: -0.05096792089 | O59: -0.05578345645 | P59: 0.0507369849 | Q59: 0.03620573521 | R59: -0.01349024235 | S59: -0.005561352511 | T59: -0.008805849723 | U59: 0.001345802182 | V59: 0.03623140966 | W59: -0.04787549697 | X59: -0.1215790749 | Y59: 0.1041150969 | Z59: 0.0240946925 | AA59: 0.02234601827 | AB59: 0.01445296073 | AC59: -0.109033348 | AD59: 0.03649442197 | AE59: 0.0362318388 | AF59: -0.03219598558 | AG59: -0.001764399808 | AH59: 0.009063896766 | AI59: -0.03598965326 | AJ59: 0.01625333743 | AK59: -0.01171707353 | AL59: 0.02028124663 | AM59: 0.04217879538 | AN59: 0.03843443059 | AO59: 0.02780954225
A60: 2011-02-01 | B60: 18.49 | C60: 19.389999 | D60: 18.459999 | E60: 19.24 | F60: 50955700 | G60: 16.242882 | H60: 0.0670863391 | I60: 52 | K60: H52 | L60: 0.08936645021 | M60: 0.1007103901 | N60: 0.1320861449 | O60: 0.06152311478 | P60: 0.0872583084 | Q60: 0.2863338643 | R60: 0.1345718791 | S60: -0.002772948118 | T60: 0.01124929755 | U60: 0.2026517922 | V60: 0.07517543606 | W60: 0.09789741938 | X60: 0.1586462452 | Y60: 0.08913907641 | Z60: 0.149953095 | AA60: 0.05581291088 | AB60: 0.01099077733 | AC60: 0.1642091871 | AD60: 0.05727617441 | AE60: 0.05504587417 | AF60: 0.0699075837 | AG60: 0.1267687068 | AH60: 0.02107788121 | AI60: 0.1974142333 | AJ60: 0.04054645266 | AK60: 0.1083002109 | AL60: 0.01888694527 | AM60: 0.08796085324 | AN60: 0.09287087109 | AO60: 0.1564986986
A61: 2011-01-03 | B61: 17.700001 | C61: 18.76 | D61: 17.620001 | E61: 18.219999 | F61: 57805000 | G61: 15.221713 | H61: 0.04054824022 | I61: 53 | K61: H53 | L61: -0.06849315068 | M61: -0.1348517935 | N61: -0.09676114077 | O61: -0.00912092176 | P61: -0.09497462146 | Q61: -0.1885715091 | R61: -0.06323355082 | S61: -0.009951931008 | T61: -0.03448128916 | U61: -0.1719494332 | V61: -0.01877869214 | W61: -0.05788036008 | X61: -0.1864566788 | Y61: -0.01527868309 | Z61: 0.0601093629 | AA61: 0.01721828768 | AB61: -0.03206695041 | AC61: -0.1980830883 | AD61: -0.02864735092 | AE61: -0.0002120045049 | AF61: -0.0642857155 | AG61: -0.009613140707 | AH61: -0.007851777235 | AI61: -0.02605631884 | AJ61: -0.02609658154 | AK61: -0.05239054624 | AL61: 0.01741779222 | AM61: -0.02457897929 | AN61: -0.02425261564 | AO61: -0.1145038624
A62: 2010-12-01 | B62: 16.49 | C62: 17.700001 | D62: 16.42 | E62: 17.51 | F62: 39904500 | G62: 14.628551 | H62: 0.0742331947 | I62: 54 | K62: H54 | L62: -0.003034010241 | M62: -0.04131922252 | N62: -0.006594747101 | O62: -0.01446936275 | P62: -0.04479200134 | Q62: -0.07885418512 | R62: -0.04218561578 | S62: -0.007493223318 | T62: 0.03587698739 | U62: -0.05259551764 | V62: -0.06618854355 | W62: -0.08933558579 | X62: -0.136315404 | Y62: -0.03729365487 | Z62: -0.08972118251 | AA62: -0.05054375371 | AB62: 0.02463679327 | AC62: -0.07144615858 | AD62: 0.0525157925 | AE62: -0.03017883479 | AF62: -0.02306971976 | AG62: -0.03882415779 | AH62: 0.03561554479 | AI62: -0.08470892656 | AJ62: -0.0425146215 | AK62: -0.09772428786 | AL62: 0.02493613478 | AM62: 0.0291542409 | AN62: 0.01640656228 | AO62: -0.1180734584
A63: 2010-11-01 | B63: 17.629999 | C63: 17.84 | D63: 16.25 | E63: 16.299999 | F63: 43786400 | G63: 13.617668 | H63: -0.05461977509 | I63: 55 | K63: H55 | L63: -0.06553402247 | M63: -0.08128627362 | N63: -0.03210834313 | O63: 0.1632853785 | P63: -0.04680103289 | Q63: -0.06812606448 | R63: 0.01147416438 | S63: 0.01067132321 | T63: 0.0106999616 | U63: -0.04865869425 | V63: -0.01953794071 | W63: -0.05037119738 | X63: 0.01412583778 | Y63: -0.03561570349 | Z63: 0.007671490488 | AA63: 0.06004074715 | AB63: -0.02600715812 | AC63: -0.005898144468 | AD63: 0.02561672616 | AE63: -0.03287045901 | AF63: 0.05384615586 | AG63: 0.001889305535 | AH63: -0.02479566083 | AI63: -0.05566976231 | AJ63: -0.0378054223 | AK63: -0.06406057503 | AL63: -0.03971768182 | AM63: 0.01519102849 | AN63: -0.008091872902 | AO63: -0.01075827163
A64: 2010-10-01 | B64: 17.25 | C64: 17.9 | D64: 16.860001 | E64: 17.42 | F64: 46214700 | G64: 14.404435 | H64: 0.01456023234 | I64: 56 | K64: H56 | L64: -0.03962700559 | M64: 0.00497985018 | N64: 0.005571147049 | O64: -0.03495956671 | P64: -0.05254383163 | Q64: 0.00623815157 | R64: -0.0197312245 | S64: 0.003454168605 | T64: 0.0144762518 | U64: 0.0140712765 | V64: -0.02503892812 | W64: -0.03181772503 | X64: -0.05428838775 | Y64: 0.005850406598 | Z64: -0.01554866868 | AA64: 0.01550945155 | AB64: -0.0114431169 | AC64: -0.05319164543 | AD64: 0.03409370101 | AE64: -0.02932290039 | AF64: 0.03958417561 | AG64: 0.06951857508 | AH64: -0.05119399875 | AI64: -0.05326105762 | AJ64: 0.05721739888 | AK64: 0.00843120951 | AL64: 0.00812347174 | AM64: 0.03947701668 | AN64: -0.03766749063 | AO64: -0.06221478749
A65: 2010-09-01 | B65: 16.129999 | C65: 17.5 | D65: 16.07 | E65: 17.17 | F65: 44877200 | G65: 14.197713 | H65: 0.07919553536 | I65: 57 | K65: H57 | L65: 0.03279202458 | M65: -0.02338947945 | N65: 0.05134470841 | O65: -0.006569018279 | P65: -0.01677011284 | Q65: -0.08326830395 | R65: -0.03397983566 | S65: -0.01362861267 | T65: -0.009635326894 | U65: -0.05451872291 | V65: -0.04588081583 | W65: -0.03960886099 | X65: -0.06567499251 | Y65: -0.02341873925 | Z65: -0.02001002893 | AA65: -0.005244132098 | AB65: 0.03276956402 | AC65: -0.05237779664 | AD65: 0.04900923491 | AE65: 0.02225309205 | AF65: -0.0287834658 | AG65: 0.02587458957 | AH65: 0.03235745087 | AI65: -0.01896331693 | AJ65: -0.005687514673 | AK65: -0.01482078831 | AL65: -0.02249870579 | AM65: 0.03956896169 | AN65: 0.01101060424 | AO65: -0.03410662255
A66: 2010-08-02 | B66: 15.16 | C66: 16.6 | D66: 15.1 | E66: 15.91 | F66: 57078000 | G66: 13.15583 | H66: 0.07248095376 | I66: 58 | K66: H58 | L66: 0.03249629277 | M66: 0.03967916632 | N66: 0.09016106555 | O66: 0.004648306026 | P66: 0.07912883112 | Q66: 0.0407777868 | R66: 0.01814122582 | S66: 0.01172009181 | T66: 0.01688280545 | U66: 0.03310899014 | V66: 0.04576255382 | W66: 0.01995023276 | X66: -0.04785631332 | Y66: 0.002428512616 | Z66: 0.1471753641 | AA66: =INDIRECT(AA$9&"!"&$K66) -> 0.04605379587 | AB66: 0.1091983469 | AC66: -0.004827451048 | AD66: 0.02917598995 | AE66: 0.08906399825 | AF66: 0.02087439328 | AG66: 0.0874504908 | AH66: 0.06230893107 | AI66: 0.06388702764 | AJ66: 0.08915925295 | AK66: 0.05823977859 | AL66: -0.007095087727 | AM66: 0.06112481144 | AN66: 0.05629203043 | AO66: 0.0002320410895
A67: 2010-07-01 | B67: 14.29 | C67: 15.44 | D67: 14 | E67: 15 | F67: 51233300 | G67: 12.266726 | H67: =(G67/G68)-1 -> 0.0518934548 | I67: 59 | K67: H59 | L67: =INDIRECT(L$9&"!"&$K67) -> 0.05561328341 | M67: 0.01376991236 | N67: 0.0374110975 | O67: -0.0133064914 | P67: 0.02666296354 | Q67: 0.08180313021 | R67: 0.03604817561 | S67: 0.02581330756 | T67: 0.04538515115 | U67: 0.00182258036 | V67: -0.01636855287 | W67: -0.04158703171 | X67: -0.03162781388 | Y67: -0.004189906282 | Z67: -0.06008373137 | AA67: 0.007351071686 | AB67: -0.0356445262 | AC67: -0.01263652892 | AD67: 0.005417515053 | AE67: 0.02535230368 | AF67: -0.04477057544 | AG67: -0.1467303099 | AH67: -0.02299762972 | AI67: -0.001411539599 | AJ67: 0.06458620081 | AK67: 0.01328706917 | AL67: 0.04387871242 | AM67: 0.007802861199 | AN67: 0.008365201564 | AO67: -0.01486060207
A68: 2010-06-01 | B68: 15.16 | C68: 15.6 | D68: 14.17 | E68: 14.26 | F68: 60257300 | G68: 11.661567 | H68: -0.06369006685 | I68: 60 | K68: H60 | L68: 0.0670863391 | M68: 0.05533089143 | N68: 0.004379867115 | O68: 0.04093485185 | P68: 0.04243479373 | Q68: 0.06102462689 | R68: 0.1011305177 | S68: -0.007719299387 | T68: 0.01702466992 | U68: 0.09090801488 | V68: 0.06570089038 | W68: 0.04591735954 | X68: 0.00310412667 | Y68: 0.01903738451 | Z68: 0.008936149129 | AA68: 0.003215729097 | AB68: 0.03723686156 | AC68: 0.03894083068 | AD68: 0.0356838836 | AE68: -0.0180886123 | AF68: -0.03580582211 | AG68: 0.07941313045 | AH68: -0.001267285885 | AI68: 0.0652328999 | AJ68: 0.03727165104 | AK68: 0.03272009994 | AL68: 0.03649634492 | AM68: 0.04792035746 | AN68: -0.07294450499 | AO68: 0.1252895002
A69: 2010-05-03 | B69: 16.799999 | C69: 17.389999 | D69: 14.75 | E69: 15.23 | F69: 87303400 | G69: 12.454815 | H69: -0.07951531604 | I69: 61 | K69: H61 | L69: 0.04054824022 | M69: 0.01877162417 | N69: 0.01487419482 | O69: 0.05195924985 | P69: 0.06466445834 | Q69: 0.04063817719 | R69: 0.04032878462 | S69: 0.008849557206 | T69: -0.04439711344 | U69: 0.01603850491 | V69: 0.1033916628 | W69: 0.1011480968 | X69: -0.02699809133 | Y69: 0.04877344347 | Z69: 0.02044689986 | AA69: 0.1038430435 | AB69: -0.0336297159 | AC69: 0.06062275643 | AD69: -0.04025538239 | AE69: -0.07963377373 | AF69: -0.006449291984 | AG69: -0.03441804719 | AH69: -0.01137876193 | AI69: 0.009872545213 | AJ69: 0.1368041874 | AK69: 0.03277442837 | AL69: 0.008594199694 | AM69: -0.007530538645 | AN69: 0.03968103815 | AO69: 0.03625701613
A70: 2010-04-01 | B70: 17.209999 | C70: 17.33 | D70: 16.33 | E70: 16.719999 | F70: 71789500 | G70: 13.530714 | H70: -0.02507296436 | I70: 62 | K70: H62 | L70: 0.0742331947 | M70: 0.02762563475 | N70: -0.006941304797 | O70: 0.03667047381 | P70: 0.02336520255 | Q70: 0.1070922627 | R70: 0.1269605854 | S70: 0 | T70: 0.04115873194 | U70: 0.06150247579 | V70: 0.05117892543 | W70: 0.1645090838 | X70: 0.07698215411 | Y70: 0.1605429155 | Z70: -0.006143551389 | AA70: 0.03746635207 | AB70: 0.004874057868 | AC70: 0.134224548 | AD70: -0.01966797809 | AE70: 0.05670402817 | AF70: 0.1049089241 | AG70: -0.004722795776 | AH70: 0.05338143584 | AI70: 0.03867610385 | AJ70: -0.007967862369 | AK70: 0.04583508354 | AL70: 0.117775732 | AM70: -0.04698715264 | AN70: 0.002556109856 | AO70: 0.03862728908
A71: 2010-03-01 | B71: 17.610001 | C71: 17.879999 | D71: 16.799999 | E71: 17.15 | F71: 64463500 | G71: 13.878694 | H71: -0.02279193212 | I71: 63 | K71: H63 | L71: -0.05461977509 | M71: 0.003403768321 | N71: 0.04245058471 | O71: 0.03378961192 | P71: -0.09178716899 | Q71: 0.07633596667 | R71: -0.01134543561 | S71: 0.003552404927 | T71: 0.03728872673 | U71: 0.002499382685 | V71: 0.05275949868 | W71: -0.01186019562 | X71: -0.0288347215 | Y71: -0.01475370011 | Z71: 0.06362373889 | AA71: -0.01052486612 | AB71: -0.02604854119 | AC71: -0.006112131265 | AD71: 0.01469587592 | AE71: -0.05067472924 | AF71: -0.04704888152 | AG71: 0.05758826341 | AH71: -0.03932675841 | AI71: -0.02192024305 | AJ71: 0.01303750804 | AK71: 0.01248959032 | AL71: -0.01447052165 | AM71: -0.05324953367 | AN71: -0.001476849355 | AO71: 0.01051751017
A72: 2010-02-01 | B72: 18.790001 | C72: 19.33 | D72: 17.43 | E72: 17.549999 | F72: 66955500 | G72: 14.202394 | H72: -0.0506035272 | I72: 64 | K72: H64 | L72: 0.01456023234 | M72: -0.02871639555 | N72: -0.008901413866 | O72: 0.06072252812 | P72: 0.06161705606 | Q72: 0.004485873714 | R72: 0.01912396386 | S72: 0.01186198999 | T72: 0.04784685487 | U72: 0.05961454323 | V72: 0.07606410303 | W72: -0.01415382101 | X72: 0.114469465 | Y72: -0.02462128861 | Z72: 0.04427077685 | AA72: 0.07052333422 | AB72: 0.02872830874 | AC72: -0.01002252762 | AD72: 0.0437524822 | AE72: -0.01358328674 | AF72: 0.08901602216 | AG72: 0.01622169113 | AH72: 0.06817916046 | AI72: 0.05950102761 | AJ72: 0.02677296747 | AK72: 0.04969803652 | AL72: 0.01132620946 | AM72: 0.05251818023 | AN72: 0.01214503002 | AO72: 0.09154082501
A73: 2010-01-04 | B73: 18.27 | C73: 20.360001 | D73: 18.24 | E73: 18.66 | F73: 56357400 | G73: 14.959392 | H73: 0.02583832433 | I73: 65 | K73: H65 | L73: 0.07919553536 | M73: 0.1038828154 | N73: 0.05417604211 | O73: 0.1672150446 | P73: 0.08849995501 | Q73: 0.2074890924 | R73: 0.09408749822 | S73: -0.001077233974 | T73: 0.05517770054 | U73: 0.09443210085 | V73: 0.04533914969 | W73: 0.1305402113 | X73: 0.05586809333 | Y73: 0.1387491967 | Z73: 0.08658744837 | AA73: 0.08941768522 | AB73: 0.08663622545 | AC73: 0.04675466105 | AD73: 0.01984674818 | AE73: 0.05789705684 | AF73: 0.04345976703 | AG73: 0.1491586462 | AH73: 0.005027661513 | AI73: 0.071174672 | AJ73: 0.1109546819 | AK73: 0.09231719629 | AL73: 0.1036234293 | AM73: 0.07654388514 | AN73: 0.06741124199 | AO73: 0.017209567
A74: 2009-12-01 | B74: 18.540001 | C74: 18.99 | D74: 17.629999 | E74: 18.190001 | F74: 43792000 | G74: 14.582602 | H74: 0.001100808447 | I74: 66 | K74: H66 | L74: 0.07248095376 | M74: -0.0759469438 | N74: -0.1068548459 | O74: -0.0550047904 | P74: -0.09742520102 | Q74: -0.06580639256 | R74: -0.01885849199 | S74: -0.003934138397 | T74: 0.01397205631 | U74: 0.01230093606 | V74: -0.002463599319 | W74: -0.1017370486 | X74: -0.08981711205 | Y74: -0.01590464358 | Z74: -0.1356896313 | AA74: -0.03629192509 | AB74: -0.00916269297 | AC74: -0.09731870605 | AD74: 0.05560232785 | AE74: 0.02031343038 | AF74: -0.08581172535 | AG74: -0.04942965046 | AH74: -0.02436228682 | AI74: -0.02893955483 | AJ74: 0.04170770786 | AK74: -0.07727937197 | AL74: 0.01617351305 | AM74: -0.05801296792 | AN74: -0.01479522793 | AO74: -0.03413472133
A75: 2009-11-02 | B75: 17.049999 | C75: 18.9 | D75: 16.719999 | E75: 18.17 | F75: 50452700 | G75: 14.566567 | H75: 0.07714453488 | I75: 67 | K75: =$K$4&I75 -> H67 | L75: 0.0518934548 | M75: 0.08292192339 | N75: 0.1244332771 | O75: 0.02274081021 | P75: 0.08589641746 | Q75: 0.1688780945 | R75: 0.1230474162 | S75: 0.001791458139 | T75: 0.09956114652 | U75: 0.1757732947 | V75: 0.04573333883 | W75: 0.1178918947 | X75: 0.1489296775 | Y75: 0.01567519809 | Z75: 0.05912587676 | AA75: 0.03984445985 | AB75: -0.01642394278 | AC75: 0.1017504909 | AD75: 0.05860027105 | AE75: -0.01458403494 | AF75: 0.1216861518 | AG75: 0.09015538444 | AH75: 0.02765335841 | AI75: 0.02436551771 | AJ75: 0.07218313321 | AK75: 0.09536275711 | AL75: 0.1259006901 | AM75: 0.03674906054 | AN75: 0.06490528735 | AO75: 0.0695237984
A76: 2009-10-01 | B76: 16.5 | C76: 18.43 | D76: 16.07 | E76: 17.030001 | F76: 70879700 | G76: 13.523317 | H76: 0.02900308427 | I76: 68 | K76: H68 | L76: -0.06369006685 | M76: -0.004034771111 | N76: 0.0002270206441 | O76: -0.02082691735 | P76: -0.02228109372 | Q76: -0.01135614966 | R76: -0.08135914714 | S76: 0 | T76: -0.01665349531 | U76: -0.04368253396 | V76: -0.05607014468 | W76: -0.1124431239 | X76: -0.09004566279 | Y76: -0.1651797076 | Z76: -0.09197005267 | AA76: -0.01421044515 | AB76: 0.01303605744 | AC76: -0.07503791363 | AD76: -0.01495439457 | AE76: 0.04950323261 | AF76: -0.1081394633 | AG76: -0.06326635936 | AH76: -0.01816992627 | AI76: 0.003033559136 | AJ76: -0.01894781438 | AK76: -0.03665768178 | AL76: 0.01816837655 | AM76: -0.02359917082 | AN76: -0.04924839655 | AO76: -0.0574505935
A77: 2009-09-01 | B77: 16.540001 | C77: 16.940001 | D77: 15.95 | E77: 16.549999 | F77: 46738300 | G77: 13.142154 | H77: -0.008982172068 | I77: 69 | K77: H69 | L77: -0.07951531604 | M77: -0.09993589847 | N77: -0.135516004 | O77: -0.01612465461 | P77: -0.1087606088 | Q77: -0.1076516045 | R77: -0.08448245878 | S77: 0.01343496055 | T77: -0.03835365421 | U77: -0.0822425011 | V77: -0.1018061669 | W77: -0.1330858953 | X77: -0.003989179771 | Y77: -0.03888729042 | Z77: -0.05555716669 | AA77: -0.02401513632 | AB77: -0.08503103321 | AC77: -0.07045569675 | AD77: -0.04473926958 | AE77: -0.03852745225 | AF77: -0.1513944051 | AG77: -0.04650261964 | AH77: -0.01721363127 | AI77: -0.02502957276 | AJ77: -0.04091058739 | AK77: -0.09574554027 | AL77: -0.04775062901 | AM77: -0.1957466429 | AN77: -0.05194412359 | AO77: -0.09283394355
A78: 2009-08-03 | B78: 16.120001 | C78: 16.98 | D78: 15.54 | E78: 16.700001 | F78: 41817100 | G78: 13.261269 | H78: 0.05887923009 | I78: 70 | K78: H70 | L78: -0.02507296436 | M78: 0.0610267178 | N78: 0.117789607 | O78: 0.1110212521 | P78: -0.002479021899 | Q78: 0.09013116678 | R78: 0.07398119864 | S78: 0.01138453628 | T78: -0.02818173021 | U78: 0.06981739252 | V78: 0.01179445905 | W78: 0.03626377127 | X78: -0.1490359205 | Y78: 0.08902634279 | Z78: 0.02467468956 | AA78: 0.005847962553 | AB78: -0.01380356897 | AC78: -0.0474271351 | AD78: 0.05800356151 | AE78: -0.06184734245 | AF78: 0.04267673823 | AG78: 0.03278918051 | AH78: -0.00998267582 | AI78: -0.05932517709 | AJ78: -0.0713846959 | AK78: 0.01820401787 | AL78: -0.05393993656 | AM78: -0.008788245634 | AN78: -0.03525172878 | AO78: 0.05528502345
A79: 2009-07-01 | B79: 14.97 | C79: 16.66 | D79: 14.11 | E79: 15.93 | F79: 54600100 | G79: 12.523873 | H79: 0.06199991944 | I79: 71 | K79: H71 | L79: -0.02279193212 | M79: 0.04266995113 | N79: 0.08509633609 | O79: 0.14847038 | P79: 0.1496200596 | Q79: 0.1016652103 | R79: 0.04882435742 | S79: 0.01415266802 | T79: 0.05178573484 | U79: 0.1043890789 | V79: 0.03046162024 | W79: 0.1332503586 | X79: 0.09133351237 | Y79: 0.04457222004 | Z79: 0.08572822243 | AA79: 0.008571883616 | AB79: 0.03492054823 | AC79: 0.0662377264 | AD79: 0.04494914755 | AE79: 0.0233486707 | AF79: 0.02162542079 | AG79: 0.09163569334 | AH79: -0.0001579606418 | AI79: 0.03198382664 | AJ79: -0.03514482183 | AK79: 0.0722505231 | AL79: 0.07224350687 | AM79: 0.06742488708 | AN79: 0.03409261025 | AO79: 0.117477647
A80: 2009-06-01 | B80: 15.36 | C80: 15.45 | D80: 13.94 | E80: 15 | F80: 56001500 | G80: 11.792725 | H80: -0.01250818637 | I80: 72 | K80: H72 | L80: -0.0506035272 | M80: 0.002315160791 | N80: 0.01407317511 | O80: 0.06539621431 | P80: 0.04935975384 | Q80: 0.09207492078 | R80: 0.01209042315 | S80: 0.04231365772 | T80: -0.02820275444 | U80: 0.04709535277 | V80: 0.01542832577 | W80: 0.004990655947 | X80: 0.05366189072 | Y80: 0.1138879396 | Z80: 0.06671269279 | AA80: 0.04362073571 | AB80: 0.009895665982 | AC80: 0.07781212231 | AD80: 0.03143820074 | AE80: -0.03404921545 | AF80: 0.02214570006 | AG80: 0.06039208208 | AH80: 0.02810723227 | AI80: 0.03789231029 | AJ80: 0.02606061113 | AK80: 0.02389897673 | AL80: -0.01665520955 | AM80: 0.04118266465 | AN80: 0.01197828902 | AO80: 0.05719118243
A81: 2009-05-01 | B81: 13.39 | C81: 15.6 | D81: 13.25 | E81: 15.19 | F81: 60089800 | G81: 11.942099 | H81: 0.1498596965 | I81: 73 | K81: H73 | L81: 0.02583832433 | M81: -0.02636984554 | N81: -0.066532674 | O81: -0.08859680426 | P81: 0.1195269673 | Q81: -0.0770940043 | R81: -0.06325491083 | S81: 0.001165991724 | T81: -0.0482455815 | U81: -0.03148197828 | V81: -0.05514008506 | W81: 0.06278906052 | X81: -0.1191660523 | Y81: -0.03180090752 | Z81: -0.04901962192 | AA81: -0.06501142339 | AB81: -0.02406468082 | AC81: -0.06439216936 | AD81: -0.0001601296895 | AE81: 0.04488230237 | AF81: -0.07545925743 | AG81: -0.03511424263 | AH81: 0.02246296427 | AI81: 0.01624543345 | AJ81: 0.08267721346 | AK81: -0.02780582651 | AL81: -0.09914848779 | AM81: -0.06208553919 | AN81: -0.0003741705974 | AO81: -0.08372093706
A82: 2009-04-01 | B82: 13.59 | C82: 14.27 | D82: 12.75 | E82: 13.36 | F82: 63945100 | G82: 10.385701 | H82: -0.01908958012 | I82: 74 | K82: H74 | L82: 0.001100808447 | M82: 0.0675360574 | N82: -0.03131727997 | O82: 0.0541243961 | P82: 0.03281821105 | Q82: -0.02397663327 | R82: -0.01345467391 | S82: -0.01190475868 | T82: -0.003496555635 | U82: -0.02631591504 | V82: -0.09164779546 | W82: -0.04941470956 | X82: -0.004833241811 | Y82: 0.06615074095 | Z82: 0.06249985696 | AA82: =INDIRECT(AA$9&"!"&$K82) -> 0.03601107351 | AB82: 0.02498414687 | AC82: -0.01929869176 | AD82: -0.01280635674 | AE82: 0.01943271091 | AF82: 0.0363821807 | AG82: 0.02240880722 | AH82: -0.02758611507 | AI82: -0.04204033336 | AJ82: 0.0631321417 | AK82: 0.03227258391 | AL82: 0.05308317425 | AM82: 0.07975312012 | AN82: -0.01522387307 | AO82: 0.07948081218
A83: 2009-03-02 | B83: 12.08 | C83: 14.99 | D83: 11.62 | E83: 13.62 | F83: 77053100 | G83: 10.587818 | H83: 0.106417499 | I83: 75 | K83: H75 | L83: =INDIRECT(L$9&"!"&$K83) -> 0.07714453488 | M83: 0.05946162659 | N83: 0.2006315002 | O83: 0.06053043713 | P83: 0.1061018191 | Q83: 0.06047941652 | R83: 0.02857152219 | S83: 0.02379094277 | T83: 0.08059368826 | U83: 0.09976598666 | V83: 0.05353617919 | W83: 0.1234221519 | X83: -0.000866789842 | Y83: 0.09047432241 | Z83: 0.01237079497 | AA83: 0.05229296247 | AB83: 0.07260159917 | AC83: 0.01723725509 | AD83: 0.08845606001 | AE83: 0.1707080551 | AF83: 0.06527228558 | AG83: 0.04358312653 | AH83: 0.07499995573 | AI83: 0.05221921071 | AJ83: 0.1048169539 | AK83: 0.1002804979 | AL83: 0.06319689359 | AM83: 0.07082189678 | AN83: 0.09802732276 | AO83: 0.1041286009
A84: 2009-02-02 | B84: 14.63 | C84: 15.38 | D84: 12.28 | E84: 12.31 | F84: 70298300 | G84: 9.56946 | H84: -0.1375355956 | I84: 76 | K84: H76 | L84: 0.02900308427 | M84: -0.003116553305 | N84: 0.02772860712 | O84: 0.01699493494 | P84: -0.1172668996 | Q84: 0.08043728865 | R84: 0.08675277903 | S84: -0.0007794391498 | T84: -0.007262603901 | U84: -0.009956381803 | V84: 0.04459986393 | W84: -0.1315469516 | X84: -0.07691900316 | Y84: -0.05818314725 | Z84: -0.02350529798 | AA84: 0.008360466974 | AB84: -0.03021838645 | AC84: -0.04562884786 | AD84: 0.02698440522 | AE84: -0.02213085596 | AF84: 0.07814930311 | AG84: -0.03894890301 | AH84: 0.009018759368 | AI84: 0.01137525618 | AJ84: 0.03634182282 | AK84: 0.008534397834 | AL84: -0.006827609271 | AM84: 0.09622337031 | AN84: 0.01201873537 | AO84: -0.003277480591
A85: 2009-01-02 | B85: 17.879999 | C85: 18.48 | D85: 14.5 | E85: 14.58 | F85: 69039400 | G85: 11.095484 | H85: -0.1767362261 | I85: 77 | K85: H77 | L85: -0.008982172068 | M85: 0.02357839051 | N85: 0.007701943326 | O85: 0.1018964248 | P85: 0.09019534371 | Q85: 0.1328625213 | R85: 0.007006042413 | S85: -0.01421436574 | T85: 0.110085124 | U85: 0.006576882293 | V85: -0.007809129183 | W85: 0.1882849615 | X85: 0.1141665629 | Y85: -0.01570302819 | Z85: -0.03690951167 | AA85: 0.01321474488 | AB85: 0.007445401157 | AC85: 0.008283520334 | AD85: 0.01475814717 | AE85: -0.01286885882 | AF85: 0.04340770764 | AG85: 0.1735844807 | AH85: 0.07041205878 | AI85: -0.01772215517 | AJ85: -0.1057142772 | AK85: 0.02644875617 | AL85: -0.02480655822 | AM85: -0.02798870176 | AN85: -0.03499115815 | AO85: 0.05453143636
A86: 2008-12-01 | B86: 16.18 | C86: 17.969999 | D86: 15.2 | E86: 17.709999 | F86: 46406500 | G86: 13.477435 | H86: 0.07790617984 | I86: 78 | K86: H78 | L86: 0.05887923009 | M86: 0.02987106867 | N86: 0.1937874928 | O86: 0.02949993013 | P86: 0.1686538225 | Q86: 0.02837038771 | R86: 0.01684056293 | S86: 0.02439986179 | T86: -0.02146870162 | U86: 0.04532613017 | V86: -0.01161549965 | W86: 0.03731340737 | X86: 0.01541659057 | Y86: 0.05204312397 | Z86: 0.06328943662 | AA86: 0.005686510587 | AB86: 0.0006541658516 | AC86: 0.1244500779 | AD86: 0.03044480302 | AE86: 0.08063971542 | AF86: 0.05393716124 | AG86: -0.02206925622 | AH86: -0.02522062392 | AI86: 0.1706523351 | AJ86: -0.002138244777 | AK86: 0.09720993678 | AL86: -0.03211741254 | AM86: 0.087824322 | AN86: 0.02544205322 | AO86: 0.03662424999
A87: 2008-11-03 | B87: 17.85 | C87: 18.450001 | D87: 14.26 | E87: 16.43 | F87: 54908500 | G87: 12.503347 | H87: -0.05586463726 | I87: 79 | K87: H79 | L87: 0.06199991944 | M87: 0.1733776531 | N87: 0.2190189027 | O87: 0.1471600146 | P87: 0.009647029471 | Q87: 0.3502940795 | R87: 0.04860381782 | S87: 0.005142369391 | T87: 0.03854960746 | U87: 0.2072600476 | V87: 0.006865934524 | W87: 0.14334468 | X87: 0.1075691573 | Y87: 0.0977571981 | Z87: 0.1631420566 | AA87: 0.1293813988 | AB87: 0.07200711071 | AC87: 0.1347622664 | AD87: -0.0422682231 | AE87: 0.07331911916 | AF87: -0.01051746522 | AG87: 0.09385863777 | AH87: 0.09498393825 | AI87: 0.04946398092 | AJ87: 0.1232986539 | AK87: 0.04830641602 | AL87: 0.06005722014 | AM87: 0.05139733408 | AN87: 0.02972758036 | AO87: 0.07672522936
A88: 2008-10-01 | B88: 18.26 | C88: 19.389999 | D88: 14.31 | E88: 17.709999 | F88: 82144100 | G88: 13.243172 | H88: -0.03958792816 | I88: 80 | K88: H80 | L88: -0.01250818637 | M88: 0.05253938776 | N88: -0.05772164047 | O88: 0.04874461049 | P88: -0.05239678842 | Q88: -0.06824585622 | R88: -0.006299662945 | S88: 0.005568847687 | T88: -0.01546137967 | U88: -0.1001053943 | V88: 0.008075002818 | W88: -0.1234079432 | X88: 0.01985200874 | Y88: 0.02972719875 | Z88: 0.05279894484 | AA88: -0.01750100755 | AB88: 0.02973165387 | AC88: -0.07560972321 | AD88: -0.01737238276 | AE88: 0.02793589572 | AF88: 0.1378650693 | AG88: -0.08845758605 | AH88: -0.01617252839 | AI88: 0.01631483218 | AJ88: -0.0609022929 | AK88: -0.01235510581 | AL88: 0.05023935529 | AM88: -0.0804903812 | AN88: -0.02613595046 | AO88: -0.03674641126
A89: 2008-09-02 | B89: 19.299999 | C89: 19.59 | D89: 17.16 | E89: 18.440001 | F89: 58766800 | G89: 13.789052 | H89: -0.03506016488 | I89: 81 | K89: H81 | L89: 0.1498596965 | M89: -3.681324732e-05 | N89: -0.01467086179 | O89: 0.07931334574 | P89: 0.130857392 | Q89: -0.003372760101 | R89: 0.01837934125 | S89: -0.01566174827 | T89: 0.1419279933 | U89: 0.03553386975 | V89: 0.04640555931 | W89: 0.06561271916 | X89: 0.1279518695 | Y89: -0.1200608386 | Z89: 0.004640124336 | AA89: 0.03512369825 | AB89: 0.06279701984 | AC89: 0.1181818265 | AD89: 0.1069619199 | AE89: 0.1377888369 | AF89: 0.03764384178 | AG89: 0.08728798645 | AH89: 0.05056632973 | AI89: -0.01166742959 | AJ89: 0.1309523931 | AK89: 0.08509697818 | AL89: -0.03559658565 | AM89: 0.04401456277 | AN89: -0.007773509779 | AO89: 0.1059360397
A90: 2008-08-01 | B90: 18.809999 | C90: 20.129999 | D90: 18.530001 | E90: 19.110001 | F90: 38395300 | G90: 14.290064 | H90: 0.04045941939 | I90: 82 | K90: H82 | L90: -0.01908958012 | M90: 0.1584874737 | N90: 0.8750930125 | O90: 0.1970129615 | P90: 0.1256322574 | Q90: 0.2889268214 | R90: -0.01695418355 | S90: 0 | T90: -0.02047784971 | U90: 0.249440219 | V90: -0.02099853395 | W90: 0.2512362007 | X90: 0.212035472 | Y90: 0.1171477337 | Z90: 0.04990022001 | AA90: 0.06522864346 | AB90: -0.004562634715 | AC90: 0.2437449296 | AD90: -0.0234561206 | AE90: -0.09383183954 | AF90: 0.1028851945 | AG90: 0.1190019341 | AH90: 0.05897487601 | AI90: 0.01230312749 | AJ90: 0.123745847 | AK90: 0.1363425734 | AL90: 0.01882451058 | AM90: 0.1683453245 | AN90: -0.03262950498 | AO90: 0.2059470752
A91: 2008-07-01 | B91: 17.43 | C91: 19.25 | D91: 17.26 | E91: 18.67 | F91: 48802400 | G91: 13.734379 | H91: 0.06868928728 | I91: 83 | K91: H83 | L91: 0.106417499 | M91: 0.09370885891 | N91: 0.1301822993 | O91: 0.1770237963 | P91: 0.1316794079 | Q91: 0.1361234715 | R91: 0.1075605058 | S91: -0.01313747387 | T91: 0.08727102818 | U91: 0.1902984257 | V91: 0.002945421358 | W91: 0.1880141666 | X91: 0.1640315702 | Y91: 0.141906105 | Z91: 0.179748806 | AA91: 0.05280887683 | AB91: 0.05199993902 | AC91: 0.1632384244 | AD91: 0.04440188071 | AE91: 0.1239003963 | AF91: 0.1374613889 | AG91: 0.135736334 | AH91: -0.02242058792 | AI91: 0.1342302699 | AJ91: 0.06669793855 | AK91: 0.05265729426 | AL91: 0.05853505268 | AM91: -0.01957323988 | AN91: 0.06405131931 | AO91: 0.08288609724
A92: 2008-06-02 | B92: 19.43 | C92: 19.459999 | D92: 17.120001 | E92: 17.469999 | F92: 62092800 | G92: 12.851611 | H92: -0.09762406465 | I92: 84 | K92: H84 | L92: -0.1375355956 | M92: -0.1456733448 | N92: -0.2791392083 | O92: -0.009097935367 | P92: -0.2494235525 | Q92: -0.2022690357 | R92: -0.1311845041 | S92: -0.007288122119 | T92: -0.04377340905 | U92: -0.1685245236 | V92: -0.1077124435 | W92: -0.2778189101 | X92: 0.1343642778 | Y92: -0.02972598669 | Z92: -0.002229193412 | AA92: 0.009608795928 | AB92: -0.1261112905 | AC92: -0.1042727801 | AD92: -0.09107740249 | AE92: -0.1523642575 | AF92: -0.04908004026 | AG92: -0.0822099762 | AH92: -0.1161468176 | AI92: -0.06444096628 | AJ92: -0.3063890115 | AK92: -0.1419660762 | AL92: -0.04486096525 | AM92: 0.1513838393 | AN92: 0.04499153372 | AO92: -0.1890715644
A93: 2008-05-01 | B93: 20.17 | C93: 20.65 | D93: 19.16 | E93: 19.360001 | F93: 47916300 | G93: 14.24197 | H93: -0.0219682652 | I93: 85 | K93: H85 | L93: -0.1767362261 | M93: -0.06517203843 | N93: -0.09034196333 | O93: 0.05600476352 | P93: -0.008436698673 | Q93: -0.3019289936 | R93: -0.04664063051 | S93: 0.003464215425 | T93: -0.0563287236 | U93: -0.09249013186 | V93: -0.0419641909 | W93: -0.2512345131 | X93: -0.04337007224 | Y93: -0.06472632441 | Z93: -0.1200545885 | AA93: 0.08899707376 | AB93: -0.03576806678 | AC93: -0.1810594417 | AD93: -0.06705256073 | AE93: -0.06085526904 | AF93: -0.1203702887 | AG93: -0.1127451299 | AH93: -0.1122249282 | AI93: -0.1451327989 | AJ93: 0.06503759752 | AK93: -0.1046640918 | AL93: -0.1060119992 | AM93: -0.05910395815 | AN93: -0.1594720708 | AO93: -0.088585284
A94: 2008-04-01 | B94: 21.049999 | C94: 21.6 | D94: 19.790001 | E94: 20.110001 | F94: 45646900 | G94: 14.561869 | H94: -0.03917815672 | I94: 86 | K94: H86 | L94: 0.07790617984 | M94: -0.1402958289 | N94: -0.2042042962 | O94: -0.07899006589 | P94: 0.0009382063069 | Q94: 0.08977791329 | R94: -0.06378941137 | S94: 0.01089488715 | T94: -0.03413694669 | U94: 0.009577031932 | V94: -0.003992539345 | W94: -0.03834956986 | X94: 0.06836314904 | Y94: 0.00678576612 | Z94: 0.06231877443 | AA94: 0.03137264627 | AB94: 0.02133832556 | AC94: -0.004106065641 | AD94: 0.05855312033 | AE94: 0.1541631974 | AF94: -0.0385756615 | AG94: -0.03762758915 | AH94: -0.03931625233 | AI94: 0.04271582089 | AJ94: 0.2660636931 | AK94: 0.1044714364 | AL94: 0.03828474355 | AM94: -0.002092810116 | AN94: 0.007561466777 | AO94: 0.02265136318
A95: 2008-03-03 | B95: 22.42 | C95: 22.440001 | D95: 20.190001 | E95: 20.93 | F95: 43695400 | G95: 15.155639 | H95: -0.060592426 | I95: 87 | K95: H87 | L95: -0.05586463726 | M95: 0.04934128951 | N95: -0.1523636291 | O95: -0.1386745933 | P95: -0.1806484262 | Q95: 0.07303663454 | R95: 0.06828701618 | S95: -0.01229820995 | T95: 0.07282191021 | U95: -0.2065413794 | V95: 0.08757288926 | W95: -0.1199384997 | X95: -0.1460540866 | Y95: -0.02034763056 | Z95: -0.1316375163 | AA95: -0.1173907846 | AB95: -0.03705831404 | AC95: -0.2324848648 | AD95: 0.0231601517 | AE95: -0.1366720429 | AF95: -0.08835748928 | AG95: -0.07600209208 | AH95: -0.002943907233 | AI95: 0.02585196989 | AJ95: -0.114622783 | AK95: -0.1103821114 | AL95: 0.1004382255 | AM95: -0.04854920115 | AN95: 0.001254280074 | AO95: -0.1308374974
A96: 2008-02-01 | B96: 23.4 | C96: 23.790001 | D96: 22.030001 | E96: 22.280001 | F96: 41346200 | G96: 16.133188 | H96: -0.03275210804 | I96: 88 | K96: H88 | L96: -0.03958792816 | M96: -0.0587028921 | N96: -0.2198581389 | O96: -0.05340487328 | P96: -0.08596342446 | Q96: -0.3525955478 | R96: -0.09553837479 | S96: -0.009139368729 | T96: -0.1667927616 | U96: -0.2049627201 | V96: -0.04558329644 | W96: -0.2349019166 | X96: -0.2751388148 | Y96: -0.08883733985 | Z96: -0.1441536916 | AA96: -0.205112877 | AB96: -0.1146073473 | AC96: -0.1098871055 | AD96: -0.06110214099 | AE96: -0.01932828326 | AF96: -0.1633571216 | AG96: -0.138565039 | AH96: -0.06797728794 | AI96: -0.05862835616 | AJ96: -0.06538003888 | AK96: -0.08491515998 | AL96: -0.06045299917 | AM96: -0.09838736713 | AN96: -0.0681248715 | AO96: -0.1557511035
A97: 2008-01-02 | B97: 22.76 | C97: 24.24 | D97: 21.559999 | E97: 23.360001 | F97: 54002400 | G97: 16.679476 | H97: 0.02771675261 | I97: 89 | K97: H89 | L97: -0.03506016488 | M97: -0.04594974578 | N97: -0.107106877 | O97: -0.3295581666 | P97: -0.1252288164 | Q97: -0.1573590775 | R97: -0.04448557639 | S97: 0.01233613793 | T97: 0.02277880006 | U97: -0.09315932788 | V97: -0.02937131806 | W97: -0.08033796406 | X97: -0.2193694344 | Y97: -0.03736761346 | Z97: -0.181023179 | AA97: -0.03918512384 | AB97: -0.0163283447 | AC97: 0.2133022208 | AD97: -0.004838646463 | AE97: -0.1054633379 | AF97: -0.02198606738 | AG97: 0.1078941996 | AH97: -0.00114653645 | AI97: 0.03069513093 | AJ97: -0.1661741175 | AK97: -0.08431153988 | AL97: -0.08627545054 | AM97: -0.1911726384 | AN97: 0.0138818508 | AO97: -0.05131367154
A98: 2007-12-03 | B98: 23.620001 | C98: 24.5 | D98: 22.690001 | E98: 22.73 | F98: 37556800 | G98: 16.229643 | H98: -0.04335015887 | I98: 90 | K98: H90 | L98: 0.04045941939 | M98: 0.02437252263 | N98: 0.06896553838 | O98: 0.06656176172 | P98: 0.07944183589 | Q98: 0.01740518999 | R98: 0.02853534884 | S98: -0.01368814551 | T98: 0.01106793014 | U98: 0.02354485143 | V98: -0.0001413421075 | W98: -0.006716151536 | X98: -0.1090522947 | Y98: 0.138061358 | Z98: 0.03709174365 | AA98: =INDIRECT(AA$9&"!"&$K98) -> -0.04513099545 | AB98: 0.03530695678 | AC98: -0.05267048235 | AD98: 0.04326458473 | AE98: 0.08419439131 | AF98: 0.06527389637 | AG98: 0.03289019759 | AH98: 0.06551609246 | AI98: 0.0009066180137 | AJ98: 0.08440176391 | AK98: 0.03012022721 | AL98: 0.03172734013 | AM98: 0.04037271607 | AN98: 0.01174065108 | AO98: 0.0658977341
A99: 2007-11-01 | B99: 24.58 | C99: 24.6 | D99: 22.24 | E99: 23.76 | F99: 45543900 | G99: 16.965082 | H99: -0.02269519488 | I99: 91 | K99: H91 | L99: =INDIRECT(L$9&"!"&$K99) -> 0.06868928728 | M99: 0.01149592621 | N99: -0.01031300517 | O99: -0.05070473543 | P99: -0.07014606763 | Q99: -0.05260819809 | R99: -0.1469787249 | S99: 0.03056421075 | T99: -0.009234322956 | U99: 0.02145025692 | V99: -0.08737099724 | W99: 0.05994752977 | X99: 0.05430547976 | Y99: 0.01750635805 | Z99: 0.03305409261 | AA99: 0.07972671136 | AB99: 0.06419034967 | AC99: 0.1974653812 | AD99: 0.06350046915 | AE99: -0.1270893369 | AF99: -0.06506729059 | AG99: -0.01560137183 | AH99: 0.08353175613 | AI99: 0.01658979918 | AJ99: 0.06971429495 | AK99: 0.03695298077 | AL99: -0.02660455329 | AM99: -0.1014635358 | AN99: 0.04306048289 | AO99: -0.0272435751
A100: 2007-10-01 | B100: 24.450001 | C100: 25.709999 | D100: 23.360001 | E100: 24.610001 | F100: 37296900 | G100: 17.359049 | H100: 0.007368059182 | I100: 92 | K100: H92 | L100: -0.09762406465 | M100: -0.1027591571 | N100: -0.187270812 | O100: -0.112900606 | P100: -0.2059924663 | Q100: -0.1067280204 | R100: -0.0002017492092 | S100: -0.01467176206 | T100: -0.08622520454 | U100: -0.1047798868 | V100: -0.00709778526 | W100: -0.1215313268 | X100: -0.008559634628 | Y100: -0.1368553671 | Z100: -0.07333914193 | AA100: -0.08421537462 | AB100: -0.03596047763 | AC100: -0.2020930341 | AD100: -0.04608926305 | AE100: -0.02291583389 | AF100: -0.02860161752 | AG100: -0.1251647773 | AH100: -0.07933387643 | AI100: -0.123454876 | AJ100: -0.2326805075 | AK100: -0.1314752314 | AL100: -0.07980243306 | AM100: -0.05847612634 | AN100: -0.0266713676 | AO100: -0.0714285268
A101: 2007-09-04 | B101: 24.780001 | C101: 25.17 | D101: 23.85 | E101: 24.43 | F101: 39031100 | G101: 17.232082 | H101: -0.01650564154 | I101: 93 | K101: H93 | L101: -0.0219682652 | M101: 0.01512917278 | N101: -0.03477715466 | O101: 0.08508187436 | P101: -0.02007897955 | Q101: 0.009281959999 | R101: 0.03810638215 | S101: 0.009746570242 | T101: -0.02734838425 | U101: -0.01227768883 | V101: -0.04204838429 | W101: -0.0605504984 | X101: -0.07817315049 | Y101: -0.04999995292 | Z101: 0.04754919396 | AA101: 0.07671138806 | AB101: 0.001793995005 | AC101: -0.09758658858 | AD101: -0.004363870293 | AE101: 0.02418505396 | AF101: -0.003357075097 | AG101: 0.02350292482 | AH101: -0.01491420491 | AI101: -0.01170638399 | AJ101: 0.04842162532 | AK101: -0.01552738828 | AL101: -0.0002599301961 | AM101: 0.03487117048 | AN101: 6.219156908e-05 | AO101: 0.03607766968
A102: 2007-08-01 | B102: 23.51 | C102: 25 | D102: 23.129999 | E102: 24.84 | F102: 46080300 | G102: 17.521282 | H102: 0.06930669262 | I102: 94 | K102: H94 | L102: -0.03917815672 | M102: -0.02842702661 | N102: 0.1026240349 | O102: 0.2121951208 | P102: 0.1410514161 | Q102: 0.0506416067 | R102: 0.1264057704 | S102: 0.02109869193 | T102: -0.03285690093 | U102: 0.04597943707 | V102: 0.1003783176 | W102: -0.116454989 | X102: 0.1592323512 | Y102: 0.0296746677 | Z102: 0.05099160192 | AA102: 0.0482890232 | AB102: 0.03422219846 | AC102: 0.1184725906 | AD102: 0.06831628919 | AE102: 0.002371466745 | AF102: 0.004933122253 | AG102: -0.01764691685 | AH102: -0.0376183966 | AI102: 0.05329158961 | AJ102: -0.05034924307 | AK102: 0.05303693501 | AL102: 0.07293901487 | AM102: 0.3381975345 | AN102: 0.1006074268 | AO102: 0.03346085985
A103: 2007-07-02 | B103: 25.700001 | C103: 26.15 | D103: 23.5 | E103: 23.51 | F103: 47445800 | G103: 16.385647 | H103: -0.0805631142 | I103: 95 | K103: H95 | L103: -0.060592426 | M103: 0.009566322907 | N103: 0.03356984159 | O103: 0.1478163323 | P103: -0.1017030923 | Q103: 0.08240016124 | R103: -0.01500113321 | S103: -0.02936624044 | T103: 0.04792070249 | U103: 0.007324438565 | V103: -0.02792773915 | W103: 0.1167772844 | X103: -0.02499552563 | Y103: 0.06305148784 | Z103: 0.06059088433 | AA103: 0.01124183876 | AB103: 0.04696587477 | AC103: 0.05658052579 | AD103: 0.03067829227 | AE103: -0.1358366745 | AF103: 0.04338226934 | AG103: 0.1338565444 | AH103: 0.05877905182 | AI103: 0.03736243623 | AJ103: -0.2601119905 | AK103: -0.02396823416 | AL103: 0.003579208549 | AN103: 0.06736628608 | AO103: -0.03178033833
A104: 2007-06-01 | B104: 27.530001 | C104: 27.73 | D104: 25.309999 | E104: 25.57 | F104: 43969900 | G104: 17.821394 | H104: -0.06984359302 | I104: 96 | K104: H96 | L104: -0.03275210804 | M104: -0.009491384231 | N104: -0.1390189687 | O104: -0.07638893324 | P104: 0.0002089945388 | Q104: 0.01887588307 | R104: 0.04845737061 | S104: -0.00461543986 | T104: -0.009152567499 | U104: 0.0364641219 | V104: 0.01966812561 | W104: -0.05425014748 | X104: -0.1499374145 | Y104: -0.1334856728 | Z104: -0.04780547267 | AA104: 0.06708358133 | AB104: -0.0121794605 | AC104: -0.1424050068 | AD104: 0.01678301168 | AE104: -0.03904550353 | AF104: -0.1624022108 | AG104: -0.01842484552 | AH104: 0.01161730726 | AI104: -0.03513510635 | AJ104: -0.08575932348 | AK104: -0.03342132558 | AL104: -0.06464070836 | AM104: 0 | AN104: -0.02266454923 | AO104: 0.08612599561
A105: 2007-05-01 | B105: 26.360001 | C105: 27.629999 | D105: 26.280001 | E105: 27.49 | F105: 35842900 | G105: 19.159567 | H105: 0.0500607498 | I105: 97 | K105: H97 | L105: 0.02771675261 | M105: -0.05538424884 | N105: -0.0522761773 | O105: -0.3166396809 | P105: -0.0489367069 | Q105: -0.0161261279 | R105: -0.1080038974 | S105: -0.006495984672 | T105: -0.03861817981 | U105: 0.02472215375 | V105: -0.08528130374 | W105: -0.04612896087 | X105: -0.07044298923 | Y105: 0.1373421517 | Z105: -0.2085521404 | AA105: -0.009158221655 | AB105: -0.0533732741 | AC105: 0.09544717661 | AD105: -0.09047698744 | AE105: -0.2066770107 | AF105: -0.08426964558 | AG105: -0.04529887163 | AH105: -0.1044652004 | AI105: -0.1059479502 | AJ105: -0.126460465 | AK105: -0.04272282622 | AL105: -0.1023340472 | AM105: 0 | AN105: 0.06753630535 | AO105: -0.075588581
A106: 2007-04-02 | B106: 25.23 | C106: 27.24 | D106: 25.23 | E106: 26.459999 | F106: 38969700 | G106: 18.246151 | H106: 0.04750594779 | I106: 98 | K106: H98 | L106: -0.04335015887 | M106: 0.01273118333 | N106: -0.1180060871 | O106: 0.0870375866 | P106: -0.05489517055 | Q106: 0.009179338047 | R106: 0.0633474474 | S106: 0.019080971 | T106: -0.01175519162 | U106: -0.04463717159 | V106: 0.05080748592 | W106: -0.02358522543 | X106: -0.05113835581 | Y106: -0.05672255175 | Z106: 0.02223923811 | AA106: 0.02776198037 | AB106: -0.01535287317 | AC106: -0.04318278965 | AD106: 0.00752516842 | AE106: -0.01464534487 | AF106: 0.05952383505 | AG106: -0.01805259066 | AH106: -0.007837869121 | AI106: 0.01844421573 | AJ106: 0.05818182043 | AK106: 0.02367266668 | AL106: 0.01110853466 | AM106: 0 | AN106: -0.00325195917 | AO106: -0.01572544646
A107: 2007-03-01 | B107: 24.85 | C107: 25.959999 | D107: 24.549999 | E107: 25.26 | F107: 36864000 | G107: 17.418661 | H107: 0.01201926261 | I107: 99 | K107: H99 | L107: -0.02269519488 | M107: -0.03019842487 | N107: -0.03232158573 | O107: -0.04069490234 | P107: -0.05799055097 | Q107: -0.0363222133 | R107: -0.03442007702 | S107: 0.04305444017 | T107: 0.01096290482 | U107: -0.05962847018 | V107: -0.02699616033 | W107: -0.06972786474 | X107: -0.08583412826 | Y107: -0.08614141095 | Z107: -0.02637800907 | AA107: -0.0910000066 | AB107: 0.0459002296 | AC107: -0.0293617734 | AD107: 0.004311427751 | AE107: 0.01888098053 | AF107: -0.08418671088 | AG107: -0.00920610359 | AH107: 0.06444192721 | AI107: 0.01723812373 | AJ107: 0.1190233745 | AK107: -0.01959818482 | AL107: -0.06207935158 | AM107: 0 | AN107: 0.05950021112 | AO107: -0.04273746691
A108: 2007-02-01 | B108: 26.389999 | C108: 27 | D108: 24.940001 | E108: 24.959999 | F108: 34694000 | G108: 17.211788 | H108: -0.03838662396 | I108: 100 | K108: H100 | L108: 0.007368059182 | M108: -0.07715327963 | N108: 0.02915935638 | O108: 0.2377011369 | P108: -0.06095819833 | Q108: -0.04424488689 | R108: -0.02212013196 | S108: -0.02262802543 | T108: 0.07464759189 | U108: -0.001008908853 | V108: -0.006158119993 | W108: -0.005797088086 | X108: 0.145640132 | Y108: -0.02866828592 | Z108: 0.04021651931 | AA108: -0.01426147633 | AB108: -0.008067018992 | AC108: 0.03408526992 | AD108: 0.09693410145 | AE108: 0.1271038456 | AF108: 0.2494909412 | AG108: 0.1295601512 | AH108: -0.006748921958 | AI108: 0.03714731707 | AJ108: 0.0148668109 | AK108: -0.04833509472 | AL108: 0.05036872101 | AM108: 0 | AN108: 0.03573871426 | AO108: 0.006978772748
A109: 2007-01-03 | B109: 26.15 | C109: 27.41 | D109: 25.780001 | E109: 26.24 | F109: 37766700 | G109: 17.898865 | H109: 0.01312734035 | I109: 101 | K109: H101 | L109: -0.01650564154 | M109: 0.02846474162 | N109: 0.01279427134 | O109: 0.1082467228 | P109: 0.08572911278 | Q109: 0.03510625077 | R109: 0.06631729233 | S109: -0.04835658402 | T109: 0.07518069233 | U109: 0.01661543652 | V109: 0.07966858698 | W109: 0.07227674827 | X109: 0.2314073003 | Y109: -0.1532237322 | Z109: 0.004271858407 | AA109: 0.009512434754 | AB109: 0.06327880566 | AC109: 0.02920033293 | AD109: 0.1059898106 | AE109: 0.03818084254 | AF109: 0.02540894251 | AG109: 0.04466270857 | AH109: 0.07701730595 | AI109: 0.00178532585 | AJ109: -0.0315936123 | AK109: 0.07838682831 | AL109: 0.05730654274 | AM109: 0 | AN109: 0.0004583879712 | AO109: 0.02351196095
A110: 2006-12-01 | B110: 27.610001 | C110: 27.860001 | D110: 23.5 | E110: 25.9 | F110: 56246900 | G110: 17.666945 | H110: -0.05783911018 | I110: 102 | K110: H102 | L110: 0.06930669262 | M110: 0.02886209211 | N110: 0.00136655965 | O110: 0.05100176672 | P110: -0.06188725177 | Q110: -0.03845185863 | R110: 0.03661416094 | S110: -0.02107995478 | T110: 0.03204753185 | U110: 0.05123188748 | V110: 0.01107403817 | W110: 0.002837969321 | X110: -0.06546671706 | Y110: 0.0372909941 | Z110: 0.09527102128 | AA110: 0.0583152114 | AB110: 0.02819234364 | AC110: 0.01158836101 | AD110: 0.02882814559 | AE110: 0.01047332157 | AF110: -0.005494935227 | AG110: -0.001948714959 | AH110: 0.05577108065 | AI110: -0.004726197549 | AJ110: 0.03262433283 | AK110: 0.02726575413 | AL110: -0.01736263338 | AM110: 0 | AN110: -0.04569853324 | AO110: 0.01818174988
A111: 2006-11-01 | B111: 26.700001 | C111: 27.879999 | D111: 25 | E111: 27.49 | F111: 42224200 | G111: 18.751516 | H111: 0.04067177008 | I111: 103 | K111: H103 | L111: -0.0805631142 | M111: 0.0245420092 | N111: -0.04082286509 | O111: 0.07964608094 | P111: 0.07560312279 | Q111: 0.0105931444 | R111: 0.01210831378 | S111: -0.02733806771 | T111: -0.003823341303 | U111: -0.08084187301 | V111: 0.01490227216 | W111: 0.01253916247 | X111: -0.1295111747 | Y111: -0.05540027113 | Z111: -0.005054715981 | AA111: 0.05130640236 | AB111: -0.01817588195 | AC111: -0.08456326857 | AD111: -0.05693466121 | AE111: -0.003012029494 | AF111: -0.01628773546 | AG111: -0.03156623059 | AH111: 0.01662631347 | AI111: -0.05084115305 | AJ111: -0.0529917506 | AK111: 0.02876075932 | AL111: 0.04530443132 | AM111: 0 | AN111: -0.0448971573 | AO111: -0.03339191455
A112: 2006-10-02 | B112: 28.200001 | C112: 28.6 | D112: 26.379999 | E112: 26.65 | F112: 37722000 | G112: 18.018665 | H112: -0.06029621637 | I112: 104 | K112: H104 | L112: -0.06984359302 | M112: -0.01330147889 | N112: -0.05847959713 | O112: 0.007013723668 | P112: -0.04404007327 | Q112: -0.003563217537 | R112: 0.03374646799 | S112: -0.01592922353 | T112: -0.006225671384 | U112: -0.02828749939 | V112: 0.008536661617 | W112: 0.02597970247 | X112: -0.060956614 | Y112: 0.01810443996 | Z112: 0.07033361114 | AA112: -0.01266410194 | AB112: -0.02607875106 | AC112: -0.06521321086 | AD112: 0.00415436055 | AE112: -0.043458177 | AF112: -0.03975239659 | AG112: 0.03055881548 | AH112: -0.03713611019 | AI112: -0.007128545457 | AJ112: -0.06627720926 | AK112: 0.00538623475 | AL112: -0.05421546387 | AM112: 0 | AN112: 0.01071437753 | AO112: -0.009124114862
A113: 2006-09-01 | B113: 27.790001 | C113: 28.58 | D113: 27.32 | E113: 28.360001 | F113: 25293500 | G113: 19.174835 | H113: 0.02902751957 | I113: 105 | K113: H105 | L113: 0.0500607498 | M113: 0.06865663281 | N113: 0.07104016877 | O113: 0.2143286574 | P113: 0.08564607419 | Q113: 0.08207103469 | R113: 0.05514458167 | S113: -0.02011792138 | T113: 0.01532866264 | U113: 0.0719001095 | V113: 0.05226847732 | W113: 0.01953339083 | X113: 0.05585288185 | Y113: 0.02640615658 | Z113: 0.0369711303 | AA113: 0.04701055528 | AB113: -0.008343437623 | AC113: -0.00518228307 | AD113: 0.0470173557 | AE113: 0.01963454793 | AF113: 0.0283706624 | AG113: 0.05365758945 | AH113: -0.01319884292 | AI113: 0.001293869994 | AJ113: 0.03222768215 | AK113: 0.05502748249 | AL113: 0.1401254891 | AM113: 0 | AN113: -0.002067398797 | AO113: 0.01315046656
A114: 2006-08-01 | B114: 26.040001 | C114: 27.879999 | D114: 25.32 | E114: 27.559999 | F114: 28259100 | G114: 18.633938 | H114: 0.07022654199 | I114: 106 | K114: H106 | L114: 0.04750594779 | M114: 0.08295172831 | N114: 0.07860547855 | O114: 0.07415789669 | P114: 0.04600156029 | Q114: 0.08810114375 | R114: 0.05178471601 | S114: -0.006889460428 | T114: 0.08729171178 | U114: -0.0052599701 | V114: 0.05208749185 | W114: 0.04242076767 | X114: 0.05966930614 | Y114: 0.03075657317 | Z114: 0.1238892885 | AA114: =INDIRECT(AA$9&"!"&$K114) -> 0.08434109868 | AB114: 0.06571521517 | AC114: 0.08453519742 | AD114: 0.07169816042 | AE114: 0.1645914323 | AF114: 0.07427339093 | AG114: 0.01373986626 | AH114: 0.0252633544 | AI114: 0.04500677865 | AJ114: 0.001699105175 | AK114: 0.03276919088 | AL114: 0.01769737646 | AM114: 0 | AN114: 0.02066019819 | AO114: 0.01597430305
A115: 2006-07-03 | B115: 23.540001 | C115: 26.66 | D115: 22.16 | E115: 25.99 | F115: 32149400 | G115: 17.411209 | H115: 0.1073711645 | I115: 107 | K115: H107 | L115: =INDIRECT(L$9&"!"&$K115) -> 0.01201926261 | M115: 0.03172245225 | N115: -0.008264402291 | O115: 0.09809708353 | P115: 0.01890907264 | Q115: 0.04035383023 | R115: 0.07939294949 | S115: 0.0114982626 | T115: 0.03562098236 | U115: -0.02562589334 | V115: 0.05259478621 | W115: 0.01289032304 | X115: 0.02418834639 | Y115: -0.06655662413 | Z115: -0.03675740336 | AA115: 0.01420271763 | AB115: -0.04242806943 | AC115: -0.02044943531 | AD115: 0.03112836155 | AE115: 0.009036593841 | AF115: -0.01064962549 | AG115: 0.01893684737 | AH115: -0.00519768637 | AI115: 0.02525347142 | AJ115: 0.0156957864 | AK115: -0.009750128806 | AL115: 0.01390396423 | AM115: 0 | AN115: -0.02349953507 | AO115: 0.005255611563
A116: 2006-06-01 | B116: 23.83 | C116: 24.41 | D116: 22.51 | E116: 23.469999 | F116: 29493200 | G116: 15.723011 | H116: -0.0080304494 | I116: 108 | K116: H108 | L116: -0.03838662396 | M116: 0.003327815945 | N116: -0.02318793546 | O116: -0.01306424383 | P116: -0.02191833255 | Q116: 0.005618909037 | R116: -0.0530634032 | S116: 0.02867387571 | T116: -0.0250626591 | U116: 0.03107350649 | V116: -0.02853892533 | W116: -0.0240127166 | X116: -0.04906675603 | Y116: -0.02822779972 | Z116: -0.04741047162 | AA116: -0.05980752947 | AB116: -0.05244894936 | AC116: -0.0302376364 | AD116: -0.01488165037 | AE116: -0.01340775332 | AF116: -0.08400267672 | AG116: 0.05728166812 | AH116: -0.02127336618 | AI116: -0.001966531725 | AJ116: -0.001530704488 | AK116: -0.03116919416 | AL116: -0.02907576805 | AM116: 0 | AN116: 0.01300065618 | AO116: -0.02615884185
A117: 2006-05-01 | B117: 25.5 | C117: 25.719999 | D117: 23.52 | E117: 23.66 | F117: 26783500 | G117: 15.850296 | H117: -0.05705849626 | I117: 109 | K117: H109 | L117: 0.01312734035 | M117: -0.04658021761 | N117: -0.03800396327 | O117: 0.01049028507 | P117: 0.008104454809 | Q117: 0.04993379316 | R117: -0.008839898986 | S117: -0.00428270641 | T117: -0.007668441931 | U117: 0.01745029115 | V117: -0.03301576702 | W117: -0.03117437546 | X117: 0.06603836957 | Y117: 0.01444226962 | Z117: 0.03506169187 | AA117: 0.02058676293 | AB117: 0.01181466299 | AC117: 0.0619266709 | AD117: 0.0004511879557 | AE117: 0.02637613571 | AF117: 0.03348957779 | AG117: -0.002221533488 | AH117: 0.01417257568 | AI117: -0.05289625124 | AJ117: -0.02735903077 | AK117: 0.08797182162 | AL117: 0.04570160094 | AM117: 0 | AN117: 0.03269808645 | AO117: 0.02626225317
A118: 2006-04-03 | B118: 25.09 | C118: 25.440001 | D118: 24.18 | E118: 25.33 | F118: 24767100 | G118: 16.809416 | H118: 0.01645265292 | I118: 110 | K118: H110 | L118: -0.05783911018 | M118: -0.04333418447 | N118: 0.03320839226 | O118: -0.07440544344 | P118: 0.003501542887 | Q118: -0.01128480828 | R118: 0.0167311358 | S118: -0.01993700446 | T118: 0.03032236597 | U118: 0.03792883123 | V118: -0.002343462725 | W118: 0.06250335181 | X118: 0.02335722972 | Y118: 0.05767705929 | Z118: -0.05373830924 | AA118: 0.05689736715 | AB118: 0.001668887769 | AC118: 0.04364736211 | AD118: 0.05623058707 | AE118: -0.01217479437 | AF118: 0.01702999472 | AG118: 0.002697816163 | AH118: 0.0235705386 | AI118: 0.04150394699 | AJ118: 0.09474315981 | AK118: -0.03114825706 | AL118: 0.06582700041 | AM118: 0 | AN118: 0.005435686129 | AO118: 0.04630438161
A119: 2006-03-01 | B119: 26.1 | C119: 26.6 | D119: 24.83 | E119: 24.92 | F119: 24134200 | G119: 16.537333 | H119: -0.04849182057 | I119: 111 | K119: H111 | L119: 0.04067177008 | M119: 0.03910553096 | N119: 0.01574124535 | O119: 0.1304884967 | P119: 0.1124983423 | Q119: 0.02174266639 | R119: 0.08420116886 | S119: 0.01563054538 | T119: 0.009055577095 | U119: 0.03275101787 | V119: 0.08013169449 | W119: 0.004841934441 | X119: 0.02639770954 | Y119: 0.02326928062 | Z119: 0.007684330267 | AA119: -0.001210036122 | AB119: -0.01658368724 | AC119: -0.02445196205 | AD119: 0.0256301028 | AE119: -0.020035208 | AF119: 0.02613646221 | AG119: 0.07694818892 | AH119: -0.009465157714 | AI119: 0.01329946288 | AJ119: 0.00615014134 | AK119: -0.01412519658 | AL119: -0.01974478401 | AM119: 0 | AN119: -0.06452924061 | AO119: 0.05054045163
A120: 2006-02-01 | B120: 25.75 | C120: 26.84 | D120: 24.950001 | E120: 26.190001 | F120: 32161900 | G120: 17.380127 | H120: 0.02967394351 | I120: 112 | K120: H112 | L120: -0.06029621637 | M120: 0.05939260524 | N120: 0.03361787164 | O120: 0.05326058179 | P120: 0.01280923142 | Q120: -0.07333127157 | R120: 0.03607764993 | S120: -0.002126876872 | T120: 0.04565805716 | U120: 0.06909432898 | V120: 0.0643815622 | W120: -0.005382474197 | X120: 0.1240393203 | Y120: 0.02922528184 | Z120: 0.03743312849 | AA120: 0.126799981 | AB120: 0.03788109684 | AC120: 0.01746626529 | AD120: 0.07157458666 | AE120: 0.08400943664 | AF120: 0.04972564748 | AG120: 0.04861897452 | AH120: 0.02786792465 | AI120: 0.09042443362 | AJ120: -0.008536611373 | AK120: 0.03741119818 | AL120: 0.007285710337 | AM120: 0 | AN120: -0.0008110554578 | AO120: 0.0177936581
A121: 2006-01-03 | B121: 23.65 | C121: 26.34 | D121: 23.6 | E121: 25.68 | F121: 37167900 | G121: 16.879253 | I121: 113 | K121: H113 | L121: 0.02902751957 | M121: 0.03793582315 | N121: 0.06737727146 | O121: 0.1345614925 | P121: 0.05273693192 | Q121: -0.008289285385 | R121: 0.007142877522 | S121: -0.002122434587 | T121: 0.004049615851 | U121: 0.07180381816 | V121: -0.008423270829 | W121: 0.04385826597 | X121: 0.1380423814 | Y121: 0.06234301374 | Z121: 0.05109869245 | AA121: 0.01197977971 | AB121: 0.00433036223 | AC121: 0.02847124656 | AD121: 0.08969350107 | AE121: 0.03329232148 | AF121: 0.06420239951 | AG121: 0.08702452788 | AH121: 0.00129237544 | AI121: 0.07439935674 | AJ121: -0.05293549223 | AK121: 0.01020570816 | AL121: 0.05542921807 | AM121: 0 | AN121: 0.1028622471 | AO121: 0.04249574808
I122: 114 | K122: H114 | L122: 0.07022654199 | M122: 0.0250802332 | N122: 0.009220069948 | O122: -0.001618621313 | P122: -0.02882156206 | Q122: -0.06377879353 | R122: -0.01330501916 | S122: 0.008562248378 | T122: 0.006966292162 | U122: 0.01731699469 | V122: 0.003601554627 | W122: 0.04190889347 | X122: -0.02684124268 | Y122: -0.01210023167 | Z122: 0.09343836981 | AA122: 0.05016062022 | AB122: 0.03973153023 | AC122: 0.000876800934 | AD122: 0.01441093031 | AE122: 0.01631086726 | AF122: 0.07209637659 | AG122: 0.02227846196 | AH122: 0.1014235156 | AI122: -0.04148462654 | AJ122: 0.08613832462 | AK122: 0.01275899326 | AL122: 0.0402126514 | AM122: 0 | AN122: 0.008747807005 | AO122: -0.001347378851
I123: 115 | K123: H115 | L123: 0.1073711645 | M123: -0.128389204 | N123: -0.01905413203 | O123: 0.1866596953 | P123: -0.05481638935 | Q123: -0.04432572692 | R123: 0.05994194678 | S123: -0.01163611194 | T123: 0.03440266512 | U123: -0.04663459067 | V123: 0.1041564944 | W123: -0.008191754092 | X123: 0.01787635852 | Y123: -0.03017605489 | Z123: -0.05263153824 | AA123: 0.0076803191 | AB123: 0.04389184141 | AC123: 0.09505521616 | AD123: 0.05327386549 | AE123: 0.1054075869 | AF123: 0.03261802805 | AG123: -0.02469132744 | AH123: 0.01643728537 | AI123: 0.02736644542 | AJ123: 0.06811082299 | AK123: -0.01939450964 | AL123: 0.02229091175 | AM123: 0 | AN123: -0.07618849912 | AO123: -0.01033331762
I124: 116 | K124: H116 | L124: -0.0080304494 | M124: -0.03454469217 | N124: -0.02097128173 | O124: -0.04182689472 | P124: -0.01609603517 | Q124: 0.02097338327 | R124: 0.03796620792 | S124: -0.002111160978 | T124: -0.01589496127 | U124: -0.02186688334 | V124: 0.007223714138 | W124: -0.03074841612 | X124: -0.00344491501 | Y124: -0.05734808829 | Z124: 0.05438392024 | AA124: -0.03854816371 | AB124: -0.004981755473 | AC124: -0.0150093723 | AD124: 0.01296354015 | AE124: 0.09432268037 | AF124: 0.02869761852 | AG124: 0.01053223145 | AH124: 0.02488482137 | AI124: 0.01892136067 | AJ124: 0.01865331027 | AK124: 0.01439539553 | AL124: 0.07305370097 | AM124: 0 | AN124: -0.005779237442 | AO124: -0.01639354232
I125: 117 | K125: H117 | L125: -0.05705849626 | M125: -0.01549881323 | N125: 0.01022111499 | O125: -0.1508738311 | P125: 0.001016368781 | Q125: -0.03683658026 | R125: -0.01173560113 | S125: 0.004240297654 | T125: 0.04933268607 | U125: -0.02773078526 | V125: -0.0295439125 | W125: -0.009540401926 | X125: -0.0582693541 | Y125: -0.04532935793 | Z125: -0.09347053164 | AA125: -0.02612508476 | AB125: 0.03384728645 | AC125: -0.06037906579 | AD125: -0.04049758908 | AE125: -0.02161104577 | AF125: -0.05845459476 | AG125: -0.01869497819 | AH125: -0.06802956099 | AI125: -0.0002270455813 | AJ125: -0.1162042713 | AK125: -0.000554363876 | AL125: -0.05510151577 | AM125: 0 | AN125: 0.07972307538 | AO125: 0.09084443764
I126: 118 | K126: H118 | L126: 0.01645265292 | M126: 0.1286827045 | N126: 0.02629083737 | O126: 0.1222896045 | P126: 0.07083275673 | Q126: 0.05807731426 | R126: 0.05261347759 | S126: -0.003521127264 | T126: 0.002149520966 | U126: 0.04477613469 | V126: 0.03647712231 | W126: -0.005462838615 | X126: 0.0233405358 | Y126: -0.0560282642 | Z126: 0.02672155847 | AA126: -0.00157639708 | AB126: -0.01030057362 | AC126: 0.09872682115 | AD126: 0.006111665663 | AE126: -0.02299175106 | AF126: -0.112458593 | AG126: -0.03830797941 | AH126: 0.01567053978 | AI126: 0.05360123755 | AJ126: -0.1095596046 | AK126: 0.08349150011 | AL126: -0.01870092143 | AM126: 0 | AN126: -0.04678241048 | AO126: 0.002509675483
I127: 119 | K127: H119 | L127: -0.04849182057 | M127: 0.02853658663 | N127: -0.02468452508 | O127: -0.08424593682 | P127: 0.07208689049 | Q127: -0.01737824478 | R127: 0.02638104029 | S127: 0.00673521213 | T127: 0.004900934311 | U127: 0.04895616808 | V127: 0.02509688665 | W127: 0.05810771474 | X127: 0.1109067611 | Y127: 0.007172762541 | Z127: -0.05533990969 | AA127: 0.02779167699 | AB127: 0.02723323461 | AC127: 0.0121536717 | AD127: -0.01575473561 | AE127: 0.02173872353 | AF127: 0.01265344699 | AG127: -0.01756739236 | AH127: -0.038378088 | AI127: -0.02241292292 | AJ127: -0.04018624637 | AK127: -0.009059821673 | AL127: 0.01068226613 | AM127: 0 | AN127: 0.04530238265 | AO127: -0.003572701992
I128: 120 | K128: H120 | L128: 0.02967394351 | M128: 0.01794318996 | N128: 0.02726404735 | O128: -0.09296773766 | P128: 0.06860006744 | Q128: 0.0762886871 | R128: -0.04121790348 | S128: 0 | T128: 0.01425809249 | U128: 0.03727382989 | V128: -0.04883771591 | W128: 0.01117872794 | X128: 0.0002831375695 | Y128: 0.03945751538 | Z128: -0.02645194551 | AA128: -0.01055990346 | AB128: 0.007586917065 | AC128: 0.03496847766 | AD128: -0.002856241596 | AE128: 0.01043484802 | AF128: -0.04223612858 | AG128: 0.07201981831 | AH128: 0.01181839306 | AI128: -0.05288669667 | AJ128: -0.02002692963 | AK128: 0.006034711454 | AL128: 0.06443459578 | AM128: 0 | AN128: -0.01626549353 | AO128: 0.10588709

Sheet MMM
A1: Date | B1: Open | C1: High | D1: Low | E1: Close | F1: Volume | G1: Adj Close | H1: Returns
A2: 2015-12-01 | B2: 156.410004 | C2: 158.690002 | D2: 146.690002 | E2: 150.639999 | F2: 2831300 | G2: 150.639999 | H2: =(G2/G3)-1 -> -0.0379358981
A3: 2015-11-02 | B3: 157.509995 | C3: 160.089996 | D3: 155.600006 | E3: 156.580002 | F3: 2266900 | G3: 156.580002 | H3: =(G3/G4)-1 -> 0.002536523657
A4: 2015-10-01 | B4: 142.210007 | C4: 158.679993 | D4: 138.570007 | E4: 157.210007 | F4: 2592700 | G4: 156.183838 | H4: 0.1089089221
A5: 2015-09-01 | B5: 139.479996 | C5: 145.550003 | D5: 135.389999 | E5: 141.770004 | F5: 3279500 | G5: 140.844604 | H5: -0.002603068493
A6: 2015-08-03 | B6: 150.789993 | C6: 153.240005 | D6: 134 | E6: 142.139999 | F6: 2940000 | G6: 141.212189 | H6: -0.05425400983
A7: 2015-07-01 | B7: 156.130005 | C7: 157.940002 | D7: 147.699997 | E7: 151.339996 | F7: 2563100 | G7: 149.313019 | H7: -0.01918346648
A8: 2015-06-01 | B8: 159.100006 | C8: 160.869995 | D8: 153.919998 | E8: 154.300003 | F8: 2321700 | G8: 152.233383 | H8: -0.03004773718
A9: 2015-05-01 | B9: 156.789993 | C9: 163.770004 | D9: 156.550003 | E9: 159.080002 | F9: 2284800 | G9: 156.949356 | H9: 0.02363280772
A10: 2015-04-01 | B10: 164.289993 | C10: 167.699997 | D10: 156.009995 | E10: 156.389999 | F10: 2702400 | G10: 153.325836 | H10: -0.05189454214
A11: 2015-03-02 | B11: 168.160004 | C11: 170.5 | D11: 161.210007 | E11: 164.949997 | F11: 2282900 | G11: 161.718124 | H11: -0.02193891103
A12: 2015-02-02 | B12: 162.119995 | C12: 169.979996 | D12: 160.889999 | E12: 168.649994 | F12: 2067000 | G12: 165.345627 | H12: 0.04558827259
A13: 2015-01-02 | B13: 164.710007 | C13: 166.570007 | D13: 157.740005 | E13: 162.300003 | F13: 2914100 | G13: 158.136459 | H13: -0.01229312241
A14: 2014-12-01 | B14: 158.350006 | C14: 168.160004 | D14: 155.589996 | E14: 164.320007 | F14: 2502700 | G14: 160.104645 | H14: 0.02642266741
A15: 2014-11-03 | B15: 153.139999 | C15: 160.860001 | D15: 152.979996 | E15: 160.089996 | F15: 2243400 | G15: 155.983154 | H15: 0.04668833447
A16: 2014-10-01 | B16: 141.160004 | C16: 154.440002 | D16: 130.600006 | E16: 153.770004 | F16: 3825900 | G16: 149.025406 | H16: 0.08533317336
A17: 2014-09-02 | B17: 143.300003 | C17: 147.869995 | D17: 140.660004 | E17: 141.679993 | F17: 2592900 | G17: 137.308441 | H17: -0.01611120255
A18: 2014-08-01 | B18: 140.149994 | C18: 145.389999 | D18: 138.429993 | E18: 144 | F18: 2027100 | G18: 139.55687 | H18: 0.0281681741
A19: 2014-07-01 | B19: 143.410004 | C19: 146.429993 | D19: 140.600006 | E19: 140.889999 | F19: 2131100 | G19: 135.733505 | H19: -0.01640604383
A20: 2014-06-02 | B20: 142.270004 | C20: 145.529999 | D20: 141.610001 | E20: 143.240005 | F20: 1787200 | G20: 137.997498 | H20: 0.004840433252
A21: 2014-05-01 | B21: 139.5 | C21: 143.369995 | D21: 138.649994 | E21: 142.550003 | F21: 2495300 | G21: 137.332748 | H21: 0.03116309543
A22: 2014-04-01 | B22: 135.880005 | C22: 139.520004 | D22: 132.020004 | E22: 139.089996 | F22: 2634000 | G22: 133.182373 | H22: 0.02528380409
A23: 2014-03-03 | B23: 133.070007 | C23: 135.869995 | D23: 129.699997 | E23: 135.660004 | F23: 2996700 | G23: 129.898056 | H23: 0.006902719874
A24: 2014-02-03 | B24: 128.220001 | C24: 135.199997 | D24: 123.610001 | E24: 134.729996 | F24: 3447800 | G24: 129.007553 | H24: 0.05792376559
A25: 2014-01-02 | B25: 138.050003 | C25: 139.289993 | D25: 126.419998 | E25: 128.190002 | F25: 3051600 | G25: 121.944092 | H25: -0.08598923912
A26: 2013-12-02 | B26: 131.669998 | C26: 140.429993 | D26: 125.150002 | E26: 140.25 | F26: 3582300 | G26: 133.416473 | H26: 0.05048314369
A27: 2013-11-01 | B27: 126.760002 | C27: 134.160004 | D27: 124.860001 | E27: 133.509995 | F27: 2392800 | G27: 127.004868 | H27: 0.0660714243
A28: 2013-10-01 | B28: 119.690002 | C28: 126.379997 | D28: 116.650002 | E28: 125.849998 | F28: 2464400 | G28: 119.133545 | H28: 0.05393183745
A29: 2013-09-03 | B29: 114.57 | C29: 122.269997 | D29: 112.849998 | E29: 119.410004 | F29: 2766100 | G29: 113.037239 | H29: 0.05132945689
A30: 2013-08-01 | B30: 118.379997 | C30: 119.260002 | D30: 112.360001 | E30: 113.580002 | F30: 2102400 | G30: 107.518379 | H30: -0.02743478502
A31: 2013-07-01 | B31: 108.370003 | C31: 118.599998 | D31: 108.209999 | E31: 117.43 | F31: 2509700 | G31: 110.551331 | H31: 0.07389122964
A32: 2013-06-03 | B32: 110.699997 | C32: 113.25 | D32: 107.150002 | E32: 109.349998 | F32: 2836200 | G32: 102.944626 | H32: -0.008343183149
A33: 2013-05-01 | B33: 104.779999 | C33: 112.379997 | D33: 104.419998 | E33: 110.269997 | F33: 2978600 | G33: 103.810738 | H33: 0.05910318991
A34: 2013-04-01 | B34: 106 | C34: 108.720001 | D34: 102.889999 | E34: 104.709999 | F34: 3227200 | G34: 98.017586 | H34: -0.01505028572
A35: 2013-03-01 | B35: 103.389999 | C35: 106.879997 | D35: 102.589996 | E35: 106.309998 | F35: 2620200 | G35: 99.51532 | H35: 0.02221148558
A36: 2013-02-01 | B36: 101.440002 | C36: 104.559998 | D36: 100.580002 | E36: 104 | F36: 2672300 | G36: 97.352966 | H36: 0.04069868425
A37: 2013-01-02 | B37: 94.190002 | C37: 101.949997 | D37: 93.959999 | E37: 100.550003 | F37: 3160800 | G37: 93.545776 | H37: 0.08292958379
A38: 2012-12-03 | B38: 91.410004 | C38: 94.139999 | D38: 89.599998 | E38: 92.849998 | F38: 2871500 | G38: 86.382141 | H38: 0.02089059352
A39: 2012-11-01 | B39: 87.940002 | C39: 91.970001 | D39: 86.739998 | E39: 90.949997 | F39: 2883600 | G39: 84.614494 | H39: 0.04512621745
A40: 2012-10-01 | B40: 92.900002 | C40: 95.459999 | D40: 87.410004 | E40: 87.599998 | F40: 3429300 | G40: 80.961029 | H40: -0.05215320227
A41: 2012-09-04 | B41: 92.029999 | C41: 94.099998 | D41: 90.459999 | E41: 92.419998 | F41: 3558500 | G41: 85.415733 | H41: -0.001943852927
A42: 2012-08-01 | B42: 91.650002 | C42: 94.300003 | D42: 89.230003 | E42: 92.599998 | F42: 2203600 | G42: 85.582092 | H42: 0.02148275638
A43: 2012-07-02 | B43: 89.290001 | C43: 92.080002 | D43: 85.339996 | E43: 91.230003 | F43: 3226500 | G43: 83.782219 | H43: 0.01819198878
A44: 2012-06-01 | B44: 83.050003 | C44: 89.599998 | D44: 81.989998 | E44: 89.599998 | F44: 3337800 | G44: 82.285286 | H44: 0.06148552761
A45: 2012-05-01 | B45: 89.129997 | C45: 89.949997 | D45: 82.949997 | E45: 84.410004 | F45: 2889400 | G45: 77.51899 | H45: -0.04885182515
A46: 2012-04-02 | B46: 88.790001 | C46: 89.75 | D46: 84.440002 | E46: 89.360001 | F46: 2823200 | G46: 81.500435 | H46: 0.001681463922
A47: 2012-03-01 | B47: 87.720001 | C47: 90 | D47: 84.830002 | E47: 89.209999 | F47: 2859100 | G47: 81.363625 | H47: 0.01837896887
A48: 2012-02-01 | B48: 87.519997 | C48: 88.459999 | D48: 86.690002 | E48: 87.599998 | F48: 2993300 | G48: 79.895233 | H48: 0.01708399515
A49: 2012-01-03 | B49: 83.760002 | C49: 87.989998 | D49: 82.699997 | E49: 86.709999 | F49: 3691900 | G49: 78.55323 | H49: 0.0609322568
A50: 2011-12-01 | B50: 81.25 | C50: 82.800003 | D50: 77.510002 | E50: 81.730003 | F50: 3887300 | G50: 74.041702 | H50: 0.0085144092
A51: 2011-11-01 | B51: 77.889999 | C51: 83.099998 | D51: 75.489998 | E51: 81.040001 | F51: 4934000 | G51: 73.416603 | H51: 0.03280953877
A52: 2011-10-03 | B52: 71.129997 | C52: 82.400002 | D52: 68.629997 | E52: 79.019997 | F52: 5595400 | G52: 71.084358 | H52: 0.1007103901
A53: 2011-09-01 | B53: 83.019997 | C53: 83.949997 | D53: 71.709999 | E53: 71.790001 | F53: 5880400 | G53: 64.580437 | H53: -0.1348517935
A54: 2011-08-01 | B54: 87.980003 | C54: 88.169998 | D54: 76.5 | E54: 82.980003 | F54: 6756600 | G54: 74.646675 | H54: -0.04131922252
A55: 2011-07-01 | B55: 94.830002 | C55: 98.190002 | D55: 86.599998 | E55: 87.139999 | F55: 4573200 | G55: 77.863953 | H55: -0.08128627362
A56: 2011-06-01 | B56: 94.330002 | C56: 95.059998 | D56: 90.190002 | E56: 94.849998 | F56: 3259800 | G56: 84.753227 | H56: 0.00497985018
A57: 2011-05-02 | B57: 97.580002 | C57: 97.949997 | D57: 91.379997 | E57: 94.379997 | F57: 3303300 | G57: 84.33326 | H57: -0.02338947945
A58: 2011-04-01 | B58: 93.529999 | C58: 97.5 | D58: 90.580002 | E58: 97.209999 | F58: 3393400 | G58: 86.353012 | H58: 0.03967916632
A59: 2011-03-01 | B59: 92.190002 | C59: 94.160004 | D59: 86.910004 | E59: 93.5 | F59: 3651300 | G59: 83.057365 | H59: 0.01376991236
A60: 2011-02-01 | B60: 88.019997 | C60: 93.650002 | D60: 87.440002 | E60: 92.230003 | F60: 3729800 | G60: 81.929207 | H60: 0.05533089143
A61: 2011-01-03 | B61: 86.75 | C61: 90.5 | D61: 85.629997 | E61: 87.919998 | F61: 3744500 | G61: 77.633667 | H61: 0.01877162417
A62: 2010-12-01 | B62: 85.419998 | C62: 87.82 | D62: 83.230003 | E62: 86.300003 | F62: 3587700 | G62: 76.203209 | H62: 0.02762563475
A63: 2010-11-01 | B63: 84.57 | C63: 87.870003 | D63: 83 | E63: 83.980003 | F63: 4228900 | G63: 74.15464 | H63: 0.003403768321
A64: 2010-10-01 | B64: 87.379997 | C64: 91.489998 | D64: 83.800003 | E64: 84.220001 | F64: 4196300 | G64: 73.903091 | H64: -0.02871639555
A65: 2010-09-01 | B65: 79.510002 | C65: 88 | D65: 79.290001 | E65: 86.709999 | F65: 3223500 | G65: 76.088066 | H65: 0.1038828154
A66: 2010-08-02 | B66: 86.800003 | C66: 88.379997 | D66: 78.400002 | E66: 78.550003 | F66: 3621600 | G66: 68.927666 | H66: -0.0759469438
A67: 2010-07-01 | B67: 79.059998 | C67: 87.480003 | D67: 77.040001 | E67: 85.540001 | F67: 4490500 | G67: 74.592758 | H67: =(G67/G68)-1 -> 0.08292192339
A68: 2010-06-01 | B68: 78.720001 | C68: 83 | D68: 72.720001 | E68: 78.989998 | F68: 5515900 | G68: 68.881012 | H68: -0.004034771111
A69: 2010-05-03 | B69: 89.190002 | C69: 90.519997 | D69: 68.959999 | E69: 79.309998 | F69: 5802800 | G69: 69.160057 | H69: -0.09993589847
A70: 2010-04-01 | B70: 83.870003 | C70: 90.25 | D70: 82.690002 | E70: 88.669998 | F70: 4841300 | G70: 76.839035 | H70: 0.0610267178
A71: 2010-03-01 | B71: 80.57 | C71: 84.5 | D71: 80.349998 | E71: 83.57 | F71: 4147900 | G71: 72.41951 | H71: 0.04266995113
A72: 2010-02-01 | B72: 80.839996 | C72: 81.760002 | D72: 77.25 | E72: 80.150002 | F72: 4118100 | G72: 69.455833 | H72: 0.002315160791
A73: 2010-01-04 | B73: 83.089996 | C73: 85.169998 | D73: 79.110001 | E73: 80.489998 | F73: 4187100 | G73: 69.295403 | H73: -0.02636984554
A74: 2009-12-01 | B74: 77.849998 | C74: 84.32 | D74: 76 | E74: 82.669998 | F74: 3746200 | G74: 71.172203 | H74: 0.0675360574
A75: 2009-11-02 | B75: 73.860001 | C75: 79 | D75: 73.349998 | E75: 77.440002 | F75: 3184000 | G75: 66.669601 | H75: 0.05946162659
A76: 2009-10-01 | B76: 73.559998 | C76: 79.25 | D76: 71.620003 | E76: 73.57 | F76: 3957000 | G76: 62.927811 | H76: -0.003116553305
A77: 2009-09-01 | B77: 71.809998 | C77: 76 | D77: 69.889999 | E77: 73.800003 | F77: 3671400 | G77: 63.124542 | H77: 0.02357839051
A78: 2009-08-03 | B78: 71.800003 | C78: 73.5 | D78: 69.260002 | E78: 72.099998 | F78: 4316700 | G78: 61.670452 | H78: 0.02987106867
A79: 2009-07-01 | B79: 60.310001 | C79: 71.389999 | D79: 57.810001 | E79: 70.519997 | F79: 5153400 | G79: 59.881721 | H79: 0.1733776531
A80: 2009-06-01 | B80: 57.900002 | C80: 61.459999 | D80: 56.610001 | E80: 60.099998 | F80: 4676800 | G80: 51.03363 | H80: 0.05253938776
A81: 2009-05-01 | B81: 57.560001 | C81: 60.23 | D81: 55.23 | E81: 57.099998 | F81: 4657700 | G81: 48.486195 | H81: -3.681324732e-05
A82: 2009-04-01 | B82: 48.950001 | C82: 58.98 | D82: 48.720001 | E82: 57.599998 | F82: 5823900 | G82: 48.48798 | H82: 0.1584874737
A83: 2009-03-02 | B83: 44.619999 | C83: 51.130001 | D83: 40.869999 | E83: 49.720001 | F83: 7465000 | G83: 41.854557 | H83: 0.09370885891
A84: 2009-02-02 | B84: 52.790001 | C84: 54.66 | D84: 45.169998 | E84: 45.459999 | F84: 7213200 | G84: 38.268463 | H84: -0.1456733448
A85: 2009-01-02 | B85: 57.549999 | C85: 59.810001 | D85: 52.310001 | E85: 53.790001 | F85: 5562100 | G85: 44.793713 | H85: -0.06517203843
A86: 2008-12-01 | B86: 64.949997 | C86: 66.25 | D86: 53.59 | E86: 57.540001 | F86: 6805300 | G86: 47.916531 | H86: -0.1402958289
A87: 2008-11-03 | B87: 63.560001 | C87: 67.470001 | D87: 56.25 | E87: 66.93 | F87: 8049400 | G87: 55.736069 | H87: 0.04934128951
A88: 2008-10-01 | B88: 67.669998 | C88: 68.309998 | D88: 50.009998 | E88: 64.300003 | F88: 10169400 | G88: 53.115292 | H88: -0.0587028921
A89: 2008-09-02 | B89: 72.379997 | C89: 74.709999 | D89: 65.510002 | E89: 68.309998 | F89: 6956900 | G89: 56.427765 | H89: -0.04594974578
A90: 2008-08-01 | B90: 70.529999 | C90: 74.68 | D90: 69.349998 | E90: 71.599998 | F90: 3921800 | G90: 59.145485 | H90: 0.02437252263
A91: 2008-07-01 | B91: 68.660004 | C91: 72.769997 | D91: 67.260002 | E91: 70.389999 | F91: 5267100 | G91: 57.738258 | H91: 0.01149592621
A92: 2008-06-02 | B92: 77.410004 | C92: 77.610001 | D92: 68.610001 | E92: 69.589996 | F92: 4921700 | G92: 57.082047 | H92: -0.1027591571
A93: 2008-05-01 | B93: 76.940002 | C93: 79.889999 | D93: 75.5 | E93: 77.559998 | F93: 3805900 | G93: 63.619537 | H93: 0.01512917278
A94: 2008-04-01 | B94: 79.610001 | C94: 83.220001 | D94: 76.459999 | E94: 76.900002 | F94: 4193300 | G94: 62.671371 | H94: -0.02842702661
A95: 2008-03-03 | B95: 78.160004 | C95: 81.68 | D95: 75.239998 | E95: 79.150002 | F95: 4393600 | G95: 64.505058 | H95: 0.009566322907
A96: 2008-02-01 | B96: 79.790001 | C96: 81.650002 | D96: 77.82 | E96: 78.400002 | F96: 3543700 | G96: 63.893829 | H96: -0.009491384231
A97: 2008-01-02 | B97: 84.239998 | C97: 84.760002 | D97: 72.050003 | E97: 79.650002 | F97: 5503000 | G97: 64.506081 | H97: -0.05538424884
A98: 2007-12-03 | B98: 83.43 | C98: 88.699997 | D98: 81.599998 | E98: 84.32 | F98: 3590800 | G98: 68.28817 | H98: 0.01273118333
A99: 2007-11-01 | B99: 86.07 | C99: 86.279999 | D99: 78.980003 | E99: 83.260002 | F99: 4998100 | G99: 67.42971 | H99: -0.03019842487
A100: 2007-10-01 | B100: 93.839996 | C100: 97 | D100: 84.080002 | E100: 86.360001 | F100: 4466500 | G100: 69.529388 | H100: -0.07715327963
A101: 2007-09-04 | B101: 90.959999 | C101: 93.980003 | D101: 87.209999 | E101: 93.580002 | F101: 3632200 | G101: 75.342293 | H101: 0.02846474162
A102: 2007-08-01 | B102: 88.940002 | C102: 91.510002 | D102: 83.209999 | E102: 90.989998 | F102: 4370500 | G102: 73.25705 | H102: 0.02886209211
A103: 2007-07-02 | B103: 87.290001 | C103: 92.32 | D103: 87.07 | E103: 88.919998 | F103: 4023700 | G103: 71.202011 | H103: 0.0245420092
A104: 2007-06-01 | B104: 87.949997 | C104: 88.489998 | D104: 84.400002 | E104: 86.790001 | F104: 3381000 | G104: 69.496429 | H104: -0.01330147889
A105: 2007-05-01 | B105: 82.769997 | C105: 89.029999 | D105: 82.160004 | E105: 87.959999 | F105: 4132900 | G105: 70.433296 | H105: 0.06865663281
A106: 2007-04-02 | B106: 76.440002 | C106: 83.25 | D106: 75.910004 | E106: 82.769997 | F106: 4162400 | G106: 65.908257 | H106: 0.08295172831
A107: 2007-03-01 | B107: 74 | C107: 78.160004 | D107: 72.900002 | E107: 76.43 | F107: 3947900 | G107: 60.859829 | H107: 0.03172245225
A108: 2007-02-01 | B108: 74.75 | C108: 77.43 | D108: 73.519997 | E108: 74.080002 | F108: 4594900 | G108: 58.988567 | H108: 0.003327815945
A109: 2007-01-03 | B109: 77.529999 | C109: 79.879997 | D109: 73.089996 | E109: 74.300003 | F109: 3954700 | G109: 58.792915 | H109: -0.04658021761
A110: 2006-12-01 | B110: 81.550003 | C110: 81.550003 | D110: 77.349998 | E110: 77.93 | F110: 3041500 | G110: 61.665298 | H110: -0.04333418447
A111: 2006-11-01 | B111: 78.830002 | C111: 81.949997 | D111: 78.120003 | E111: 81.459999 | F111: 2460500 | G111: 64.458557 | H111: 0.03910553096
A112: 2006-10-02 | B112: 74.699997 | C112: 80.879997 | D112: 73 | E112: 78.839996 | F112: 2919700 | G112: 62.032734 | H112: 0.05939260524
A113: 2006-09-01 | B113: 71.739998 | C113: 75.370003 | D113: 70.589996 | E113: 74.419998 | F113: 3326000 | G113: 58.555 | H113: 0.03793582315
A114: 2006-08-01 | B114: 70 | C114: 72 | D114: 68.18 | E114: 71.699997 | F114: 3464900 | G114: 56.414856 | H114: 0.0250802332
A115: 2006-07-03 | B115: 81.150002 | C115: 81.599998 | D115: 67.050003 | E115: 70.400002 | F115: 6512200 | G115: 55.034576 | H115: -0.128389204
A116: 2006-06-01 | B116: 83.660004 | C116: 85.230003 | D116: 78.610001 | E116: 80.769997 | F116: 2875600 | G116: 63.141228 | H116: -0.03454469217
A117: 2006-05-01 | B117: 85.510002 | C117: 88.349998 | D117: 82.589996 | E117: 83.660004 | F117: 3192200 | G117: 65.400467 | H117: -0.01549881323
A118: 2006-04-03 | B118: 75.970001 | C118: 85.900002 | D118: 75.760002 | E118: 85.43 | F118: 4065900 | G118: 66.430054 | H118: 0.1286827045
A119: 2006-03-01 | B119: 74.190002 | C119: 78.739998 | D119: 71.540001 | E119: 75.690002 | F119: 3158700 | G119: 58.85627 | H119: 0.02853658663
A120: 2006-02-01 | B120: 72.300003 | C120: 74.660004 | D120: 70.300003 | E120: 73.589996 | F120: 3096800 | G120: 57.223312 | H120: 0.01794318996
A121: 2006-01-03 | B121: 77.760002 | C121: 79.830002 | D121: 71.959999 | E121: 72.75 | F121: 3414200 | G121: 56.214642

Sheet AXP
A1: Date | B1: Open | C1: High | D1: Low | E1: Close | F1: Volume | G1: Adj Close | H1: Returns
A2: 2015-12-01 | B2: 72 | C2: 72.440002 | D2: 67.57 | E2: 69.550003 | F2: 5806800 | G2: 69.246933 | H2: =(G2/G3)-1 -> -0.0291735679
A3: 2015-11-02 | B3: 73.43 | C3: 74.849998 | D3: 70.209999 | E3: 71.639999 | F3: 5610800 | G3: 71.32782 | H3: =(G3/G4)-1 -> -0.02211308039
A4: 2015-10-01 | B4: 74.160004 | C4: 77.849998 | D4: 71.389999 | E4: 73.260002 | F4: 5836600 | G4: 72.940765 | H4: =(G4/G5)-1 -> -0.007995507711
A5: 2015-09-01 | B5: 74.849998 | C5: 78.400002 | D5: 72.660004 | E5: 74.129997 | F5: 5490300 | G5: 73.528664 | H5: -0.03375924917
A6: 2015-08-03 | B6: 75.860001 | C6: 81.660004 | D6: 71.709999 | E6: 76.720001 | F6: 7603900 | G6: 76.097664 | H6: 0.008677490696
A7: 2015-07-01 | B7: 78.639999 | C7: 79.629997 | D7: 74.300003 | E7: 76.059998 | F7: 5647200 | G7: 75.443008 | H7: -0.02135877153
A8: 2015-06-01 | B8: 79.940002 | C8: 81.919998 | D8: 77.650002 | E8: 77.720001 | F8: 6799400 | G8: 77.089546 | H8: =(G8/G9)-1 -> -0.02144026968
A9: 2015-05-01 | B9: 77.849998 | C9: 81.599998 | D9: 77.309998 | E9: 79.720001 | F9: 5540200 | G9: 78.77858 | H9: 0.02930925349
A10: 2015-04-01 | B10: 78.050003 | C10: 81.169998 | D10: 76.529999 | E10: 77.449997 | F10: 6695600 | G10: 76.535385 | H10: -0.008576537325
A11: 2015-03-02 | B11: 81.589996 | C11: 83.540001 | D11: 77.620003 | E11: 78.120003 | F11: 7299300 | G11: 77.197472 | H11: -0.03932951965
A12: 2015-02-02 | B12: 80.959999 | C12: 86.18 | D12: 77.120003 | E12: 81.589996 | F12: 11579700 | G12: 80.35791 | H12: 0.01115375896
A13: 2015-01-02 | B13: 93.169998 | C13: 93.940002 | D13: 80.559998 | E13: 80.690002 | F13: 6499700 | G13: 79.471504 | H13: -0.1301869352
A14: 2014-12-01 | B14: 92.07 | C14: 94.889999 | D14: 88.190002 | E14: 93.040001 | F14: 3819100 | G14: 91.366188 | H14: 0.006708537367
A15: 2014-11-03 | B15: 90.32 | C15: 92.589996 | D15: 89.650002 | E15: 92.419998 | F15: 3426100 | G15: 90.757339 | H15: 0.027459653
A16: 2014-10-01 | B16: 86.900002 | C16: 90.599998 | D16: 78.410004 | E16: 89.949997 | F16: 5550900 | G16: 88.331779 | H16: 0.03059116356
A17: 2014-09-02 | B17: 89.900002 | C17: 90.68 | D17: 86.760002 | E17: 87.540001 | F17: 4248000 | G17: 85.709816 | H17: -0.02244558043
A18: 2014-08-01 | B18: 87.410004 | C18: 90.220001 | D18: 85.75 | E18: 89.550003 | F18: 4083300 | G18: 87.677795 | H18: 0.01761371382
A19: 2014-07-01 | B19: 95.419998 | C19: 96.239998 | D19: 87.989998 | E19: 88 | F19: 3455100 | G19: 86.160194 | H19: -0.06985768671
A20: 2014-06-02 | B20: 91.790001 | C20: 96.040001 | D20: 91.269997 | E20: 94.870003 | F20: 3007400 | G20: 92.631195 | H20: 0.03683061837
A21: 2014-05-01 | B21: 87.529999 | C21: 91.68 | D21: 85.75 | E21: 91.5 | F21: 3270700 | G21: 89.340721 | H21: 0.04655152225
A22: 2014-04-01 | B22: 90.400002 | C22: 91.400002 | D22: 83.989998 | E22: 87.43 | F22: 4244600 | G22: 85.366768 | H22: -0.02642315961
A23: 2014-03-03 | B23: 90.599998 | C23: 94.349998 | D23: 89.160004 | E23: 90.029999 | F23: 3650500 | G23: 87.683647 | H23: -0.01369413214
A24: 2014-02-03 | B24: 84.989998 | C24: 92.139999 | D24: 82.629997 | E24: 91.279999 | F24: 4255900 | G24: 88.90107 | H24: 0.07362977928
A25: 2014-01-02 | B25: 90.900002 | C25: 93.620003 | D25: 84.910004 | E25: 85.019997 | F25: 5221500 | G25: 82.804214 | H25: -0.0605159842
A26: 2013-12-02 | B26: 86.019997 | C26: 90.790001 | D26: 83.209999 | E26: 90.730003 | F26: 3365300 | G26: 88.13797 | H26: 0.05745927404
A27: 2013-11-01 | B27: 82.120003 | C27: 86.190002 | D27: 80.220001 | E27: 85.800003 | F27: 3244900 | G27: 83.348808 | H27: 0.04889977775
A28: 2013-10-01 | B28: 75.639999 | C28: 83.830002 | D28: 72.080002 | E28: 81.800003 | F28: 4705600 | G28: 79.463081 | H28: 0.08644779881
A29: 2013-09-03 | B29: 72.589996 | C29: 77.900002 | D29: 72.139999 | E29: 75.519997 | F29: 3896100 | G29: 73.140266 | H29: 0.05020154779
A30: 2013-08-01 | B30: 74.529999 | C30: 77.269997 | D30: 71.470001 | E30: 71.910004 | F30: 3349800 | G30: 69.644028 | H30: -0.02521343148
A31: 2013-07-01 | B31: 75.529999 | C31: 78.629997 | D31: 73.470001 | E31: 73.769997 | F31: 6210600 | G31: 71.445412 | H31: -0.01023282717
A32: 2013-06-03 | B32: 75.889999 | C32: 78.610001 | D32: 71.68 | E32: 74.760002 | F32: 6486600 | G32: 72.184059 | H32: -0.01254788456
A33: 2013-05-01 | B33: 68.25 | C33: 77.389999 | D33: 68.160004 | E33: 75.709999 | F33: 5852700 | G33: 73.101326 | H33: 0.1067095418
A34: 2013-04-01 | B34: 67.419998 | C34: 69.050003 | D34: 63.43 | E34: 68.410004 | F34: 5750500 | G34: 66.052856 | H34: 0.01708980367
A35: 2013-03-01 | B35: 61.84 | C35: 67.480003 | D35: 61.509998 | E35: 67.459999 | F35: 5286100 | G35: 64.942993 | H35: 0.08543836385
A36: 2013-02-01 | B36: 59.330002 | C36: 63 | D36: 59.209999 | E36: 62.150002 | F36: 5927400 | G36: 59.83112 | H36: 0.05679307757
A37: 2013-01-02 | B37: 58.330002 | C37: 61.970001 | D37: 58.310001 | E37: 58.810001 | F37: 6126600 | G37: 56.615738 | H37: 0.02671100342
A38: 2012-12-03 | B38: 56.09 | C38: 58.349998 | D38: 55.470001 | E38: 57.48 | F38: 5448500 | G38: 55.142818 | H38: 0.02826464427
A39: 2012-11-01 | B39: 56.150002 | C39: 57.48 | D39: 53.02 | E39: 55.900002 | F39: 5648200 | G39: 53.627068 | H39: -0.001250656006
A40: 2012-10-01 | B40: 57.18 | C40: 59.400002 | D40: 54.950001 | E40: 55.970001 | F40: 5517900 | G40: 53.694221 | H40: -0.01219741864
A41: 2012-09-04 | B41: 58.310001 | C41: 59.369999 | D41: 56.049999 | E41: 56.860001 | F41: 5675300 | G41: 54.357239 | H41: -0.02469976416
A42: 2012-08-01 | B42: 57.52 | C42: 58.439999 | D42: 55.369999 | E42: 58.299999 | F42: 4532700 | G42: 55.733852 | H42: 0.0102235057
A43: 2012-07-02 | B43: 58.509998 | C43: 59.73 | D43: 54.349998 | E43: 57.709999 | F43: 5745100 | G43: 55.169823 | H43: -0.005220329077
A44: 2012-06-01 | B44: 54.619999 | C44: 58.209999 | D44: 53.18 | E44: 58.209999 | F44: 5758000 | G44: 55.459339 | H44: 0.04262934703
A45: 2012-05-01 | B45: 59.950001 | C45: 61.419998 | D45: 54.799999 | E45: 55.830002 | F45: 6201500 | G45: 53.191807 | H45: -0.07274532148
A46: 2012-04-02 | B46: 57.900002 | C46: 60.959999 | D46: 56.139999 | E46: 60.209999 | F46: 6897300 | G46: 57.36483 | H46: 0.04421537553
A47: 2012-03-01 | B47: 53.029999 | C47: 59.259998 | D47: 51.540001 | E47: 57.860001 | F47: 6581700 | G47: 54.935822 | H47: 0.09396872513
A48: 2012-02-01 | B48: 50.369999 | C48: 54.450001 | D48: 50.27 | E48: 52.889999 | F48: 6513600 | G48: 50.216995 | H48: 0.05484636594
A49: 2012-01-03 | B49: 48.299999 | C49: 51 | D49: 47.400002 | E49: 50.139999 | F49: 6710600 | G49: 47.60598 | H49: 0.0669325535
A50: 2011-12-01 | B50: 47.700001 | C50: 49.389999 | D50: 45.889999 | E50: 47.169998 | F50: 6117600 | G50: 44.619484 | H50: -0.01811002788
A51: 2011-11-01 | B51: 49.580002 | C51: 51.82 | D51: 44.700001 | E51: 48.040001 | F51: 7484800 | G51: 45.442448 | H51: -0.05096792089
A52: 2011-10-03 | B52: 44.52 | C52: 52.349998 | D52: 41.299999 | E52: 50.619999 | F52: 10689100 | G52: 47.882942 | H52: 0.1320861449
A53: 2011-09-01 | B53: 49.639999 | C53: 50.529999 | D53: 44.869999 | E53: 44.900002 | F53: 8971300 | G53: 42.2962 | H53: -0.09676114077
A54: 2011-08-01 | B54: 50.490002 | C54: 50.610001 | D54: 42.029999 | E54: 49.709999 | F54: 11359400 | G54: 46.827259 | H54: -0.006594747101
A55: 2011-07-01 | B55: 51.689999 | C55: 53.799999 | D55: 49.540001 | E55: 50.040001 | F55: 6463400 | G55: 47.138123 | H55: -0.03210834313
A56: 2011-06-01 | B56: 51.310001 | C56: 51.82 | D56: 46.919998 | E56: 51.700001 | F56: 7396800 | G56: 48.701859 | H56: 0.005571147049
A57: 2011-05-02 | B57: 49.369999 | C57: 51.970001 | D57: 49.169998 | E57: 51.599998 | F57: 7398500 | G57: 48.432037 | H57: 0.05134470841
A58: 2011-04-01 | B58: 45.700001 | C58: 49.150002 | D58: 45.099998 | E58: 49.080002 | F58: 7046800 | G58: 46.066753 | H58: 0.09016106555
A59: 2011-03-01 | B59: 43.700001 | C59: 46.290001 | D59: 42.189999 | E59: 45.200001 | F59: 7299900 | G59: 42.256832 | H59: 0.0374110975
A60: 2011-02-01 | B60: 43.540001 | C60: 46.93 | D60: 43.009998 | E60: 43.57 | F60: 9052500 | G60: 40.732967 | H60: 0.004379867115
A61: 2011-01-03 | B61: 43.299999 | C61: 46.709999 | D61: 43.110001 | E61: 43.380001 | F61: 9587700 | G61: 40.55534 | H61: 0.01487419482
A62: 2010-12-01 | B62: 43.84 | C62: 46.779999 | D62: 41.25 | E62: 42.919998 | F62: 9411200 | G62: 39.960953 | H62: -0.006941304797
A63: 2010-11-01 | B63: 41.490002 | C63: 44.27 | D63: 41.349998 | E63: 43.220001 | F63: 9288500 | G63: 40.240273 | H63: 0.04245058471
A64: 2010-10-01 | B64: 42.369999 | C64: 42.560001 | D64: 37.330002 | E64: 41.459999 | F64: 18719300 | G64: 38.601612 | H64: -0.008901413866
A65: 2010-09-01 | B65: 40.549999 | C65: 43.93 | D65: 39.759998 | E65: 42.029999 | F65: 10774900 | G65: 38.948307 | H65: 0.05417604211
A66: 2010-08-02 | B66: 45.009998 | C66: 45.200001 | D66: 39.139999 | E66: 39.869999 | F66: 8602700 | G66: 36.946682 | H66: -0.1068548459
A67: 2010-07-01 | B67: 39.549999 | C67: 45.68 | D67: 38.419998 | E67: 44.639999 | F67: 9678000 | G67: 41.36694 | H67: =(G67/G68)-1 -> 0.1244332771
A68: 2010-06-01 | B68: 39.18 | C68: 43.139999 | D68: 37.130001 | E68: 39.700001 | F68: 11683300 | G68: 36.789146 | H68: 0.0002270206441
A69: 2010-05-03 | B69: 46.209999 | C69: 47.369999 | D69: 37.360001 | E69: 39.869999 | F69: 16456900 | G69: 36.780796 | H69: -0.135516004
A70: 2010-04-01 | B70: 41.68 | C70: 49.189999 | D70: 41.360001 | E70: 46.119999 | F70: 11359300 | G70: 42.546532 | H70: 0.117789607
A71: 2010-03-01 | B71: 38.200001 | C71: 42.279999 | D71: 37.860001 | E71: 41.259998 | F71: 8255900 | G71: 38.063095 | H71: 0.08509633609
A72: 2010-02-01 | B72: 37.84 | C72: 39.630001 | D72: 36.599998 | E72: 38.189999 | F72: 9936400 | G72: 35.078079 | H72: 0.01407317511
A73: 2010-01-04 | B73: 40.810001 | C73: 43.25 | D73: 36.830002 | E73: 37.66 | F73: 13052500 | G73: 34.59127 | H73: -0.066532674
A74: 2009-12-01 | B74: 42.209999 | C74: 42.25 | D74: 38.790001 | E74: 40.52 | F74: 8972600 | G74: 37.056755 | H74: -0.03131727997
A75: 2009-11-02 | B75: 34.950001 | C75: 42.200001 | D75: 34.630001 | E75: 41.830002 | F75: 12727800 | G75: 38.254791 | H75: 0.2006315002
A76: 2009-10-01 | B76: 33.849998 | C76: 37.169998 | D76: 31.690001 | E76: 34.84 | F76: 13690300 | G76: 31.862225 | H76: 0.02772860712
A77: 2009-09-01 | B77: 33.580002 | C77: 36.5 | D77: 31.68 | E77: 33.900002 | F77: 12630200 | G77: 31.002567 | H77: 0.007701943326
A78: 2009-08-03 | B78: 28.9 | C78: 34.5 | D78: 28.129999 | E78: 33.82 | F78: 13766800 | G78: 30.765612 | H78: 0.1937874928
A79: 2009-07-01 | B79: 23.49 | C79: 30 | D79: 22 | E79: 28.33 | F79: 18969400 | G79: 25.771431 | H79: 0.2190189027
A80: 2009-06-01 | B80: 25.549999 | C80: 27.4 | D80: 22.41 | E80: 23.24 | F80: 20976600 | G80: 21.141125 | H80: -0.05772164047
A81: 2009-05-01 | B81: 24.940001 | C81: 28.450001 | D81: 23.049999 | E81: 24.85 | F81: 26660500 | G81: 22.436178 | H81: -0.01467086179
A82: 2009-04-01 | B82: 13.34 | C82: 26.33 | D82: 13.08 | E82: 25.219999 | F82: 37709100 | G82: 22.770237 | H82: 0.8750930125
A83: 2009-03-02 | B83: 11.68 | C83: 15.24 | D83: 9.71 | E83: 13.63 | F83: 31137400 | G83: 12.143524 | H83: 0.1301822993
A84: 2009-02-02 | B84: 16.35 | C84: 18.27 | D84: 11.44 | E84: 12.06 | F84: 24297100 | G84: 10.744748 | H84: -0.2791392083
A85: 2009-01-02 | B85: 18.57 | C85: 21.379999 | D85: 14.72 | E85: 16.73 | F85: 19110000 | G85: 14.905441 | H85: -0.09034196333
A86: 2008-12-01 | B86: 22.389999 | C86: 24.860001 | D86: 17.51 | E86: 18.549999 | F86: 14748600 | G86: 16.385763 | H86: -0.2042042962
A87: 2008-11-03 | B87: 27.309999 | C87: 30.26 | D87: 16.549999 | E87: 23.309999 | F87: 21467300 | G87: 20.590414 | H87: -0.1523636291
A88: 2008-10-01 | B88: 34.91 | C88: 35.799999 | D88: 20.5 | E88: 27.5 | F88: 21150600 | G88: 24.291565 | H88: -0.2198581389
A89: 2008-09-02 | B89: 40.75 | C89: 41.799999 | D89: 31.68 | E89: 35.43 | F89: 19920500 | G89: 31.137369 | H89: -0.107106877
A90: 2008-08-01 | B90: 37.18 | C90: 40.470001 | D90: 35.93 | E90: 39.68 | F90: 12817600 | G90: 34.872448 | H90: 0.06896553838
A91: 2008-07-01 | B91: 37.950001 | C91: 42.5 | D91: 35.099998 | E91: 37.119999 | F91: 20013300 | G91: 32.622612 | H91: -0.01031300517
A92: 2008-06-02 | B92: 46.25 | C92: 47.470001 | D92: 37.610001 | E92: 37.669998 | F92: 15015200 | G92: 32.962555 | H92: -0.187270812
A93: 2008-05-01 | B93: 48.330002 | C93: 52.630001 | D93: 45.049999 | E93: 46.349998 | F93: 10104700 | G93: 40.557858 | H93: -0.03477715466
A94: 2008-04-01 | B94: 44.900002 | C94: 48.970001 | D94: 42.110001 | E94: 48.02 | F94: 9511000 | G94: 42.019165 | H94: 0.1026240349
A95: 2008-03-03 | B95: 42.200001 | C95: 48.75 | D95: 39.5 | E95: 43.720001 | F95: 11983200 | G95: 38.108334 | H95: 0.03356984159
A96: 2008-02-01 | B96: 48.880001 | C96: 50.040001 | D96: 42.139999 | E96: 42.299999 | F96: 10687100 | G96: 36.870594 | H96: -0.1390189687
A97: 2008-01-02 | B97: 52.09 | C97: 52.32 | D97: 41.150002 | E97: 49.130001 | F97: 17152500 | G97: 42.823933 | H97: -0.0522761773
A98: 2007-12-03 | B98: 58.490002 | C98: 59.790001 | D98: 50.369999 | E98: 52.02 | F98: 9851900 | G98: 45.186089 | H98: -0.1180060871
A99: 2007-11-01 | B99: 60.330002 | C99: 60.490002 | D99: 53.360001 | E99: 58.98 | F99: 11099800 | G99: 51.231747 | H99: -0.03232158573
A100: 2007-10-01 | B100: 59.150002 | C100: 63.630001 | D100: 55.599998 | E100: 60.950001 | F100: 8653800 | G100: 52.942947 | H100: 0.02915935638
A101: 2007-09-04 | B101: 58.73 | C101: 62.27 | D101: 57.32 | E101: 59.369999 | F101: 7416200 | G101: 51.442905 | H101: 0.01279427134
A102: 2007-08-01 | B102: 58.450001 | C102: 63.880001 | D102: 55.5 | E102: 58.619999 | F102: 10893000 | G102: 50.793045 | H102: 0.00136655965
A103: 2007-07-02 | B103: 61.459999 | C103: 65.889999 | D103: 58.380001 | E103: 58.540001 | F103: 8605400 | G103: 50.723728 | H103: -0.04082286509
A104: 2007-06-01 | B104: 65 | C104: 65.239998 | D104: 60.369999 | E104: 61.18 | F104: 5657300 | G104: 52.882545 | H104: -0.05847959713
A105: 2007-05-01 | B105: 60.5 | C105: 65.099998 | D105: 60.400002 | E105: 64.980003 | F105: 5154300 | G105: 56.167179 | H105: 0.07104016877
A106: 2007-04-02 | B106: 56.400002 | C106: 62.740002 | D106: 55.34 | E106: 60.669998 | F106: 7452800 | G106: 52.441711 | H106: 0.07860547855
A107: 2007-03-01 | B107: 56.200001 | C107: 57.91 | D107: 53.91 | E107: 56.400002 | F107: 6387600 | G107: 48.619919 | H107: -0.008264402291
A108: 2007-02-01 | B108: 58.299999 | C108: 59.150002 | D108: 54.5 | E108: 56.869999 | F108: 6299600 | G108: 49.025082 | H108: -0.02318793546
A109: 2007-01-03 | B109: 61.18 | C109: 61.900002 | D109: 57.139999 | E109: 58.220001 | F109: 6179200 | G109: 50.188858 | H109: -0.03800396327
A110: 2006-12-01 | B110: 58.799999 | C110: 62.5 | D110: 58 | E110: 60.669998 | F110: 4543700 | G110: 52.171585 | H110: 0.03320839226
A111: 2006-11-01 | B111: 58 | C111: 59.93 | D111: 57 | E111: 58.720001 | F111: 5228000 | G111: 50.494736 | H111: 0.01574124535
A112: 2006-10-02 | B112: 56.080002 | C112: 58.43 | D112: 55 | E112: 57.810001 | F112: 6701900 | G112: 49.712204 | H112: 0.03361787164
A113: 2006-09-01 | B113: 52.560001 | C113: 56.189999 | D113: 51.490002 | E113: 56.080002 | F113: 5045500 | G113: 48.095341 | H113: 0.06737727146
A114: 2006-08-01 | B114: 51.919998 | C114: 53.720001 | D114: 51.189999 | E114: 52.540001 | F114: 3770400 | G114: 45.059364 | H114: 0.009220069948
A115: 2006-07-03 | B115: 53.240002 | C115: 53.869999 | D115: 49.73 | E115: 52.060001 | F115: 5295900 | G115: 44.647709 | H115: -0.01905413203
A116: 2006-06-01 | B116: 54.5 | C116: 54.91 | D116: 52 | E116: 53.220001 | F116: 4889900 | G116: 45.514957 | H116: -0.02097128173
A117: 2006-05-01 | B117: 53.880001 | C117: 54.52 | D117: 51.330002 | E117: 54.360001 | F117: 5953500 | G117: 46.48991 | H117: 0.01022111499
A118: 2006-04-03 | B118: 52.810001 | C118: 54.139999 | D118: 50.919998 | E118: 53.810001 | F118: 4899100 | G118: 46.019539 | H118: 0.02629083737
A119: 2006-03-01 | B119: 53.950001 | C119: 55 | D119: 51.759998 | E119: 52.549999 | F119: 4480600 | G119: 44.840641 | H119: -0.02468452508
A120: 2006-02-01 | B120: 52.450001 | C120: 55 | D120: 51.650002 | E120: 53.880001 | F120: 4807400 | G120: 45.975525 | H120: 0.02726404735
A121: 2006-01-03 | B121: 51.700001 | C121: 53.990002 | D121: 51.049999 | E121: 52.450001 | F121: 6573100 | G121: 44.755314

Sheet AAPL
A1: Date | B1: Open | C1: High | D1: Low | E1: Close | F1: Volume | G1: Adj Close | H1: Return
A2: 2015-12-01 | B2: 118.75 | C2: 119.860001 | D2: 104.82 | E2: 105.260002 | F2: 43542600 | G2: 105.260002 | H2: =(G2/G3)-1 -> -0.110228239
A3: 2015-11-02 | B3: 120.800003 | C3: 123.82 | D3: 111 | E3: 118.300003 | F3: 39337700 | G3: 118.300003 | H3: =(G3/G4)-1 -> -0.005804312611
A4: 2015-10-01 | B4: 109.07 | C4: 121.220001 | D4: 107.309998 | E4: 119.5 | F4: 52797300 | G4: 118.990662 | H4: 0.08340891083
A5: 2015-09-01 | B5: 110.150002 | C5: 116.889999 | D5: 107.360001 | E5: 110.300003 | F5: 60620000 | G5: 109.829872 | H5: -0.02181625714
A6: 2015-08-03 | B6: 121.5 | C6: 122.57 | D6: 92 | E6: 112.760002 | F6: 79152700 | G6: 112.279388 | H6: -0.06619616603
A7: 2015-07-01 | B7: 126.900002 | C7: 132.970001 | D7: 119.220001 | E7: 121.300003 | F7: 50017800 | G7: 120.238731 | H7: -0.03292672342
A8: 2015-06-01 | B8: 130.279999 | C8: 131.389999 | D8: 124.480003 | E8: 125.43 | F8: 41949200 | G8: 124.332596 | H8: -0.03722754207
A9: 2015-05-01 | B9: 126.099998 | C9: 132.970001 | D9: 123.360001 | E9: 130.279999 | F9: 50251800 | G9: 129.140167 | H9: 0.04533911744
A10: 2015-04-01 | B10: 124.82 | C10: 134.539993 | D10: 123.099998 | E10: 125.150002 | F10: 51396700 | G10: 123.539017 | H10: 0.005786444389
A11: 2015-03-02 | B11: 129.25 | C11: 130.279999 | D11: 121.629997 | E11: 124.43 | F11: 53669600 | G11: 122.828278 | H11: -0.03137171013
A12: 2015-02-02 | B12: 118.050003 | C12: 133.600006 | D12: 116.080002 | E12: 128.460007 | F12: 63081500 | G12: 126.806412 | H12: 0.1007765247
A13: 2015-01-02 | B13: 111.389999 | C13: 120 | D13: 104.629997 | E13: 117.160004 | F13: 69419400 | G13: 115.197235 | H13: 0.06142421394
A14: 2014-12-01 | B14: 118.809998 | C14: 119.25 | D14: 106.260002 | E14: 110.379997 | F14: 50681700 | G14: 108.530815 | H14: -0.07189101474
A15: 2014-11-03 | B15: 108.220001 | C15: 119.75 | D15: 107.720001 | E15: 118.93 | F15: 44485400 | G15: 116.937576 | H15: 0.1059787572
A16: 2014-10-01 | B16: 100.589996 | C16: 108.040001 | D16: 95.18 | E16: 108 | F16: 61083400 | G16: 105.732208 | H16: 0.0719602873
A17: 2014-09-02 | B17: 103.059998 | C17: 103.739998 | D17: 96.139999 | E17: 100.75 | F17: 75318200 | G17: 98.634445 | H17: -0.01707320612
A18: 2014-08-01 | B18: 94.900002 | C18: 102.900002 | D18: 93.279999 | E18: 102.5 | F18: 46746200 | G18: 100.347702 | H18: 0.07750881473
A19: 2014-07-01 | B19: 93.519997 | C19: 99.440002 | D19: 92.57 | E19: 95.599998 | F19: 49633100 | G19: 93.129356 | H19: 0.02873130649
A20: 2014-06-02 | B20: 633.959961 | C20: 651.26001 | D20: 89.650002 | E20: 92.93 | F20: 59829300 | G20: 90.528358 | H20: 0.02766191855
A21: 2014-05-01 | B21: 592 | C21: 644.169983 | D21: 580.330017 | E21: 633 | F21: 74996300 | G21: 88.091576 | H21: 0.07870927306
A22: 2014-04-01 | B22: 537.76001 | C22: 599.429993 | D22: 511.329987 | E22: 590.089966 | F22: 82044000 | G22: 81.663872 | H22: 0.09939634748
A23: 2014-03-03 | B23: 523.419983 | C23: 549 | D23: 522.809998 | E23: 536.73999 | F23: 61552000 | G23: 74.280647 | H23: 0.01995285299
A24: 2014-02-03 | B24: 502.610016 | C24: 551.190002 | D24: 499.300018 | E24: 526.23999 | F24: 82267500 | G24: 72.82753 | H24: 0.05751094342
A25: 2014-01-02 | B25: 555.679993 | C25: 560.200012 | D25: 493.549988 | E25: 500.599976 | F25: 109889900 | G25: 68.866928 | H25: -0.1076966919
A26: 2013-12-02 | B26: 558 | C26: 575.140015 | D26: 538.799988 | E26: 561.02002 | F26: 86672400 | G26: 77.178833 | H26: 0.008901711788
A27: 2013-11-01 | B27: 524.02002 | C27: 558.330017 | D27: 512.380005 | E27: 556.069946 | F27: 69291000 | G27: 76.497871 | H27: 0.0700527201
A28: 2013-10-01 | B28: 478.449982 | C28: 539.25 | D28: 478.279999 | E28: 522.699951 | F28: 88189400 | G28: 71.489815 | H28: 0.09638172697
A29: 2013-09-03 | B29: 493.099976 | C29: 507.919983 | D29: 447.220001 | E29: 476.749969 | F29: 111138700 | G29: 65.205223 | H29: -0.02148937347
A30: 2013-08-01 | B30: 455.749969 | C30: 513.73999 | D30: 453.259979 | E30: 487.220032 | F30: 94666300 | G30: 66.637215 | H30: 0.08376689073
A31: 2013-07-01 | B31: 402.690002 | C31: 457.339966 | D31: 401.220001 | E31: 452.529968 | F31: 77966700 | G31: 61.486668 | H31: 0.1412250361
A32: 2013-06-03 | B32: 450.72998 | C32: 454.429993 | D32: 388.869995 | E32: 396.529999 | F32: 94963100 | G32: 53.877777 | H32: -0.1182932536
A33: 2013-05-01 | B33: 444.459991 | C33: 465.75 | D33: 418.899994 | E33: 449.730042 | F33: 111725300 | G33: 61.106232 | H33: 0.02241931876
A34: 2013-04-01 | B34: 441.899994 | C34: 445.25 | D34: 385.100006 | E34: 442.779999 | F34: 132443500 | G34: 59.766312 | H34: 0.0002710287534
A35: 2013-03-01 | B35: 438 | C35: 469.949982 | D35: 419 | E35: 442.660004 | F35: 120246400 | G35: 59.750118 | H35: 0.002854546398
A36: 2013-02-01 | B36: 459.109985 | C36: 484.940002 | D36: 437.660004 | E36: 441.400024 | F36: 127191400 | G36: 59.580044 | H36: -0.02528600587
A37: 2013-01-02 | B37: 553.820007 | C37: 555 | D37: 435 | E37: 455.48999 | F37: 160032800 | G37: 61.125668 | H37: -0.1440892768
A38: 2012-12-03 | B38: 593.650024 | C38: 594.590027 | D38: 501.230011 | E38: 532.169983 | F38: 159903000 | G38: 71.415939 | H38: -0.09074290669
A39: 2012-11-01 | B39: 598.219971 | C39: 603 | D39: 505.75 | E39: 585.279968 | F39: 158585300 | G39: 78.543175 | H39: -0.01237455721
A40: 2012-10-01 | B40: 671.159973 | C40: 676.75 | D40: 587.700012 | E40: 595.320007 | F40: 150628900 | G40: 79.52729 | H40: -0.1076000371
A41: 2012-09-04 | B41: 665.76001 | C41: 705.070007 | D41: 656 | E41: 667.100037 | F41: 128080400 | G41: 89.116196 | H41: 0.002795998304
A42: 2012-08-01 | B42: 615.910034 | C42: 680.869995 | D42: 600.25 | E42: 665.23999 | F42: 93636100 | G42: 88.867722 | H42: 0.0938768578
A43: 2012-07-02 | B43: 584.730042 | C43: 619.869995 | D43: 570 | E43: 610.76001 | F43: 111571100 | G43: 81.241066 | H43: 0.04582180298
A44: 2012-06-01 | B44: 569.159973 | C44: 590 | D44: 548.5 | E44: 584 | F44: 98539600 | G44: 77.681557 | H44: 0.010852852
A45: 2012-05-01 | B45: 584.900024 | C45: 596.76001 | D45: 522.179993 | E45: 577.730042 | F45: 131795600 | G45: 76.847542 | H45: -0.0107023162
A46: 2012-04-02 | B46: 601.830017 | C46: 644 | D46: 555 | E46: 583.97998 | F46: 201314100 | G46: 77.678886 | H46: -0.02596951968
A47: 2012-03-01 | B47: 548.169983 | C47: 621.450012 | D47: 516.219971 | E47: 599.549988 | F47: 185402000 | G47: 79.749954 | H47: 0.1052834283
A48: 2012-02-01 | B48: 458.410004 | C48: 547.610046 | D48: 453.980011 | E48: 542.440002 | F48: 154007000 | G48: 72.153397 | H48: 0.1883106926
A49: 2012-01-03 | B49: 409.399994 | C49: 458.240021 | D49: 409 | E49: 456.47998 | F49: 90644200 | G49: 60.719303 | H49: 0.1271110557
A50: 2011-12-01 | B50: 382.540009 | C50: 409.089996 | D50: 377.679993 | E50: 405 | F50: 77216600 | G50: 53.871624 | H50: 0.05965469556
A51: 2011-11-01 | B51: 397.410004 | C51: 408 | D51: 363.320007 | E51: 382.199982 | F51: 111543300 | G51: 50.838848 | H51: -0.05578345645
A52: 2011-10-03 | B52: 380.369995 | C52: 426.699982 | D52: 354.23999 | E52: 404.779999 | F52: 161034800 | G52: 53.842361 | H52: 0.06152311478
A53: 2011-09-01 | B53: 385.820007 | C53: 422.860016 | D53: 366.480011 | E53: 381.320007 | F53: 149108200 | G53: 50.721798 | H53: -0.00912092176
A54: 2011-08-01 | B54: 397.779999 | C54: 399.5 | D54: 353.019989 | E54: 384.830017 | F54: 181143300 | G54: 51.188686 | H54: -0.01446936275
A55: 2011-07-01 | B55: 335.950012 | C55: 404.5 | D55: 334.200012 | E55: 390.47998 | F55: 141081600 | G55: 51.940228 | H55: 0.1632853785
A56: 2011-06-01 | B56: 348.869995 | C56: 352.130005 | D56: 310.5 | E56: 335.670013 | F56: 108940900 | G56: 44.649601 | H56: -0.03495956671
A57: 2011-05-02 | B57: 349.73999 | C57: 351.830017 | D57: 329.420013 | E57: 347.829987 | F57: 87259700 | G57: 46.267078 | H57: -0.006569018279
A58: 2011-04-01 | B58: 351.110016 | C58: 355.130005 | D58: 320.160004 | E58: 350.130005 | F58: 128252100 | G58: 46.573017 | H58: 0.004648306026
A59: 2011-03-01 | B59: 355.470001 | C59: 361.669983 | D59: 326.259979 | E59: 348.51001 | F59: 125874700 | G59: 46.357533 | H59: -0.0133064914
A60: 2011-02-01 | B60: 341.299988 | C60: 364.899994 | D60: 337.720001 | E60: 353.210022 | F60: 127618700 | G60: 46.982708 | H60: 0.04093485185
A61: 2011-01-03 | B61: 325.640015 | C61: 348.600006 | D61: 324.840027 | E61: 339.320007 | F61: 140234700 | G61: 45.135109 | H61: 0.05195924985
A62: 2010-12-01 | B62: 315.269989 | C62: 326.660004 | D62: 314.890015 | E62: 322.559998 | F62: 81440200 | G62: 42.905758 | H62: 0.03667047381
A63: 2010-11-01 | B63: 302.220001 | C63: 321.300018 | D63: 297.76001 | E63: 311.149994 | F63: 119166000 | G63: 41.388039 | H63: 0.03378961192
A64: 2010-10-01 | B64: 286.149994 | C64: 319 | D64: 277.769989 | E64: 300.980011 | F64: 150774800 | G64: 40.035263 | H64: 0.06072252812
A65: 2010-09-01 | B65: 247.469986 | C65: 294.730011 | D65: 246.279999 | E65: 283.75 | F65: 149087000 | G65: 37.743389 | H65: 0.1672150446
A66: 2010-08-02 | B66: 260.440002 | C66: 264.279999 | D66: 235.559998 | E66: 243.100006 | F66: 113748900 | G66: 32.336277 | H66: -0.0550047904
A67: 2010-07-01 | B67: 254.300003 | C67: 265.990021 | D67: 239.600006 | E67: 257.25 | F67: 191879900 | G67: 34.218456 | H67: =(G67/G68)-1 -> 0.02274081021
A68: 2010-06-01 | B68: 259.690002 | C68: 279.009979 | D68: 242.199982 | E68: 251.529999 | F68: 197621600 | G68: 33.457603 | H68: -0.02082691735
A69: 2010-05-03 | B69: 263.839996 | C69: 267.880005 | D69: 199.25 | E69: 256.880005 | F69: 236228300 | G69: 34.169243 | H69: -0.01612465461
A70: 2010-04-01 | B70: 237.410004 | C70: 272.459991 | D70: 232.75 | E70: 261.089996 | F70: 153685600 | G70: 34.72924 | H70: 0.1110212521
A71: 2010-03-01 | B71: 205.75 | C71: 237.47998 | D71: 205.449997 | E71: 235.000015 | F71: 136791600 | G71: 31.258844 | H71: 0.14847038
A72: 2010-02-01 | B72: 192.369995 | C72: 205.169998 | D72: 190.850006 | E72: 204.619995 | F72: 148467600 | G72: 27.217806 | H72: 0.06539621431
A73: 2010-01-04 | B73: 213.429993 | C73: 215.589996 | D73: 190.25 | E73: 192.059998 | F73: 215986100 | G73: 25.547121 | H73: -0.08859680426
A74: 2009-12-01 | B74: 202.23999 | C74: 213.949997 | D74: 188.680008 | E74: 210.730011 | F74: 133481400 | G74: 28.030537 | H74: 0.0541243961
A75: 2009-11-02 | B75: 189.800003 | C75: 208 | D75: 185.570007 | E75: 199.910004 | F75: 110995500 | G75: 26.591299 | H75: 0.06053043713
A76: 2009-10-01 | B76: 185.349991 | C76: 208.709991 | D76: 180.699997 | E76: 188.5 | F76: 155382900 | G76: 25.073584 | H76: 0.01699493494
A77: 2009-09-01 | B77: 167.990005 | C77: 188.899994 | D77: 164.110001 | E77: 185.349991 | F77: 125344100 | G77: 24.654581 | H77: 0.1018964248
A78: 2009-08-03 | B78: 165.210007 | C78: 172.48999 | D78: 159.419998 | E78: 168.210007 | F78: 100910200 | G78: 22.374681 | H78: 0.02949993013
A79: 2009-07-01 | B79: 143.5 | C79: 165 | D79: 134.420013 | E79: 163.389999 | F79: 129144000 | G79: 21.733543 | H79: 0.1471600146
A80: 2009-06-01 | B80: 136.470001 | C80: 146.399994 | D80: 132.880005 | E80: 142.430008 | F80: 148974900 | G80: 18.94552 | H80: 0.04874461049
A81: 2009-05-01 | B81: 125.799995 | C81: 135.899994 | D81: 119.379997 | E81: 135.809998 | F81: 123920900 | G81: 18.064951 | H81: 0.07931334574
A82: 2009-04-01 | B82: 104.089996 | C82: 127.199997 | D82: 103.889999 | E82: 125.829994 | F82: 146668700 | G82: 16.737448 | H82: 0.1970129615
A83: 2009-03-02 | B83: 88.120003 | C83: 109.980003 | D83: 82.330002 | E83: 105.120003 | F83: 181757700 | G83: 13.982679 | H83: 0.1770237963
A84: 2009-02-02 | B84: 89.100006 | C84: 103 | D84: 86.509995 | E84: 89.309998 | F84: 191764500 | G84: 11.879691 | H84: -0.009097935367
A85: 2009-01-02 | B85: 85.880005 | C85: 97.169998 | D85: 78.199997 | E85: 90.129997 | F85: 234465200 | G85: 11.988764 | H85: 0.05600476352
A86: 2008-12-01 | B86: 91.300003 | C86: 103.599998 | D86: 84.550003 | E86: 85.349998 | F86: 236606600 | G86: 11.352945 | H86: -0.07899006589
A87: 2008-11-03 | B87: 105.93 | C87: 111.790001 | D87: 79.139999 | E87: 92.669998 | F87: 314700400 | G87: 12.326626 | H87: -0.1386745933
A88: 2008-10-01 | B88: 111.919998 | C88: 116.399994 | D88: 85 | E88: 107.589996 | F88: 468331100 | G88: 14.31123 | H88: -0.05340487328
A89: 2008-09-02 | B89: 172.399994 | C89: 173.5 | D89: 100.589996 | E89: 113.659996 | F89: 305883800 | G89: 15.118639 | H89: -0.3295581666
A90: 2008-08-01 | B90: 159.899994 | C90: 180.450012 | D90: 152.910004 | E90: 169.529999 | F90: 162917200 | G90: 22.550262 | H90: 0.06656176172
A91: 2008-07-01 | B91: 164.229996 | C91: 180.910004 | D91: 146.529999 | E91: 158.950012 | F91: 231673400 | G91: 21.14295 | H91: -0.05070473543
A92: 2008-06-02 | B92: 188.600006 | C92: 189.949997 | D92: 164.150009 | E92: 167.440002 | F92: 239999900 | G92: 22.272259 | H92: -0.112900606
A93: 2008-05-01 | B93: 174.959991 | C93: 192.23999 | D93: 172 | E93: 188.75 | F93: 228552300 | G93: 25.106836 | H93: 0.08508187436
A94: 2008-04-01 | B94: 146.300003 | C94: 180 | D94: 143.610001 | E94: 173.949997 | F94: 271892100 | G94: 23.138195 | H94: 0.2121951208
A95: 2008-03-03 | B95: 124.440002 | C95: 145.73999 | D95: 118 | E95: 143.5 | F95: 296191700 | G95: 19.087847 | H95: 0.1478163323
A96: 2008-02-01 | B96: 136.23999 | C96: 136.589996 | D96: 115.440002 | E96: 125.020004 | F96: 326517900 | G96: 16.629705 | H96: -0.07638893324
A97: 2008-01-02 | B97: 199.269989 | C97: 200.26001 | D97: 126.139999 | E97: 135.360001 | F97: 434756700 | G97: 18.005095 | H97: -0.3166396809
A98: 2007-12-03 | B98: 181.860001 | C98: 202.959991 | D98: 176.990005 | E98: 198.079987 | F98: 222400100 | G98: 26.347879 | H98: 0.0870375866
A99: 2007-11-01 | B99: 188.600006 | C99: 192.680008 | D99: 150.630005 | E99: 182.220001 | F99: 326042700 | G99: 24.238241 | H99: -0.04069490234
A100: 2007-10-01 | B100: 154.630005 | C100: 190.119995 | D100: 152.930008 | E100: 189.949997 | F100: 262077200 | G100: 25.266457 | H100: 0.2377011369
A101: 2007-09-04 | B101: 139.940002 | C101: 155 | D101: 130 | E101: 153.470001 | F101: 283504200 | G101: 20.414021 | H101: 0.1082467228
A102: 2007-08-01 | B102: 133.639999 | C102: 139.650009 | D102: 111.619995 | E102: 138.480011 | F102: 274322600 | G102: 18.420105 | H102: 0.05100176672
A103: 2007-07-02 | B103: 121.049995 | C103: 148.919998 | D103: 119.299995 | E103: 131.759995 | F103: 306916200 | G103: 17.526236 | H103: 0.07964608094
A104: 2007-06-01 | B104: 121.099991 | C104: 127.610001 | D104: 115.399994 | E104: 122.040001 | F104: 290683100 | G104: 16.233316 | H104: 0.007013723668
A105: 2007-05-01 | B105: 99.590004 | C105: 122.170006 | D105: 98.550003 | E105: 121.189995 | F105: 212069700 | G105: 16.120253 | H105: 0.2143286574
A106: 2007-04-02 | B106: 94.139999 | C106: 102.5 | D106: 89.599998 | E106: 99.800003 | F106: 175953100 | G106: 13.275033 | H106: 0.07415789669
A107: 2007-03-01 | B107: 84.029999 | C107: 96.830002 | D107: 83.75 | E107: 92.909996 | F107: 187718200 | G107: 12.358549 | H107: 0.09809708353
A108: 2007-02-01 | B108: 86.229996 | C108: 90.810005 | D108: 82.860001 | E108: 84.610001 | F108: 192655600 | G108: 11.254514 | H108: -0.01306424383
A109: 2007-01-03 | B109: 86.290001 | C109: 97.800003 | D109: 81.900002 | E109: 85.729996 | F109: 350823100 | G109: 11.403492 | H109: 0.01049028507
A110: 2006-12-01 | B110: 91.799995 | C110: 92.329994 | D110: 76.770004 | E110: 84.839996 | F110: 224590200 | G110: 11.285108 | H110: -0.07440544344
A111: 2006-11-01 | B111: 81.099998 | C111: 93.160004 | D111: 77.790001 | E111: 91.660004 | F111: 175063900 | G111: 12.19228 | H111: 0.1304884967
A112: 2006-10-02 | B112: 75.100006 | C112: 82.599998 | D112: 72.599998 | E112: 81.080002 | F112: 169198000 | G112: 10.784966 | H112: 0.05326058179
A113: 2006-09-01 | B113: 68.479996 | C113: 77.779999 | D113: 67.82 | E113: 76.979996 | F113: 226592100 | G113: 10.239599 | H113: 0.1345614925
A114: 2006-08-01 | B114: 67.220001 | C114: 70 | D114: 62.579998 | E114: 67.849998 | F114: 200677600 | G114: 9.02516 | H114: -0.001618621313
A115: 2006-07-03 | B115: 57.52 | C115: 68.630005 | D115: 50.16 | E115: 67.959999 | F115: 229657200 | G115: 9.039792 | H115: 0.1866596953
A116: 2006-06-01 | B116: 59.850002 | C116: 63.100002 | D116: 55.41 | E116: 57.270004 | F116: 212230900 | G116: 7.617847 | H116: -0.04182689472
A117: 2006-05-01 | B117: 70.769997 | C117: 73.800003 | D117: 58.690002 | E117: 59.77 | F117: 191929000 | G117: 7.950387 | H117: -0.1508738311
A118: 2006-04-03 | B118: 63.670002 | C118: 72.050003 | D118: 61.050003 | E118: 70.389999 | F118: 274727800 | G118: 9.363022 | H118: 0.1222896045
A119: 2006-03-01 | B119: 68.839996 | C119: 69.989998 | D119: 57.669998 | E119: 62.720001 | F119: 260956400 | G119: 8.342786 | H119: -0.08424593682
A120: 2006-02-01 | B120: 74.949997 | C120: 76.459999 | D120: 62.899998 | E120: 68.489998 | F120: 263522000 | G120: 9.110291 | H120: -0.09296773766
A121: 2006-01-03 | B121: 72.380005 | C121: 86.400002 | D121: 70.870003 | E121: 75.510002 | F121: 284898900 | G121: 10.044065

Sheet BA
A1: Date | B1: Open | C1: High | D1: Low | E1: Close | F1: Volume | G1: Adj Close | H1: Returns
A2: 2015-12-01 | B2: 146.539993 | C2: 149.800003 | D2: 138.889999 | E2: 144.589996 | F2: 3696500 | G2: 144.589996 | H2: =(G2/G3)-1 -> -0.005912691769
A3: 2015-11-02 | B3: 148.380005 | C3: 150.589996 | D3: 141.589996 | E3: 145.449997 | F3: 2784400 | G3: 145.449997 | H3: =(G3/G4)-1 -> -0.01162087208
A4: 2015-10-01 | B4: 131.320007 | C4: 149.600006 | D4: 128.559998 | E4: 148.070007 | F4: 4363000 | G4: 147.160126 | H4: 0.1307370748
A5: 2015-09-01 | B5: 128.160004 | C5: 139.910004 | D5: 126.940002 | E5: 130.949997 | F5: 4016800 | G5: 130.145309 | H5: 0.002066116912
A6: 2015-08-03 | B6: 144.440002 | C6: 146.770004 | D6: 115.139999 | E6: 130.679993 | F6: 4620300 | G6: 129.876968 | H6: -0.0877870838
A7: 2015-07-01 | B7: 140.479996 | C7: 149.179993 | D7: 139 | E7: 144.169998 | F7: 3331800 | G7: 142.375717 | H7: 0.03928777053
A8: 2015-06-01 | B8: 141.449997 | C8: 146.529999 | D8: 138.440002 | E8: 138.720001 | F8: 3359000 | G8: 136.993546 | H8: -0.01280960065
A9: 2015-05-01 | B9: 144.410004 | C9: 148.300003 | D9: 140.320007 | E9: 140.520004 | F9: 4275200 | G9: 138.771149 | H9: -0.01339105267
A10: 2015-04-01 | B10: 149.970001 | C10: 155.5 | D10: 142.75 | E10: 143.339996 | F10: 4258700 | G10: 140.654663 | H10: -0.04490942327
A11: 2015-03-02 | B11: 150.850006 | C11: 156.910004 | D11: 145.960007 | E11: 150.080002 | F11: 3844600 | G11: 147.268402 | H11: -0.005104375932
A12: 2015-02-02 | B12: 143.720001 | C12: 158.830002 | D12: 143.050003 | E12: 150.850006 | F12: 5096900 | G12: 148.023972 | H12: 0.04411504705
A13: 2015-01-02 | B13: 131.070007 | C13: 148.25 | D13: 126.18 | E13: 145.369995 | F13: 6018000 | G13: 141.769791 | H13: 0.1184028679
A14: 2014-12-01 | B14: 134.309998 | C14: 134.399994 | D14: 120.580002 | E14: 129.979996 | F14: 4524900 | G14: 126.760933 | H14: -0.03259896184
A15: 2014-11-03 | B15: 125.349998 | C15: 135.779999 | D15: 123.370003 | E15: 134.360001 | F15: 3921200 | G15: 131.032455 | H15: 0.08193070852
A16: 2014-10-01 | B16: 127.370003 | C16: 128 | D16: 116.32 | E16: 124.910004 | F16: 4873500 | G16: 121.10984 | H16: -0.01939071396
A17: 2014-09-02 | B17: 125.620003 | C17: 129.869995 | D17: 124.099998 | E17: 127.379997 | F17: 3779200 | G17: 123.504684 | H17: 0.004574071176
A18: 2014-08-01 | B18: 120.449997 | C18: 129.130005 | D18: 117.870003 | E18: 126.800003 | F18: 3918300 | G18: 122.942337 | H18: 0.05883057082
A19: 2014-07-01 | B19: 127.660004 | C19: 130.580002 | D19: 120.410004 | E19: 120.480003 | F19: 5336600 | G19: 116.111435 | H19: -0.05305353878
A20: 2014-06-02 | B20: 135.5 | C20: 138.389999 | D20: 126.199997 | E20: 127.230003 | F20: 4022200 | G20: 122.616684 | H20: -0.05929752082
A21: 2014-05-01 | B21: 128.740005 | C21: 135.440002 | D21: 128.270004 | E21: 135.25 | F21: 3060700 | G21: 130.345871 | H21: 0.05416909709
A22: 2014-04-01 | B22: 126.239998 | C22: 131.5 | D22: 121.919998 | E22: 129.020004 | F22: 3844700 | G22: 123.647972 | H22: 0.02812977607
A23: 2014-03-03 | B23: 127.18 | C23: 131 | D23: 121.370003 | E23: 125.489998 | F23: 4798100 | G23: 120.264946 | H23: -0.02660565987
A24: 2014-02-03 | B24: 124.239998 | C24: 130.940002 | D24: 118.769997 | E24: 128.919998 | F24: 6544600 | G24: 123.552132 | H24: 0.03502403078
A25: 2014-01-02 | B25: 136.009995 | C25: 144.570007 | D25: 123.080002 | E25: 125.260002 | F25: 5890600 | G25: 119.371269 | H25: -0.08227705086
A26: 2013-12-02 | B26: 134.990005 | C26: 138.880005 | D26: 130.550003 | E26: 136.490005 | F26: 3846400 | G26: 130.073318 | H26: 0.01668525774
A27: 2013-11-01 | B27: 130.899994 | C27: 142 | D27: 130.580002 | E27: 134.25 | F27: 4496500 | G27: 127.938629 | H27: 0.03248466902
A28: 2013-10-01 | B28: 117.970001 | C28: 131.880005 | D28: 113.339996 | E28: 130.5 | F28: 4652400 | G28: 123.913345 | H28: 0.1106382767
A29: 2013-09-03 | B29: 105.129997 | C29: 120.379997 | D29: 104.620003 | E29: 117.5 | F29: 4666300 | G29: 111.569489 | H29: 0.1306774517
A30: 2013-08-01 | B30: 105.989998 | C30: 107.949997 | D30: 101.769997 | E30: 103.919998 | F30: 3751700 | G30: 98.674904 | H30: -0.00672677394
A31: 2013-07-01 | B31: 102.93 | C31: 109.489998 | D31: 98.989998 | E31: 105.099998 | F31: 7149400 | G31: 99.343163 | H31: 0.02596632515
A32: 2013-06-03 | B32: 99.360001 | C32: 104.150002 | D32: 96.309998 | E32: 102.440002 | F32: 5257200 | G32: 96.828873 | H32: 0.03453860638
A33: 2013-05-01 | B33: 91.080002 | C33: 101.470001 | D33: 90.720001 | E33: 99.019997 | F33: 5265400 | G33: 93.596191 | H33: 0.08882216557
A34: 2013-04-01 | B34: 85.599998 | C34: 93.379997 | D34: 83.800003 | E34: 91.410004 | F34: 5049700 | G34: 85.960953 | H34: 0.06476420912
A35: 2013-03-01 | B35: 76.699997 | C35: 86.839996 | D35: 76.169998 | E35: 85.849998 | F35: 5513700 | G35: 80.732384 | H35: 0.1163848177
A36: 2013-02-01 | B36: 74.489998 | C36: 77.93 | D36: 74.230003 | E36: 76.900002 | F36: 5632700 | G36: 72.31591 | H36: 0.04770495667
A37: 2013-01-02 | B37: 76.550003 | C37: 78.019997 | D37: 72.68 | E37: 73.870003 | F37: 9497200 | G37: 69.023163 | H37: -0.01977174083
A38: 2012-12-03 | B38: 74.410004 | C38: 76.559998 | D38: 72.93 | E38: 75.360001 | F38: 4749300 | G38: 70.415398 | H38: 0.01453961111
A39: 2012-11-01 | B39: 70.589996 | C39: 74.860001 | D39: 69.300003 | E39: 74.279999 | F39: 5022200 | G39: 69.406258 | H39: 0.0609964607
A40: 2012-10-01 | B40: 69.860001 | C40: 75 | D40: 69.199997 | E40: 70.440002 | F40: 4565300 | G40: 65.416107 | H40: 0.01206896768
A41: 2012-09-04 | B41: 71.5 | C41: 73.269997 | D41: 69.029999 | E41: 69.599998 | F41: 5638500 | G41: 64.636017 | H41: -0.02521011153
A42: 2012-08-01 | B42: 74.32 | C42: 74.690002 | D42: 70.019997 | E42: 71.400002 | F42: 3868000 | G42: 66.30764 | H42: -0.02816692627
A43: 2012-07-02 | B43: 74.209999 | C43: 75.959999 | D43: 70.849998 | E43: 73.910004 | F43: 4330600 | G43: 68.229454 | H43: -0.005248968362
A44: 2012-06-01 | B44: 68.669998 | C44: 74.370003 | D44: 66.82 | E44: 74.300003 | F44: 4421400 | G44: 68.589478 | H44: 0.0673754982
A45: 2012-05-01 | B45: 76.589996 | C45: 77.830002 | D45: 68.93 | E45: 69.610001 | F45: 4194600 | G45: 64.259933 | H45: -0.08829955687
A46: 2012-04-02 | B46: 74 | C46: 77.57 | D46: 70.589996 | E46: 76.800003 | F46: 4555000 | G46: 70.483604 | H46: 0.03267438558
A47: 2012-03-01 | B47: 74.959999 | C47: 75.809998 | D47: 72.300003 | E47: 74.370003 | F47: 4219800 | G47: 68.253464 | H47: -0.007738332318
A48: 2012-02-01 | B48: 74.959999 | C48: 76.739998 | D48: 74.300003 | E48: 74.949997 | F48: 4448400 | G48: 68.785751 | H48: 0.01632669603
A49: 2012-01-03 | B49: 74.699997 | C49: 76.699997 | D49: 72.739998 | E49: 74.18 | F49: 5428200 | G49: 67.680748 | H49: 0.01131558181
A50: 2011-12-01 | B50: 68.699997 | C50: 74.739998 | D50: 68.510002 | E50: 73.349998 | F50: 5684400 | G50: 66.92347 | H50: 0.06784097341
A51: 2011-11-01 | B51: 64.230003 | C51: 68.970001 | D51: 62.119999 | E51: 68.690002 | F51: 5866900 | G51: 62.671757 | H51: 0.0507369849
A52: 2011-10-03 | B52: 60.099998 | C52: 68.760002 | D52: 56.900002 | E52: 65.790001 | F52: 6395400 | G52: 59.645523 | H52: 0.0872583084
A53: 2011-09-01 | B53: 66.959999 | C53: 67.730003 | D53: 57.529999 | E53: 60.509998 | F53: 6200600 | G53: 54.85865 | H53: -0.09497462146
A54: 2011-08-01 | B54: 71.610001 | C54: 71.629997 | D54: 56.009998 | E54: 66.860001 | F54: 8770600 | G54: 60.615593 | H54: -0.04479200134
A55: 2011-07-01 | B55: 73.809998 | C55: 76.199997 | D55: 69.07 | E55: 70.470001 | F55: 5619100 | G55: 63.458004 | H55: -0.04680103289
A56: 2011-06-01 | B56: 77.949997 | C56: 78.099998 | D56: 70.290001 | E56: 73.93 | F56: 4908400 | G56: 66.573723 | H56: -0.05254383163
A57: 2011-05-02 | B57: 80.349998 | C57: 80.650002 | D57: 75.129997 | E57: 78.029999 | F57: 4390300 | G57: 70.265755 | H57: -0.01677011284
A58: 2011-04-01 | B58: 74.290001 | C58: 80.339996 | D58: 70.879997 | E58: 79.779999 | F58: 5159000 | G58: 71.464218 | H58: 0.07912883112
A59: 2011-03-01 | B59: 71.93 | C59: 74.470001 | D59: 67.339996 | E59: 73.93 | F59: 5390900 | G59: 66.223991 | H59: 0.02666296354
A60: 2011-02-01 | B60: 70 | C60: 74.290001 | D60: 69.599998 | E60: 72.010002 | F60: 5041500 | G60: 64.50412 | H60: 0.04243479373
A61: 2011-01-03 | B61: 66.150002 | C61: 72.989998 | D61: 66 | E61: 69.480003 | F61: 6661000 | G61: 61.878326 | H61: 0.06466445834
A62: 2010-12-01 | B62: 64.660004 | C62: 67.389999 | D62: 62.82 | E62: 65.260002 | F62: 4820300 | G62: 58.120026 | H62: 0.02336520255
A63: 2010-11-01 | B63: 70.709999 | C63: 71.889999 | D63: 61.84 | E63: 63.77 | F63: 7421700 | G63: 56.793045 | H63: -0.09178716899
A64: 2010-10-01 | B64: 67.540001 | C64: 72.489998 | D64: 65.860001 | E64: 70.639999 | F64: 4796500 | G64: 62.532749 | H64: 0.06161705606
A65: 2010-09-01 | B65: 61.790001 | C65: 67.970001 | D65: 61.66 | E65: 66.540001 | F65: 5039600 | G65: 58.903301 | H65: 0.08849995501
A66: 2010-08-02 | B66: 69.010002 | C66: 70 | D66: 59.48 | E66: 61.130001 | F66: 4750500 | G66: 54.114197 | H66: -0.09742520102
A67: 2010-07-01 | B67: 62.48 | C67: 69.75 | D67: 60.650002 | E67: 68.139999 | F67: 5525100 | G67: 59.95536 | H67: =(G67/G68)-1 -> 0.08589641746
A68: 2010-06-01 | B68: 64.269997 | C68: 69.339996 | D68: 59.84 | E68: 62.75 | F68: 6773500 | G68: 55.21278 | H68: -0.02228109372
A69: 2010-05-03 | B69: 72.620003 | C69: 74.699997 | D69: 60.610001 | E69: 64.18 | F69: 7918200 | G69: 56.471016 | H69: -0.1087606088
A70: 2010-04-01 | B70: 73.239998 | C70: 76 | D70: 69.879997 | E70: 72.43 | F70: 5878700 | G70: 63.362343 | H70: -0.002479021899
A71: 2010-03-01 | B71: 63.049999 | C71: 74.529999 | D71: 63 | E71: 72.610001 | F71: 7380100 | G71: 63.51981 | H71: 0.1496200596
A72: 2010-02-01 | B72: 60.740002 | C72: 64.470001 | D72: 57.139999 | E72: 63.16 | F72: 5955500 | G72: 55.252872 | H72: 0.04935975384
A73: 2010-01-04 | B73: 55.720001 | C73: 63.400002 | D73: 54.799999 | E73: 60.599998 | F73: 7336400 | G73: 52.653889 | H73: 0.1195269673
A74: 2009-12-01 | B74: 52.75 | C74: 56.560001 | D74: 52.75 | E74: 54.130001 | F74: 4802600 | G74: 47.032265 | H74: 0.03281821105
A75: 2009-11-02 | B75: 47.82 | C75: 53 | D75: 47.330002 | E75: 52.41 | F75: 4462700 | G75: 45.537796 | H75: 0.1061018191
A76: 2009-10-01 | B76: 53.849998 | C76: 53.900002 | D76: 47.18 | E76: 47.799999 | F76: 6165400 | G76: 41.169624 | H76: -0.1172668996
A77: 2009-09-01 | B77: 49.209999 | C77: 55.48 | D77: 47.759998 | E77: 54.150002 | F77: 5494800 | G77: 46.638813 | H77: 0.09019534371
A78: 2009-08-03 | B78: 43.18 | C78: 52.529999 | D78: 42.509998 | E78: 49.669998 | F78: 7600400 | G78: 42.780235 | H78: 0.1686538225
A79: 2009-07-01 | B79: 42.630001 | C79: 44.5 | D79: 38.919998 | E79: 42.91 | F79: 7455200 | G79: 36.606422 | H79: 0.009647029471
A80: 2009-06-01 | B80: 45.540001 | C80: 53.389999 | D80: 41.09 | E80: 42.5 | F80: 9649200 | G80: 36.256653 | H80: -0.05239678842
A81: 2009-05-01 | B81: 40.310001 | C81: 45.84 | D81: 40.09 | E81: 44.849998 | F81: 6235200 | G81: 38.261429 | H81: 0.130857392
A82: 2009-04-01 | B82: 34.52 | C82: 41.740002 | D82: 34.209999 | E82: 40.049999 | F82: 7877900 | G82: 33.834 | H82: 0.1256322574
A83: 2009-03-02 | B83: 30.959999 | C83: 38.68 | D83: 29.049999 | E83: 35.580002 | F83: 10869500 | G83: 30.057774 | H83: 0.1316794079
A84: 2009-02-02 | B84: 41.73 | C84: 43.669998 | D84: 31.4 | E84: 31.440001 | F84: 8644100 | G84: 26.560326 | H84: -0.2494235525
A85: 2009-01-02 | B85: 42.799999 | C85: 47 | D85: 39.509998 | E85: 42.310001 | F85: 7440100 | G85: 35.38657 | H85: -0.008436698673
A86: 2008-12-01 | B86: 41.639999 | C86: 43.689999 | D86: 36.279999 | E86: 42.669998 | F86: 7450400 | G86: 35.687656 | H86: 0.0009382063069
A87: 2008-11-03 | B87: 51.900002 | C87: 54.650002 | D87: 36.169998 | E87: 42.630001 | F87: 9460800 | G87: 35.654205 | H87: -0.1806484262
A88: 2008-10-01 | B88: 56.759998 | C88: 58 | D88: 39.990002 | E88: 52.419998 | F88: 11395300 | G88: 43.515148 | H88: -0.08596342446
A89: 2008-09-02 | B89: 67 | C89: 68.470001 | D89: 54.200001 | E89: 57.349998 | F89: 8361300 | G89: 47.607666 | H89: -0.1252288164
A90: 2008-08-01 | B90: 61.389999 | C90: 68.75 | D90: 60.77 | E90: 65.559998 | F90: 6521400 | G90: 54.422993 | H90: 0.07944183589
A91: 2008-07-01 | B91: 64.949997 | C91: 69.5 | D91: 61.009998 | E91: 61.110001 | F91: 8305900 | G91: 50.417717 | H91: -0.07014606763
A92: 2008-06-02 | B92: 82.610001 | C92: 82.610001 | D92: 65.550003 | E92: 65.720001 | F92: 8630900 | G92: 54.221115 | H92: -0.2059924663
A93: 2008-05-01 | B93: 84.860001 | C93: 88.290001 | D93: 80.550003 | E93: 82.769997 | F93: 5408600 | G93: 68.28791 | H93: -0.02007897955
A94: 2008-04-01 | B94: 75.019997 | C94: 86.449997 | D94: 74.040001 | E94: 84.860001 | F94: 7054300 | G94: 69.687157 | H94: 0.1410514161
A95: 2008-03-03 | B95: 79.32 | C95: 81.32 | D95: 71.589996 | E95: 74.370003 | F95: 8270100 | G95: 61.072758 | H95: -0.1017030923
A96: 2008-02-01 | B96: 83.370003 | C96: 86.879997 | D96: 78.709999 | E96: 82.790001 | F96: 6128200 | G96: 67.987274 | H96: 0.0002089945388
A97: 2008-01-02 | B97: 87.57 | C97: 87.839996 | D97: 74.120003 | E97: 83.18 | F97: 9118100 | G97: 67.973068 | H97: -0.0489367069
A98: 2007-12-03 | B98: 92.5 | C98: 93.639999 | D98: 85.550003 | E98: 87.459999 | F98: 6376500 | G98: 71.470604 | H98: -0.05489517055
A99: 2007-11-01 | B99: 98.300003 | C99: 98.669998 | D99: 86.75 | E99: 92.540001 | F99: 7110600 | G99: 75.62188 | H99: -0.05799055097
A100: 2007-10-01 | B100: 105.449997 | C100: 107.150002 | D100: 92 | E100: 98.589996 | F100: 8262200 | G100: 80.277199 | H100: -0.06095819833
A101: 2007-09-04 | B101: 96.099998 | C101: 106.150002 | D101: 94.019997 | E101: 104.989998 | F101: 5901700 | G101: 85.488419 | H101: 0.08572911278
A102: 2007-08-01 | B102: 103.029999 | C102: 106.349998 | D102: 90.080002 | E102: 96.699997 | F102: 6125700 | G102: 78.738258 | H102: -0.06188725177
A103: 2007-07-02 | B103: 96.720001 | C103: 107.830002 | D103: 96.269997 | E103: 103.43 | F103: 5456500 | G103: 83.932617 | H103: 0.07560312279
A104: 2007-06-01 | B104: 101.449997 | C104: 101.449997 | D104: 93.580002 | E104: 96.160004 | F104: 4778300 | G104: 78.033073 | H104: -0.04404007327
A105: 2007-05-01 | B105: 93.150002 | C105: 100.959999 | D105: 92.379997 | E105: 100.589996 | F105: 4137900 | G105: 81.627975 | H105: 0.08564607419
A106: 2007-04-02 | B106: 88.900002 | C106: 95.580002 | D106: 88.080002 | E106: 93 | F106: 4586500 | G106: 75.188385 | H106: 0.04600156029
A107: 2007-03-01 | B107: 86.599998 | C107: 91.870003 | D107: 85.910004 | E107: 88.910004 | F107: 4194300 | G107: 71.881714 | H107: 0.01890907264
A108: 2007-02-01 | B108: 89.949997 | C108: 92.239998 | D108: 85.239998 | E108: 87.260002 | F108: 4641500 | G108: 70.547722 | H108: -0.02191833255
A109: 2007-01-03 | B109: 88.900002 | C109: 90.339996 | D109: 84.599998 | E109: 89.559998 | F109: 5173400 | G109: 72.128662 | H109: 0.008104454809
A110: 2006-12-01 | B110: 89.599998 | C110: 91.849998 | D110: 88.349998 | E110: 88.839996 | F110: 3232200 | G110: 71.548798 | H110: 0.003501542887
A111: 2006-11-01 | B111: 80.010002 | C111: 92.050003 | D111: 79.110001 | E111: 88.529999 | F111: 5439100 | G111: 71.299141 | H111: 0.1124983423
A112: 2006-10-02 | B112: 79.349998 | C112: 84.389999 | D112: 77.769997 | E112: 79.860001 | F112: 4705200 | G112: 64.089211 | H112: 0.01280923142
A113: 2006-09-01 | B113: 75 | C113: 80.349998 | D113: 72.129997 | E113: 78.849998 | F113: 4143400 | G113: 63.27866 | H113: 0.05273693192
A114: 2006-08-01 | B114: 77.419998 | C114: 80.830002 | D114: 72.900002 | E114: 74.900002 | F114: 4034500 | G114: 60.108711 | H114: -0.02882156206
A115: 2006-07-03 | B115: 81.349998 | C115: 84.059998 | D115: 76.889999 | E115: 77.419998 | F115: 4478300 | G115: 61.892551 | H115: -0.05481638935
A116: 2006-06-01 | B116: 83.599998 | C116: 86.230003 | D116: 76.400002 | E116: 81.910004 | F116: 4837800 | G116: 65.48204 | H116: -0.01609603517
A117: 2006-05-01 | B117: 83.449997 | C117: 89.580002 | D117: 81.209999 | E117: 83.25 | F117: 3912800 | G117: 66.553284 | H117: 0.001016368781
A118: 2006-04-03 | B118: 78.25 | C118: 87.25 | D118: 77.5 | E118: 83.449997 | F118: 3983000 | G118: 66.48571 | H118: 0.07083275673
A119: 2006-03-01 | B119: 72.559998 | C119: 79.5 | D119: 71.900002 | E119: 77.93 | F119: 2997600 | G119: 62.087856 | H119: 0.07208689049
A120: 2006-02-01 | B120: 70 | C120: 74.889999 | D120: 70 | E120: 72.690002 | F120: 4102100 | G120: 57.913082 | H120: 0.06860006744
A121: 2006-01-03 | B121: 70.400002 | C121: 71.269997 | D121: 65.900002 | E121: 68.309998 | F121: 4052400 | G121: 54.195282

Sheet CAT
A1: Date | B1: Open | C1: High | D1: Low | E1: Close | F1: Volume | G1: Adj Close | H1: Returns
A2: 2015-12-01 | B2: 72.330002 | C2: 72.639999 | D2: 64.099998 | E2: 67.959999 | F2: 6582400 | G2: 67.959999 | H2: =(G2/G3)-1 -> -0.06455613036
A3: 2015-11-02 | B3: 73 | C3: 75.93 | D3: 68.410004 | E3: 72.650002 | F3: 5383100 | G3: 72.650002 | H3: =(G3/G4)-1 -> -0.004658117678
A4: 2015-10-01 | B4: 65.629997 | C4: 73.279999 | D4: 63.099998 | E4: 72.989998 | F4: 7486900 | G4: 72.989998 | H4: 0.1292182817
A5: 2015-09-01 | B5: 74.5 | C5: 76.160004 | D5: 62.990002 | E5: 65.360001 | F5: 8625800 | G5: 64.637634 | H5: -0.1449502923
A6: 2015-08-03 | B6: 78.419998 | C6: 80.309998 | D6: 70.230003 | E6: 76.440002 | F6: 7762500 | G6: 75.595177 | H6: -0.0278519413
A7: 2015-07-01 | B7: 85.389999 | C7: 85.449997 | D7: 74.769997 | E7: 78.629997 | F7: 6839500 | G7: 77.760971 | H7: -0.06441821273
A8: 2015-06-01 | B8: 86.059998 | C8: 88.809998 | D8: 84.699997 | E8: 84.82 | F8: 3678400 | G8: 83.115097 | H8: -0.005860315924
A9: 2015-05-01 | B9: 87.690002 | C9: 89.620003 | D9: 85.110001 | E9: 85.32 | F9: 4594600 | G9: 83.605049 | H9: -0.01795577051
A10: 2015-04-01 | B10: 80.029999 | C10: 87.919998 | D10: 79.389999 | E10: 86.879997 | F10: 6361800 | G10: 85.13369 | H10: 0.09459028149
A11: 2015-03-02 | B11: 82.900002 | C11: 83.790001 | D11: 78.190002 | E11: 80.029999 | F11: 5910900 | G11: 77.776764 | H11: -0.03462007852
A12: 2015-02-02 | B12: 80.080002 | C12: 85.809998 | D12: 79.489998 | E12: 82.900002 | F12: 6003400 | G12: 80.565964 | H12: 0.03663870849
A13: 2015-01-02 | B13: 91.769997 | C13: 92.370003 | D13: 78.809998 | E13: 79.970001 | F13: 8905500 | G13: 77.71846 | H13: -0.1191333224
A14: 2014-12-01 | B14: 100.239998 | C14: 101.459999 | D14: 88.029999 | E14: 91.529999 | F14: 5774000 | G14: 88.229538 | H14: -0.09015907687
A15: 2014-11-03 | B15: 101.610001 | C15: 107.120003 | D15: 98.040001 | E15: 100.599998 | F15: 4066300 | G15: 96.972488 | H15: -0.007987384076
A16: 2014-10-01 | B16: 98.639999 | C16: 102.370003 | D16: 90.050003 | E16: 101.410004 | F16: 5950800 | G16: 97.753281 | H16: 0.03183399217
A17: 2014-09-02 | B17: 109.029999 | C17: 109.730003 | D17: 98.260002 | E17: 99.029999 | F17: 5239200 | G17: 94.737411 | H17: -0.09205099689
A18: 2014-08-01 | B18: 100.519997 | C18: 109.099998 | D18: 99.110001 | E18: 109.07 | F18: 4649400 | G18: 104.342216 | H18: 0.08258063898
A19: 2014-07-01 | B19: 109.080002 | C19: 111.459999 | D19: 100.739998 | E19: 100.75 | F19: 3994600 | G19: 96.382858 | H19: -0.0670186297
A20: 2014-06-02 | B20: 102.419998 | C20: 109.849998 | D20: 102.010002 | E20: 108.669998 | F20: 3388100 | G20: 103.306305 | H20: 0.06299514363
A21: 2014-05-01 | B21: 105.199997 | C21: 108.209999 | D21: 100.720001 | E21: 102.230003 | F21: 4171000 | G21: 97.184174 | H21: -0.03007587758
A22: 2014-04-01 | B22: 98.940002 | C22: 107.400002 | D22: 98.940002 | E22: 105.400002 | F22: 5697900 | G22: 100.197708 | H22: 0.06692779239
A23: 2014-03-03 | B23: 96.32 | C23: 100.629997 | D23: 95.059998 | E23: 99.370003 | F23: 6000100 | G23: 93.912361 | H23: 0.02474994237
A24: 2014-02-03 | B24: 93.739998 | C24: 98.239998 | D24: 91.059998 | E24: 96.970001 | F24: 6332400 | G24: 91.644173 | H24: 0.03258430325
A25: 2014-01-02 | B25: 90.410004 | C25: 94.690002 | D25: 85.879997 | E25: 93.910004 | F25: 7603500 | G25: 88.752243 | H25: 0.0408956327
A26: 2013-12-02 | B26: 84.699997 | C26: 91.669998 | D26: 83.110001 | E26: 90.809998 | F26: 5059900 | G26: 85.265266 | H26: 0.07340424288
A27: 2013-11-01 | B27: 83.779999 | C27: 85.18 | D27: 81.870003 | E27: 84.599998 | F27: 4703600 | G27: 79.434441 | H27: 0.01487519694
A28: 2013-10-01 | B28: 83.559998 | C28: 89.169998 | D28: 82.449997 | E28: 83.360001 | F28: 5692500 | G28: 78.270157 | H28: 0.006520638351
A29: 2013-09-03 | B29: 83.150002 | C29: 88.25 | D29: 81.720001 | E29: 83.400002 | F29: 5444900 | G29: 77.763092 | H29: 0.01041927458
A30: 2013-08-01 | B30: 83.620003 | C30: 87.43 | D30: 81.459999 | E30: 82.540001 | F30: 5476100 | G30: 76.961212 | H30: -0.004462784899
A31: 2013-07-01 | B31: 83.040001 | C31: 89 | D31: 81.349998 | E31: 82.910004 | F31: 6933300 | G31: 77.306213 | H31: 0.01209820999
A32: 2013-06-03 | B32: 85.910004 | C32: 86.470001 | D32: 80.860001 | E32: 82.489998 | F32: 6500000 | G32: 76.382126 | H32: -0.03857822188
A33: 2013-05-01 | B33: 84.07 | C33: 90.690002 | D33: 82.660004 | E33: 85.800003 | F33: 6945300 | G33: 79.447052 | H33: 0.01334606519
A34: 2013-04-01 | B34: 86.860001 | C34: 87 | D34: 79.489998 | E34: 84.669998 | F34: 8396000 | G34: 78.400711 | H34: -0.02019219356
A35: 2013-03-01 | B35: 91.540001 | C35: 91.959999 | D35: 85.800003 | E35: 86.970001 | F35: 6415800 | G35: 80.016418 | H35: -0.05846051167
A36: 2013-02-01 | B36: 99 | C36: 99.699997 | D36: 88.5 | E36: 92.370003 | F36: 5629700 | G36: 84.984665 | H36: -0.06118502833
A37: 2013-01-02 | B37: 92.949997 | C37: 99.199997 | D37: 92.889999 | E37: 98.389999 | F37: 6971500 | G37: 90.523338 | H37: 0.09798011009
A38: 2012-12-03 | B38: 85.919998 | C38: 91.830002 | D38: 83.75 | E38: 89.610001 | F38: 6135400 | G38: 82.445335 | H38: 0.05732283662
A39: 2012-11-01 | B39: 85.220001 | C39: 88.599998 | D39: 80.160004 | E39: 85.239998 | F39: 6527600 | G39: 77.975555 | H39: 0.00507018369
A40: 2012-10-01 | B40: 86.720001 | C40: 87.529999 | D40: 82.099998 | E40: 84.809998 | F40: 7643600 | G40: 77.582199 | H40: -0.008343242377
A41: 2012-09-04 | B41: 85.029999 | C41: 94.279999 | D41: 81.779999 | E41: 86.040001 | F41: 8694100 | G41: 78.234932 | H41: 0.00832062755
A42: 2012-08-01 | B42: 85 | C42: 92.080002 | D42: 82.099998 | E42: 85.330002 | F42: 6557500 | G42: 77.58934 | H42: 0.01330011133
A43: 2012-07-02 | B43: 85.349998 | C43: 87.559998 | D43: 78.25 | E43: 84.209999 | F43: 8675000 | G43: 76.570938 | H43: -0.001907809581
A44: 2012-06-01 | B44: 85.080002 | C44: 89.870003 | D44: 80.959999 | E44: 84.910004 | F44: 7692100 | G44: 76.7173 | H44: -0.03092896774
A45: 2012-05-01 | B45: 102.809998 | C45: 103.5 | D45: 86.010002 | E45: 87.620003 | F45: 7734800 | G45: 79.165817 | H45: -0.1474165032
A46: 2012-04-02 | B46: 105.989998 | C46: 109.769997 | D46: 99.800003 | E46: 102.769997 | F46: 6729400 | G46: 92.854034 | H46: -0.03112369222
A47: 2012-03-01 | B47: 114.669998 | C47: 115.379997 | D47: 103.480003 | E47: 106.519997 | F47: 7225200 | G47: 95.83683 | H47: -0.06733208262
A48: 2012-02-01 | B48: 110.75 | C48: 116.949997 | D48: 109.860001 | E48: 114.209999 | F48: 6246400 | G48: 102.755577 | H48: 0.04664584713
A49: 2012-01-03 | B49: 92.769997 | C49: 114 | D49: 92.769997 | E49: 109.120003 | F49: 8637500 | G49: 98.176071 | H49: 0.2097987044
A50: 2011-12-01 | B50: 97.230003 | C50: 98 | D50: 86.290001 | E50: 90.599998 | F50: 7127300 | G50: 81.150749 | H50: -0.0743767833
A51: 2011-11-01 | B51: 90 | C51: 98.199997 | D51: 86.629997 | E51: 97.879997 | F51: 9238200 | G51: 87.671471 | H51: 0.03620573521
A52: 2011-10-03 | B52: 72.779999 | C52: 97.949997 | D52: 67.540001 | E52: 94.459999 | F52: 11920100 | G52: 84.60817 | H52: 0.2863338643
A53: 2011-09-01 | B53: 91.190002 | C53: 92.830002 | D53: 72.599998 | E53: 73.839996 | F53: 11489200 | G53: 65.774658 | H53: -0.1885715091
A54: 2011-08-01 | B54: 102.43 | C54: 102.82 | D54: 79.559998 | E54: 91 | F54: 13922800 | G54: 81.060326 | H54: -0.07885418512
A55: 2011-07-01 | B55: 106.150002 | C55: 112.650002 | D55: 97.279999 | E55: 98.790001 | F55: 9496800 | G55: 87.999451 | H55: -0.06812606448
A56: 2011-06-01 | B56: 104.970001 | C56: 106.93 | D56: 94.209999 | E56: 106.459999 | F56: 9102800 | G56: 94.432785 | H56: 0.00623815157
A57: 2011-05-02 | B57: 116.239998 | C57: 116.550003 | D57: 100.370003 | E57: 105.800003 | F57: 8574700 | G57: 93.847351 | H57: -0.08326830395
A58: 2011-04-01 | B58: 112.089996 | C58: 116.25 | D58: 102.160004 | E58: 115.410004 | F58: 6990000 | G58: 102.371666 | H58: 0.0407777868
A59: 2011-03-01 | B59: 103.370003 | C59: 111.980003 | D59: 97.010002 | E59: 111.349998 | F59: 7978500 | G59: 98.360733 | H59: 0.08180313021
A60: 2011-02-01 | B60: 97.349998 | C60: 105.860001 | D60: 96.5 | E60: 102.93 | F60: 5998900 | G60: 90.922951 | H60: 0.06102462689
A61: 2011-01-03 | B61: 94.379997 | C61: 97.790001 | D61: 92.300003 | E61: 97.010002 | F61: 6199100 | G61: 85.693535 | H61: 0.04063817719
A62: 2010-12-01 | B62: 85.029999 | C62: 94.889999 | D62: 85 | E62: 93.660004 | F62: 4893700 | G62: 82.347099 | H62: 0.1070922627
A63: 2010-11-01 | B63: 78.970001 | C63: 84.919998 | D63: 78.510002 | E63: 84.599998 | F63: 7246900 | G63: 74.381424 | H63: 0.07633596667
A64: 2010-10-01 | B64: 78.290001 | C64: 81.199997 | D64: 76.510002 | E64: 78.599998 | F64: 8231900 | G64: 69.10614 | H64: 0.004485873714
A65: 2010-09-01 | B65: 67.050003 | C65: 80.080002 | D65: 66.349998 | E65: 78.68 | F65: 8844300 | G65: 68.797523 | H65: 0.2074890924
A66: 2010-08-02 | B66: 70.739998 | C66: 72.25 | D66: 63.34 | E66: 65.160004 | F66: 7225100 | G66: 56.975689 | H66: -0.06580639256
A67: 2010-07-01 | B67: 59.669998 | C67: 70.290001 | D67: 58.060001 | E67: 69.75 | F67: 9068500 | G67: 60.989166 | H67: =(G67/G68)-1 -> 0.1688780945
A68: 2010-06-01 | B68: 60.040001 | C68: 68.349998 | D68: 54.889999 | E68: 60.07 | F68: 10335700 | G68: 52.177525 | H68: -0.01135614966
A69: 2010-05-03 | B69: 68.370003 | C69: 70.160004 | D69: 55.740002 | E69: 60.759998 | F69: 12539700 | G69: 52.776867 | H69: -0.1076516045
A70: 2010-04-01 | B70: 63.290001 | C70: 72.830002 | D70: 63.290001 | E70: 68.089996 | F70: 9067800 | G70: 59.143791 | H70: 0.09013116678
A71: 2010-03-01 | B71: 57.330002 | C71: 63.709999 | D71: 57.25 | E71: 62.849998 | F71: 8270800 | G71: 54.25383 | H71: 0.1016652103
A72: 2010-02-01 | B72: 52.82 | C72: 58.970001 | D72: 50.5 | E72: 57.049999 | F72: 9860800 | G72: 49.247112 | H72: 0.09207492078
A73: 2010-01-04 | B73: 57.650002 | C73: 64.419998 | D73: 51.029999 | E73: 52.240002 | F73: 12399600 | G73: 45.094994 | H73: -0.0770940043
A74: 2009-12-01 | B74: 59.240002 | C74: 60.25 | D74: 55.400002 | E74: 56.990002 | F74: 5978500 | G74: 48.861958 | H74: -0.02397663327
A75: 2009-11-02 | B75: 55.700001 | C75: 60.900002 | D75: 54.259998 | E75: 58.389999 | F75: 8399400 | G75: 50.062283 | H75: 0.06047941652
A76: 2009-10-01 | B76: 50.82 | C76: 61.279999 | D76: 47.5 | E76: 55.060001 | F76: 11997300 | G76: 47.207218 | H76: 0.08043728865
A77: 2009-09-01 | B77: 44.900002 | C77: 54.709999 | D77: 43.189999 | E77: 51.330002 | F77: 11098600 | G77: 43.692696 | H77: 0.1328625213
A78: 2009-08-03 | B78: 44.68 | C78: 48.93 | D78: 43.279999 | E78: 45.310001 | F78: 11819600 | G78: 38.568401 | H78: 0.02837038771
A79: 2009-07-01 | B79: 33.48 | C79: 44.470001 | D79: 30.01 | E79: 44.060001 | F79: 16594000 | G79: 37.504387 | H79: 0.3502940795
A80: 2009-06-01 | B80: 36.369999 | C80: 38.900002 | D80: 32.009998 | E80: 33.040001 | F80: 12989600 | G80: 27.774977 | H80: -0.06824585622
A81: 2009-05-01 | B81: 35.869999 | C81: 40.959999 | D81: 33.439999 | E81: 35.459999 | F81: 13931700 | G81: 29.809341 | H81: -0.003372760101
A82: 2009-04-01 | B82: 27.5 | C82: 36.400002 | D82: 27.440001 | E82: 35.580002 | F82: 16546600 | G82: 29.910221 | H82: 0.2889268214
A83: 2009-03-02 | B83: 24.07 | C83: 30.99 | D83: 21.709999 | E83: 27.959999 | F83: 18314700 | G83: 23.205523 | H83: 0.1361234715
A84: 2009-02-02 | B84: 30.1 | C84: 33.849998 | D84: 23.5 | E84: 24.610001 | F84: 17410500 | G84: 20.425177 | H84: -0.2022690357
A85: 2009-01-02 | B85: 44.91 | C85: 47.119999 | D85: 30.059999 | E85: 30.85 | F85: 16132500 | G85: 25.604092 | H85: -0.3019289936
A86: 2008-12-01 | B86: 38.919998 | C86: 45.700001 | D86: 36.369999 | E86: 44.669998 | F86: 10948700 | G86: 36.678349 | H86: 0.08977791329
A87: 2008-11-03 | B87: 38.82 | C87: 43.580002 | D87: 32.099998 | E87: 40.990002 | F87: 12786000 | G87: 33.656719 | H87: 0.07303663454
A88: 2008-10-01 | B88: 58.709999 | C88: 59.029999 | D88: 31.950001 | E88: 38.200001 | F88: 14479200 | G88: 31.365862 | H88: -0.3525955478
A89: 2008-09-02 | B89: 71.5 | C89: 74.5 | D89: 58.110001 | E89: 59.599998 | F89: 9682500 | G89: 48.448635 | H89: -0.1573590775
A90: 2008-08-01 | B90: 69.669998 | C90: 72.080002 | D90: 67.190002 | E90: 70.730003 | F90: 5845200 | G90: 57.496181 | H90: 0.01740518999
A91: 2008-07-01 | B91: 72.980003 | C91: 75.870003 | D91: 65.849998 | E91: 69.519997 | F91: 9021200 | G91: 56.512569 | H91: -0.05260819809
A92: 2008-06-02 | B92: 82.440002 | C92: 83.650002 | D92: 72.559998 | E92: 73.82 | F92: 7808400 | G92: 59.650684 | H92: -0.1067280204
A93: 2008-05-01 | B93: 81.919998 | C93: 85.959999 | D93: 80.550003 | E93: 82.639999 | F93: 5256300 | G93: 66.77774 | H93: 0.009281959999
A94: 2008-04-01 | B94: 78.889999 | C94: 85.449997 | D94: 74.379997 | E94: 81.879997 | F94: 7222900 | G94: 66.163612 | H94: 0.0506416067
A95: 2008-03-03 | B95: 72.099998 | C95: 78.629997 | D95: 68.300003 | E95: 78.290001 | F95: 7837000 | G95: 62.974483 | H95: 0.08240016124
A96: 2008-02-01 | B96: 71.150002 | C96: 75.190002 | D96: 67.32 | E96: 72.330002 | F96: 6701500 | G96: 58.180408 | H96: 0.01887588307
A97: 2008-01-02 | B97: 72.559998 | C97: 72.669998 | D97: 59.599998 | E97: 70.989998 | F97: 9271200 | G97: 57.102547 | H97: -0.0161261279
A98: 2007-12-03 | B98: 71.410004 | C98: 77.260002 | D98: 70.07 | E98: 72.559998 | F98: 5209800 | G98: 58.038483 | H98: 0.009179338047
A99: 2007-11-01 | B99: 74.290001 | C99: 75.129997 | D99: 67 | E99: 71.900002 | F99: 6785000 | G99: 57.510574 | H99: -0.0363222133
A100: 2007-10-01 | B100: 78.910004 | C100: 82.739998 | D100: 71.629997 | E100: 74.610001 | F100: 6902200 | G100: 59.678219 | H100: -0.04424488689
A101: 2007-09-04 | B101: 75.800003 | C101: 80.169998 | D101: 72.199997 | E101: 78.43 | F101: 5719300 | G101: 62.44091 | H101: 0.03510625077
A102: 2007-08-01 | B102: 78.610001 | C102: 82.129997 | D102: 70.589996 | E102: 75.769997 | F102: 6659300 | G102: 60.323189 | H102: -0.03845185863
A103: 2007-07-02 | B103: 78.599998 | C103: 87 | D103: 75.25 | E103: 78.800003 | F103: 9587500 | G103: 62.735485 | H103: 0.0105931444
A104: 2007-06-01 | B104: 78.849998 | C104: 82.889999 | D104: 77.050003 | E104: 78.300003 | F104: 5668100 | G104: 62.077885 | H104: -0.003563217537
A105: 2007-05-01 | B105: 72.599998 | C105: 78.889999 | D105: 71.779999 | E105: 78.580002 | F105: 5456600 | G105: 62.299873 | H105: 0.08207103469
A106: 2007-04-02 | B106: 67.040001 | C106: 74.099998 | D106: 65.860001 | E106: 72.620003 | F106: 6445800 | G106: 57.574661 | H106: 0.08810114375
A107: 2007-03-01 | B107: 63.900002 | C107: 67.720001 | D107: 62.34 | E107: 67.029999 | F107: 5605900 | G107: 52.912968 | H107: 0.04035383023
A108: 2007-02-01 | B108: 64.800003 | C108: 68.43 | D108: 63.009998 | E108: 64.43 | F108: 6901100 | G108: 50.86055 | H108: 0.005618909037
A109: 2007-01-03 | B109: 61.709999 | C109: 64.339996 | D109: 57.98 | E109: 64.07 | F109: 7802300 | G109: 50.576366 | H109: 0.04993379316
A110: 2006-12-01 | B110: 62.439999 | C110: 63.950001 | D110: 60.299999 | E110: 61.330002 | F110: 4643700 | G110: 48.171005 | H110: -0.01128480828
A111: 2006-11-01 | B111: 60.709999 | C111: 63.330002 | D111: 58.990002 | E111: 62.029999 | F111: 6931500 | G111: 48.72081 | H111: 0.02174266639
A112: 2006-10-02 | B112: 65.449997 | C112: 70.919998 | D112: 58.82 | E112: 60.709999 | F112: 10672600 | G112: 47.684032 | H112: -0.07333127157
A113: 2006-09-01 | B113: 66.669998 | C113: 70.400002 | D113: 62.09 | E113: 65.800003 | F113: 6788100 | G113: 51.457474 | H113: -0.008289285385
A114: 2006-08-01 | B114: 70.120003 | C114: 74.080002 | D114: 64.75 | E114: 66.349998 | F114: 5659700 | G114: 51.887585 | H114: -0.06377879353
A115: 2006-07-03 | B115: 74.919998 | C115: 75.43 | D115: 67.099998 | E115: 70.870003 | F115: 5184200 | G115: 55.422356 | H115: -0.04432572692
A116: 2006-06-01 | B116: 72.709999 | C116: 74.949997 | D116: 64.410004 | E116: 74.480003 | F116: 5863700 | G116: 57.992935 | H116: 0.02097338327
A117: 2006-05-01 | B117: 76.199997 | C117: 82.029999 | D117: 71.400002 | E117: 72.949997 | F117: 4977100 | G117: 56.801613 | H117: -0.03683658026
A118: 2006-04-03 | B118: 72.709999 | C118: 80 | D118: 72.559998 | E118: 75.739998 | F118: 5794900 | G118: 58.974014 | H118: 0.05807731426
A119: 2006-03-01 | B119: 73.129997 | C119: 77.209999 | D119: 70.339996 | E119: 71.809998 | F119: 4912000 | G119: 55.736961 | H119: -0.01737824478
A120: 2006-02-01 | B120: 68.099998 | C120: 73.989998 | D120: 66.93 | E120: 73.080002 | F120: 4309200 | G120: 56.722702 | H120: 0.0762886871
A121: 2006-01-03 | B121: 57.869999 | C121: 68.370003 | D121: 57.049999 | E121: 67.900002 | F121: 4766100 | G121: 52.702126

Sheet CVX
A1: Date | B1: Open | C1: High | D1: Low | E1: Close | F1: Volume | G1: Adj Close | H1: Returns
A2: 2015-12-01 | B2: 90.970001 | C2: 94 | D2: 84.25 | E2: 89.959999 | F2: 12080700 | G2: 89.959999 | H2: =(G2/G3)-1 -> -0.01489269601
A3: 2015-11-02 | B3: 90.610001 | C3: 98.639999 | D3: 87.790001 | E3: 91.32 | F3: 9354200 | G3: 91.32 | H3: =(G3/G4)-1 -> 0.01711389921
A4: 2015-10-01 | B4: 79.720001 | C4: 91.980003 | D4: 77.309998 | E4: 90.879997 | F4: 10738400 | G4: 89.783455 | H4: 0.1521298067
A5: 2015-09-01 | B5: 78.760002 | C5: 80.470001 | D5: 74.309998 | E5: 78.879997 | F5: 12395100 | G5: 77.928246 | H5: -0.02605259832
A6: 2015-08-03 | B6: 87.279999 | C6: 87.330002 | D6: 69.580002 | E6: 80.989998 | F6: 14511800 | G6: 80.012787 | H6: -0.07311843427
A7: 2015-07-01 | B7: 96.300003 | C7: 96.669998 | D7: 88.010002 | E7: 88.480003 | F7: 9256100 | G7: 86.324715 | H7: -0.08282368035
A8: 2015-06-01 | B8: 103.470001 | C8: 103.75 | D8: 96.220001 | E8: 96.470001 | F8: 7669800 | G8: 94.120087 | H8: -0.06339803298
A9: 2015-05-01 | B9: 110.279999 | C9: 110.800003 | D9: 102.379997 | E9: 103 | F9: 6977200 | G9: 100.49102 | H9: -0.06333189735
A10: 2015-04-01 | B10: 105.769997 | C10: 112.199997 | D10: 104.080002 | E10: 111.059998 | F10: 6509800 | G10: 107.285622 | H10: 0.05791576233
A11: 2015-03-02 | B11: 106.32 | C11: 107.690002 | D11: 100.660004 | E11: 104.980003 | F11: 8070800 | G11: 101.412254 | H11: -0.01593553204
A12: 2015-02-02 | B12: 103.980003 | C12: 112.93 | D12: 102.970001 | E12: 106.68 | F12: 8136200 | G12: 103.054482 | H12: 0.05069832766
A13: 2015-01-02 | B13: 111.629997 | C13: 113 | D13: 98.879997 | E13: 102.529999 | F13: 11514800 | G13: 98.081894 | H13: -0.08602250115
A14: 2014-12-01 | B14: 109.379997 | C14: 114.82 | D14: 100.150002 | E14: 112.18 | F14: 10337000 | G14: 107.313248 | H14: 0.03040319481
A15: 2014-11-03 | B15: 119.830002 | C15: 119.970001 | D15: 108.43 | E15: 108.870003 | F15: 7501400 | G15: 104.146851 | H15: -0.08395473982
A16: 2014-10-01 | B16: 118.800003 | C16: 120.169998 | D16: 106.650002 | E16: 119.949997 | F16: 9039300 | G16: 113.691818 | H16: 0.005279911997
A17: 2014-09-02 | B17: 129.199997 | C17: 129.380005 | D17: 118.660004 | E17: 119.32 | F17: 6597800 | G17: 113.094688 | H17: -0.07825410716
A18: 2014-08-01 | B18: 127.760002 | C18: 129.529999 | D18: 124.580002 | E18: 129.449997 | F18: 4517700 | G18: 122.696167 | H18: 0.01013810221
A19: 2014-07-01 | B19: 130.940002 | C19: 135.100006 | D19: 128.029999 | E19: 129.240005 | F19: 4986800 | G19: 121.464745 | H19: -0.01003444043
A20: 2014-06-02 | B20: 122.93 | C20: 133.570007 | D20: 121.720001 | E20: 130.550003 | F20: 6584700 | G20: 122.69593 | H20: 0.06319736026
A21: 2014-05-01 | B21: 125.660004 | C21: 126.779999 | D21: 121.650002 | E21: 122.790001 | F21: 5193000 | G21: 115.402779 | H21: -0.01339907722
A22: 2014-04-01 | B22: 119.150002 | C22: 127.269997 | D22: 116.5 | E22: 125.519997 | F22: 6500300 | G22: 116.97007 | H22: 0.05558825307
A23: 2014-03-03 | B23: 114.790001 | C23: 119.620003 | D23: 113.68 | E23: 118.910004 | F23: 6501700 | G23: 110.810318 | H23: 0.03104135511
A24: 2014-02-03 | B24: 112.349998 | C24: 116.739998 | D24: 109.269997 | E24: 115.330002 | F24: 7945300 | G24: 107.474174 | H24: 0.04232225539
A25: 2014-01-02 | B25: 124.459999 | C25: 125.32 | D25: 111.110001 | E25: 111.629997 | F25: 6993600 | G25: 103.110313 | H25: -0.106316639
A26: 2013-12-02 | B26: 122.870003 | C26: 125.650002 | D26: 118.25 | E26: 124.910004 | F26: 5698600 | G26: 115.376785 | H26: 0.02017320067
A27: 2013-11-01 | B27: 119.040001 | C27: 124.190002 | D27: 117 | E27: 122.440002 | F27: 6220000 | G27: 113.095291 | H27: 0.02924414596
A28: 2013-10-01 | B28: 121.269997 | C28: 122.010002 | D28: 114.440002 | E28: 119.959999 | F28: 6481400 | G28: 109.881889 | H28: -0.01267490496
A29: 2013-09-03 | B29: 121.339996 | C29: 126.43 | D29: 119.010002 | E29: 121.5 | F29: 5456300 | G29: 111.292511 | H29: 0.008884857832
A30: 2013-08-01 | B30: 126.489998 | C30: 126.660004 | D30: 117.220001 | E30: 120.43 | F30: 5399800 | G30: 110.312401 | H30: -0.03546845681
A31: 2013-07-01 | B31: 118.349998 | C31: 127.830002 | D31: 118 | E31: 125.889999 | F31: 5000300 | G31: 114.368889 | H31: 0.06379924733
A32: 2013-06-03 | B32: 122.349998 | C32: 124.120003 | D32: 116.019997 | E32: 118.339996 | F32: 6510200 | G32: 107.509842 | H32: -0.03592674352
A33: 2013-05-01 | B33: 121.25 | C33: 127.400002 | D33: 120.050003 | E33: 122.75 | F33: 7423600 | G33: 111.516258 | H33: 0.01417856846
A34: 2013-04-01 | B34: 118.989998 | C34: 122.010002 | D34: 114.120003 | E34: 122.010002 | F34: 6344300 | G34: 109.957222 | H34: 0.02684735777
A35: 2013-03-01 | B35: 116.730003 | C35: 121.559998 | D35: 115.949997 | E35: 118.82 | F35: 6140600 | G35: 107.082344 | H35: 0.01425522126
A36: 2013-02-01 | B36: 115.839996 | C36: 117.889999 | D36: 113.5 | E36: 117.150002 | F36: 5619200 | G36: 105.577316 | H36: 0.02528927964
A37: 2013-01-02 | B37: 110.269997 | C37: 117.5 | D37: 108.739998 | E37: 115.150002 | F37: 6057200 | G37: 102.973198 | H37: 0.06482341672
A38: 2012-12-03 | B38: 106 | C38: 111.110001 | D38: 103.940002 | E38: 108.139999 | F38: 6598600 | G38: 96.704483 | H38: 0.02318098995
A39: 2012-11-01 | B39: 110.019997 | C39: 111.690002 | D39: 100.660004 | E39: 105.690002 | F39: 6433000 | G39: 94.513565 | H39: -0.03300711983
A40: 2012-10-01 | B40: 116.919998 | C40: 118.379997 | D40: 109.029999 | E40: 110.239998 | F40: 6447800 | G40: 97.73967 | H40: -0.05422100395
A41: 2012-09-04 | B41: 112.029999 | C41: 118.529999 | D41: 110.589996 | E41: 116.559998 | F41: 6501100 | G41: 103.343033 | H41: 0.03922961577
A42: 2012-08-01 | B42: 109.720001 | C42: 113.870003 | D42: 108.470001 | E42: 112.160004 | F42: 5154500 | G42: 99.441963 | H42: 0.03173869148
A43: 2012-07-02 | B43: 105.589996 | C43: 110.82 | D43: 103.290001 | E43: 109.580002 | F43: 6870400 | G43: 96.382896 | H43: 0.03867297145
A44: 2012-06-01 | B44: 96.650002 | C44: 105.510002 | D44: 95.730003 | E44: 105.5 | F44: 7996300 | G44: 92.794266 | H44: 0.07313607095
A45: 2012-05-01 | B45: 106.739998 | C45: 108.790001 | D45: 96.68 | E45: 98.309998 | F45: 7797000 | G45: 86.470177 | H45: -0.06911805301
A46: 2012-04-02 | B46: 106.849998 | C46: 108.790001 | D46: 100.510002 | E46: 106.559998 | F46: 6223100 | G46: 92.890594 | H46: -0.006062881352
A47: 2012-03-01 | B47: 109.169998 | C47: 112.279999 | D47: 104.849998 | E47: 107.209999 | F47: 6959100 | G47: 93.457214 | H47: -0.0175036532
A48: 2012-02-01 | B48: 104.419998 | C48: 110.919998 | D48: 102.68 | E48: 109.120003 | F48: 7077600 | G48: 95.1222 | H48: 0.06629519081
A49: 2012-01-03 | B49: 108.739998 | C49: 110.989998 | D49: 102.080002 | E49: 103.120003 | F49: 8276400 | G49: 89.20813 | H49: -0.03082703856
A50: 2011-12-01 | B50: 102.82 | C50: 108.489998 | D50: 99.32 | E50: 106.400002 | F50: 7855300 | G50: 92.045624 | H50: 0.03481811929
A51: 2011-11-01 | B51: 101.470001 | C51: 109 | D51: 92.290001 | E51: 102.82 | F51: 11337500 | G51: 88.948601 | H51: -0.01349024235
A52: 2011-10-03 | B52: 91.93 | C52: 110.010002 | D52: 86.68 | E52: 105.050003 | F52: 10445300 | G52: 90.164948 | H52: 0.1345718791
A53: 2011-09-01 | B53: 99.010002 | C53: 100.580002 | D53: 88.559998 | E53: 92.589996 | F53: 11667600 | G53: 79.470459 | H53: -0.06323355082
A54: 2011-08-01 | B54: 106.080002 | C54: 106.129997 | D54: 87.300003 | E54: 98.839996 | F54: 14147800 | G54: 84.834869 | H54: -0.04218561578
A55: 2011-07-01 | B55: 102.709999 | C55: 109.75 | D55: 102.010002 | E55: 104.019997 | F55: 7607700 | G55: 88.571304 | H55: 0.01147416438
A56: 2011-06-01 | B56: 104.730003 | C56: 104.949997 | D56: 97 | E56: 102.839996 | F56: 8333700 | G56: 87.566551 | H56: -0.0197312245
A57: 2011-05-02 | B57: 109.480003 | C57: 109.580002 | D57: 99.610001 | E57: 104.910004 | F57: 8523200 | G57: 89.329124 | H57: -0.03397983566
A58: 2011-04-01 | B58: 108.290001 | C58: 109.940002 | D58: 103.040001 | E58: 109.440002 | F58: 6976800 | G58: 92.471283 | H58: 0.01814122582
A59: 2011-03-01 | B59: 104.07 | C59: 109.650002 | D59: 97.599998 | E59: 107.489998 | F59: 9352900 | G59: 90.823631 | H59: 0.03604817561
A60: 2011-02-01 | B60: 95.629997 | C60: 103.940002 | D60: 95.169998 | E60: 103.75 | F60: 10084800 | G60: 87.663521 | H60: 0.1011305177
A61: 2011-01-03 | B61: 91.660004 | C61: 95.190002 | D61: 90.120003 | E61: 94.93 | F61: 8085900 | G61: 79.612289 | H61: 0.04032878462
A62: 2010-12-01 | B62: 82.150002 | C62: 92.389999 | D62: 81.75 | E62: 91.25 | F62: 7413100 | G62: 76.526085 | H62: 0.1269605854
A63: 2010-11-01 | B63: 83.150002 | C63: 86.190002 | D63: 80.410004 | E63: 80.970001 | F63: 10682400 | G63: 67.904846 | H63: -0.01134543561
A64: 2010-10-01 | B64: 81.889999 | C64: 85.790001 | D64: 80.68 | E64: 82.599998 | F64: 9052300 | G64: 68.684097 | H64: 0.01912396386
A65: 2010-09-01 | B65: 75.360001 | C65: 82.190002 | D65: 75.239998 | E65: 81.050003 | F65: 8494900 | G65: 67.395233 | H65: 0.09408749822
A66: 2010-08-02 | B66: 77.620003 | C66: 79.480003 | D66: 72.57 | E66: 74.080002 | F66: 9417000 | G66: 61.599491 | H66: -0.01885849199
A67: 2010-07-01 | B67: 68.190002 | C67: 76.370003 | D67: 66.830002 | E67: 76.209999 | F67: 11908400 | G67: 62.783493 | H67: =(G67/G68)-1 -> 0.1230474162
A68: 2010-06-01 | B68: 73.559998 | C68: 77.25 | D68: 67.800003 | E68: 67.860001 | F68: 14033200 | G68: 55.904579 | H68: -0.08135914714
A69: 2010-05-03 | B69: 81.959999 | C69: 83.410004 | D69: 70.800003 | E69: 73.870003 | F69: 15636200 | G69: 60.855751 | H69: -0.08448245878
A70: 2010-04-01 | B70: 76.400002 | C70: 83.139999 | D70: 76.339996 | E70: 81.440002 | F70: 10524500 | G70: 66.47142 | H70: 0.07398119864
A71: 2010-03-01 | B71: 72.629997 | C71: 76.139999 | D71: 72.389999 | E71: 75.830002 | F71: 9783000 | G71: 61.892536 | H71: 0.04882435742
A72: 2010-02-01 | B72: 72.699997 | C72: 74.580002 | D72: 69.550003 | E72: 72.300003 | F72: 12545800 | G72: 59.011345 | H72: 0.01209042315
A73: 2010-01-04 | B73: 78.199997 | C73: 81.089996 | D73: 71.75 | E73: 72.120003 | F73: 11706100 | G73: 58.306396 | H73: -0.06325491083
A74: 2009-12-01 | B74: 79.099998 | C74: 79.419998 | D74: 76.190002 | E74: 76.989998 | F74: 7920400 | G74: 62.24361 | H74: -0.01345467391
A75: 2009-11-02 | B75: 76.860001 | C75: 79.82 | D75: 75.559998 | E75: 78.040001 | F75: 9415900 | G75: 63.092499 | H75: 0.02857152219
A76: 2009-10-01 | B76: 70.400002 | C76: 78.5 | D76: 67.870003 | E76: 76.540001 | F76: 10904000 | G76: 61.339924 | H76: 0.08675277903
A77: 2009-09-01 | B77: 69.690002 | C77: 73.370003 | D77: 67.959999 | E77: 70.43 | F77: 9960300 | G77: 56.44331 | H77: 0.007006042413
A78: 2009-08-03 | B78: 70.260002 | C78: 71.5 | D78: 66.059998 | E78: 69.940002 | F78: 9942800 | G78: 56.050617 | H78: 0.01684056293
A79: 2009-07-01 | B79: 66.93 | C79: 69.690002 | D79: 60.880001 | E79: 69.470001 | F79: 12100600 | G79: 55.122326 | H79: 0.04860381782
A80: 2009-06-01 | B80: 67.800003 | C80: 72.75 | D80: 65.220001 | E80: 66.25 | F80: 13279700 | G80: 52.567352 | H80: -0.006299662945
A81: 2009-05-01 | B81: 66.059998 | C81: 70.940002 | D81: 63.57 | E81: 66.669998 | F81: 13362300 | G81: 52.900608 | H81: 0.01837934125
A82: 2009-04-01 | B82: 66 | C82: 71.290001 | D82: 63.060001 | E82: 66.099998 | F82: 12946100 | G82: 51.945877 | H82: -0.01695418355
A83: 2009-03-02 | B83: 59.369999 | C83: 70.919998 | D83: 56.119999 | E83: 67.239998 | F83: 18487000 | G83: 52.841766 | H83: 0.1075605058
A84: 2009-02-02 | B84: 69.519997 | C84: 75.559998 | D84: 60.57 | E84: 60.709999 | F84: 17202300 | G84: 47.710049 | H84: -0.1311845041
A85: 2009-01-02 | B85: 74.230003 | C85: 78.449997 | D85: 68 | E85: 70.519997 | F85: 15854700 | G85: 54.913902 | H85: -0.04664063051
A86: 2008-12-01 | B86: 76.5 | C86: 81.919998 | D86: 68.220001 | E86: 73.970001 | F86: 18273800 | G86: 57.600422 | H86: -0.06378941137
A87: 2008-11-03 | B87: 73.440002 | C87: 80 | D87: 64.269997 | E87: 79.010002 | F87: 21736100 | G87: 61.52507 | H87: 0.06828701618
A88: 2008-10-01 | B88: 81.510002 | C88: 83.699997 | D88: 55.5 | E88: 74.599998 | F88: 25201600 | G88: 57.592266 | H88: -0.09553837479
A89: 2008-09-02 | B89: 84.489998 | C89: 89.75 | D89: 77.5 | E89: 82.480003 | F89: 18067900 | G89: 63.675743 | H89: -0.04448557639
A90: 2008-08-01 | B90: 83.980003 | C90: 89.099998 | D90: 80.849998 | E90: 86.32 | F90: 13047400 | G90: 66.640274 | H90: 0.02853534884
A91: 2008-07-01 | B91: 98.260002 | C91: 100 | D91: 81.459999 | E91: 84.559998 | F91: 16617500 | G91: 64.791428 | H91: -0.1469787249
A92: 2008-06-02 | B92: 98.82 | C92: 102.150002 | D92: 95.529999 | E92: 99.129997 | F92: 13577400 | G92: 75.955231 | H92: -0.0002017492092
A93: 2008-05-01 | B93: 94.860001 | C93: 104.629997 | D93: 93.43 | E93: 99.150002 | F93: 13822100 | G93: 75.970558 | H93: 0.03810638215
A94: 2008-04-01 | B94: 85.080002 | C94: 97.279999 | D94: 84.57 | E94: 96.150002 | F94: 11617800 | G94: 73.181862 | H94: 0.1264057704
A95: 2008-03-03 | B95: 86.379997 | C95: 89 | D95: 80.870003 | E95: 85.360001 | F95: 13321500 | G95: 64.96936 | H95: -0.01500113321
A96: 2008-02-01 | B96: 84.709999 | C96: 89.290001 | D96: 76.510002 | E96: 86.660004 | F96: 13851500 | G96: 65.958817 | H96: 0.04845737061
A97: 2008-01-02 | B97: 93.959999 | C97: 95.209999 | D97: 76.400002 | E97: 83.25 | F97: 13971600 | G97: 62.910347 | H97: -0.1080038974
A98: 2007-12-03 | B98: 87.099998 | C98: 95.199997 | D98: 86.739998 | E98: 93.330002 | F98: 8345700 | G98: 70.527603 | H98: 0.0633474474
A99: 2007-11-01 | B99: 90.050003 | C99: 91.480003 | D99: 81.919998 | E99: 87.769997 | F99: 11547500 | G99: 66.326019 | H99: -0.03442007702
A100: 2007-10-01 | B100: 93.300003 | C100: 94.529999 | D100: 86.720001 | E100: 91.510002 | F100: 9662100 | G100: 68.690346 | H100: -0.02212013196
A101: 2007-09-04 | B101: 87.190002 | C101: 95.5 | D101: 85.910004 | E101: 93.580002 | F101: 10184900 | G101: 70.244156 | H101: 0.06631729233
A102: 2007-08-01 | B102: 84.769997 | C102: 89.5 | D102: 78.25 | E102: 87.760002 | F102: 13054000 | G102: 65.875473 | H102: 0.03661416094
A103: 2007-07-02 | B103: 84.699997 | C103: 95 | D103: 83.599998 | E103: 85.260002 | F103: 11779800 | G103: 63.548691 | H103: 0.01210831378
A104: 2007-06-01 | B104: 81.760002 | C104: 85.190002 | D104: 79.120003 | E104: 84.239998 | F104: 9799600 | G104: 62.788429 | H104: 0.03374646799
A105: 2007-05-01 | B105: 77.970001 | C105: 83.559998 | D105: 77.419998 | E105: 81.489998 | F105: 9812500 | G105: 60.738712 | H105: 0.05514458167
A106: 2007-04-02 | B106: 74.050003 | C106: 79.07 | D106: 74.050003 | E106: 77.790001 | F106: 9633600 | G106: 57.56435 | H106: 0.05178471601
A107: 2007-03-01 | B107: 67.32 | C107: 74.980003 | D107: 64.989998 | E107: 73.959999 | F107: 11138600 | G107: 54.730164 | H107: 0.07939294949
A108: 2007-02-01 | B108: 73.25 | C108: 74.959999 | D108: 68.019997 | E108: 68.519997 | F108: 10407300 | G108: 50.704578 | H108: -0.0530634032
A109: 2007-01-03 | B109: 72.769997 | C109: 73.440002 | D109: 68.480003 | E109: 72.879997 | F109: 10124500 | G109: 53.545906 | H109: -0.008839898986
A110: 2006-12-01 | B110: 72.330002 | C110: 76.199997 | D110: 71.830002 | E110: 73.529999 | F110: 7901000 | G110: 54.023468 | H110: 0.0167311358
A111: 2006-11-01 | B111: 67.199997 | C111: 72.959999 | D111: 66.510002 | E111: 72.32 | F111: 9400400 | G111: 53.134468 | H111: 0.08420116886
A112: 2006-10-02 | B112: 64.900002 | C112: 68.5 | D112: 62.220001 | E112: 67.199997 | F112: 9525600 | G112: 49.007942 | H112: 0.03607764993
A113: 2006-09-01 | B113: 64.720001 | C113: 67.150002 | D113: 60.720001 | E113: 64.860001 | F113: 10171300 | G113: 47.301418 | H113: 0.007142877522
A114: 2006-08-01 | B114: 65.720001 | C114: 68.239998 | D114: 64.150002 | E114: 64.400002 | F114: 8210000 | G114: 46.965946 | H114: -0.01330501916
A115: 2006-07-03 | B115: 62.27 | C115: 68.470001 | D115: 62.259998 | E115: 65.779999 | F115: 9808400 | G115: 47.599255 | H115: 0.05994194678
A116: 2006-06-01 | B116: 59.669998 | C116: 62.98 | D116: 55.41 | E116: 62.060001 | F116: 10405500 | G116: 44.907417 | H116: 0.03796620792
A117: 2006-05-01 | B117: 61.619999 | C117: 63.650002 | D117: 56.630001 | E117: 59.790001 | F117: 10617600 | G117: 43.264816 | H117: -0.01173560113
A118: 2006-04-03 | B118: 58.349998 | C118: 61.939999 | D118: 58 | E118: 61.02 | F118: 8478900 | G118: 43.778584 | H118: 0.05261347759
A119: 2006-03-01 | B119: 56.720001 | C119: 59.290001 | D119: 53.759998 | E119: 57.970001 | F119: 9380100 | G119: 41.59037 | H119: 0.02638104029
A120: 2006-02-01 | B120: 59.380001 | C120: 59.799999 | D120: 55.41 | E120: 56.48 | F120: 10386400 | G120: 40.521374 | H120: -0.04121790348
A121: 2006-01-03 | B121: 57.25 | C121: 62.720001 | D121: 57.060001 | E121: 59.380001 | F121: 10725800 | G121: 42.263382

Sheet CSCO
A1: Date | B1: Open | C1: High | D1: Low | E1: Close | F1: Volume | G1: Adj Close | H1: Returns
A2: 2016-01-14 | B2: 24.690001 | C2: 24.9 | D2: 24.459999 | E2: 24.66 | F2: 41494600 | G2: 24.66 | H2: =(G2/G3)-1 -> 0.00243902439
A3: 2016-01-13 | B3: 25.42 | C3: 25.52 | D3: 24.57 | E3: 24.6 | F3: 33431600 | G3: 24.6 | H3: =(G3/G4)-1 -> -0.02958579882
A4: 2016-01-12 | B4: 25.51 | C4: 25.57 | D4: 25.030001 | E4: 25.35 | F4: 30122400 | G4: 25.35 | H4: 0.00316580926
A5: 2016-01-11 | B5: 24.93 | C5: 25.35 | D5: 24.93 | E5: 25.27 | F5: 32346900 | G5: 25.27 | H5: 0.01977397015
A6: 2016-01-08 | B6: 25.549999 | C6: 25.629999 | D6: 24.719999 | E6: 24.780001 | F6: 28609700 | G6: 24.780001 | H6: -0.02479334908
A7: 2016-01-07 | B7: 25.49 | C7: 25.74 | D7: 25.120001 | E7: 25.41 | F7: 43235400 | G7: 25.41 | H7: -0.02306805075
A8: 2016-01-06 | B8: 26.08 | C8: 26.139999 | D8: 25.82 | E8: 26.01 | F8: 30799800 | G8: 26.01 | H8: -0.01065047506
A9: 2016-01-05 | B9: 26.540001 | C9: 26.66 | D9: 26.18 | E9: 26.290001 | F9: 22024900 | G9: 26.290001 | H9: -0.00454369557
A10: 2016-01-04 | B10: 26.389999 | C10: 26.42 | D10: 25.879999 | E10: 26.41 | F10: 35827100 | G10: 26.41 | H10: -0.02003706939
A11: 2015-12-31 | B11: 27.379999 | C11: 27.450001 | D11: 27.139999 | E11: 27.16 | F11: 17041500 | G11: 26.949999 | H11: -0.01343991404
A12: 2015-12-30 | B12: 27.66 | C12: 27.77 | D12: 27.52 | E12: 27.530001 | F12: 10620300 | G12: 27.317139 | H12: -0.008642444041
A13: 2015-12-29 | B13: 27.440001 | C13: 27.82 | D13: 27.4 | E13: 27.77 | F13: 16319600 | G13: 27.555284 | H13: 0.01684371054
A14: 2015-12-28 | B14: 27.299999 | C14: 27.370001 | D14: 27.129999 | E14: 27.309999 | F14: 14204900 | G14: 27.098839 | H14: -0.002556619483
A15: 2015-12-24 | B15: 27.41 | C15: 27.549999 | D15: 27.370001 | E15: 27.379999 | F15: 8202400 | G15: 27.168298 | H15: -0.0007299505255
A16: 2015-12-23 | B16: 27.040001 | C16: 27.41 | D16: 27 | E16: 27.4 | F16: 18803700 | G16: 27.188144 | H16: 0.01896617008
A17: 2015-12-22 | B17: 26.85 | C17: 26.9 | D17: 26.559999 | E17: 26.889999 | F17: 18966300 | G17: 26.682087 | H17: 0.009384384214
A18: 2015-12-21 | B18: 26.58 | C18: 26.65 | D18: 26.41 | E18: 26.639999 | F18: 20242900 | G18: 26.43402 | H18: 0.01408450056
A19: 2015-12-18 | B19: 26.6 | C19: 26.82 | D19: 26.26 | E19: 26.27 | F19: 36732700 | G19: 26.066881 | H19: -0.01684129471
A20: 2015-12-17 | B20: 27.290001 | C20: 27.309999 | D20: 26.700001 | E20: 26.719999 | F20: 24812200 | G20: 26.513401 | H20: -0.01908959735
A21: 2015-12-16 | B21: 27 | C21: 27.290001 | D21: 26.68 | E21: 27.24 | F21: 22731500 | G21: 27.029381 | H21: 0.01452511949
A22: 2015-12-15 | B22: 26.719999 | C22: 27.110001 | D22: 26.610001 | E22: 26.85 | F22: 29911700 | G22: 26.642397 | H22: 0.01359005341
A23: 2015-12-14 | B23: 26.299999 | C23: 26.52 | D23: 25.959999 | E23: 26.49 | F23: 32642100 | G23: 26.28518 | H23: 0.01261470041
A24: 2015-12-11 | B24: 26.49 | C24: 26.49 | D24: 26.129999 | E24: 26.16 | F24: 34295700 | G24: 25.957731 | H24: -0.02278675735
A25: 2015-12-10 | B25: 26.74 | C25: 27.040001 | D25: 26.66 | E25: 26.77 | F25: 23382400 | G25: 26.563016 | H25: 0.00149649418
A26: 2015-12-09 | B26: 26.959999 | C26: 27.35 | D26: 26.66 | E26: 26.73 | F26: 24127400 | G26: 26.523324 | H26: -0.01546962913
A27: 2015-12-08 | B27: 27.17 | C27: 27.290001 | D27: 27.02 | E27: 27.15 | F27: 18635700 | G27: 26.940077 | H27: -0.01236812916
A28: 2015-12-07 | B28: 27.559999 | C28: 27.559999 | D28: 27.26 | E28: 27.49 | F28: 15350200 | G28: 27.277448 | H28: 0.0003639127497
A29: 2015-12-04 | B29: 26.950001 | C29: 27.549999 | D29: 26.950001 | E29: 27.48 | F29: 28143700 | G29: 27.267525 | H29: 0.01966600832
A30: 2015-12-03 | B30: 27.629999 | C30: 27.690001 | D30: 26.82 | E30: 26.950001 | F30: 25783800 | G30: 26.741624 | H30: -0.0178571304
A31: 2015-12-02 | B31: 27.49 | C31: 27.9 | D31: 27.370001 | E31: 27.440001 | F31: 29178200 | G31: 27.227835 | H31: -0.004715239475
A32: 2015-12-01 | B32: 27.200001 | C32: 27.65 | D32: 27.200001 | E32: 27.57 | F32: 31406300 | G32: 27.356829 | H32: 0.01174309072
A33: 2015-11-30 | B33: 27.34 | C33: 27.48 | D33: 27.200001 | E33: 27.25 | F33: 30736700 | G33: 27.039304 | H33: -0.002562197418
A34: 2015-11-27 | B34: 27.25 | C34: 27.48 | D34: 27.24 | E34: 27.32 | F34: 9532300 | G34: 27.108762 | H34: 0.00293684121
A35: 2015-11-25 | B35: 27.32 | C35: 27.389999 | D35: 27 | E35: 27.24 | F35: 22472500 | G35: 27.029381 | H35: -0.001100145422
A36: 2015-11-24 | B36: 27.25 | C36: 27.440001 | D36: 27 | E36: 27.27 | F36: 32859200 | G36: 27.05915 | H36: -0.005832997035
A37: 2015-11-23 | B37: 27.65 | C37: 27.84 | D37: 27.34 | E37: 27.43 | F37: 24684600 | G37: 27.217912 | H37: -0.005077964263
A38: 2015-11-20 | B38: 27.59 | C38: 27.780001 | D38: 27.459999 | E38: 27.57 | F38: 26502800 | G38: 27.356829 | H38: 0.007307211326
A39: 2015-11-19 | B39: 27.1 | C39: 27.65 | D39: 27.049999 | E39: 27.370001 | F39: 27417400 | G39: 27.158377 | H39: 0.009218288455
A40: 2015-11-18 | B40: 27 | C40: 27.16 | D40: 26.73 | E40: 27.120001 | F40: 27015700 | G40: 26.91031 | H40: 0.01156292189
A41: 2015-11-17 | B41: 26.799999 | C41: 27.27 | D41: 26.68 | E41: 26.809999 | F41: 30490200 | G41: 26.602705 | H41: 0.0007464960224
A42: 2015-11-16 | B42: 26.07 | C42: 27 | D42: 26.059999 | E42: 26.790001 | F42: 44949600 | G42: 26.582861 | H42: 0.02212901863
A43: 2015-11-13 | B43: 26.290001 | C43: 26.68 | D43: 25.82 | E43: 26.209999 | F43: 94556200 | G43: 26.007344 | H43: -0.05821059338
A44: 2015-11-12 | B44: 27.74 | C44: 28.07 | D44: 27.719999 | E44: 27.83 | F44: 38135900 | G44: 27.614819 | H44: 0.0003594652195
A45: 2015-11-11 | B45: 28.1 | C45: 28.1 | D45: 27.75 | E45: 27.82 | F45: 32599300 | G45: 27.604896 | H45: -0.005718374513
A46: 2015-11-10 | B46: 28.18 | C46: 28.219999 | D46: 27.9 | E46: 27.98 | F46: 26701800 | G46: 27.763659 | H46: -0.007097246192
A47: 2015-11-09 | B47: 28.35 | C47: 28.49 | D47: 28 | E47: 28.18 | F47: 25865900 | G47: 27.962113 | H47: -0.009490356119
A48: 2015-11-06 | B48: 28.309999 | C48: 28.549999 | D48: 28.16 | E48: 28.450001 | F48: 26107600 | G48: 28.230026 | H48: 0.000703504905
A49: 2015-11-05 | B49: 28.5 | C49: 28.610001 | D49: 28.290001 | E49: 28.43 | F49: 21988600 | G49: 28.21018 | H49: -0.001404962218
A50: 2015-11-04 | B50: 28.790001 | C50: 28.82 | D50: 28.370001 | E50: 28.469999 | F50: 28591800 | G50: 28.24987 | H50: -0.004893445789
A51: 2015-11-03 | B51: 28.610001 | C51: 28.709999 | D51: 28.49 | E51: 28.610001 | F51: 30555300 | G51: 28.388789 | H51: -0.005561352511
A52: 2015-11-02 | B52: 28.870001 | C52: 28.870001 | D52: 28.51 | E52: 28.77 | F52: 28912600 | G52: 28.547552 | H52: -0.002772948118
A53: 2015-10-30 | B53: 29 | C53: 29.25 | D53: 28.85 | E53: 28.85 | F53: 22334100 | G53: 28.626933 | H53: -0.009951931008
A54: 2015-10-29 | B54: 29.15 | C54: 29.209999 | D54: 28.93 | E54: 29.139999 | F54: 16717800 | G54: 28.91469 | H54: -0.007493223318
A55: 2015-10-28 | B55: 29.290001 | C55: 29.450001 | D55: 29.040001 | E55: 29.360001 | F55: 23741400 | G55: 29.13299 | H55: 0.01067132321
A56: 2015-10-27 | B56: 28.719999 | C56: 29.059999 | D56: 28.58 | E56: 29.049999 | F56: 19480600 | G56: 28.825385 | H56: 0.003454168605
A57: 2015-10-26 | B57: 29.32 | C57: 29.49 | D57: 28.879999 | E57: 28.950001 | F57: 20354800 | G57: 28.72616 | H57: -0.01362861267
A58: 2015-10-23 | B58: 29.02 | C58: 29.379999 | D58: 28.93 | E58: 29.35 | F58: 26076900 | G58: 29.123067 | H58: 0.01172009181
A59: 2015-10-22 | B59: 28.559999 | C59: 29.209999 | D59: 28.5 | E59: 29.01 | F59: 32162500 | G59: 28.785696 | H59: 0.02581330756
A60: 2015-10-21 | B60: 28.6 | C60: 28.82 | D60: 28.219999 | E60: 28.280001 | F60: 19008900 | G60: 28.06134 | H60: -0.007719299387
A61: 2015-10-20 | B61: 28.200001 | C61: 28.52 | D61: 28.15 | E61: 28.5 | F61: 20335800 | G61: 28.279639 | H61: 0.008849557206
A62: 2015-10-19 | B62: 28.120001 | C62: 28.290001 | D62: 27.940001 | E62: 28.25 | F62: 20778100 | G62: 28.031572 | H62: 0
A63: 2015-10-16 | B63: 28.34 | C63: 28.35 | D63: 28 | E63: 28.25 | F63: 19912500 | G63: 28.031572 | H63: 0.003552404927
A64: 2015-10-15 | B64: 28.1 | C64: 28.190001 | D64: 27.870001 | E64: 28.15 | F64: 18996900 | G64: 27.932345 | H64: 0.01186198999
A65: 2015-10-14 | B65: 27.75 | C65: 27.9 | D65: 27.59 | E65: 27.82 | F65: 20144000 | G65: 27.604896 | H65: -0.001077233974
A66: 2015-10-13 | B66: 27.75 | C66: 27.950001 | D66: 27.74 | E66: 27.85 | F66: 15107200 | G66: 27.634665 | H66: -0.003934138397
A67: 2015-10-12 | B67: 27.93 | C67: 28.1 | D67: 27.76 | E67: 27.959999 | F67: 14486000 | G67: 27.743813 | H67: =(G67/G68)-1 -> 0.001791458139
A68: 2015-10-09 | B68: 28.01 | C68: 28.15 | D68: 27.82 | E68: 27.91 | F68: 22125800 | G68: 27.6942 | H68: 0
A69: 2015-10-08 | B69: 27.51 | C69: 28.02 | D69: 27.43 | E69: 27.91 | F69: 22500200 | G69: 27.6942 | H69: 0.01343496055
A70: 2015-10-07 | B70: 27.52 | C70: 27.950001 | D70: 27 | E70: 27.540001 | F70: 29749700 | G70: 27.327062 | H70: 0.01138453628
A71: 2015-10-06 | B71: 27.030001 | C71: 27.469999 | D71: 26.98 | E71: 27.23 | F71: 34609900 | G71: 27.019458 | H71: 0.01415266802
A72: 2015-10-05 | B72: 26.040001 | C72: 26.98 | D72: 25.969999 | E72: 26.85 | F72: 30217900 | G72: 26.642397 | H72: 0.04231365772
A73: 2015-10-02 | B73: 25.4 | C73: 25.790001 | D73: 25.34 | E73: 25.76 | F73: 34910700 | G73: 25.560825 | H73: 0.001165991724
A74: 2015-10-01 | B74: 26.049999 | C74: 26.16 | D74: 25.549999 | E74: 25.73 | F74: 26933200 | G74: 25.531056 | H74: -0.01190475868
A75: 2015-09-30 | B75: 26 | C75: 26.379999 | D75: 25.879999 | E75: 26.25 | F75: 32093700 | G75: 25.838659 | H75: 0.02379094277
A76: 2015-09-29 | B76: 25.639999 | C76: 25.93 | D76: 25.559999 | E76: 25.639999 | F76: 27095600 | G76: 25.238218 | H76: -0.0007794391498
A77: 2015-09-28 | B77: 25.83 | C77: 26.02 | D77: 25.59 | E77: 25.66 | F77: 27211200 | G77: 25.257905 | H77: -0.01421436574
A78: 2015-09-25 | B78: 25.809999 | C78: 26.299999 | D78: 25.799999 | E78: 26.030001 | F78: 37618300 | G78: 25.622107 | H78: 0.02439986179
A79: 2015-09-24 | B79: 25.09 | C79: 25.5 | D79: 24.92 | E79: 25.41 | F79: 35598000 | G79: 25.011822 | H79: 0.005142369391
A80: 2015-09-23 | B80: 25.219999 | C80: 25.309999 | D80: 25.01 | E80: 25.280001 | F80: 18804200 | G80: 24.88386 | H80: 0.005568847687
A81: 2015-09-22 | B81: 25.059999 | C81: 25.209999 | D81: 24.969999 | E81: 25.139999 | F81: 21305200 | G81: 24.746053 | H81: -0.01566174827
A82: 2015-09-21 | B82: 25.450001 | C82: 25.82 | D82: 25.35 | E82: 25.540001 | F82: 21945600 | G82: 25.139786 | H82: 0
A83: 2015-09-18 | B83: 25.57 | C83: 25.74 | D83: 25.25 | E83: 25.540001 | F83: 40020100 | G83: 25.139786 | H83: -0.01313747387
A84: 2015-09-17 | B84: 25.959999 | C84: 26.280001 | D84: 25.809999 | E84: 25.879999 | F84: 25409600 | G84: 25.474456 | H84: -0.007288122119
A85: 2015-09-16 | B85: 26.07 | C85: 26.1 | D85: 25.85 | E85: 26.07 | F85: 21245300 | G85: 25.66148 | H85: 0.003464215425
A86: 2015-09-15 | B86: 25.559999 | C86: 26.08 | D86: 25.559999 | E86: 25.98 | F86: 20479400 | G86: 25.57289 | H86: 0.01089488715
A87: 2015-09-14 | B87: 26.15 | C87: 26.17 | D87: 25.66 | E87: 25.700001 | F87: 18636000 | G87: 25.297279 | H87: -0.01229820995
A88: 2015-09-11 | B88: 26 | C88: 26.18 | D88: 25.809999 | E88: 26.02 | F88: 21529100 | G88: 25.612264 | H88: -0.009139368729
A89: 2015-09-10 | B89: 25.9 | C89: 26.49 | D89: 25.85 | E89: 26.26 | F89: 26424600 | G89: 25.848503 | H89: 0.01233613793
A90: 2015-09-09 | B90: 26.5 | C90: 26.73 | D90: 25.879999 | E90: 25.940001 | F90: 25032300 | G90: 25.533518 | H90: -0.01368814551
A91: 2015-09-08 | B91: 25.98 | C91: 26.33 | D91: 25.91 | E91: 26.299999 | F91: 20932900 | G91: 25.887875 | H91: 0.03056421075
A92: 2015-09-04 | B92: 25.42 | C92: 25.65 | D92: 25.35 | E92: 25.52 | F92: 26903500 | G92: 25.120099 | H92: -0.01467176206
A93: 2015-09-03 | B93: 25.879999 | C93: 26.15 | D93: 25.73 | E93: 25.9 | F93: 27958400 | G93: 25.494143 | H93: 0.009746570242
A94: 2015-09-02 | B94: 25.59 | C94: 25.66 | D94: 25.08 | E94: 25.65 | F94: 27925300 | G94: 25.248061 | H94: 0.02109869193
A95: 2015-09-01 | B95: 25.219999 | C95: 25.620001 | D95: 25.01 | E95: 25.120001 | F95: 32705400 | G95: 24.726367 | H95: -0.02936624044
A96: 2015-08-31 | B96: 25.940001 | C96: 26.110001 | D96: 25.74 | E96: 25.879999 | F96: 32388300 | G96: 25.474456 | H96: -0.00461543986
A97: 2015-08-28 | B97: 25.91 | C97: 26.049999 | D97: 25.82 | E97: 26 | F97: 26918900 | G97: 25.592577 | H97: -0.006495984672
A98: 2015-08-27 | B98: 26 | C98: 26.190001 | D98: 25.610001 | E98: 26.17 | F98: 36504700 | G98: 25.759913 | H98: 0.019080971
A99: 2015-08-26 | B99: 25.280001 | C99: 25.74 | D99: 24.709999 | E99: 25.68 | F99: 54783200 | G99: 25.277592 | H99: 0.04305444017
A100: 2015-08-25 | B100: 25.940001 | C100: 25.99 | D100: 24.6 | E100: 24.620001 | F100: 40610100 | G100: 24.234202 | H100: -0.02262802543
A101: 2015-08-24 | B101: 24.889999 | C101: 26.08 | D101: 23.030001 | E101: 25.190001 | F101: 61667000 | G101: 24.79527 | H101: -0.04835658402
A102: 2015-08-21 | B102: 26.879999 | C102: 27.34 | D102: 26.469999 | E102: 26.469999 | F102: 48502400 | G102: 26.055211 | H102: -0.02107995478
A103: 2015-08-20 | B103: 27.559999 | C103: 27.75 | D103: 27.040001 | E103: 27.040001 | F103: 37889400 | G103: 26.616281 | H103: -0.02733806771
A104: 2015-08-19 | B104: 28.1 | C104: 28.24 | D104: 27.719999 | E104: 27.799999 | F104: 30023900 | G104: 27.36437 | H104: -0.01592922353
A105: 2015-08-18 | B105: 28.709999 | C105: 28.719999 | D105: 28.18 | E105: 28.25 | F105: 32210400 | G105: 27.807319 | H105: -0.02011792138
A106: 2015-08-17 | B106: 28.65 | C106: 28.969999 | D106: 28.51 | E106: 28.83 | F106: 21264000 | G106: 28.37823 | H106: -0.006889460428
A107: 2015-08-14 | B107: 28.780001 | C107: 29.049999 | D107: 28.75 | E107: 29.030001 | F107: 24890800 | G107: 28.575097 | H107: 0.0114982626
A108: 2015-08-13 | B108: 28.780001 | C108: 29.209999 | D108: 28.690001 | E108: 28.700001 | F108: 61154000 | G108: 28.250268 | H108: 0.02867387571
A109: 2015-08-12 | B109: 27.799999 | C109: 28.1 | D109: 27.41 | E109: 27.9 | F109: 41085000 | G109: 27.462803 | H109: -0.00428270641
A110: 2015-08-11 | B110: 28.24 | C110: 28.389999 | D110: 27.85 | E110: 28.02 | F110: 25391900 | G110: 27.580924 | H110: -0.01993700446
A111: 2015-08-10 | B111: 28.48 | C111: 28.700001 | D111: 28.27 | E111: 28.59 | F111: 23740000 | G111: 28.141991 | H111: 0.01563054538
A112: 2015-08-07 | B112: 28.17 | C112: 28.23 | D112: 27.9 | E112: 28.15 | F112: 16039400 | G112: 27.708886 | H112: -0.002126876872
A113: 2015-08-06 | B113: 28.370001 | C113: 28.67 | D113: 28 | E113: 28.209999 | F113: 20143800 | G113: 27.767945 | H113: -0.002122434587
A114: 2015-08-05 | B114: 28.110001 | C114: 28.6 | D114: 28.1 | E114: 28.27 | F114: 19236200 | G114: 27.827006 | H114: 0.008562248378
A115: 2015-08-04 | B115: 28.219999 | C115: 28.459999 | D115: 27.889999 | E115: 28.030001 | F115: 18578100 | G115: 27.590767 | H115: -0.01163611194
A116: 2015-08-03 | B116: 28.41 | C116: 28.59 | D116: 28.110001 | E116: 28.360001 | F116: 17450900 | G116: 27.915596 | H116: -0.002111160978
A117: 2015-07-31 | B117: 28.389999 | C117: 28.559999 | D117: 28.16 | E117: 28.42 | F117: 20376000 | G117: 27.974655 | H117: 0.004240297654
A118: 2015-07-30 | B118: 28.219999 | C118: 28.459999 | D118: 28.200001 | E118: 28.299999 | F118: 17458100 | G118: 27.856535 | H118: -0.003521127264
A119: 2015-07-29 | B119: 28.200001 | C119: 28.52 | D119: 28.02 | E119: 28.4 | F119: 21419900 | G119: 27.954968 | H119: 0.00673521213
A120: 2015-07-28 | B120: 28.34 | C120: 28.35 | D120: 27.85 | E120: 28.209999 | F120: 23573200 | G120: 27.767945 | H120: 0
A121: 2015-07-27 | B121: 28.309999 | C121: 28.559999 | D121: 28.190001 | E121: 28.209999 | F121: 30914400 | G121: 27.767945 | H121: -0.006690152534
A122: 2015-07-24 | B122: 28.450001 | C122: 28.77 | D122: 28.379999 | E122: 28.4 | F122: 39471700 | G122: 27.954968 | H122: 0.01392357499
A123: 2015-07-23 | B123: 27.700001 | C123: 28.25 | D123: 27.58 | E123: 28.01 | F123: 34103200 | G123: 27.57108 | H123: 0.01743551199
A124: 2015-07-22 | B124: 27.83 | C124: 28.059999 | D124: 27.440001 | E124: 27.530001 | F124: 26889200 | G124: 27.098602 | H124: -0.01113504782
A125: 2015-07-21 | B125: 27.959999 | C125: 28.25 | D125: 27.790001 | E125: 27.84 | F125: 23874000 | G125: 27.403744 | H125: -0.006778463245
A126: 2015-07-20 | B126: 28.129999 | C126: 28.16 | D126: 27.879999 | E126: 28.030001 | F126: 19477000 | G126: 27.590767 | H126: -0.005322906687
A127: 2015-07-17 | B127: 28.27 | C127: 28.309999 | D127: 27.969999 | E127: 28.18 | F127: 24248900 | G127: 27.738416 | H127: -0.004943496289
A128: 2015-07-16 | B128: 28.24 | C128: 28.42 | D128: 28.209999 | E128: 28.32 | F128: 21058100 | G128: 27.876222 | H128: 0.007470604652
A129: 2015-07-15 | B129: 27.860001 | C129: 28.24 | D129: 27.809999 | E129: 28.110001 | F129: 23378400 | G129: 27.669514 | H129: 0.002854106955
A130: 2015-07-14 | B130: 27.870001 | C130: 28.040001 | D130: 27.700001 | E130: 28.030001 | F130: 20932800 | G130: 27.590767 | H130: 0.008636193613
A131: 2015-07-13 | B131: 27.49 | C131: 27.799999 | D131: 27.42 | E131: 27.790001 | F131: 20623100 | G131: 27.354528 | H131: =(G131/G132)-1 -> 0.01869500516
A132: 2015-07-10 | B132: 27.27 | C132: 27.360001 | D132: 27.040001 | E132: 27.280001 | F132: 16079300 | G132: 26.85252 | H132: 0.01374957118
A133: 2015-07-09 | B133: 27.379999 | C133: 27.450001 | D133: 26.9 | E133: 26.91 | F133: 20129700 | G133: 26.488317 | H133: -0.00296404612
A134: 2015-07-08 | B134: 27.08 | C134: 27.16 | D134: 26.84 | E134: 26.99 | F134: 27863400 | G134: 26.567063 | H134: -0.01352342664
A135: 2015-07-07 | B135: 27.219999 | C135: 27.450001 | D135: 26.889999 | E135: 27.360001 | F135: 25436700 | G135: 26.931266 | H135: 0.005143307551
A136: 2015-07-06 | B136: 27 | C136: 27.26 | D136: 26.889999 | E136: 27.219999 | F136: 22858200 | G136: 26.793459 | H136: -0.004024907538
A137: 2015-07-02 | B137: 27.370001 | C137: 27.57 | D137: 27.290001 | E137: 27.33 | F137: 15635500 | G137: 26.901736 | H137: -0.0007312763519
A138: 2015-07-01 | B138: 27.42 | C138: 27.5 | D138: 27.07 | E138: 27.35 | F138: 24461300 | G138: 26.921423 | H138: 0.003669799949
A139: 2015-06-30 | B139: 27.83 | C139: 27.83 | D139: 27.33 | E139: 27.459999 | F139: 31236800 | G139: 26.822988 | H139: -0.002904933301
A140: 2015-06-29 | B140: 27.99 | C140: 28.110001 | D140: 27.5 | E140: 27.540001 | F140: 31838300 | G140: 26.901134 | H140: -0.02616691418
A141: 2015-06-26 | B141: 28.49 | C141: 28.49 | D141: 28.01 | E141: 28.280001 | F141: 28087800 | G141: 27.623968 | H141: -0.004225306469
A142: 2015-06-25 | B142: 28.559999 | C142: 28.65 | D142: 28.379999 | E142: 28.4 | F142: 14606100 | G142: 27.741183 | H142: -0.003858322376
A143: 2015-06-24 | B143: 28.790001 | C143: 28.85 | D143: 28.49 | E143: 28.51 | F143: 20978800 | G143: 27.848632 | H143: -0.009725612246
A144: 2015-06-23 | B144: 29 | C144: 29.040001 | D144: 28.620001 | E144: 28.790001 | F144: 21041300 | G144: 28.122137 | H144: -0.005183125608
A145: 2015-06-22 | B145: 29.1 | C145: 29.219999 | D145: 28.82 | E145: 28.940001 | F145: 20160000 | G145: 28.268657 | H145: -0.003100234023
A146: 2015-06-19 | B146: 29.24 | C146: 29.32 | D146: 28.940001 | E146: 29.030001 | F146: 31970100 | G146: 28.356569 | H146: -0.006162224324
A147: 2015-06-18 | B147: 28.85 | C147: 29.35 | D147: 28.82 | E147: 29.209999 | F147: 24156100 | G147: 28.532392 | H147: 0.009678476744
A148: 2015-06-17 | B148: 28.84 | C148: 29.040001 | D148: 28.66 | E148: 28.93 | F148: 20959000 | G148: 28.258889 | H148: 0.007662889351
A149: 2015-06-16 | B149: 28.35 | C149: 28.790001 | D149: 28.280001 | E149: 28.709999 | F149: 16920300 | G149: 28.043991 | H149: 0.008075824408
A150: 2015-06-15 | B150: 28.23 | C150: 28.52 | D150: 28.110001 | E150: 28.48 | F150: 25722100 | G150: 27.819327 | H150: -0.002102379383
A151: 2015-06-12 | B151: 28.66 | C151: 28.67 | D151: 28.309999 | E151: 28.540001 | F151: 21919500 | G151: 27.877937 | H151: -0.01108798552
A152: 2015-06-11 | B152: 28.75 | C152: 29.219999 | D152: 28.75 | E152: 28.860001 | F152: 24387100 | G152: 28.190513 | H152: 0.006978386829
A153: 2015-06-10 | B153: 28.469999 | C153: 28.91 | D153: 28.27 | E153: 28.66 | F153: 26223300 | G153: 27.995152 | H153: 0.01487252353
A154: 2015-06-09 | B154: 28.27 | C154: 28.42 | D154: 28.01 | E154: 28.24 | F154: 15527500 | G154: 27.584895 | H154: -0.00141446008
A155: 2015-06-08 | B155: 28.67 | C155: 28.700001 | D155: 28.23 | E155: 28.280001 | F155: 19011700 | G155: 27.623968 | H155: -0.01049682688
A156: 2015-06-05 | B156: 28.549999 | C156: 28.709999 | D156: 28.49 | E156: 28.58 | F156: 25357900 | G156: 27.917008 | H156: -0.00104858201
A157: 2015-06-04 | B157: 28.9 | C157: 29.1 | D157: 28.540001 | E157: 28.610001 | F157: 26774500 | G157: 27.946312 | H157: -0.01650051309
A158: 2015-06-03 | B158: 29.209999 | C158: 29.299999 | D158: 29.049999 | E158: 29.09 | F158: 20536900 | G158: 28.415177 | H158: 0.0003438781677
A159: 2015-06-02 | B159: 29.09 | C159: 29.27 | D159: 28.950001 | E159: 29.08 | F159: 15995600 | G159: 28.405409 | H159: -0.003426996983
A160: 2015-06-01 | B160: 29.6 | C160: 29.620001 | D160: 29.049999 | E160: 29.18 | F160: 23799400 | G160: 28.503089 | H160: -0.004435336228
A161: 2015-05-29 | B161: 29.32 | C161: 29.59 | D161: 29.190001 | E161: 29.309999 | F161: 26018100 | G161: 28.630073 | H161: -0.001362893753
A162: 2015-05-28 | B162: 29.34 | C162: 29.559999 | D162: 29.16 | E162: 29.35 | F162: 18219600 | G162: 28.669146 | H162: 0.001364753768
A163: 2015-05-27 | B163: 29.059999 | C163: 29.48 | D163: 29.02 | E163: 29.309999 | F163: 23959900 | G163: 28.630073 | H163: 0.01243520458
A164: 2015-05-26 | B164: 29.190001 | C164: 29.25 | D164: 28.75 | E164: 28.950001 | F164: 25877100 | G164: 28.278425 | H164: -0.01059464439
A165: 2015-05-22 | B165: 29.389999 | C165: 29.450001 | D165: 29.26 | E165: 29.26 | F165: 20079700 | G165: 28.581233 | H165: -0.005776440144
A166: 2015-05-21 | B166: 29.610001 | C166: 29.77 | D166: 29.43 | E166: 29.43 | F166: 20806900 | G166: 28.74729 | H166: -0.006414604449
A167: 2015-05-20 | B167: 29.799999 | C167: 29.85 | D167: 29.530001 | E167: 29.620001 | F167: 19410900 | G167: 28.932883 | H167: -0.004034926147
A168: 2015-05-19 | B168: 29.870001 | C168: 29.9 | D168: 29.629999 | E168: 29.74 | F168: 18926300 | G168: 29.050098 | H168: -0.000672075862
A169: 2015-05-18 | B169: 29.42 | C169: 29.9 | D169: 29.42 | E169: 29.76 | F169: 23953000 | G169: 29.069635 | H169: 0.007106652271
A170: 2015-05-15 | B170: 29.24 | C170: 29.82 | D170: 29.16 | E170: 29.549999 | F170: 37677300 | G170: 28.864505 | H170: 0.01721170038
A171: 2015-05-14 | B171: 29.290001 | C171: 29.66 | D171: 28.969999 | E171: 29.049999 | F171: 56696300 | G171: 28.376104 | H171: -0.01022151131
A172: 2015-05-13 | B172: 29.139999 | C172: 29.469999 | D172: 29.129999 | E172: 29.35 | F172: 38264000 | G172: 28.669146 | H172: 0.004105396872
A173: 2015-05-12 | B173: 29.07 | C173: 29.440001 | D173: 28.799999 | E173: 29.23 | F173: 31761000 | G173: 28.551929 | H173: 0.0006847305336
A174: 2015-05-11 | B174: 29.5 | C174: 29.790001 | D174: 29.200001 | E174: 29.209999 | F174: 27045200 | G174: 28.532392 | H174: -0.0006842619986
A175: 2015-05-08 | B175: 28.99 | C175: 29.370001 | D175: 28.99 | E175: 29.23 | F175: 22572400 | G175: 28.551929 | H175: 0.01457827381
A176: 2015-05-07 | B176: 28.99 | C176: 29.120001 | D176: 28.74 | E176: 28.809999 | F176: 22643800 | G176: 28.141672 | H176: -0.00552294229
A177: 2015-05-06 | B177: 28.9 | C177: 29.08 | D177: 28.690001 | E177: 28.969999 | F177: 23572000 | G177: 28.29796 | H177: 0.002769117984
A178: 2015-05-05 | B178: 29.17 | C178: 29.209999 | D178: 28.84 | E178: 28.889999 | F178: 22463800 | G178: 28.219816 | H178: -0.009598916181
A179: 2015-05-04 | B179: 29.08 | C179: 29.360001 | D179: 29.07 | E179: 29.17 | F179: 16484100 | G179: 28.493321 | H179: 0.001373186879
A180: 2015-05-01 | B180: 28.809999 | C180: 29.200001 | D180: 28.780001 | E180: 29.129999 | F180: 18936000 | G180: 28.454248 | H180: 0.01040580361
A181: 2015-04-30 | B181: 28.85 | C181: 29.02 | D181: 28.68 | E181: 28.83 | F181: 26514500 | G181: 28.161208 | H181: -0.007573132661
A182: 2015-04-29 | B182: 29.059999 | C182: 29.25 | D182: 28.9 | E182: 29.049999 | F182: 22463700 | G182: 28.376104 | H182: -0.009208745258
A183: 2015-04-28 | B183: 28.799999 | C183: 29.33 | D183: 28.76 | E183: 29.32 | F183: 24315300 | G183: 28.639841 | H183: 0.0148840446
A184: 2015-04-27 | B184: 28.879999 | C184: 29.030001 | D184: 28.709999 | E184: 28.889999 | F184: 22952000 | G184: 28.219816 | H184: 0.002428863319
A185: 2015-04-24 | B185: 29.190001 | C185: 29.280001 | D185: 28.67 | E185: 28.82 | F185: 27145600 | G185: 28.15144 | H185: 0.004881439336
A186: 2015-04-23 | B186: 28.4 | C186: 28.82 | D186: 28.200001 | E186: 28.68 | F186: 22230100 | G186: 28.014688 | H186: 0.002096395414
A187: 2015-04-22 | B187: 28.67 | C187: 28.790001 | D187: 28.42 | E187: 28.620001 | F187: 19111700 | G187: 27.956081 | H187: -0.002439833266
A188: 2015-04-21 | B188: 28.719999 | C188: 28.92 | D188: 28.66 | E188: 28.690001 | F188: 23956900 | G188: 28.024456 | H188: 0.007373614754
A189: 2015-04-20 | B189: 28.16 | C189: 28.629999 | D189: 28.16 | E189: 28.48 | F189: 21921800 | G189: 27.819327 | H189: 0.02005729766
A190: 2015-04-17 | B190: 28.26 | C190: 28.4 | D190: 27.9 | E190: 27.92 | F190: 36904700 | G190: 27.272318 | H190: -0.0237762409
A191: 2015-04-16 | B191: 28.190001 | C191: 28.639999 | D191: 28.1 | E191: 28.6 | F191: 29863500 | G191: 27.936544 | H191: 0.01238938848
A192: 2015-04-15 | B192: 28.1 | C192: 28.42 | D192: 27.969999 | E192: 28.25 | F192: 31160900 | G192: 27.594663 | H192: 0.01582168499
A193: 2015-04-14 | B193: 28 | C193: 28.059999 | D193: 27.68 | E193: 27.809999 | F193: 19296300 | G193: 27.164869 | H193: -0.006075791212
A194: 2015-04-13 | B194: 27.99 | C194: 28.280001 | D194: 27.940001 | E194: 27.98 | F194: 22769600 | G194: 27.330926 | H194: -0.002139831874
A195: 2015-04-10 | B195: 27.58 | C195: 28.08 | D195: 27.559999 | E195: 28.040001 | F195: 24634600 | G195: 27.389535 | H195: =(G195/G196)-1 -> 0.01483898374
A196: 2015-04-09 | B196: 27.59 | C196: 27.74 | D196: 27.42 | E196: 27.629999 | F196: 16684500 | G196: 26.989045 | H196: 0.00290380467
A197: 2015-04-08 | B197: 27.370001 | C197: 27.66 | D197: 27.370001 | E197: 27.549999 | F197: 19076400 | G197: 26.910901 | H197: 0.005841572287
A198: 2015-04-07 | B198: 27.200001 | C198: 27.559999 | D198: 27.129999 | E198: 27.389999 | F198: 16861800 | G198: 26.754612 | H198: 0.006245393695
A199: 2015-04-06 | B199: 26.959999 | C199: 27.32 | D199: 26.84 | E199: 27.219999 | F199: 20004000 | G199: 26.588556 | H199: 0.003317353344
A200: 2015-04-02 | B200: 27.219999 | C200: 27.5 | D200: 27.129999 | E200: 27.129999 | F200: 19527200 | G200: 26.500644 | H200: -0.004403697202
... 6305 more rows

Sheet KO
A1: Date | B1: Open | C1: High | D1: Low | E1: Close | F1: Volume | G1: Adj Close | H1: Returns
A2: 2015-12-01 | B2: 42.73 | C2: 43.91 | D2: 41.970001 | E2: 42.959999 | F2: 13416300 | G2: 42.959999 | H2: =(G2/G3)-1 -> 0.007977475551
A3: 2015-11-02 | B3: 42.32 | C3: 43.599998 | D3: 41.34 | E3: 42.619999 | F3: 13409600 | G3: 42.619999 | H3: =(G3/G4)-1 -> 0.01409337611
A4: 2015-10-01 | B4: 40.220001 | C4: 43.849998 | D4: 39.360001 | E4: 42.349998 | F4: 17344200 | G4: 42.027687 | H4: 0.05558324636
A5: 2015-09-01 | B5: 38.669998 | C5: 40.23 | D5: 37.84 | E5: 40.119999 | F5: 17477900 | G5: 39.814659 | H5: 0.02918590995
A6: 2015-08-03 | B6: 40.849998 | C6: 42.25 | D6: 36.560001 | E6: 39.32 | F6: 16931300 | G6: 38.685585 | H6: -0.04284330398
A7: 2015-07-01 | B7: 39.380001 | C7: 41.599998 | D7: 39.220001 | E7: 41.080002 | F7: 12882200 | G7: 40.417191 | H7: 0.04715784149
A8: 2015-06-01 | B8: 41.360001 | C8: 41.41 | D8: 39.119999 | E8: 39.23 | F8: 13768700 | G8: 38.597038 | H8: -0.03433480915
A9: 2015-05-01 | B9: 40.580002 | C9: 41.689999 | D9: 40.389999 | E9: 40.959999 | F9: 12511000 | G9: 39.969379 | H9: 0.009861857241
A10: 2015-04-01 | B10: 40.790001 | C10: 41.610001 | D10: 40.099998 | E10: 40.560001 | F10: 14129500 | G10: 39.579056 | H10: 0.0002467064487
A11: 2015-03-02 | B11: 43.299999 | C11: 43.299999 | D11: 39.610001 | E11: 40.549999 | F11: 17606500 | G11: 39.569294 | H11: -0.05573963168
A12: 2015-02-02 | B12: 41.209999 | C12: 43.66 | D12: 40.900002 | E12: 43.299999 | F12: 16826400 | G12: 41.905067 | H12: 0.05173662509
A13: 2015-01-02 | B13: 42.259998 | C13: 43.830002 | D13: 41.110001 | E13: 41.169998 | F13: 15614200 | G13: 39.843689 | H13: -0.02486973586
A14: 2014-12-01 | B14: 44.18 | C14: 44.77 | D14: 39.799999 | E14: 42.220001 | F14: 15282400 | G14: 40.859863 | H14: -0.05821992828
A15: 2014-11-03 | B15: 41.790001 | C15: 45 | D15: 41.59 | E15: 44.830002 | F15: 13926400 | G15: 43.38578 | H15: 0.07783840853
A16: 2014-10-01 | B16: 42.549999 | C16: 44.869999 | D16: 40.099998 | E16: 41.880001 | F16: 23840900 | G16: 40.252583 | H16: -0.01828413224
A17: 2014-09-02 | B17: 41.52 | C17: 42.810001 | D17: 41.18 | E17: 42.66 | F17: 16069300 | G17: 41.002274 | H17: 0.02998064673
A18: 2014-08-01 | B18: 39.130001 | C18: 41.75 | D18: 39.060001 | E18: 41.720001 | F18: 12168500 | G18: 39.808781 | H18: 0.06184779283
A19: 2014-07-01 | B19: 42.389999 | C19: 42.57 | D19: 39.25 | E19: 39.290001 | F19: 13560900 | G19: 37.490101 | H19: -0.07247397664
A20: 2014-06-02 | B20: 40.75 | C20: 42.490002 | D20: 40.150002 | E20: 42.360001 | F20: 14096800 | G20: 40.41946 | H20: 0.04323082942
A21: 2014-05-01 | B21: 40.790001 | C21: 41.220001 | D21: 40.259998 | E21: 40.91 | F21: 10670100 | G21: 38.744503 | H21: 0.00294187113
A22: 2014-04-01 | B22: 38.529999 | C22: 41.279999 | D22: 38.040001 | E22: 40.790001 | F22: 18813600 | G22: 38.630856 | H22: 0.05509575376
A23: 2014-03-03 | B23: 37.880001 | C23: 39.029999 | D23: 37.849998 | E23: 38.66 | F23: 17788700 | G23: 36.613602 | H23: 0.0200603083
A24: 2014-02-03 | B24: 38.02 | C24: 39.02 | D24: 36.889999 | E24: 38.200001 | F24: 21105000 | G24: 35.893566 | H24: 0.01004766732
A25: 2014-01-02 | B25: 41.119999 | C25: 41.23 | D25: 37.720001 | E25: 37.82 | F25: 14551700 | G25: 35.536507 | H25: -0.08448326908
A26: 2013-12-02 | B26: 40.099998 | C26: 41.389999 | D26: 38.869999 | E26: 41.310001 | F26: 14898700 | G26: 38.815792 | H26: 0.02786771492
A27: 2013-11-01 | B27: 39.57 | C27: 40.880001 | D27: 39.220001 | E27: 40.189999 | F27: 13829500 | G27: 37.763412 | H27: 0.02278350461
A28: 2013-10-01 | B28: 38 | C28: 39.959999 | D28: 36.830002 | E28: 39.57 | F28: 17123100 | G28: 36.922195 | H28: 0.04461446681
A29: 2013-09-03 | B29: 38.27 | C29: 39.669998 | D29: 37.75 | E29: 37.880001 | F29: 15953000 | G29: 35.345284 | H29: -0.0006418516633
A30: 2013-08-01 | B30: 40.400002 | C30: 40.75 | D30: 37.799999 | E30: 38.18 | F30: 14140800 | G30: 35.367985 | H30: -0.04740531499
A31: 2013-07-01 | B31: 40.5 | C31: 41.25 | D31: 39.5 | E31: 40.080002 | F31: 12476200 | G31: 37.128052 | H31: -0.0007478232627
A32: 2013-06-03 | B32: 39.950001 | C32: 41.73 | D32: 38.970001 | E32: 40.110001 | F32: 16106200 | G32: 37.155838 | H32: 0.009933355959
A33: 2013-05-01 | B33: 42.150002 | C33: 43.43 | D33: 39.990002 | E33: 39.990002 | F33: 14291200 | G33: 36.790386 | H33: -0.05528002154
A34: 2013-04-01 | B34: 40.389999 | C34: 42.959999 | D34: 39.77 | E34: 42.330002 | F34: 15054700 | G34: 38.943165 | H34: 0.04673602947
A35: 2013-03-01 | B35: 38.490002 | C35: 40.700001 | D35: 38.450001 | E35: 40.439999 | F35: 15132800 | G35: 37.20438 | H35: 0.05198186167
A36: 2013-02-01 | B36: 37.540001 | C36: 39.060001 | D36: 36.540001 | E36: 38.720001 | F36: 18102300 | G36: 35.36599 | H36: 0.03974220642
A37: 2013-01-02 | B37: 36.990002 | C37: 37.869999 | D37: 36.52 | E37: 37.240002 | F37: 15034500 | G37: 34.014191 | H37: 0.02731034272
A38: 2012-12-03 | B38: 37.900002 | C38: 37.990002 | D38: 35.580002 | E38: 36.25 | F38: 14263800 | G38: 33.109947 | H38: -0.0440399738
A39: 2012-11-01 | B39: 37.150002 | C39: 37.98 | D39: 35.860001 | E39: 37.919998 | F39: 13070800 | G39: 34.635284 | H39: 0.02690093712
A40: 2012-10-01 | B40: 38.16 | C40: 38.830002 | D40: 36.540001 | E40: 37.18 | F40: 14546300 | G40: 33.72797 | H40: -0.01977320436
A41: 2012-09-04 | B41: 37.52 | C41: 39 | D41: 37.110001 | E41: 37.93 | F41: 25909600 | G41: 34.408333 | H41: 0.02106465555
A42: 2012-08-01 | B42: 80.970001 | C42: 81.25 | D42: 37.130001 | E42: 37.400002 | F42: 14297300 | G42: 33.698486 | H42: -0.07425742289
A43: 2012-07-02 | B43: 78.099998 | C43: 81.330002 | D43: 76.099998 | E43: 80.800003 | F43: 14540600 | G43: 36.401573 | H43: 0.03338020154
A44: 2012-06-01 | B44: 73.989998 | C44: 78.190002 | D44: 72.559998 | E44: 78.190002 | F44: 14194900 | G44: 35.225731 | H44: 0.05344436262
A45: 2012-05-01 | B45: 76.540001 | C45: 77.739998 | D45: 73.470001 | E45: 74.730003 | F45: 15933500 | G45: 33.438625 | H45: -0.02083324427
A46: 2012-04-02 | B46: 73.830002 | C46: 77.82 | D46: 71.82 | E46: 76.32 | F46: 15944300 | G46: 34.150082 | H46: 0.03121188545
A47: 2012-03-01 | B47: 69.870003 | C47: 74.389999 | D47: 68.5 | E47: 74.010002 | F47: 19854800 | G47: 33.116455 | H47: 0.06716303008
A48: 2012-02-01 | B48: 67.879997 | C48: 69.980003 | D48: 67.419998 | E48: 69.860001 | F48: 15556400 | G48: 31.032236 | H48: 0.03450324787
A49: 2012-01-03 | B49: 70.150002 | C49: 70.709999 | D49: 66.57 | E49: 67.529999 | F49: 15688700 | G49: 29.997234 | H49: -0.03487215816
A50: 2011-12-01 | B50: 67 | C50: 70.290001 | D50: 65.879997 | E50: 69.970001 | F50: 15115100 | G50: 31.081099 | H50: 0.0407555578
A51: 2011-11-01 | B51: 67.129997 | C51: 68.82 | D51: 64.739998 | E51: 67.230003 | F51: 17326800 | G51: 29.863976 | H51: -0.008805849723
A52: 2011-10-03 | B52: 66.589996 | C52: 69.089996 | D52: 63.34 | E52: 68.32 | F52: 20260900 | G52: 30.12929 | H52: 0.01124929755
A53: 2011-09-01 | B53: 70.089996 | C53: 71.769997 | D53: 66.620003 | E53: 67.559998 | F53: 25822300 | G53: 29.794127 | H53: -0.03448128916
A54: 2011-08-01 | B54: 68.5 | C54: 70.769997 | D54: 63.59 | E54: 70.449997 | F54: 29140800 | G54: 30.858156 | H54: 0.03587698739
A55: 2011-07-01 | B55: 67.019997 | C55: 69.82 | D55: 66.589996 | E55: 68.010002 | F55: 17301500 | G55: 29.789402 | H55: 0.0106999616
A56: 2011-06-01 | B56: 66.599998 | C56: 67.489998 | D56: 64.43 | E56: 67.290001 | F56: 16582500 | G56: 29.474031 | H56: 0.0144762518
A57: 2011-05-02 | B57: 67.760002 | C57: 68.769997 | D57: 66.300003 | E57: 66.809998 | F57: 14235400 | G57: 29.053446 | H57: -0.009635326894
A58: 2011-04-01 | B58: 66.889999 | C58: 68.470001 | D58: 65.809998 | E58: 67.459999 | F58: 15928000 | G58: 29.336109 | H58: 0.01688280545
A59: 2011-03-01 | B59: 64.279999 | C59: 66.849998 | D59: 61.290001 | E59: 66.339996 | F59: 19518000 | G59: 28.849056 | H59: 0.04538515115
A60: 2011-02-01 | B60: 62.880001 | C60: 64.75 | D60: 62.130001 | E60: 63.919998 | F60: 17598800 | G60: 27.596581 | H60: 0.01702466992
A61: 2011-01-03 | B61: 65.879997 | C61: 65.879997 | D61: 61.889999 | E61: 62.849998 | F61: 19122700 | G61: 27.134623 | H61: -0.04439711344
A62: 2010-12-01 | B62: 63.939999 | C62: 65.879997 | D62: 63.700001 | E62: 65.769997 | F62: 18993600 | G62: 28.395292 | H62: 0.04115873194
A63: 2010-11-01 | B63: 61.369999 | C63: 64.629997 | D63: 61.209999 | E63: 63.169998 | F63: 22091400 | G63: 27.272779 | H63: 0.03728872673
A64: 2010-10-01 | B64: 59.040001 | C64: 61.75 | D64: 58.52 | E64: 61.32 | F64: 19112500 | G64: 26.29237 | H64: 0.04784685487
A65: 2010-09-01 | B65: 56.380001 | C65: 59.23 | D65: 56.27 | E65: 58.52 | F65: 17351300 | G65: 25.091806 | H65: 0.05517770054
A66: 2010-08-02 | B66: 55.82 | C66: 57.400002 | D66: 54.919998 | E66: 55.880001 | F66: 18580000 | G66: 23.779697 | H66: 0.01397205631
A67: 2010-07-01 | B67: 50.299999 | C67: 55.310001 | D67: 49.470001 | E67: 55.110001 | F67: 18570300 | G67: 23.452024 | H67: =(G67/G68)-1 -> 0.09956114652
A68: 2010-06-01 | B68: 51.119999 | C68: 53.080002 | D68: 50.009998 | E68: 50.119999 | F68: 23027500 | G68: 21.328531 | H68: -0.01665349531
A69: 2010-05-03 | B69: 53.709999 | C69: 54.200001 | D69: 49.939999 | E69: 51.400002 | F69: 27630900 | G69: 21.689741 | H69: -0.03835365421
A70: 2010-04-01 | B70: 55.360001 | C70: 55.560001 | D70: 52.560001 | E70: 53.450001 | F70: 22056200 | G70: 22.5548 | H70: -0.02818173021
A71: 2010-03-01 | B71: 53.220001 | C71: 55.360001 | D71: 52.790001 | E71: 55 | F71: 24288100 | G71: 23.208866 | H71: 0.05178573484
A72: 2010-02-01 | B72: 54.509998 | C72: 55.919998 | D72: 52.23 | E72: 52.720001 | F72: 27425300 | G72: 22.066154 | H72: -0.02820275444
A73: 2010-01-04 | B73: 57.16 | C73: 57.43 | D73: 53.700001 | E73: 54.25 | F73: 21449100 | G73: 22.706541 | H73: -0.0482455815
A74: 2009-12-01 | B74: 57.59 | C74: 59.450001 | D74: 56.310001 | E74: 57 | F74: 18028500 | G74: 23.857563 | H74: -0.003496555635
A75: 2009-11-02 | B75: 53.509998 | C75: 58.43 | D75: 52.77 | E75: 57.200001 | F75: 17343900 | G75: 23.941275 | H75: 0.08059368826
A76: 2009-10-01 | B76: 53.400002 | C76: 55.5 | D76: 52.709999 | E76: 53.310001 | F76: 20079000 | G76: 22.155668 | H76: -0.007262603901
A77: 2009-09-01 | B77: 48.720001 | C77: 54.119999 | D77: 48.380001 | E77: 53.700001 | F77: 30686800 | G77: 22.317753 | H77: 0.110085124
A78: 2009-08-03 | B78: 50.029999 | C78: 50.150002 | D78: 47.419998 | E78: 48.77 | F78: 17890900 | G78: 20.104542 | H78: -0.02146870162
A79: 2009-07-01 | B79: 48.48 | C79: 51.029999 | D79: 48.02 | E79: 49.84 | F79: 20425400 | G79: 20.54563 | H79: 0.03854960746
A80: 2009-06-01 | B80: 49.25 | C80: 49.939999 | D80: 47.18 | E80: 47.990002 | F80: 24402500 | G80: 19.783003 | H80: -0.01546137967
A81: 2009-05-01 | B81: 43.139999 | C81: 49.16 | D81: 42.18 | E81: 49.16 | F81: 29667200 | G81: 20.093679 | H81: 0.1419279933
A82: 2009-04-01 | B82: 43.759998 | C82: 45.830002 | D82: 42 | E82: 43.049999 | F82: 23688100 | G82: 17.596275 | H82: -0.02047784971
A83: 2009-03-02 | B83: 40.450001 | C83: 45.200001 | D83: 37.439999 | E83: 43.950001 | F83: 29406700 | G83: 17.964142 | H83: 0.08727102818
A84: 2009-02-02 | B84: 42.209999 | C84: 44.450001 | D84: 40.279999 | E84: 40.849998 | F84: 27695500 | G84: 16.52223 | H84: -0.04377340905
A85: 2009-01-02 | B85: 45.400002 | C85: 46 | D85: 41.560001 | E85: 42.720001 | F85: 24142900 | G85: 17.278572 | H85: -0.0563287236
A86: 2008-12-01 | B86: 46.189999 | C86: 47.060001 | D86: 42.939999 | E86: 45.27 | F86: 26489200 | G86: 18.309948 | H86: -0.03413694669
A87: 2008-11-03 | B87: 44.509998 | C87: 47.290001 | D87: 40.5 | E87: 46.869999 | F87: 31313400 | G87: 18.957085 | H87: 0.07282191021
A88: 2008-10-01 | B88: 52.619999 | C88: 55 | D88: 40.290001 | E88: 44.060001 | F88: 41769800 | G88: 17.6703 | H88: -0.1667927616
A89: 2008-09-02 | B89: 52.220001 | C89: 55.77 | D89: 49.869999 | E89: 52.880001 | F89: 30527700 | G89: 21.207569 | H89: 0.02277880006
A90: 2008-08-01 | B90: 51.939999 | C90: 55.84 | D90: 51.740002 | E90: 52.07 | F90: 18916500 | G90: 20.735245 | H90: 0.01106793014
A91: 2008-07-01 | B91: 51.919998 | C91: 52.889999 | D91: 49.439999 | E91: 51.5 | F91: 29129900 | G91: 20.508261 | H91: -0.009234322956
A92: 2008-06-02 | B92: 57.049999 | C92: 58.599998 | D92: 51.439999 | E92: 51.98 | F92: 28020700 | G92: 20.699406 | H92: -0.08622520454
A93: 2008-05-01 | B93: 58.610001 | C93: 59.5 | D93: 55.830002 | E93: 57.259998 | F93: 22294400 | G93: 22.652634 | H93: -0.02734838425
A94: 2008-04-01 | B94: 61.009998 | C94: 61.84 | D94: 58.369999 | E94: 58.869999 | F94: 19024400 | G94: 23.289566 | H94: -0.03285690093
A95: 2008-03-03 | B95: 58.349998 | C95: 61.900002 | D95: 56.75 | E95: 60.869999 | F95: 20237200 | G95: 24.080786 | H95: 0.04792070249
A96: 2008-02-01 | B96: 59.290001 | C96: 60.5 | D96: 57.310001 | E96: 58.459999 | F96: 19674100 | G96: 22.979588 | H96: -0.009152567499
A97: 2008-01-02 | B97: 61.450001 | C97: 65.589996 | D97: 56.490002 | E97: 59 | F97: 27331700 | G97: 23.191853 | H97: -0.03861817981
A98: 2007-12-03 | B98: 62.099998 | C98: 64.32 | D98: 61.220001 | E98: 61.369999 | F98: 15718200 | G98: 24.123457 | H98: -0.01175519162
A99: 2007-11-01 | B99: 61.630001 | C99: 63.450001 | D99: 59.650002 | E99: 62.099998 | F99: 19428900 | G99: 24.410406 | H99: 0.01096290482
A100: 2007-10-01 | B100: 57.610001 | C100: 62.150002 | D100: 56.919998 | E100: 61.759998 | F100: 16760100 | G100: 24.145699 | H100: 0.07464759189
A101: 2007-09-04 | B101: 53.669998 | C101: 57.779999 | D101: 53.200001 | E101: 57.470001 | F101: 18465500 | G101: 22.468481 | H101: 0.07518069233
A102: 2007-08-01 | B102: 52.360001 | C102: 56.849998 | D102: 52.18 | E102: 53.779999 | F102: 20857400 | G102: 20.8974 | H102: 0.03204753185
A103: 2007-07-02 | B103: 52.650002 | C103: 54.490002 | D103: 51.790001 | E103: 52.110001 | F103: 20918900 | G103: 20.248486 | H103: -0.003823341303
A104: 2007-06-01 | B104: 53.009998 | C104: 53.130001 | D104: 51.029999 | E104: 52.310001 | F104: 20312700 | G104: 20.3262 | H104: -0.006225671384
A105: 2007-05-01 | B105: 52.189999 | C105: 53.650002 | D105: 51.150002 | E105: 52.990002 | F105: 19663800 | G105: 20.453537 | H105: 0.01532866264
A106: 2007-04-02 | B106: 48.200001 | C106: 52.349998 | D106: 48.049999 | E106: 52.189999 | F106: 21881700 | G106: 20.144745 | H106: 0.08729171178
A107: 2007-03-01 | B107: 46.419998 | C107: 48.5 | D107: 45.77 | E107: 48 | F107: 23450500 | G107: 18.527452 | H107: 0.03562098236
A108: 2007-02-01 | B108: 47.990002 | C108: 48.549999 | D108: 45.560001 | E108: 46.68 | F108: 18806500 | G108: 17.890186 | H108: -0.0250626591
A109: 2007-01-03 | B109: 48.360001 | C109: 49 | D109: 47.490002 | E109: 47.880001 | F109: 12934200 | G109: 18.350088 | H109: -0.007668441931
A110: 2006-12-01 | B110: 46.650002 | C110: 49.349998 | D110: 46.23 | E110: 48.25 | F110: 16034600 | G110: 18.491892 | H110: 0.03032236597
A111: 2006-11-01 | B111: 46.740002 | C111: 47.369999 | D111: 46.16 | E111: 46.830002 | F111: 15438700 | G111: 17.947676 | H111: 0.009055577095
A112: 2006-10-02 | B112: 44.900002 | C112: 47.5 | D112: 43.720001 | E112: 46.720001 | F112: 18112300 | G112: 17.786608 | H112: 0.04565805716
A113: 2006-09-01 | B113: 44.98 | C113: 45.130001 | D113: 43.939999 | E113: 44.68 | F113: 10652200 | G113: 17.009966 | H113: 0.004049615851
A114: 2006-08-01 | B114: 44.5 | C114: 45.400002 | D114: 43.48 | E114: 44.810001 | F114: 9380600 | G114: 16.94136 | H114: 0.006966292162
A115: 2006-07-03 | B115: 43.200001 | C115: 44.790001 | D115: 42.369999 | E115: 44.5 | F115: 13231600 | G115: 16.824158 | H115: 0.03440266512
A116: 2006-06-01 | B116: 43.98 | C116: 44.130001 | D116: 42.27 | E116: 43.02 | F116: 14268400 | G116: 16.264612 | H116: -0.01589496127
A117: 2006-05-01 | B117: 42.09 | C117: 44.759998 | D117: 41.799999 | E117: 44.029999 | F117: 16698200 | G117: 16.527313 | H117: 0.04933268607
A118: 2006-04-03 | B118: 42.099998 | C118: 42.240002 | D118: 40.860001 | E118: 41.959999 | F118: 12146500 | G118: 15.750308 | H118: 0.002149520966
A119: 2006-03-01 | B119: 41.900002 | C119: 42.990002 | D119: 41.57 | E119: 41.869999 | F119: 13158000 | G119: 15.716525 | H119: 0.004900934311
A120: 2006-02-01 | B120: 41.189999 | C120: 42.580002 | D120: 40.52 | E120: 41.970001 | F120: 14988200 | G120: 15.639875 | H120: 0.01425809249
A121: 2006-01-03 | B121: 40.790001 | C121: 41.990002 | D121: 39.360001 | E121: 41.380001 | F121: 14850500 | G121: 15.420015

Sheet DD
A1: Date | B1: Open | C1: High | D1: Low | E1: Close | F1: Volume | G1: Adj Close | H1: Returns
A2: 2015-12-01 | B2: 67.389999 | C2: 75.720001 | D2: 62.799999 | E2: 66.599998 | F2: 7400500 | G2: 66.599998 | H2: =(G2/G3)-1 -> -0.01098898194
A3: 2015-11-02 | B3: 63.509998 | C3: 68 | D3: 63.220001 | E3: 67.339996 | F3: 5506900 | G3: 67.339996 | H3: =(G3/G4)-1 -> 0.06822447455
A4: 2015-10-01 | B4: 48.439999 | C4: 64.169998 | D4: 47.43 | E4: 63.400002 | F4: 7858100 | G4: 63.039181 | H4: 0.3153527109
A5: 2015-09-01 | B5: 50.16 | C5: 51.580002 | D5: 47.110001 | E5: 48.200001 | F5: 6710800 | G5: 47.925686 | H5: -0.06407766687
A6: 2015-08-03 | B6: 55.880001 | C6: 56 | D6: 48.009998 | E6: 51.5 | F6: 6514200 | G6: 51.206905 | H6: -0.06977803937
A7: 2015-07-01 | B7: 61.630001 | C7: 61.93 | D7: 52.790001 | E7: 55.759998 | F7: 6245800 | G7: 55.04805 | H7: -0.08185640966
A8: 2015-06-01 | B8: 71.37999 | C8: 71.900002 | D8: 63.549995 | E8: 63.949997 | F8: 5900100 | G8: 59.955818 | H8: -0.09942263948
A9: 2015-05-01 | B9: 73.970001 | C9: 75.519997 | D9: 69.279991 | E9: 71.010002 | F9: 7312500 | G9: 66.574867 | H9: -0.02352553528
A10: 2015-04-01 | B10: 71.540001 | C10: 75.800003 | D10: 69.730003 | E10: 73.199989 | F10: 5233500 | G10: 68.17881 | H10: 0.02420580977
A11: 2015-03-02 | B11: 77.849998 | C11: 80.650002 | D11: 71.260002 | E11: 71.470001 | F11: 7358100 | G11: 66.56749 | H11: -0.08195245198
A12: 2015-02-02 | B12: 71.559998 | C12: 78.18 | D12: 70.510002 | E12: 77.849998 | F12: 4091900 | G12: 72.50985 | H12: 0.1000500387
A13: 2015-01-02 | B13: 73.839989 | C13: 75.769997 | D13: 70.190002 | E13: 71.209999 | F13: 5005300 | G13: 65.915047 | H13: -0.0369218604
A14: 2014-12-01 | B14: 71.32 | C14: 75.82 | D14: 68.540001 | E14: 73.940002 | F14: 3457000 | G14: 68.442055 | H14: 0.0355743767
A15: 2014-11-03 | B15: 69.150002 | C15: 72.709999 | D15: 68.199989 | E15: 71.399994 | F15: 3316700 | G15: 66.090912 | H15: 0.03943707293
A16: 2014-10-01 | B16: 71.129997 | C16: 71.349998 | D16: 64.550003 | E16: 69.150002 | F16: 7632300 | G16: 63.58337 | H16: -0.03637120936
A17: 2014-09-02 | B17: 65.919998 | C17: 72.919998 | D17: 64.519997 | E17: 71.759995 | F17: 5684800 | G17: 65.983261 | H17: 0.08546356133
A18: 2014-08-01 | B18: 63.98 | C18: 66.620003 | D18: 63.700001 | E18: 66.110001 | F18: 3161500 | G18: 60.788094 | H18: 0.03542028531
A19: 2014-07-01 | B19: 64.989998 | C19: 66.949997 | D19: 64.169998 | E19: 64.309998 | F19: 4653600 | G19: 58.708618 | H19: -0.01726780292
A20: 2014-06-02 | B20: 69.329994 | C20: 69.75 | D20: 64.349998 | E20: 65.440002 | F20: 4734600 | G20: 59.7402 | H20: -0.05583592829
A21: 2014-05-01 | B21: 66.860001 | C21: 69.379997 | D21: 66.32 | E21: 69.30999 | F21: 3388800 | G21: 63.273113 | H21: 0.03639962036
A22: 2014-04-01 | B22: 67.139999 | C22: 68.82 | D22: 65.910004 | E22: 67.32 | F22: 4283100 | G22: 61.050884 | H22: 0.003278743051
A23: 2014-03-03 | B23: 65.779999 | C23: 67.949997 | D23: 65.379997 | E23: 67.099998 | F23: 4257800 | G23: 60.851368 | H23: 0.007204886871
A24: 2014-02-03 | B24: 61.049999 | C24: 66.720001 | D24: 59.950001 | E24: 66.620003 | F24: 5675600 | G24: 60.416077 | H24: 0.09964929248
A25: 2014-01-02 | B25: 64.239998 | C25: 65 | D25: 59.349995 | E25: 61.009998 | F25: 5327400 | G25: 54.941223 | H25: -0.0609512482
A26: 2013-12-02 | B26: 61.759998 | C26: 65 | D26: 59.849995 | E26: 64.970001 | F26: 3545300 | G26: 58.507317 | H26: 0.05848808333
A27: 2013-11-01 | B27: 61.139999 | C27: 62.339996 | D27: 59.709995 | E27: 61.380001 | F27: 4789100 | G27: 55.274422 | H27: 0.01026788344
A28: 2013-10-01 | B28: 58.57 | C28: 62.689995 | D28: 56.459999 | E28: 61.200001 | F28: 4290900 | G28: 54.712639 | H28: 0.04508196612
A29: 2013-09-03 | B29: 57.069996 | C29: 60.860001 | D29: 56.09 | E29: 58.560001 | F29: 4187100 | G29: 52.352486 | H29: 0.03426353364
A30: 2013-08-01 | B30: 58.23 | C30: 60.18 | D30: 56.259998 | E30: 56.619999 | F30: 4251900 | G30: 50.61813 | H30: -0.01111592091
A31: 2013-07-01 | B31: 52.240002 | C31: 60.399998 | D31: 52.040001 | E31: 57.689999 | F31: 6056900 | G31: 51.187122 | H31: 0.09885710289
A32: 2013-06-03 | B32: 55.839996 | C32: 56.470001 | D32: 52.02 | E32: 52.5 | F32: 7088600 | G32: 46.582146 | H32: -0.05897112627
A33: 2013-05-01 | B33: 54.119999 | C33: 57.249996 | D33: 52.57 | E33: 55.789997 | F33: 7375100 | G33: 49.501293 | H33: 0.03185441052
A34: 2013-04-01 | B34: 48.880001 | C34: 54.729996 | D34: 48.209995 | E34: 54.509998 | F34: 8501500 | G34: 47.973137 | H34: 0.1088282731
A35: 2013-03-01 | B35: 47.560001 | C35: 50.200001 | D35: 47.279999 | E35: 49.16 | F35: 5742900 | G35: 43.264713 | H35: 0.02630484324
A36: 2013-02-01 | B36: 47.679996 | C36: 48.219997 | D36: 46.02 | E36: 47.899998 | F36: 6837900 | G36: 42.155811 | H36: 0.01861244964
A37: 2013-01-02 | B37: 45.949997 | C37: 48.399998 | D37: 45.110001 | E37: 47.450001 | F37: 6574700 | G37: 41.385525 | H37: 0.05491332169
A38: 2012-12-03 | B38: 43.43 | C38: 45.330002 | D38: 42.249996 | E38: 44.98 | F38: 6557900 | G38: 39.231209 | H38: 0.04265189207
A39: 2012-11-01 | B39: 44.580002 | C39: 45.490002 | D39: 41.669998 | E39: 43.139999 | F39: 6944200 | G39: 37.626373 | H39: -0.02123905288
A40: 2012-10-01 | B40: 50.179996 | C40: 50.959999 | D40: 44.499996 | E40: 44.519997 | F40: 7365400 | G40: 38.442863 | H40: -0.1143823819
A41: 2012-09-04 | B41: 49.509998 | C41: 52.330002 | D41: 48.630001 | E41: 50.27 | F41: 6125400 | G41: 43.40797 | H41: 0.0104522098
A42: 2012-08-01 | B42: 49.939999 | C42: 52.099995 | D42: 48.68 | E42: 49.75 | F42: 4691800 | G42: 42.958954 | H42: 0.00950428185
A43: 2012-07-02 | B43: 49.479996 | C43: 50.48 | D43: 46.150002 | E43: 49.700001 | F43: 6107500 | G43: 42.554504 | H43: -0.01720390131
A44: 2012-06-01 | B44: 47.529995 | C44: 51.470001 | D44: 46.439995 | E44: 50.57 | F44: 4931600 | G44: 43.299423 | H44: 0.0478657413
A45: 2012-05-01 | B45: 53.349995 | C45: 53.98 | D45: 47.709995 | E45: 48.259998 | F45: 5562900 | G45: 41.321537 | H45: -0.08974468552
A46: 2012-04-02 | B46: 52.68 | C46: 53.98 | D46: 50.84 | E46: 53.459999 | F46: 5757100 | G46: 45.395546 | H46: 0.01058594691
A47: 2012-03-01 | B47: 50.889996 | C47: 53.950001 | D47: 49.900002 | E47: 52.900002 | F47: 5551100 | G47: 44.920025 | H47: 0.0403147446
A48: 2012-02-01 | B48: 51.52 | C48: 52.309998 | D48: 49.289997 | E48: 50.849995 | F48: 5823700 | G48: 43.179264 | H48: 0.00728796227
A49: 2012-01-03 | B49: 46.580002 | C49: 51.759995 | D49: 45.84 | E49: 50.889996 | F49: 7381000 | G49: 42.866852 | H49: 0.1116208121
A50: 2011-12-01 | B50: 47.499996 | C50: 48.409996 | D50: 43.060001 | E50: 45.779995 | F50: 6981500 | G50: 38.562477 | H50: -0.04065386087
A51: 2011-11-01 | B51: 46.459995 | C51: 49.919998 | D51: 43.790001 | E51: 47.719997 | F51: 8065300 | G51: 40.196625 | H51: 0.001345802182
A52: 2011-10-03 | B52: 39.560001 | C52: 49.479996 | D52: 37.099995 | E52: 48.069996 | F52: 9047100 | G52: 40.142601 | H52: 0.2026517922
A53: 2011-09-01 | B53: 48.029995 | C53: 48.860001 | D53: 39.939995 | E53: 39.970001 | F53: 11205800 | G53: 33.378407 | H53: -0.1719494332
A54: 2011-08-01 | B54: 53.380001 | C54: 53.380001 | D54: 43.599998 | E54: 48.27 | F54: 11981100 | G54: 40.309624 | H54: -0.05259551764
A55: 2011-07-01 | B55: 53.599998 | C55: 56.200001 | D55: 51.290001 | E55: 51.419994 | F55: 6727300 | G55: 42.547428 | H55: -0.04865869425
A56: 2011-06-01 | B56: 53.110001 | C56: 54.490002 | D56: 48.639999 | E56: 54.049995 | F56: 7058600 | G56: 44.723621 | H56: 0.0140712765
A57: 2011-05-02 | B57: 56.419998 | C57: 57 | D57: 50.499996 | E57: 53.299999 | F57: 6164300 | G57: 44.103035 | H57: -0.05451872291
A58: 2011-04-01 | B58: 55.189999 | C58: 56.879997 | D58: 53.169994 | E58: 56.790001 | F58: 5356400 | G58: 46.646122 | H58: 0.03310899014
A59: 2011-03-01 | B59: 54.739998 | C59: 55.799995 | D59: 51.099998 | E59: 54.970001 | F59: 6541100 | G59: 45.151211 | H59: 0.00182258036
A60: 2011-02-01 | B60: 50.849995 | C60: 56.189995 | D60: 50.740002 | E60: 54.869999 | F60: 7828500 | G60: 45.069069 | H60: 0.09090801488
A61: 2011-01-03 | B61: 50.049999 | C61: 50.859997 | D61: 47.220001 | E61: 50.679996 | F61: 8089300 | G61: 41.313354 | H61: 0.01603850491
A62: 2010-12-01 | B62: 47.699997 | C62: 50.169994 | D62: 47.699997 | E62: 49.880001 | F62: 6006400 | G62: 40.661209 | H62: 0.06150247579
A63: 2010-11-01 | B63: 47.259998 | C63: 48.579998 | D63: 45.130001 | E63: 46.989998 | F63: 6929200 | G63: 38.305336 | H63: 0.002499382685
A64: 2010-10-01 | B64: 44.950001 | C64: 48 | D64: 44.209999 | E64: 47.279999 | F64: 7406700 | G64: 38.209835 | H64: 0.05961454323
A65: 2010-09-01 | B65: 41.27 | C65: 45.869999 | D65: 41.119999 | E65: 44.619999 | F65: 6528000 | G65: 36.060127 | H65: 0.09443210085
A66: 2010-08-02 | B66: 41.23 | C66: 42.66 | D66: 38.709995 | E66: 40.77 | F66: 7157700 | G66: 32.948711 | H66: 0.01230093606
A67: 2010-07-01 | B67: 34.469997 | C67: 41.139999 | D67: 33.73 | E67: 40.669998 | F67: 8153100 | G67: 32.548336 | H67: =(G67/G68)-1 -> 0.1757732947
A68: 2010-06-01 | B68: 35.82 | C68: 39.200001 | D68: 33.949997 | E68: 34.59 | F68: 8215300 | G68: 27.682493 | H68: -0.04368253396
A69: 2010-05-03 | B69: 40.049999 | C69: 40.389999 | D69: 33.66 | E69: 36.169998 | F69: 10352400 | G69: 28.94697 | H69: -0.0822425011
A70: 2010-04-01 | B70: 37.5 | C70: 41.450001 | D70: 37.5 | E70: 39.84 | F70: 8821300 | G70: 31.540979 | H70: 0.06981739252
A71: 2010-03-01 | B71: 33.830002 | C71: 39.039997 | D71: 33.580002 | E71: 37.240002 | F71: 9489100 | G71: 29.482582 | H71: 0.1043890789
A72: 2010-02-01 | B72: 33.119999 | C72: 34.25 | D72: 31.879997 | E72: 33.720001 | F72: 8244400 | G72: 26.695829 | H72: 0.04709535277
A73: 2010-01-04 | B73: 33.98 | C73: 34.880001 | D73: 31.93 | E73: 32.610001 | F73: 7955000 | G73: 25.495127 | H73: -0.03148197828
A74: 2009-12-01 | B74: 35.040001 | C74: 35.619999 | D74: 31.02 | E74: 33.669998 | F74: 7343200 | G74: 26.323854 | H74: -0.02631591504
A75: 2009-11-02 | B75: 31.889997 | C75: 35.349995 | D75: 31.639999 | E75: 34.580002 | F75: 6592300 | G75: 27.035313 | H75: 0.09976598666
A76: 2009-10-01 | B76: 31.93 | C76: 34.900002 | D76: 30.059999 | E76: 31.82 | F76: 7983800 | G76: 24.582787 | H76: -0.009956381803
A77: 2009-09-01 | B77: 31.799997 | C77: 34.59 | D77: 30.530001 | E77: 32.139999 | F77: 7594400 | G77: 24.830004 | H77: 0.006576882293
A78: 2009-08-03 | B78: 31.359999 | C78: 33.360001 | D78: 30.539999 | E78: 31.93 | F78: 7488300 | G78: 24.667767 | H78: 0.04532613017
A79: 2009-07-01 | B79: 25.629999 | C79: 31.299999 | D79: 23.91 | E79: 30.93 | F79: 8489400 | G79: 23.598154 | H79: 0.2072600476
A80: 2009-06-01 | B80: 28.940001 | C80: 30.23 | D80: 24.039999 | E80: 25.619999 | F80: 10479000 | G80: 19.546869 | H80: -0.1001053943
A81: 2009-05-01 | B81: 27.610001 | C81: 29.949999 | D81: 26.399998 | E81: 28.469999 | F81: 9717100 | G81: 21.721287 | H81: 0.03553386975
A82: 2009-04-01 | B82: 21.76 | C82: 29.049997 | D82: 21.620001 | E82: 27.899998 | F82: 11521100 | G82: 20.975931 | H82: 0.249440219
A83: 2009-03-02 | B83: 17.73 | C83: 23.74 | D83: 16.049999 | E83: 22.33 | F83: 10834400 | G83: 16.788263 | H83: 0.1902984257
A84: 2009-02-02 | B84: 22.699999 | C84: 25.429998 | D84: 18.289999 | E84: 18.76 | F84: 10546300 | G84: 14.104247 | H84: -0.1685245236
A85: 2009-01-02 | B85: 25.42 | C85: 27.979998 | D85: 22.110001 | E85: 22.959997 | F85: 10213200 | G85: 16.962914 | H85: -0.09249013186
A86: 2008-12-01 | B86: 24.620001 | C86: 27.899998 | D86: 22.16 | E86: 25.299999 | F86: 10507400 | G86: 18.691713 | H86: 0.009577031932
A87: 2008-11-03 | B87: 32 | C87: 33.290001 | D87: 21.32 | E87: 25.059999 | F87: 11930100 | G87: 18.5144 | H87: -0.2065413794
A88: 2008-10-01 | B88: 40 | C88: 41.150002 | D88: 27.530001 | E88: 32.040001 | F88: 13038000 | G88: 23.333794 | H88: -0.2049627201
A89: 2008-09-02 | B89: 45.049995 | C89: 48.219997 | D89: 39.450001 | E89: 40.299995 | F89: 10190200 | G89: 29.349308 | H89: -0.09315932788
A90: 2008-08-01 | B90: 43.799995 | C90: 46.659996 | D90: 42.110001 | E90: 44.439999 | F90: 5417100 | G90: 32.364349 | H90: 0.02354485143
A91: 2008-07-01 | B91: 42.429996 | C91: 45.749996 | D91: 40.43 | E91: 43.809998 | F91: 8594800 | G91: 31.619864 | H91: 0.02145025692
A92: 2008-06-02 | B92: 47.82 | C92: 47.82 | D92: 42.360001 | E92: 42.889999 | F92: 8078100 | G92: 30.955853 | H92: -0.1047798868
A93: 2008-05-01 | B93: 48.700001 | C93: 50.049999 | D93: 46.720001 | E93: 47.91 | F93: 5961600 | G93: 34.579041 | H93: -0.01227768883
A94: 2008-04-01 | B94: 47.019997 | C94: 52.489998 | D94: 46.529999 | E94: 48.909996 | F94: 7572500 | G94: 35.008869 | H94: 0.04597943707
A95: 2008-03-03 | B95: 46.459995 | C95: 48.079998 | D95: 44.09 | E95: 46.759998 | F95: 8725300 | G95: 33.46994 | H95: 0.007324438565
A96: 2008-02-01 | B96: 45.099998 | C96: 48.069996 | D96: 44.529995 | E96: 46.419998 | F96: 6910200 | G96: 33.226574 | H96: 0.0364641219
A97: 2008-01-02 | B97: 44.149998 | C97: 46.860001 | D97: 41.259998 | E97: 45.18 | F97: 9546400 | G97: 32.057621 | H97: 0.02472215375
A98: 2007-12-03 | B98: 46.439995 | C98: 47.990002 | D98: 42.249996 | E98: 44.09 | F98: 5817200 | G98: 31.284208 | H98: -0.04463717159
A99: 2007-11-01 | B99: 49.129997 | C99: 49.369999 | D99: 43.790001 | E99: 46.150002 | F99: 7098400 | G99: 32.745892 | H99: -0.05962847018
A100: 2007-10-01 | B100: 49.809998 | C100: 50.419998 | D100: 45.66 | E100: 49.509998 | F100: 5531000 | G100: 34.822292 | H100: -0.001008908853
A101: 2007-09-04 | B101: 48.749996 | C101: 50.650002 | D101: 46.560001 | E101: 49.560001 | F101: 4758900 | G101: 34.85746 | H101: 0.01661543652
A102: 2007-08-01 | B102: 46.649998 | C102: 49.979996 | D102: 45.749996 | E102: 48.749996 | F102: 7168600 | G102: 34.287754 | H102: 0.05123188748
A103: 2007-07-02 | B103: 50.93 | C103: 53.899998 | D103: 46.459995 | E103: 46.73 | F103: 6800100 | G103: 32.616737 | H103: -0.08084187301
A104: 2007-06-01 | B104: 52.32 | C104: 53.25 | D104: 50.110001 | E104: 50.84 | F104: 5767800 | G104: 35.485447 | H104: -0.02828749939
A105: 2007-05-01 | B105: 49.400002 | C105: 52.5 | D105: 48.799999 | E105: 52.32 | F105: 5181500 | G105: 36.518463 | H105: 0.0719001095
A106: 2007-04-02 | B106: 49.489998 | C106: 50.41 | D106: 48.439999 | E106: 49.169998 | F106: 5115800 | G106: 34.068905 | H106: -0.0052599701
A107: 2007-03-01 | B107: 50.499996 | C107: 51.739998 | D107: 48.669998 | E107: 49.43 | F107: 6071700 | G107: 34.249054 | H107: -0.02562589334
A108: 2007-02-01 | B108: 49.900002 | C108: 53.669994 | D108: 48.630001 | E108: 50.73 | F108: 5884800 | G108: 35.149799 | H108: 0.03107350649
A109: 2007-01-03 | B109: 48.700001 | C109: 51 | D109: 47.580002 | E109: 49.560001 | F109: 5638700 | G109: 34.090488 | H109: 0.01745029115
A110: 2006-12-01 | B110: 46.849998 | C110: 49.68 | D110: 45.900002 | E110: 48.709999 | F110: 4220600 | G110: 33.505802 | H110: 0.03792883123
A111: 2006-11-01 | B111: 45.959995 | C111: 48.869999 | D111: 45.079998 | E111: 46.93 | F111: 5440100 | G111: 32.281406 | H111: 0.03275101787
A112: 2006-10-02 | B112: 42.639999 | C112: 46.900002 | D112: 42.48 | E112: 45.799999 | F112: 4398800 | G112: 31.257685 | H112: 0.06909432898
A113: 2006-09-01 | B113: 40.02 | C113: 43.489998 | D113: 39.5 | E113: 42.84 | F113: 3951600 | G113: 29.237537 | H113: 0.07180381816
A114: 2006-08-01 | B114: 39.759995 | C114: 40.860001 | D114: 38.82 | E114: 39.970001 | F114: 3443400 | G114: 27.278814 | H114: 0.01731699469
A115: 2006-07-03 | B115: 41.48 | C115: 41.93 | D115: 39.16 | E115: 39.66 | F115: 4374600 | G115: 26.814468 | H115: -0.04663459067
A116: 2006-06-01 | B116: 42.459999 | C116: 43.380001 | D116: 39.529999 | E116: 41.599998 | F116: 5204200 | G116: 28.126118 | H116: -0.02186688334
A117: 2006-05-01 | B117: 44.209999 | C117: 45.749996 | D117: 41.59 | E117: 42.529999 | F117: 4522800 | G117: 28.754898 | H117: -0.02773078526
A118: 2006-04-03 | B118: 42.279999 | C118: 44.899998 | D118: 42.279999 | E118: 44.099998 | F118: 4593500 | G118: 29.575037 | H118: 0.04477613469
A119: 2006-03-01 | B119: 40.380001 | C119: 43.5 | D119: 40.109997 | E119: 42.209995 | F119: 4384100 | G119: 28.307535 | H119: 0.04895616808
A120: 2006-02-01 | B120: 39.009998 | C120: 42.039997 | D120: 38.519997 | E120: 40.240002 | F120: 5834000 | G120: 26.986385 | H120: 0.03727382989
A121: 2006-01-03 | B121: 43.419998 | C121: 43.419998 | D121: 38.619999 | E121: 39.150002 | F121: 5786300 | G121: 26.016645

Sheet XOM
A1: Date | B1: Open | C1: High | D1: Low | E1: Close | F1: Volume | G1: Adj Close | H1: Returns
A2: 2015-12-01 | B2: 81.760002 | C2: 82.129997 | D2: 73.790001 | E2: 77.949997 | F2: 16978000 | G2: 77.949997 | H2: =(G2/G3)-1 -> -0.04543236368
A3: 2015-11-02 | B3: 82.300003 | C3: 87.440002 | D3: 77.910004 | E3: 81.660004 | F3: 14026000 | G3: 81.660004 | H3: =(G3/G4)-1 -> -0.004449182949
A4: 2015-10-01 | B4: 75.199997 | C4: 83.879997 | D4: 73.029999 | E4: 82.739998 | F4: 15262800 | G4: 82.024948 | H4: 0.1128446188
A5: 2015-09-01 | B5: 73.300003 | C5: 75.470001 | D5: 71.510002 | E5: 74.349998 | F5: 15943800 | G5: 73.707458 | H5: -0.01182872823
A6: 2015-08-03 | B6: 78.699997 | C6: 79.290001 | D6: 66.550003 | E6: 75.239998 | F6: 19385400 | G6: 74.58976 | H6: -0.04123239682
A7: 2015-07-01 | B7: 83.279999 | C7: 83.529999 | D7: 78.93 | E7: 79.209999 | F7: 13648200 | G7: 77.797539 | H7: -0.04795667356
A8: 2015-06-01 | B8: 85.25 | C8: 85.970001 | D8: 82.800003 | E8: 83.199997 | F8: 11535800 | G8: 81.716385 | H8: -0.02347422301
A9: 2015-05-01 | B9: 87.849998 | C9: 90.089996 | D9: 84.769997 | E9: 85.199997 | F9: 10677700 | G9: 83.680725 | H9: -0.01677132944
A10: 2015-04-01 | B10: 85.699997 | C10: 88.669998 | D10: 83.809998 | E10: 87.370003 | F10: 12648500 | G10: 85.108101 | H10: 0.02788239401
A11: 2015-03-02 | B11: 88.339996 | C11: 88.519997 | D11: 82.68 | E11: 85 | F11: 15618800 | G11: 82.799454 | H11: -0.03998195432
A12: 2015-02-02 | B12: 87.849998 | C12: 93.449997 | D12: 87.5 | E12: 88.540001 | F12: 15231200 | G12: 86.24781 | H12: 0.02043519205
A13: 2015-01-02 | B13: 92.25 | C13: 93.050003 | D13: 86.029999 | E13: 87.419998 | F13: 17474900 | G13: 84.520615 | H13: -0.05440778529
A14: 2014-12-01 | B14: 90.360001 | C14: 95.330002 | D14: 86.190002 | E14: 92.449997 | F14: 18730200 | G14: 89.383789 | H14: 0.02109560582
A15: 2014-11-03 | B15: 96.559998 | C15: 97.199997 | D15: 90.110001 | E15: 90.540001 | F15: 12509200 | G15: 87.53714 | H15: -0.05703973536
A16: 2014-10-01 | B16: 94.110001 | C16: 96.889999 | D16: 86.910004 | E16: 96.709999 | F16: 15634100 | G16: 92.832268 | H16: 0.02828275625
A17: 2014-09-02 | B17: 99.43 | C17: 99.589996 | D17: 93.620003 | E17: 94.050003 | F17: 11782000 | G17: 90.278931 | H17: -0.05439371297
A18: 2014-08-01 | B18: 98.620003 | C18: 100.43 | D18: 97.629997 | E18: 99.459999 | F18: 9349000 | G18: 95.472008 | H18: 0.01225853551
A19: 2014-07-01 | B19: 101.150002 | C19: 104.760002 | D19: 98.93 | E19: 98.940002 | F19: 9439300 | G19: 94.315834 | H19: -0.01728246385
A20: 2014-06-02 | B20: 100.529999 | C20: 104.610001 | D20: 99.589996 | E20: 100.68 | F20: 10404500 | G20: 95.97451 | H20: 0.001492097798
A21: 2014-05-01 | B21: 101.959999 | C21: 103.449997 | D21: 100.32 | E21: 100.529999 | F21: 9113600 | G21: 95.83152 | H21: -0.01169296259
A22: 2014-04-01 | B22: 97.650002 | C22: 102.57 | D22: 96.239998 | E22: 102.410004 | F22: 11660300 | G22: 96.965332 | H22: 0.04842346099
A23: 2014-03-03 | B23: 95.760002 | C23: 98.849998 | D23: 93.010002 | E23: 97.68 | F23: 12765400 | G23: 92.486801 | H23: 0.01464631008
A24: 2014-02-03 | B24: 91.919998 | C24: 97.25 | D24: 89.25 | E24: 96.269997 | F24: 13996500 | G24: 91.151764 | H24: 0.05199480958
A25: 2014-01-02 | B25: 100.599998 | C25: 101.220001 | D25: 91.699997 | E25: 92.160004 | F25: 13058500 | G25: 86.646591 | H25: -0.08932802324
A26: 2013-12-02 | B26: 93.269997 | C26: 101.739998 | D26: 92.919998 | E26: 101.199997 | F26: 13228500 | G26: 95.145775 | H26: 0.08258441202
A27: 2013-11-01 | B27: 89.739998 | C27: 96 | D27: 88.269997 | E27: 93.480003 | F27: 12856000 | G27: 87.887627 | H27: 0.05016802067
A28: 2013-10-01 | B28: 85.989998 | C28: 90.959999 | D28: 84.790001 | E28: 89.620003 | F28: 13341600 | G28: 83.68911 | H28: 0.0416086053
A29: 2013-09-03 | B29: 87.699997 | C29: 89.870003 | D29: 85.610001 | E29: 86.040001 | F29: 12800900 | G29: 80.346024 | H29: -0.01284996308
A30: 2013-08-01 | B30: 92.690002 | C30: 93.099998 | D30: 86.389999 | E30: 87.160004 | F30: 12914100 | G30: 81.391907 | H30: -0.06386747094
A31: 2013-07-01 | B31: 90.389999 | C31: 95.489998 | D31: 89.959999 | E31: 93.75 | F31: 11462900 | G31: 86.944855 | H31: 0.03763142001
A32: 2013-06-03 | B32: 90.529999 | C32: 92.269997 | D32: 88.019997 | E32: 90.349998 | F32: 15737500 | G32: 83.791656 | H32: -0.001326413497
A33: 2013-05-01 | B33: 88.519997 | C33: 93.5 | D33: 87.480003 | E33: 90.470001 | F33: 13364200 | G33: 83.902946 | H33: 0.02366392422
A34: 2013-04-01 | B34: 90.129997 | C34: 90.989998 | D34: 85.019997 | E34: 88.989998 | F34: 14132700 | G34: 81.963371 | H34: -0.01242922851
A35: 2013-03-01 | B35: 89.07 | C35: 90.980003 | D35: 87.900002 | E35: 90.110001 | F35: 14126500 | G35: 82.994934 | H35: 0.006253434504
A36: 2013-02-01 | B36: 90.440002 | C36: 90.5 | D36: 87.610001 | E36: 89.550003 | F36: 13249100 | G36: 82.479156 | H36: 0.001690613102
A37: 2013-01-02 | B37: 87.790001 | C37: 91.93 | D37: 87.239998 | E37: 89.970001 | F37: 13213700 | G37: 82.339951 | H37: 0.03951471223
A38: 2012-12-03 | B38: 88.550003 | C38: 90.370003 | D38: 84.699997 | E38: 86.550003 | F38: 15112600 | G38: 79.209991 | H38: -0.01803945164
A39: 2012-11-01 | B39: 90.25 | C39: 92.050003 | D39: 85.059998 | E39: 88.139999 | F39: 14342700 | G39: 80.665146 | H39: -0.027181652
A40: 2012-10-01 | B40: 91.790001 | C40: 93.669998 | D40: 89.68 | E40: 91.169998 | F40: 12188600 | G40: 82.919022 | H40: -0.003061797804
A41: 2012-09-04 | B41: 87.330002 | C41: 92.57 | D41: 86.519997 | E41: 91.449997 | F41: 14037000 | G41: 83.173683 | H41: 0.04753724345
A42: 2012-08-01 | B42: 87.019997 | C42: 88.910004 | D42: 85.5 | E42: 87.300003 | F42: 11399500 | G42: 79.399261 | H42: 0.01171366356
A43: 2012-07-02 | B43: 85.440002 | C43: 87.849998 | D43: 82.830002 | E43: 86.849998 | F43: 15548900 | G43: 78.479973 | H43: 0.01495857796
A44: 2012-06-01 | B44: 77.870003 | C44: 85.699997 | D44: 77.129997 | E44: 85.57 | F44: 24899800 | G44: 77.323326 | H44: 0.08826140998
A45: 2012-05-01 | B45: 86.459999 | C45: 87.519997 | D45: 78.410004 | E45: 78.629997 | F45: 17847200 | G45: 71.052162 | H45: -0.08302422855
A46: 2012-04-02 | B46: 86.599998 | C46: 87.669998 | D46: 81.879997 | E46: 86.339996 | F46: 15598400 | G46: 77.485321 | H46: -0.004496749914
A47: 2012-03-01 | B47: 86.470001 | C47: 87.25 | D47: 84.050003 | E47: 86.730003 | F47: 15994500 | G47: 77.835327 | H47: 0.0026589706
A48: 2012-02-01 | B48: 84.230003 | C48: 87.830002 | D48: 83.190002 | E48: 86.5 | F48: 15949600 | G48: 77.628914 | H48: 0.03861300905
A49: 2012-01-03 | B49: 85.970001 | C49: 87.940002 | D49: 83.459999 | E49: 83.739998 | F49: 18038500 | G49: 74.742867 | H49: -0.012034045
A50: 2011-12-01 | B50: 80.199997 | C50: 85.629997 | D50: 78.660004 | E50: 84.760002 | F50: 18567500 | G50: 75.653282 | H50: 0.05370456704
A51: 2011-11-01 | B51: 75.82 | C51: 80.529999 | D51: 73.900002 | E51: 80.440002 | F51: 22774900 | G51: 71.797432 | H51: 0.03623140966
A52: 2011-10-03 | B52: 72.050003 | C52: 82.199997 | D52: 69.209999 | E52: 78.089996 | F52: 25943600 | G52: 69.287064 | H52: 0.07517543606
A53: 2011-09-01 | B53: 74.150002 | C53: 74.980003 | D53: 67.93 | E53: 72.629997 | F53: 27687600 | G53: 64.442566 | H53: -0.01877869214
A54: 2011-08-01 | B54: 80.82 | C54: 81.18 | D54: 67.029999 | E54: 74.019997 | F54: 34928400 | G54: 65.675873 | H54: -0.06618854355
A55: 2011-07-01 | B55: 81.190002 | C55: 85.410004 | D55: 79.760002 | E55: 79.790001 | F55: 20103800 | G55: 70.330978 | H55: -0.01953794071
A56: 2011-06-01 | B56: 83.550003 | C56: 83.650002 | D56: 76.720001 | E56: 81.379997 | F56: 21103900 | G56: 71.732483 | H56: -0.02503892812
A57: 2011-05-02 | B57: 88.099998 | C57: 88.129997 | D57: 79.419998 | E57: 83.470001 | F57: 20355400 | G57: 73.574715 | H57: -0.04588081583
A58: 2011-04-01 | B58: 84.720001 | C58: 88 | D58: 82.379997 | E58: 87.980003 | F58: 16353700 | G58: 77.112709 | H58: 0.04576255382
A59: 2011-03-01 | B59: 86.410004 | C59: 86.5 | D59: 78.800003 | E59: 84.129997 | F59: 19767400 | G59: 73.738258 | H59: -0.01636855287
A60: 2011-02-01 | B60: 81.139999 | C60: 88.230003 | D60: 81.040001 | E60: 85.529999 | F60: 24636800 | G60: 74.965332 | H60: 0.06570089038
A61: 2011-01-03 | B61: 73.720001 | C61: 80.82 | D61: 73.639999 | E61: 80.68 | F61: 24194700 | G61: 70.343689 | H61: 0.1033916628
A62: 2010-12-01 | B62: 70.379997 | C62: 73.690002 | D62: 70.379997 | E62: 73.120003 | F62: 19295900 | G62: 63.752239 | H62: 0.05117892543
A63: 2010-11-01 | B63: 66.720001 | C63: 71.900002 | D63: 66.629997 | E63: 69.559998 | F63: 24468700 | G63: 60.648323 | H63: 0.05275949868
A64: 2010-10-01 | B64: 62.32 | C64: 66.809998 | D64: 61.799999 | E64: 66.489998 | F64: 21413900 | G64: 57.608906 | H64: 0.07606410303
A65: 2010-09-01 | B65: 60.040001 | C65: 62.439999 | D65: 59.720001 | E65: 61.790001 | F65: 21372500 | G65: 53.536686 | H65: 0.04533914969
A66: 2010-08-02 | B66: 60.639999 | C66: 62.990002 | D66: 58.049999 | E66: 59.110001 | F66: 22846100 | G66: 51.214657 | H66: -0.002463599319
A67: 2010-07-01 | B67: 56.98 | C67: 61.880001 | D67: 55.939999 | E67: 59.68 | F67: 30611600 | G67: 51.341141 | H67: =(G67/G68)-1 -> 0.04573333883
A68: 2010-06-01 | B68: 60.380001 | C68: 64.5 | D68: 56.919998 | E68: 57.07 | F68: 38748500 | G68: 49.095825 | H68: -0.05607014468
A69: 2010-05-03 | B69: 68.110001 | C69: 68.220001 | D69: 58.459999 | E69: 60.459999 | F69: 40034400 | G69: 52.012154 | H69: -0.1018061669
A70: 2010-04-01 | B70: 67.269997 | C70: 70 | D70: 66.849998 | E70: 67.769997 | F70: 27383200 | G70: 57.907494 | H70: 0.01179445905
A71: 2010-03-01 | B71: 65.360001 | C71: 67.889999 | D71: 65.080002 | E71: 66.980003 | F71: 26307800 | G71: 57.232468 | H71: 0.03046162024
A72: 2010-02-01 | B72: 65.769997 | C72: 67.230003 | D72: 63.560001 | E72: 65 | F72: 29209100 | G72: 55.540611 | H72: 0.01542832577
A73: 2010-01-04 | B73: 68.720001 | C73: 70.599998 | D73: 64.019997 | E73: 64.43 | F73: 33544900 | G73: 54.696732 | H73: -0.05514008506
A74: 2009-12-01 | B74: 76 | C74: 76.300003 | D74: 67.639999 | E74: 68.190002 | F74: 30354400 | G74: 57.888721 | H74: -0.09164779546
A75: 2009-11-02 | B75: 72.050003 | C75: 76.540001 | D75: 71.040001 | E75: 75.07 | F75: 18893700 | G75: 63.729378 | H75: 0.05353617919
A76: 2009-10-01 | B76: 68.389999 | C76: 75 | D76: 66.110001 | E76: 71.669998 | F76: 24248100 | G76: 60.490925 | H76: 0.04459986393
A77: 2009-09-01 | B77: 68.93 | C77: 71.080002 | D77: 67.830002 | E77: 68.610001 | F77: 21252200 | G77: 57.908226 | H77: -0.007809129183
A78: 2009-08-03 | B78: 70.959999 | C78: 71.889999 | D78: 66.089996 | E78: 69.150002 | F78: 22000100 | G78: 58.363998 | H78: -0.01161549965
A79: 2009-07-01 | B79: 70.669998 | C79: 72.790001 | D79: 64.459999 | E79: 70.389999 | F79: 26744900 | G79: 59.049892 | H79: 0.006865934524
A80: 2009-06-01 | B80: 70.459999 | C80: 74.830002 | D80: 68.080002 | E80: 69.910004 | F80: 28378500 | G80: 58.647224 | H80: 0.008075002818
A81: 2009-05-01 | B81: 67.129997 | C81: 71.389999 | D81: 65.599998 | E81: 69.349998 | F81: 28182500 | G81: 58.177441 | H81: 0.04640555931
A82: 2009-04-01 | B82: 67.040001 | C82: 71.150002 | D82: 64.5 | E82: 66.669998 | F82: 31807000 | G82: 55.597412 | H82: -0.02099853395
A83: 2009-03-02 | B83: 67 | C83: 71.489998 | D83: 61.860001 | E83: 68.099998 | F83: 44299400 | G83: 56.789917 | H83: 0.002945421358
A84: 2009-02-02 | B84: 76.059998 | C84: 80.5 | D84: 67.900002 | E84: 67.900002 | F84: 44023900 | G84: 56.623138 | H84: -0.1077124435
A85: 2009-01-02 | B85: 80.059998 | C85: 82.730003 | D85: 74.010002 | E85: 76.480003 | F85: 44804300 | G85: 63.458397 | H85: -0.0419641909
A86: 2008-12-01 | B86: 77.889999 | C86: 83.639999 | D86: 72.68 | E86: 79.830002 | F86: 46656300 | G86: 66.238022 | H86: -0.003992539345
A87: 2008-11-03 | B87: 73.449997 | C87: 81.029999 | D87: 67.540001 | E87: 80.150002 | F87: 54003200 | G87: 66.50354 | H87: 0.08757288926
A88: 2008-10-01 | B88: 77.190002 | C88: 81.75 | D88: 56.509998 | E88: 74.120003 | F88: 62482300 | G88: 61.148582 | H88: -0.04558329644
A89: 2008-09-02 | B89: 78.040001 | C89: 82 | D89: 71.510002 | E89: 77.660004 | F89: 38705200 | G89: 64.069061 | H89: -0.02937131806
A90: 2008-08-01 | B90: 80.550003 | C90: 81.5 | D90: 76.139999 | E90: 80.010002 | F90: 26908400 | G90: 66.007797 | H90: -0.0001413421075
A91: 2008-07-01 | B91: 87.870003 | C91: 89.629997 | D91: 79.099998 | E91: 80.43 | F91: 33014400 | G91: 66.017128 | H91: -0.08737099724
A92: 2008-06-02 | B92: 88.089996 | C92: 90.5 | D92: 84.769997 | E92: 88.129997 | F92: 28218100 | G92: 72.337311 | H92: -0.00709778526
A93: 2008-05-01 | B93: 90.099998 | C93: 96.120003 | D93: 87.599998 | E93: 88.760002 | F93: 28713400 | G93: 72.854416 | H93: -0.04204838429
A94: 2008-04-01 | B94: 84.800003 | C94: 94.93 | D94: 84.260002 | E94: 93.07 | F94: 23311500 | G94: 76.052292 | H94: 0.1003783176
A95: 2008-03-03 | B95: 86.830002 | C95: 88.5 | D95: 81.970001 | E95: 84.580002 | F95: 32253000 | G95: 69.114677 | H95: -0.02792773915
A96: 2008-02-01 | B96: 87.699997 | C96: 90.169998 | D96: 80.360001 | E96: 87.010002 | F96: 25879700 | G96: 71.100349 | H96: 0.01966812561
A97: 2008-01-02 | B97: 94.150002 | C97: 94.739998 | D97: 77.550003 | E97: 85.699997 | F97: 30841000 | G97: 69.728912 | H97: -0.08528130374
A98: 2007-12-03 | B98: 88.970001 | C98: 95.099998 | D98: 87.709999 | E98: 93.690002 | F98: 20010700 | G98: 76.229897 | H98: 0.05080748592
A99: 2007-11-01 | B99: 89.830002 | C99: 90.949997 | D99: 83.370003 | E99: 89.160004 | F99: 27441300 | G99: 72.544113 | H99: -0.02699616033
A100: 2007-10-01 | B100: 92.449997 | C100: 95.269997 | D100: 89.669998 | E100: 91.989998 | F100: 23720000 | G100: 74.556862 | H100: -0.006158119993
A101: 2007-09-04 | B101: 85.309998 | C101: 93.660004 | D101: 83.879997 | E101: 92.559998 | F101: 24540500 | G101: 75.018837 | H101: 0.07966858698
A102: 2007-08-01 | B102: 84.989998 | C102: 87.900002 | D102: 78.760002 | E102: 85.730003 | F102: 30846000 | G102: 69.483208 | H102: 0.01107403817
A103: 2007-07-02 | B103: 84.5 | C103: 93.620003 | D103: 84.120003 | E103: 85.129997 | F103: 28263400 | G103: 68.722176 | H103: 0.01490227216
A104: 2007-06-01 | B104: 83.559998 | C104: 86.580002 | D104: 80.849998 | E104: 83.879997 | F104: 25316000 | G104: 67.713097 | H104: 0.008536661617
A105: 2007-05-01 | B105: 79.5 | C105: 84.32 | D105: 79.050003 | E105: 83.169998 | F105: 21117100 | G105: 67.139946 | H105: 0.05226847732
A106: 2007-04-02 | B106: 75.349998 | C106: 80.879997 | D106: 75.279999 | E106: 79.379997 | F106: 23657200 | G106: 63.804958 | H106: 0.05208749185
A107: 2007-03-01 | B107: 70.900002 | C107: 76.349998 | D107: 69.019997 | E107: 75.449997 | F107: 28874700 | G107: 60.646057 | H107: 0.05259478621
A108: 2007-02-01 | B108: 74.580002 | C108: 76.099998 | D108: 71.18 | E108: 71.68 | F108: 24060100 | G108: 57.615768 | H108: -0.02853892533
A109: 2007-01-03 | B109: 76.260002 | C109: 76.269997 | D109: 70.639999 | E109: 74.099998 | F109: 26449000 | G109: 59.308365 | H109: -0.03301576702
A110: 2006-12-01 | B110: 76.779999 | C110: 79 | D110: 74.82 | E110: 76.629997 | F110: 19954400 | G110: 61.333332 | H110: -0.002343462725
A111: 2006-11-01 | B111: 71.580002 | C111: 77.370003 | D111: 70.269997 | E111: 76.809998 | F111: 20701700 | G111: 61.477402 | H111: 0.08013169449
A112: 2006-10-02 | B112: 67.290001 | C112: 72.330002 | D112: 64.839996 | E112: 71.419998 | F112: 21755300 | G112: 56.91658 | H112: 0.0643815622
A113: 2006-09-01 | B113: 67.849998 | C113: 68.650002 | D113: 63.869999 | E113: 67.099998 | F113: 24726500 | G113: 53.47385 | H113: -0.008423270829
A114: 2006-08-01 | B114: 67.239998 | C114: 71.220001 | D114: 67.010002 | E114: 67.669998 | F114: 22894000 | G114: 53.928101 | H114: 0.003601554627
A115: 2006-07-03 | B115: 61.799999 | C115: 67.940002 | D115: 61.630001 | E115: 67.739998 | F115: 22007100 | G115: 53.734573 | H115: 0.1041564944
A116: 2006-06-01 | B116: 60.400002 | C116: 62.650002 | D116: 56.639999 | E116: 61.349998 | F116: 24370100 | G116: 48.665722 | H116: 0.007223714138
A117: 2006-05-01 | B117: 63.400002 | C117: 64.769997 | D117: 59.150002 | E117: 60.91 | F117: 20876700 | G117: 48.316696 | H117: -0.0295439125
A118: 2006-04-03 | B118: 61.360001 | C118: 65 | D118: 60.43 | E118: 63.080002 | F118: 19051100 | G118: 49.787617 | H118: 0.03647712231
A119: 2006-03-01 | B119: 59.59 | C119: 61.919998 | D119: 58.439999 | E119: 60.860001 | F119: 19242900 | G119: 48.035423 | H119: 0.02509688665
A120: 2006-02-01 | B120: 62.77 | C120: 63.080002 | D120: 58.599998 | E120: 59.369999 | F120: 20284700 | G120: 46.859398 | H120: -0.04883771591
A121: 2006-01-03 | B121: 56.419998 | C121: 63.959999 | D121: 56.419998 | E121: 62.75 | F121: 21662600 | G121: 49.265408

Sheet GE
A1: Date | B1: Open | C1: High | D1: Low | E1: Close | F1: Volume | G1: Adj Close | H1: Returns
A2: 2015-12-01 | B2: 29.99 | C2: 31.49 | D2: 29.77 | E2: 31.15 | F2: 52952200 | G2: 31.15 | H2: =(G2/G3)-1 -> 0.04819608986
A3: 2015-11-02 | B3: 28.940001 | C3: 30.99 | D3: 28.879999 | E3: 29.940001 | F3: 168162300 | G3: 29.717722 | H3: =(G3/G4)-1 -> 0.03526965895
A4: 2015-10-01 | B4: 25.15 | C4: 29.83 | D4: 24.790001 | E4: 28.92 | F4: 70531700 | G4: 28.705296 | H4: 0.1467090548
A5: 2015-09-01 | B5: 24.24 | C5: 26.030001 | D5: 23.68 | E5: 25.219999 | F5: 46312500 | G5: 25.032763 | H5: 0.02520967483
A6: 2015-08-03 | B6: 26.120001 | C6: 26.33 | D6: 19.370001 | E6: 24.82 | F6: 38806900 | G6: 24.417213 | H6: -0.04904215502
A7: 2015-07-01 | B7: 26.67 | C7: 27.33 | D7: 25.52 | E7: 26.1 | F7: 29094100 | G7: 25.676441 | H7: -0.01768909705
A8: 2015-06-01 | B8: 27.26 | C8: 27.68 | D8: 26.530001 | E8: 26.57 | F8: 33375800 | G8: 26.138813 | H8: -0.01738170556
A9: 2015-05-01 | B9: 27.09 | C9: 27.790001 | D9: 26.610001 | E9: 27.27 | F9: 34048900 | G9: 26.601187 | H9: 0.007016281061
A10: 2015-04-01 | B10: 24.719999 | C10: 28.68 | D10: 24.57 | E10: 27.08 | F10: 67788700 | G10: 26.415846 | H10: 0.09149537267
A11: 2015-03-02 | B11: 25.879999 | C11: 26.120001 | D11: 24.67 | E11: 24.809999 | F11: 35538800 | G11: 24.201519 | H11: -0.0454020871
A12: 2015-02-02 | B12: 24 | C12: 26.27 | D12: 23.9 | E12: 25.99 | F12: 38124900 | G12: 25.352579 | H12: 0.0979036893
A13: 2015-01-02 | B13: 25.34 | C13: 25.459999 | D13: 23.41 | E13: 23.889999 | F13: 47700900 | G13: 23.091806 | H13: -0.05461030576
A14: 2014-12-01 | B14: 26.16 | C14: 26.469999 | D14: 24.059999 | E14: 25.27 | F14: 40687800 | G14: 24.425701 | H14: -0.03707401111
A15: 2014-11-03 | B15: 25.49 | C15: 27.1 | D15: 25.48 | E15: 26.49 | F15: 28829100 | G15: 25.366125 | H15: 0.02634637502
A16: 2014-10-01 | B16: 25.43 | C16: 25.93 | D16: 23.690001 | E16: 25.809999 | F16: 37177400 | G16: 24.714975 | H16: 0.007416040664
A17: 2014-09-02 | B17: 25.889999 | C17: 26.4 | D17: 25.299999 | E17: 25.620001 | F17: 28269200 | G17: 24.533037 | H17: -0.005528504073
A18: 2014-08-01 | B18: 25.07 | C18: 26.450001 | D18: 24.75 | E18: 25.98 | F18: 27001000 | G18: 24.669422 | H18: 0.03300198331
A19: 2014-07-01 | B19: 26.27 | C19: 27.15 | D19: 25.15 | E19: 25.15 | F19: 34881200 | G19: 23.881292 | H19: -0.04299853853
A20: 2014-06-02 | B20: 26.709999 | C20: 27.530001 | D20: 26.200001 | E20: 26.280001 | F20: 28162300 | G20: 24.95429 | H20: -0.01094503393
A21: 2014-05-01 | B21: 26.73 | C21: 26.959999 | D21: 26.15 | E21: 26.790001 | F21: 21905100 | G21: 25.230438 | H21: -0.003718792961
A22: 2014-04-01 | B22: 25.83 | C22: 26.9 | D22: 25.43 | E22: 26.889999 | F22: 32731000 | G22: 25.324615 | H22: 0.03862492582
A23: 2014-03-03 | B23: 25.209999 | C23: 26.35 | D23: 24.92 | E23: 25.889999 | F23: 34011600 | G23: 24.38283 | H23: 0.01648998969
A24: 2014-02-03 | B24: 25.129999 | C24: 26.040001 | D24: 24.32 | E24: 25.469999 | F24: 37064800 | G24: 23.98728 | H24: 0.02238505708
A25: 2014-01-02 | B25: 27.860001 | C25: 27.940001 | D25: 24.9 | E25: 25.129999 | F25: 45898300 | G25: 23.46208 | H25: -0.1034606066
A26: 2013-12-02 | B26: 26.65 | C26: 28.09 | D26: 26.200001 | E26: 28.030001 | F26: 36802800 | G26: 26.169603 | H26: 0.05989476385
A27: 2013-11-01 | B27: 26.049999 | C27: 27.5 | D27: 26.030001 | E27: 26.66 | F27: 36825500 | G27: 24.690756 | H27: 0.01989287859
A28: 2013-10-01 | B28: 23.940001 | C28: 26.48 | D28: 23.5 | E28: 26.139999 | F28: 40825700 | G28: 24.209166 | H28: 0.09418169068
A29: 2013-09-03 | B29: 23.309999 | C29: 24.91 | D29: 22.92 | E29: 23.889999 | F29: 38743100 | G29: 22.125362 | H29: 0.04036268448
A30: 2013-08-01 | B30: 24.6 | C30: 24.870001 | D30: 23.040001 | E30: 23.139999 | F30: 31680000 | G30: 21.26697 | H30: -0.05047186485
A31: 2013-07-01 | B31: 23.209999 | C31: 24.950001 | D31: 22.76 | E31: 24.370001 | F31: 37830200 | G31: 22.397409 | H31: 0.05088396369
A32: 2013-06-03 | B32: 23.370001 | C32: 24.450001 | D32: 22.76 | E32: 23.190001 | F32: 46064200 | G32: 21.312923 | H32: 0.002367444974
A33: 2013-05-01 | B33: 22.1 | C33: 24.129999 | D33: 22.1 | E33: 23.32 | F33: 40605700 | G33: 21.262585 | H33: 0.0462090162
A34: 2013-04-01 | B34: 23.030001 | C34: 23.719999 | D34: 21.110001 | E34: 22.290001 | F34: 45473700 | G34: 20.323458 | H34: -0.03589965404
A35: 2013-03-01 | B35: 23.02 | C35: 23.9 | D35: 22.85 | E35: 23.120001 | F35: 35856200 | G35: 21.080231 | H35: -0.004306516062
A36: 2013-02-01 | B36: 22.43 | C36: 23.75 | D36: 22.27 | E36: 23.219999 | F36: 42399400 | G36: 21.171406 | H36: 0.0507179694
A37: 2013-01-02 | B37: 21.51 | C37: 22.58 | D37: 20.68 | E37: 22.280001 | F37: 45481800 | G37: 20.149466 | H37: 0.0614579361
A38: 2012-12-03 | B38: 21.18 | C38: 21.950001 | D38: 20.26 | E38: 20.99 | F38: 48120000 | G38: 18.982821 | H38: 0.002439717202
A39: 2012-11-01 | B39: 21.030001 | C39: 21.780001 | D39: 19.870001 | E39: 21.129999 | F39: 41367900 | G39: 18.936621 | H39: 0.003323798467
A40: 2012-10-01 | B40: 22.73 | C40: 23.18 | D40: 20.969999 | E40: 21.059999 | F40: 45216000 | G40: 18.873888 | H40: -0.07265515332
A41: 2012-09-04 | B41: 20.629999 | C41: 22.959999 | D41: 20.48 | E41: 22.709999 | F41: 57152600 | G41: 20.35261 | H41: 0.1049462234
A42: 2012-08-01 | B42: 20.860001 | C42: 21.190001 | D42: 20.200001 | E42: 20.709999 | F42: 31618300 | G42: 18.419548 | H42: -0.001927703114
A43: 2012-07-02 | B43: 20.74 | C43: 21 | D43: 19.360001 | E43: 20.75 | F43: 51637000 | G43: 18.455124 | H43: -0.004318708238
A44: 2012-06-01 | B44: 18.82 | C44: 20.84 | D44: 18.02 | E44: 20.84 | F44: 62921700 | G44: 18.535172 | H44: 0.1040621486
A45: 2012-05-01 | B45: 19.58 | C45: 19.950001 | D45: 18.32 | E45: 19.09 | F45: 46065700 | G45: 16.78816 | H45: -0.02502550079
A46: 2012-04-02 | B46: 20.030001 | C46: 20.110001 | D46: 18.700001 | E46: 19.58 | F46: 43774500 | G46: 17.219076 | H46: -0.02441451532
A47: 2012-03-01 | B47: 19.15 | C47: 21 | D47: 18.32 | E47: 20.07 | F47: 50233700 | G47: 17.649992 | H47: 0.0535433664
A48: 2012-02-01 | B48: 18.940001 | C48: 19.5 | D48: 18.700001 | E48: 19.049999 | F48: 49933200 | G48: 16.752981 | H48: 0.02717765681
A49: 2012-01-03 | B49: 18.23 | C49: 19.27 | D49: 18.23 | E49: 18.709999 | F49: 51444600 | G49: 16.309721 | H49: 0.04466784022
A50: 2011-12-01 | B50: 15.89 | C50: 18.280001 | D50: 15.73 | E50: 17.91 | F50: 73366100 | G50: 15.612351 | H50: 0.1366301029
A51: 2011-11-01 | B51: 16.129999 | C51: 16.690001 | D51: 14.68 | E51: 15.91 | F51: 64405900 | G51: 13.735648 | H51: -0.04787549697
A52: 2011-10-03 | B52: 15.1 | C52: 17.5 | D52: 14.02 | E52: 16.709999 | F52: 70815300 | G52: 14.426315 | H52: 0.09789741938
A53: 2011-09-01 | B53: 16.309999 | C53: 16.450001 | D53: 14.72 | E53: 15.22 | F53: 88186000 | G53: 13.139948 | H53: -0.05788036008
A54: 2011-08-01 | B54: 18.389999 | C54: 18.42 | D54: 14.82 | E54: 16.309999 | F54: 93424200 | G54: 13.947218 | H54: -0.08933558579
A55: 2011-07-01 | B55: 18.860001 | C55: 19.530001 | D55: 17.780001 | E55: 17.91 | F55: 56825300 | G55: 15.315431 | H55: -0.05037119738
A56: 2011-06-01 | B56: 19.469999 | C56: 19.6 | D56: 17.969999 | E56: 18.860001 | F56: 53951800 | G56: 16.127808 | H56: -0.03181772503
A57: 2011-05-02 | B57: 20.700001 | C57: 20.709999 | D57: 18.969999 | E57: 19.639999 | F57: 45910500 | G57: 16.657822 | H57: -0.03960886099
A58: 2011-04-01 | B58: 20.139999 | C58: 20.85 | D58: 19.51 | E58: 20.450001 | F58: 56259100 | G58: 17.344831 | H58: 0.01995023276
A59: 2011-03-01 | B59: 21.120001 | C59: 21.17 | D59: 18.6 | E59: 20.049999 | F59: 63914200 | G59: 17.005566 | H59: -0.04158703171
A60: 2011-02-01 | B60: 20.379999 | C60: 21.65 | D60: 20.08 | E60: 20.92 | F60: 52895600 | G60: 17.743464 | H60: 0.04591735954
A61: 2011-01-03 | B61: 18.49 | C61: 20.74 | D61: 18.120001 | E61: 20.139999 | F61: 76413100 | G61: 16.964499 | H61: 0.1011480968
A62: 2010-12-01 | B62: 16.030001 | C62: 18.49 | D62: 16.030001 | E62: 18.290001 | F62: 57131500 | G62: 15.406192 | H62: 0.1645090838
A63: 2010-11-01 | B63: 16.09 | C63: 16.860001 | D63: 15.63 | E63: 15.83 | F63: 55387200 | G63: 13.229774 | H63: -0.01186019562
A64: 2010-10-01 | B64: 16.4 | C64: 17.49 | D64: 15.88 | E64: 16.02 | F64: 64676100 | G64: 13.388565 | H64: -0.01415382101
A65: 2010-09-01 | B65: 14.73 | C65: 16.700001 | D65: 14.6 | E65: 16.25 | F65: 60450700 | G65: 13.580785 | H65: 0.1305402113
A66: 2010-08-02 | B66: 16.32 | C66: 16.540001 | D66: 14.25 | E66: 14.48 | F66: 60617900 | G66: 12.012651 | H66: -0.1017370486
A67: 2010-07-01 | B67: 14.33 | C67: 16.57 | D67: 13.75 | E67: 16.120001 | F67: 75597900 | G67: 13.373201 | H67: =(G67/G68)-1 -> 0.1178918947
A68: 2010-06-01 | B68: 16.24 | C68: 16.51 | D68: 14.27 | E68: 14.42 | F68: 83717300 | G68: 11.962875 | H68: -0.1124431239
A69: 2010-05-03 | B69: 18.969999 | C69: 19.34 | D69: 15.15 | E69: 16.35 | F69: 106550400 | G69: 13.478432 | H69: -0.1330858953
A70: 2010-04-01 | B70: 18.27 | C70: 19.700001 | D70: 18.18 | E70: 18.860001 | F70: 82505100 | G70: 15.547598 | H70: 0.03626377127
A71: 2010-03-01 | B71: 16.1 | C71: 18.940001 | D71: 15.83 | E71: 18.200001 | F71: 93007300 | G71: 15.003514 | H71: 0.1332503586
A72: 2010-02-01 | B72: 16.200001 | C72: 17.030001 | D72: 15.25 | E72: 16.059999 | F72: 77313200 | G72: 13.239364 | H72: 0.004990655947
A73: 2010-01-04 | B73: 15.22 | C73: 16.92 | D73: 15.15 | E73: 16.08 | F73: 88647000 | G73: 13.173619 | H73: 0.06278906052
A74: 2009-12-01 | B74: 16.27 | C74: 16.49 | D74: 15.13 | E74: 15.13 | F74: 62454500 | G74: 12.395328 | H74: -0.04941470956
A75: 2009-11-02 | B75: 14.3 | C75: 16.25 | D75: 14.15 | E75: 16.02 | F75: 80429200 | G75: 13.03968 | H75: 0.1234221519
A76: 2009-10-01 | B76: 16.309999 | C76: 16.870001 | D76: 14.15 | E76: 14.26 | F76: 103007100 | G76: 11.607106 | H76: -0.1315469516
A77: 2009-09-01 | B77: 13.74 | C77: 17.52 | D77: 13.03 | E77: 16.42 | F77: 132466400 | G77: 13.365266 | H77: 0.1882849615
A78: 2009-08-03 | B78: 13.65 | C78: 14.88 | D78: 13.16 | E78: 13.9 | F78: 86516200 | G78: 11.247526 | H78: 0.03731340737
A79: 2009-07-01 | B79: 11.76 | C79: 13.45 | D79: 10.5 | E79: 13.4 | F79: 100768400 | G79: 10.842939 | H79: 0.14334468
A80: 2009-06-01 | B80: 13.82 | C80: 13.99 | D80: 11.25 | E80: 11.72 | F80: 87259400 | G80: 9.483526 | H80: -0.1234079432
A81: 2009-05-01 | B81: 12.74 | C81: 14.55 | D81: 12.22 | E81: 13.48 | F81: 104569000 | G81: 10.818631 | H81: 0.06561271916
A82: 2009-04-01 | B82: 9.91 | C82: 12.81 | D82: 9.8 | E82: 12.65 | F82: 133547800 | G82: 10.152498 | H82: 0.2512362007
A83: 2009-03-02 | B83: 8.29 | C83: 11.35 | D83: 5.87 | E83: 10.11 | F83: 277438100 | G83: 8.113974 | H83: 0.1880141666
A84: 2009-02-02 | B84: 12.03 | C84: 12.9 | D84: 8.4 | E84: 8.51 | F84: 194928800 | G84: 6.829863 | H84: -0.2778189101
A85: 2009-01-02 | B85: 16.51 | C85: 17.24 | D85: 11.87 | E85: 12.13 | F85: 117847200 | G85: 9.457272 | H85: -0.2512345131
A86: 2008-12-01 | B86: 16.360001 | C86: 19.299999 | D86: 15.35 | E86: 16.200001 | F86: 98683700 | G86: 12.630486 | H86: -0.03834956986
A87: 2008-11-03 | B87: 19.780001 | C87: 21.040001 | D87: 12.58 | E87: 17.17 | F87: 134841700 | G87: 13.134176 | H87: -0.1199384997
A88: 2008-10-01 | B88: 24 | C88: 25.75 | D88: 17.27 | E88: 19.51 | F88: 164650600 | G88: 14.924157 | H88: -0.2349019166
A89: 2008-09-02 | B89: 28.540001 | C89: 29.280001 | D89: 22.16 | E89: 25.5 | F89: 105769100 | G89: 19.506201 | H89: -0.08033796406
A90: 2008-08-01 | B90: 28.43 | C90: 30.389999 | D90: 27.76 | E90: 28.1 | F90: 43604700 | G90: 21.210184 | H90: -0.006716151536
A91: 2008-07-01 | B91: 26.42 | C91: 29.889999 | D91: 25.6 | E91: 28.290001 | F91: 69943000 | G91: 21.353598 | H91: 0.05994752977
A92: 2008-06-02 | B92: 30.75 | C92: 31.139999 | D92: 26.15 | E92: 26.690001 | F92: 75218200 | G92: 20.145901 | H92: -0.1215313268
A93: 2008-05-01 | B93: 32.799999 | C93: 33.619999 | D93: 30.209999 | E93: 30.719999 | F93: 52851400 | G93: 22.932976 | H93: -0.0605504984
A94: 2008-04-01 | B94: 37.360001 | C94: 38.52 | D94: 31.549999 | E94: 32.700001 | F94: 64485500 | G94: 24.411079 | H94: -0.116454989
A95: 2008-03-03 | B95: 33.34 | C95: 37.740002 | D95: 31.65 | E95: 37.009998 | F95: 59927700 | G95: 27.628563 | H95: 0.1167772844
A96: 2008-02-01 | B96: 35.59 | C96: 36.299999 | D96: 33.09 | E96: 33.139999 | F96: 45001500 | G96: 24.739546 | H96: -0.05425014748
A97: 2008-01-02 | B97: 37.099998 | C97: 37.450001 | D97: 32.919998 | E97: 35.360001 | F97: 55123800 | G97: 26.158657 | H97: -0.04612896087
A98: 2007-12-03 | B98: 38.200001 | C98: 38.200001 | D98: 36.07 | E98: 37.07 | F98: 42936400 | G98: 27.423683 | H98: -0.02358522543
A99: 2007-11-01 | B99: 40.889999 | C99: 40.98 | D99: 36.52 | E99: 38.290001 | F99: 45186900 | G99: 28.0861 | H99: -0.06972786474
A100: 2007-10-01 | B100: 41.279999 | C100: 42.150002 | D100: 39.400002 | E100: 41.16 | F100: 32919400 | G100: 30.191273 | H100: -0.005797088086
A101: 2007-09-04 | B101: 38.84 | C101: 42.07 | D101: 38.450001 | E101: 41.400002 | F101: 37426500 | G101: 30.367315 | H101: 0.07227674827
A102: 2007-08-01 | B102: 38.599998 | C102: 40.459999 | D102: 36.200001 | E102: 38.869999 | F102: 46947200 | G102: 28.320408 | H102: 0.002837969321
A103: 2007-07-02 | B103: 38.419998 | C103: 40.98 | D103: 37.73 | E103: 38.759998 | F103: 43667100 | G103: 28.240263 | H103: 0.01253916247
A104: 2007-06-01 | B104: 37.68 | C104: 39.77 | D104: 36.650002 | E104: 38.279999 | F104: 43860200 | G104: 27.890539 | H104: 0.02597970247
A105: 2007-05-01 | B105: 36.82 | C105: 37.810001 | D105: 36.450001 | E105: 37.580002 | F105: 31562900 | G105: 27.184299 | H105: 0.01953339083
A106: 2007-04-02 | B106: 35.360001 | C106: 37.240002 | D106: 34.549999 | E106: 36.860001 | F106: 41666000 | G106: 26.663471 | H106: 0.04242076767
A107: 2007-03-01 | B107: 34.610001 | C107: 36 | D107: 33.900002 | E107: 35.360001 | F107: 37497700 | G107: 25.578415 | H107: 0.01289032304
A108: 2007-02-01 | B108: 36.18 | C108: 36.5 | D108: 34.5 | E108: 34.91 | F108: 34598700 | G108: 25.252897 | H108: -0.0240127166
A109: 2007-01-03 | B109: 37.41 | C109: 38.279999 | D109: 35.759998 | E109: 36.049999 | F109: 34343100 | G109: 25.874207 | H109: -0.03117437546
A110: 2006-12-01 | B110: 35.380001 | C110: 38.490002 | D110: 34.959999 | E110: 37.209999 | F110: 33604700 | G110: 26.706774 | H110: 0.06250335181
A111: 2006-11-01 | B111: 35.200001 | C111: 36.279999 | D111: 34.619999 | E111: 35.279999 | F111: 23114100 | G111: 25.135708 | H111: 0.004841934441
A112: 2006-10-02 | B112: 35.400002 | C112: 36.48 | D112: 34.919998 | E112: 35.110001 | F112: 26500400 | G112: 25.014589 | H112: -0.005382474197
A113: 2006-09-01 | B113: 34.18 | C113: 35.650002 | D113: 33.759998 | E113: 35.299999 | F113: 24034200 | G113: 25.149958 | H113: 0.04385826597
A114: 2006-08-01 | B114: 32.650002 | C114: 34.439999 | D114: 32.200001 | E114: 34.060001 | F114: 18494400 | G114: 24.093269 | H114: 0.04190889347
A115: 2006-07-03 | B115: 33.099998 | C115: 33.619999 | D115: 32.060001 | E115: 32.689999 | F115: 24910500 | G115: 23.124161 | H115: -0.008191754092
A116: 2006-06-01 | B116: 34.299999 | C116: 34.919998 | D116: 32.779999 | E116: 32.959999 | F116: 27849600 | G116: 23.315153 | H116: -0.03074841612
A117: 2006-05-01 | B117: 34.639999 | C117: 35.240002 | D117: 33.700001 | E117: 34.259998 | F117: 24209600 | G117: 24.0548 | H117: -0.009540401926
A118: 2006-04-03 | B118: 34.790001 | C118: 34.990002 | D118: 33.07 | E118: 34.59 | F118: 26428700 | G118: 24.286503 | H118: -0.005462838615
A119: 2006-03-01 | B119: 32.970001 | C119: 35 | D119: 32.580002 | E119: 34.779999 | F119: 26519300 | G119: 24.419905 | H119: 0.05810771474
A120: 2006-02-01 | B120: 32.66 | C120: 33.75 | D120: 32.209999 | E120: 32.869999 | F120: 26951100 | G120: 23.078846 | H120: 0.01117872794
A121: 2006-01-03 | B121: 35.099998 | C121: 35.630001 | D121: 32.630001 | E121: 32.75 | F121: 34947000 | G121: 22.823706

Sheet GS
A1: Date | B1: Open | C1: High | D1: Low | E1: Close | F1: Volume | G1: Adj Close | H1: Returns
A2: 2015-12-01 | B2: 191.220001 | C2: 193.839996 | D2: 172.899994 | E2: 180.229996 | F2: 3049700 | G2: 180.229996 | H2: =(G2/G3)-1 -> -0.05152093355
A3: 2015-11-02 | B3: 188.320007 | C3: 199.899994 | D3: 186.559998 | E3: 190.020004 | F3: 2705200 | G3: 190.020004 | H3: =(G3/G4)-1 -> 0.0169103268
A4: 2015-10-01 | B4: 174.399994 | C4: 191.960007 | D4: 169.869995 | E4: 187.5 | F4: 3243800 | G4: 186.860138 | H4: 0.07907461111
A5: 2015-09-01 | B5: 184.240005 | C5: 191.75 | D5: 167.490005 | E5: 173.759995 | F5: 3756900 | G5: 173.167023 | H5: -0.07868509818
A6: 2015-08-03 | B6: 205.75 | C6: 207.779999 | D6: 172.100006 | E6: 188.600006 | F6: 3263700 | G6: 187.95639 | H6: -0.07714372323
A7: 2015-07-01 | B7: 211.630005 | C7: 214.610001 | D7: 203.199997 | E7: 205.070007 | F7: 2437200 | G7: 203.668106 | H7: -0.01781685319
A8: 2015-06-01 | B8: 207.320007 | C8: 218.770004 | D8: 205.649994 | E8: 208.789993 | F8: 2821300 | G8: 207.362656 | H8: 0.01260967594
A9: 2015-05-01 | B9: 198.449997 | C9: 209.679993 | D9: 194.009995 | E9: 206.190002 | F9: 2447600 | G9: 204.780441 | H9: 0.05301435044
A10: 2015-04-01 | B10: 187.940002 | C10: 202.869995 | D10: 186.960007 | E10: 196.419998 | F10: 2784800 | G10: 194.470703 | H10: 0.04495394761
A11: 2015-03-02 | B11: 190 | C11: 194.25 | D11: 182.710007 | E11: 187.970001 | F11: 2384400 | G11: 186.104568 | H11: -0.009589482309
A12: 2015-02-02 | B12: 172.990005 | C12: 193.279999 | D12: 172.259995 | E12: 189.789993 | F12: 2773400 | G12: 187.906494 | H12: 0.104261963
A13: 2015-01-02 | B13: 195.300003 | C13: 195.729996 | D13: 172.320007 | E13: 172.410004 | F13: 3356900 | G13: 170.16478 | H13: -0.1105091872
A14: 2014-12-01 | B14: 188 | C14: 198.059998 | D14: 182.399994 | E14: 193.830002 | F14: 3262900 | G14: 191.305832 | H14: 0.02876701418
A15: 2014-11-03 | B15: 190.350006 | C15: 192.679993 | D15: 187.550003 | E15: 188.410004 | F15: 2173700 | G15: 185.956421 | H15: -0.005149828999
A16: 2014-10-01 | B16: 183.190002 | C16: 190 | D16: 171.259995 | E16: 189.990005 | F16: 3751300 | G16: 186.919022 | H16: 0.03497301299
A17: 2014-09-02 | B17: 179.259995 | C17: 188.580002 | D17: 176.619995 | E17: 183.570007 | F17: 2592000 | G17: 180.602798 | H17: 0.02490089231
A18: 2014-08-01 | B18: 172.380005 | C18: 179.860001 | D18: 168.020004 | E18: 179.110001 | F18: 2312300 | G18: 176.21489 | H18: 0.03930964482
A19: 2014-07-01 | B19: 166.350006 | C19: 177.479996 | D19: 161.529999 | E19: 172.869995 | F19: 2895100 | G19: 169.549942 | H19: 0.03242952678
A20: 2014-06-02 | B20: 159.779999 | C20: 171.080002 | D20: 157.910004 | E20: 167.440002 | F20: 2387700 | G20: 164.224228 | H20: 0.04774418357
A21: 2014-05-01 | B21: 159.800003 | C21: 163.429993 | D21: 153.710007 | E21: 159.809998 | F21: 2537000 | G21: 156.740768 | H21: 0.003348642081
A22: 2014-04-01 | B22: 164.759995 | C22: 167.669998 | D22: 151.649994 | E22: 159.820007 | F22: 3878000 | G22: 156.217651 | H22: -0.02459566894
A23: 2014-03-03 | B23: 164.220001 | C23: 175.589996 | D23: 160.770004 | E23: 163.850006 | F23: 3422600 | G23: 160.156815 | H23: -0.01562021622
A24: 2014-02-03 | B24: 165.149994 | C24: 167.820007 | D24: 159.770004 | E24: 166.449997 | F24: 3930400 | G24: 162.698196 | H24: 0.01762050393
A25: 2014-01-02 | B25: 176.949997 | C25: 181.130005 | D25: 163.300003 | E25: 164.119995 | F25: 3384000 | G25: 159.881012 | H25: -0.07412832206
A26: 2013-12-02 | B26: 169.880005 | C26: 177.440002 | D26: 164.770004 | E26: 177.259995 | F26: 2732400 | G26: 172.68161 | H26: 0.04924813608
A27: 2013-11-01 | B27: 161.029999 | C27: 170.690002 | D27: 159.610001 | E27: 168.940002 | F27: 2970800 | G27: 164.576523 | H27: 0.0536788025
A28: 2013-10-01 | B28: 158.860001 | C28: 163.350006 | D28: 152.830002 | E28: 160.860001 | F28: 3387600 | G28: 156.192307 | H28: 0.01674979244
A29: 2013-09-03 | B29: 154.479996 | C29: 170 | D29: 153.419998 | E29: 158.210007 | F29: 4078100 | G29: 153.619217 | H29: 0.03996584329
A30: 2013-08-01 | B30: 165.740005 | C30: 169.690002 | D30: 151.330002 | E30: 152.130005 | F30: 2470800 | G30: 147.715637 | H30: -0.06951137385
A31: 2013-07-01 | B31: 152.779999 | C31: 167.410004 | D31: 149.279999 | E31: 164.029999 | F31: 3136100 | G31: 158.75061 | H31: 0.08449585206
A32: 2013-06-03 | B32: 161.559998 | C32: 168.199997 | D32: 148.710007 | E32: 151.25 | F32: 3951600 | G32: 146.381943 | H32: -0.06681884878
A33: 2013-05-01 | B33: 145.830002 | C33: 165.830002 | D33: 140.389999 | E33: 162.080002 | F33: 4267500 | G33: 156.863373 | H33: 0.1131113767
A34: 2013-04-01 | B34: 146.669998 | C34: 151.449997 | D34: 137.289993 | E34: 146.070007 | F34: 3836500 | G34: 140.92334 | H34: -0.007339337238
A35: 2013-03-01 | B35: 148.119995 | C35: 157.190002 | D35: 144.679993 | E35: 147.149994 | F35: 4327800 | G35: 141.965271 | H35: -0.01742786798
A36: 2013-02-01 | B36: 148.509995 | C36: 159 | D36: 146.619995 | E36: 149.759995 | F36: 5128200 | G36: 144.483307 | H36: 0.01629149443
A37: 2013-01-02 | B37: 131.300003 | C37: 148 | D37: 129.619995 | E37: 147.860001 | F37: 4885400 | G37: 142.167191 | H37: 0.159140894
A38: 2012-12-03 | B38: 118.419998 | C38: 129.720001 | D38: 115.620003 | E38: 127.559998 | F38: 4200100 | G38: 122.648758 | H38: 0.08294418394
A39: 2012-11-01 | B39: 122.82 | C39: 126.730003 | D39: 113.839996 | E39: 117.790001 | F39: 3939800 | G39: 113.254921 | H39: -0.03350364037
A40: 2012-10-01 | B40: 116.669998 | C40: 126.480003 | D40: 116.220001 | E40: 122.389999 | F40: 4752100 | G40: 117.180908 | H40: 0.07661854834
A41: 2012-09-04 | B41: 105.550003 | C41: 122.599998 | D41: 105.540001 | E41: 113.68 | F41: 4989900 | G41: 108.841621 | H41: 0.07529326646
A42: 2012-08-01 | B42: 101.269997 | C42: 107.339996 | D42: 96.720001 | E42: 105.720001 | F42: 3224300 | G42: 101.220406 | H42: 0.05237515608
A43: 2012-07-02 | B43: 96.559998 | C43: 102.18 | D43: 91.150002 | E43: 100.900002 | F43: 4769600 | G43: 96.182816 | H43: 0.05257667944
A44: 2012-06-01 | B44: 94.07 | C44: 97.599998 | D44: 90.43 | E44: 95.860001 | F44: 5273400 | G44: 91.378441 | H44: 0.001671882253
A45: 2012-05-01 | B45: 114.839996 | C45: 116.480003 | D45: 93.699997 | E45: 95.699997 | F45: 5725000 | G45: 91.225922 | H45: -0.16493772
A46: 2012-04-02 | B46: 124.139999 | C46: 125.540001 | D46: 110.07 | E46: 115.150002 | F46: 6123800 | G46: 109.244453 | H46: -0.07413364172
A47: 2012-03-01 | B47: 115.970001 | C47: 128.720001 | D47: 113.110001 | E47: 124.370003 | F47: 6969700 | G47: 117.9916 | H47: 0.0801633272
A48: 2012-02-01 | B48: 112.610001 | C48: 118.660004 | D48: 111.400002 | E48: 115.139999 | F48: 6055000 | G48: 109.234962 | H48: 0.03604344568
A49: 2012-01-03 | B49: 92.970001 | C49: 112.5 | D49: 92.419998 | E49: 111.470001 | F49: 8386700 | G49: 105.434731 | H49: 0.2326661514
A50: 2011-12-01 | B50: 94.580002 | C50: 106.099998 | D50: 86.900002 | E50: 90.43 | F50: 7752200 | G50: 85.53389 | H50: -0.05664513865
A51: 2011-11-01 | B51: 103.489998 | C51: 109.260002 | D51: 87.599998 | E51: 95.860001 | F51: 7669700 | G51: 90.669899 | H51: -0.1215790749
A52: 2011-10-03 | B52: 93.739998 | C52: 118.07 | D52: 84.269997 | E52: 109.550003 | F52: 8931200 | G52: 103.219193 | H52: 0.1586462452
A53: 2011-09-01 | B53: 115.550003 | C53: 115.550003 | D53: 91.400002 | E53: 94.550003 | F53: 8216400 | G53: 89.086029 | H53: -0.1864566788
A54: 2011-08-01 | B54: 136.919998 | C54: 137.339996 | D54: 103.160004 | E54: 116.220001 | F54: 10302900 | G54: 109.503731 | H54: -0.136315404
A55: 2011-07-01 | B55: 133.429993 | C55: 139.25 | D55: 125.5 | E55: 134.970001 | F55: 5932800 | G55: 126.786713 | H55: 0.01412583778
A56: 2011-06-01 | B56: 139.949997 | C56: 140 | D56: 128.300003 | E56: 133.089996 | F56: 6398400 | G56: 125.020691 | H56: -0.05428838775
A57: 2011-05-02 | B57: 152.199997 | C57: 153.070007 | D57: 133.639999 | E57: 140.729996 | F57: 7225700 | G57: 132.197479 | H57: -0.06567499251
A58: 2011-04-01 | B58: 159.770004 | C58: 164.399994 | D58: 149.550003 | E58: 151.009995 | F58: 5401400 | G58: 141.489822 | H58: -0.04785631332
A59: 2011-03-01 | B59: 163.550003 | C59: 165.179993 | D59: 153.259995 | E59: 158.600006 | F59: 5018000 | G59: 148.601334 | H59: -0.03162781388
A60: 2011-02-01 | B60: 163.860001 | C60: 169.899994 | D60: 161.320007 | E60: 163.779999 | F60: 4590600 | G60: 153.454773 | H60: 0.00310412667
A61: 2011-01-03 | B61: 170.550003 | C61: 175.339996 | D61: 160.119995 | E61: 163.619995 | F61: 6016300 | G61: 152.979904 | H61: -0.02699809133
A62: 2010-12-01 | B62: 158.449997 | C62: 171.229996 | D62: 157 | E62: 168.160004 | F62: 4330900 | G62: 157.22467 | H62: 0.07698215411
A63: 2010-11-01 | B63: 161.770004 | C63: 171.610001 | D63: 156.139999 | E63: 156.139999 | F63: 5961700 | G63: 145.986328 | H63: -0.0288347215
A64: 2010-10-01 | B64: 145.199997 | C64: 163.789993 | D64: 144.699997 | E64: 161.130005 | F64: 6960300 | G64: 150.320786 | H64: 0.114469465
A65: 2010-09-01 | B65: 139.009995 | C65: 154.699997 | D65: 137.800003 | E65: 144.580002 | F65: 7002500 | G65: 134.881027 | H65: 0.05586809333
A66: 2010-08-02 | B66: 152.820007 | C66: 157.25 | D66: 135.789993 | E66: 136.929993 | F66: 6478000 | G66: 127.744202 | H66: -0.08981711205
A67: 2010-07-01 | B67: 131.690002 | C67: 153.410004 | D67: 129.5 | E67: 150.820007 | F67: 11327700 | G67: 140.350037 | H67: =(G67/G68)-1 -> 0.1489296775
A68: 2010-06-01 | B68: 144.259995 | C68: 146.399994 | D68: 131.020004 | E68: 131.270004 | F68: 11005300 | G68: 122.157204 | H68: -0.09004566279
A69: 2010-05-03 | B69: 147.839996 | C69: 152.350006 | D69: 134.199997 | E69: 144.259995 | F69: 19071000 | G69: 134.245422 | H69: -0.003989179771
A70: 2010-04-01 | B70: 171.720001 | C70: 186.410004 | D70: 143.300003 | E70: 145.199997 | F70: 28878700 | G70: 134.783096 | H70: -0.1490359205
A71: 2010-03-01 | B71: 156.509995 | C71: 178.729996 | D71: 156.169998 | E71: 170.630005 | F71: 10809000 | G71: 158.388702 | H71: 0.09133351237
